Workbook

Sheet Auto Team results (hidden)
A1: SAMF 2006 National Sea League Final - Day 1
A2: Team Name | B2: Team No. | C2: Zone A | E2: Zone B | G2: Zone C | I2: Zone D | K2: Zone E | M2: Day 1 Points | N2: Day 1 Position
C3: Peg | D3: Points & Position | E3: Peg | F3: Points & Position | G3: Peg | H3: Points & Position | I3: Peg | J3: Points & Position | K3: Peg | L3: Points & Position
A4: =IF(ISNA(VLOOKUP(B4,#REF!,3,FALSE))=TRUE,"",VLOOKUP(B4,#REF!,3,FALSE)) ->  | B4: 12 | C4: =B4 -> 12 | D4: =IF(C4="","",VLOOKUP(C4,#REF!,7,FALSE)) ->  | E4: =IF(C4="","",IF((C4+NpZ+ZP)>2*NpZ,(((C4+NpZ+ZP)-2*NpZ)+NpZ),(C4+NpZ+ZP))) ->  | F4: =IF(E4="","",VLOOKUP(E4,#REF!,7,FALSE)) ->  | G4: =IF(E4="","",IF((E4+NpZ+ZP)>3*NpZ,(((E4+NpZ+ZP)-2*NpZ)+NpZ),(E4+NpZ+ZP))) ->  | H4: =IF(G4="","",VLOOKUP(G4,#REF!,7,FALSE)) ->  | I4: =IF(G4="","",IF((G4+NpZ+ZP)>4*NpZ,(((G4+NpZ+ZP)-2*NpZ)+NpZ),(G4+NpZ+ZP))) ->  | J4: =IF(I4="","",VLOOKUP(I4,#REF!,7,FALSE)) ->  | K4: =IF(I4="","",IF((I4+NpZ+ZP)>5*NpZ,(((I4+NpZ+ZP)-2*NpZ)+NpZ),(I4+NpZ+ZP))) ->  | L4: =IF(K4="","",VLOOKUP(K4,#REF!,7,FALSE)) ->  | M4: =IF(B4="","",(D4+F4+H4+J4+L4)) ->  | N4: =IF(M4="","",IF(M4=M3,N3,ROW()-3)) -> 
A5: =IF(ISNA(VLOOKUP(B5,#REF!,3,FALSE))=TRUE,"",VLOOKUP(B5,#REF!,3,FALSE)) ->  | B5: 10 | C5: 10 | D5: =IF(C5="","",VLOOKUP(C5,#REF!,7,FALSE)) ->  | F5: =IF(E5="","",VLOOKUP(E5,#REF!,7,FALSE)) ->  | H5: =IF(G5="","",VLOOKUP(G5,#REF!,7,FALSE)) ->  | J5: =IF(I5="","",VLOOKUP(I5,#REF!,7,FALSE)) ->  | L5: =IF(K5="","",VLOOKUP(K5,#REF!,7,FALSE)) -> 
A6: =IF(ISNA(VLOOKUP(B6,#REF!,3,FALSE))=TRUE,"",VLOOKUP(B6,#REF!,3,FALSE)) ->  | B6: 9 | C6: 9 | D6: =IF(C6="","",VLOOKUP(C6,#REF!,7,FALSE)) ->  | F6: =IF(E6="","",VLOOKUP(E6,#REF!,7,FALSE)) ->  | H6: =IF(G6="","",VLOOKUP(G6,#REF!,7,FALSE)) ->  | J6: =IF(I6="","",VLOOKUP(I6,#REF!,7,FALSE)) ->  | L6: =IF(K6="","",VLOOKUP(K6,#REF!,7,FALSE)) -> 
A7: =IF(ISNA(VLOOKUP(B7,#REF!,3,FALSE))=TRUE,"",VLOOKUP(B7,#REF!,3,FALSE)) ->  | B7: 26 | C7: 26 | D7: =IF(C7="","",VLOOKUP(C7,#REF!,7,FALSE)) ->  | F7: =IF(E7="","",VLOOKUP(E7,#REF!,7,FALSE)) ->  | H7: =IF(G7="","",VLOOKUP(G7,#REF!,7,FALSE)) ->  | J7: =IF(I7="","",VLOOKUP(I7,#REF!,7,FALSE)) ->  | L7: =IF(K7="","",VLOOKUP(K7,#REF!,7,FALSE)) -> 
A8: =IF(ISNA(VLOOKUP(B8,#REF!,3,FALSE))=TRUE,"",VLOOKUP(B8,#REF!,3,FALSE)) ->  | B8: 4 | C8: 4 | D8: =IF(C8="","",VLOOKUP(C8,#REF!,7,FALSE)) ->  | F8: =IF(E8="","",VLOOKUP(E8,#REF!,7,FALSE)) ->  | H8: =IF(G8="","",VLOOKUP(G8,#REF!,7,FALSE)) ->  | J8: =IF(I8="","",VLOOKUP(I8,#REF!,7,FALSE)) ->  | L8: =IF(K8="","",VLOOKUP(K8,#REF!,7,FALSE)) -> 
A9: =IF(ISNA(VLOOKUP(B9,#REF!,3,FALSE))=TRUE,"",VLOOKUP(B9,#REF!,3,FALSE)) ->  | B9: 11 | C9: 11 | D9: =IF(C9="","",VLOOKUP(C9,#REF!,7,FALSE)) ->  | F9: =IF(E9="","",VLOOKUP(E9,#REF!,7,FALSE)) ->  | H9: =IF(G9="","",VLOOKUP(G9,#REF!,7,FALSE)) ->  | J9: =IF(I9="","",VLOOKUP(I9,#REF!,7,FALSE)) ->  | L9: =IF(K9="","",VLOOKUP(K9,#REF!,7,FALSE)) -> 
A10: =IF(ISNA(VLOOKUP(B10,#REF!,3,FALSE))=TRUE,"",VLOOKUP(B10,#REF!,3,FALSE)) ->  | B10: 22 | C10: 22 | D10: =IF(C10="","",VLOOKUP(C10,#REF!,7,FALSE)) ->  | F10: =IF(E10="","",VLOOKUP(E10,#REF!,7,FALSE)) ->  | H10: =IF(G10="","",VLOOKUP(G10,#REF!,7,FALSE)) ->  | J10: =IF(I10="","",VLOOKUP(I10,#REF!,7,FALSE)) ->  | L10: =IF(K10="","",VLOOKUP(K10,#REF!,7,FALSE)) -> 
A11: =IF(ISNA(VLOOKUP(B11,#REF!,3,FALSE))=TRUE,"",VLOOKUP(B11,#REF!,3,FALSE)) ->  | B11: 20 | C11: 20 | D11: =IF(C11="","",VLOOKUP(C11,#REF!,7,FALSE)) ->  | F11: =IF(E11="","",VLOOKUP(E11,#REF!,7,FALSE)) ->  | H11: =IF(G11="","",VLOOKUP(G11,#REF!,7,FALSE)) ->  | J11: =IF(I11="","",VLOOKUP(I11,#REF!,7,FALSE)) ->  | L11: =IF(K11="","",VLOOKUP(K11,#REF!,7,FALSE)) -> 
A12: =IF(ISNA(VLOOKUP(B12,#REF!,3,FALSE))=TRUE,"",VLOOKUP(B12,#REF!,3,FALSE)) ->  | B12: 21 | C12: 21 | D12: =IF(C12="","",VLOOKUP(C12,#REF!,7,FALSE)) ->  | F12: =IF(E12="","",VLOOKUP(E12,#REF!,7,FALSE)) ->  | H12: =IF(G12="","",VLOOKUP(G12,#REF!,7,FALSE)) ->  | J12: =IF(I12="","",VLOOKUP(I12,#REF!,7,FALSE)) ->  | L12: =IF(K12="","",VLOOKUP(K12,#REF!,7,FALSE)) -> 
A13: =IF(ISNA(VLOOKUP(B13,#REF!,3,FALSE))=TRUE,"",VLOOKUP(B13,#REF!,3,FALSE)) ->  | B13: 27 | C13: 27 | D13: =IF(C13="","",VLOOKUP(C13,#REF!,7,FALSE)) ->  | F13: =IF(E13="","",VLOOKUP(E13,#REF!,7,FALSE)) ->  | H13: =IF(G13="","",VLOOKUP(G13,#REF!,7,FALSE)) ->  | J13: =IF(I13="","",VLOOKUP(I13,#REF!,7,FALSE)) ->  | L13: =IF(K13="","",VLOOKUP(K13,#REF!,7,FALSE)) -> 
A14: =IF(ISNA(VLOOKUP(B14,#REF!,3,FALSE))=TRUE,"",VLOOKUP(B14,#REF!,3,FALSE)) ->  | B14: 28 | C14: 28 | D14: =IF(C14="","",VLOOKUP(C14,#REF!,7,FALSE)) ->  | F14: =IF(E14="","",VLOOKUP(E14,#REF!,7,FALSE)) ->  | H14: =IF(G14="","",VLOOKUP(G14,#REF!,7,FALSE)) ->  | J14: =IF(I14="","",VLOOKUP(I14,#REF!,7,FALSE)) ->  | L14: =IF(K14="","",VLOOKUP(K14,#REF!,7,FALSE)) -> 
A15: =IF(ISNA(VLOOKUP(B15,#REF!,3,FALSE))=TRUE,"",VLOOKUP(B15,#REF!,3,FALSE)) ->  | B15: 30 | C15: =B15 -> 30 | D15: =IF(C15="","",VLOOKUP(C15,#REF!,7,FALSE)) ->  | F15: =IF(E15="","",VLOOKUP(E15,#REF!,7,FALSE)) ->  | H15: =IF(G15="","",VLOOKUP(G15,#REF!,7,FALSE)) ->  | J15: =IF(I15="","",VLOOKUP(I15,#REF!,7,FALSE)) ->  | L15: =IF(K15="","",VLOOKUP(K15,#REF!,7,FALSE)) ->  | N15: =IF(M15="","",IF(M15=M14,N14,ROW()-3)) -> 
A16: =IF(ISNA(VLOOKUP(B16,#REF!,3,FALSE))=TRUE,"",VLOOKUP(B16,#REF!,3,FALSE)) ->  | B16: 25 | C16: 25 | D16: =IF(C16="","",VLOOKUP(C16,#REF!,7,FALSE)) ->  | F16: =IF(E16="","",VLOOKUP(E16,#REF!,7,FALSE)) ->  | H16: =IF(G16="","",VLOOKUP(G16,#REF!,7,FALSE)) ->  | J16: =IF(I16="","",VLOOKUP(I16,#REF!,7,FALSE)) ->  | L16: =IF(K16="","",VLOOKUP(K16,#REF!,7,FALSE)) -> 
A17: =IF(ISNA(VLOOKUP(B17,#REF!,3,FALSE))=TRUE,"",VLOOKUP(B17,#REF!,3,FALSE)) ->  | B17: 17 | C17: 17 | D17: =IF(C17="","",VLOOKUP(C17,#REF!,7,FALSE)) ->  | F17: =IF(E17="","",VLOOKUP(E17,#REF!,7,FALSE)) ->  | H17: =IF(G17="","",VLOOKUP(G17,#REF!,7,FALSE)) ->  | J17: =IF(I17="","",VLOOKUP(I17,#REF!,7,FALSE)) ->  | L17: =IF(K17="","",VLOOKUP(K17,#REF!,7,FALSE)) -> 
A18: =IF(ISNA(VLOOKUP(B18,#REF!,3,FALSE))=TRUE,"",VLOOKUP(B18,#REF!,3,FALSE)) ->  | B18: 2 | C18: 2 | D18: =IF(C18="","",VLOOKUP(C18,#REF!,7,FALSE)) ->  | F18: =IF(E18="","",VLOOKUP(E18,#REF!,7,FALSE)) ->  | H18: =IF(G18="","",VLOOKUP(G18,#REF!,7,FALSE)) ->  | J18: =IF(I18="","",VLOOKUP(I18,#REF!,7,FALSE)) ->  | L18: =IF(K18="","",VLOOKUP(K18,#REF!,7,FALSE)) -> 
A19: =IF(ISNA(VLOOKUP(B19,#REF!,3,FALSE))=TRUE,"",VLOOKUP(B19,#REF!,3,FALSE)) ->  | B19: 6 | C19: 6 | D19: =IF(C19="","",VLOOKUP(C19,#REF!,7,FALSE)) ->  | F19: =IF(E19="","",VLOOKUP(E19,#REF!,7,FALSE)) ->  | H19: =IF(G19="","",VLOOKUP(G19,#REF!,7,FALSE)) ->  | J19: =IF(I19="","",VLOOKUP(I19,#REF!,7,FALSE)) ->  | L19: =IF(K19="","",VLOOKUP(K19,#REF!,7,FALSE)) -> 
A20: =IF(ISNA(VLOOKUP(B20,#REF!,3,FALSE))=TRUE,"",VLOOKUP(B20,#REF!,3,FALSE)) ->  | B20: 1 | C20: =B20 -> 1 | D20: =IF(C20="","",VLOOKUP(C20,#REF!,7,FALSE)) ->  | E20: =IF(C20="","",IF((C20+NpZ+ZP)>2*NpZ,(((C20+NpZ+ZP)-2*NpZ)+NpZ),(C20+NpZ+ZP))) ->  | F20: =IF(E20="","",VLOOKUP(E20,#REF!,7,FALSE)) ->  | G20: =IF(E20="","",IF((E20+NpZ+ZP)>3*NpZ,(((E20+NpZ+ZP)-2*NpZ)+NpZ),(E20+NpZ+ZP))) ->  | H20: =IF(G20="","",VLOOKUP(G20,#REF!,7,FALSE)) ->  | I20: =IF(G20="","",IF((G20+NpZ+ZP)>4*NpZ,(((G20+NpZ+ZP)-2*NpZ)+NpZ),(G20+NpZ+ZP))) ->  | J20: =IF(I20="","",VLOOKUP(I20,#REF!,7,FALSE)) ->  | K20: =IF(I20="","",IF((I20+NpZ+ZP)>5*NpZ,(((I20+NpZ+ZP)-2*NpZ)+NpZ),(I20+NpZ+ZP))) ->  | L20: =IF(K20="","",VLOOKUP(K20,#REF!,7,FALSE)) ->  | M20: =IF(B20="","",(D20+F20+H20+J20+L20)) ->  | N20: =IF(M20="","",IF(M20=M19,N19,ROW()-3)) -> 
A21: =IF(ISNA(VLOOKUP(B21,#REF!,3,FALSE))=TRUE,"",VLOOKUP(B21,#REF!,3,FALSE)) ->  | B21: 29 | C21: =B21 -> 29 | D21: =IF(C21="","",VLOOKUP(C21,#REF!,7,FALSE)) ->  | F21: =IF(E21="","",VLOOKUP(E21,#REF!,7,FALSE)) ->  | H21: =IF(G21="","",VLOOKUP(G21,#REF!,7,FALSE)) ->  | J21: =IF(I21="","",VLOOKUP(I21,#REF!,7,FALSE)) ->  | L21: =IF(K21="","",VLOOKUP(K21,#REF!,7,FALSE)) ->  | N21: =IF(M21="","",IF(M21=M20,N20,ROW()-3)) -> 
A22: =IF(ISNA(VLOOKUP(B22,#REF!,3,FALSE))=TRUE,"",VLOOKUP(B22,#REF!,3,FALSE)) ->  | B22: 23 | C22: 23 | D22: =IF(C22="","",VLOOKUP(C22,#REF!,7,FALSE)) ->  | F22: =IF(E22="","",VLOOKUP(E22,#REF!,7,FALSE)) ->  | H22: =IF(G22="","",VLOOKUP(G22,#REF!,7,FALSE)) ->  | J22: =IF(I22="","",VLOOKUP(I22,#REF!,7,FALSE)) ->  | L22: =IF(K22="","",VLOOKUP(K22,#REF!,7,FALSE)) -> 
A23: =IF(ISNA(VLOOKUP(B23,#REF!,3,FALSE))=TRUE,"",VLOOKUP(B23,#REF!,3,FALSE)) ->  | B23: 16 | C23: 16 | D23: =IF(C23="","",VLOOKUP(C23,#REF!,7,FALSE)) ->  | F23: =IF(E23="","",VLOOKUP(E23,#REF!,7,FALSE)) ->  | H23: =IF(G23="","",VLOOKUP(G23,#REF!,7,FALSE)) ->  | J23: =IF(I23="","",VLOOKUP(I23,#REF!,7,FALSE)) ->  | L23: =IF(K23="","",VLOOKUP(K23,#REF!,7,FALSE)) -> 
A24: =IF(ISNA(VLOOKUP(B24,#REF!,3,FALSE))=TRUE,"",VLOOKUP(B24,#REF!,3,FALSE)) ->  | B24: 14 | C24: 14 | D24: =IF(C24="","",VLOOKUP(C24,#REF!,7,FALSE)) ->  | F24: =IF(E24="","",VLOOKUP(E24,#REF!,7,FALSE)) ->  | H24: =IF(G24="","",VLOOKUP(G24,#REF!,7,FALSE)) ->  | J24: =IF(I24="","",VLOOKUP(I24,#REF!,7,FALSE)) ->  | L24: =IF(K24="","",VLOOKUP(K24,#REF!,7,FALSE)) -> 
A25: =IF(ISNA(VLOOKUP(B25,#REF!,3,FALSE))=TRUE,"",VLOOKUP(B25,#REF!,3,FALSE)) ->  | B25: 24 | C25: 24 | D25: =IF(C25="","",VLOOKUP(C25,#REF!,7,FALSE)) ->  | F25: =IF(E25="","",VLOOKUP(E25,#REF!,7,FALSE)) ->  | H25: =IF(G25="","",VLOOKUP(G25,#REF!,7,FALSE)) ->  | J25: =IF(I25="","",VLOOKUP(I25,#REF!,7,FALSE)) ->  | L25: =IF(K25="","",VLOOKUP(K25,#REF!,7,FALSE)) -> 
A26: =IF(ISNA(VLOOKUP(B26,#REF!,3,FALSE))=TRUE,"",VLOOKUP(B26,#REF!,3,FALSE)) ->  | B26: 15 | C26: 15 | D26: =IF(C26="","",VLOOKUP(C26,#REF!,7,FALSE)) ->  | F26: =IF(E26="","",VLOOKUP(E26,#REF!,7,FALSE)) ->  | H26: =IF(G26="","",VLOOKUP(G26,#REF!,7,FALSE)) ->  | J26: =IF(I26="","",VLOOKUP(I26,#REF!,7,FALSE)) ->  | L26: =IF(K26="","",VLOOKUP(K26,#REF!,7,FALSE)) -> 
A27: =IF(ISNA(VLOOKUP(B27,#REF!,3,FALSE))=TRUE,"",VLOOKUP(B27,#REF!,3,FALSE)) ->  | B27: 19 | C27: 19 | D27: =IF(C27="","",VLOOKUP(C27,#REF!,7,FALSE)) ->  | F27: =IF(E27="","",VLOOKUP(E27,#REF!,7,FALSE)) ->  | H27: =IF(G27="","",VLOOKUP(G27,#REF!,7,FALSE)) ->  | J27: =IF(I27="","",VLOOKUP(I27,#REF!,7,FALSE)) ->  | L27: =IF(K27="","",VLOOKUP(K27,#REF!,7,FALSE)) -> 
A28: =IF(ISNA(VLOOKUP(B28,#REF!,3,FALSE))=TRUE,"",VLOOKUP(B28,#REF!,3,FALSE)) ->  | B28: 18 | C28: 18 | D28: =IF(C28="","",VLOOKUP(C28,#REF!,7,FALSE)) ->  | F28: =IF(E28="","",VLOOKUP(E28,#REF!,7,FALSE)) ->  | H28: =IF(G28="","",VLOOKUP(G28,#REF!,7,FALSE)) ->  | J28: =IF(I28="","",VLOOKUP(I28,#REF!,7,FALSE)) ->  | L28: =IF(K28="","",VLOOKUP(K28,#REF!,7,FALSE)) -> 
A29: =IF(ISNA(VLOOKUP(B29,#REF!,3,FALSE))=TRUE,"",VLOOKUP(B29,#REF!,3,FALSE)) ->  | B29: 7 | C29: 7 | D29: =IF(C29="","",VLOOKUP(C29,#REF!,7,FALSE)) ->  | F29: =IF(E29="","",VLOOKUP(E29,#REF!,7,FALSE)) ->  | H29: =IF(G29="","",VLOOKUP(G29,#REF!,7,FALSE)) ->  | J29: =IF(I29="","",VLOOKUP(I29,#REF!,7,FALSE)) ->  | L29: =IF(K29="","",VLOOKUP(K29,#REF!,7,FALSE)) -> 
A30: =IF(ISNA(VLOOKUP(B30,#REF!,3,FALSE))=TRUE,"",VLOOKUP(B30,#REF!,3,FALSE)) ->  | B30: 3 | C30: 3 | D30: =IF(C30="","",VLOOKUP(C30,#REF!,7,FALSE)) ->  | F30: =IF(E30="","",VLOOKUP(E30,#REF!,7,FALSE)) ->  | H30: =IF(G30="","",VLOOKUP(G30,#REF!,7,FALSE)) ->  | J30: =IF(I30="","",VLOOKUP(I30,#REF!,7,FALSE)) ->  | L30: =IF(K30="","",VLOOKUP(K30,#REF!,7,FALSE)) -> 
A31: =IF(ISNA(VLOOKUP(B31,#REF!,3,FALSE))=TRUE,"",VLOOKUP(B31,#REF!,3,FALSE)) ->  | B31: 5 | C31: 5 | D31: =IF(C31="","",VLOOKUP(C31,#REF!,7,FALSE)) ->  | F31: =IF(E31="","",VLOOKUP(E31,#REF!,7,FALSE)) ->  | H31: =IF(G31="","",VLOOKUP(G31,#REF!,7,FALSE)) ->  | J31: =IF(I31="","",VLOOKUP(I31,#REF!,7,FALSE)) ->  | L31: =IF(K31="","",VLOOKUP(K31,#REF!,7,FALSE)) -> 
A32: =IF(ISNA(VLOOKUP(B32,#REF!,2,FALSE))=TRUE,"",VLOOKUP(B32,#REF!,2,FALSE)) ->  | B32: 8 | C32: 8 | D32: =IF(C32="","",VLOOKUP(C32,#REF!,7,FALSE)) ->  | F32: =IF(E32="","",VLOOKUP(E32,#REF!,7,FALSE)) ->  | H32: =IF(G32="","",VLOOKUP(G32,#REF!,7,FALSE)) ->  | J32: =IF(I32="","",VLOOKUP(I32,#REF!,7,FALSE)) ->  | L32: =IF(K32="","",VLOOKUP(K32,#REF!,7,FALSE)) -> 
A33: =IF(ISNA(VLOOKUP(B33,#REF!,2,FALSE))=TRUE,"",VLOOKUP(B33,#REF!,2,FALSE)) ->  | B33: 13 | C33: 13 | D33: =IF(C33="","",VLOOKUP(C33,#REF!,7,FALSE)) ->  | F33: =IF(E33="","",VLOOKUP(E33,#REF!,7,FALSE)) ->  | H33: =IF(G33="","",VLOOKUP(G33,#REF!,7,FALSE)) ->  | J33: =IF(I33="","",VLOOKUP(I33,#REF!,7,FALSE)) ->  | L33: =IF(K33="","",VLOOKUP(K33,#REF!,7,FALSE)) -> 
A34: Day 1 Zone Winner | C34: IAN LAMBERT | E34: IVOR SMITH | G34: WAYNE PERRING | I34: JOE ARCH | K34: KEN SHOVE
A35: Day 1 Zone Second | C35: ALAN PRICE | E35: SIMON DRAYTON | G35: ROB TUCK | I35: JOHN VAN CRUGTEN | K35: LEE CULLEN
A36: Day 1 Zone Third | C36: NEIL CUTLER | E36: MIKE KEMPSTER | G36: TONY THOMAS | I36: JIM GROSS | K36: TONY ANDERSON
A37: Day 1 Zone Third | K37: C. READ
A38: SAMF 2006 National Sea League Final - Day 2
A39: Team Name | B39: Team No. | C39: Zone A | E39: Zone B | G39: Zone C | I39: Zone D | K39: Zone E | M39: Day 2 Points | N39: Day 2 Position
C40: Peg | D40: Points & Position | E40: Peg | F40: Points & Position | G40: Peg | H40: Points & Position | I40: Peg | J40: Points & Position | K40: Peg | L40: Points & Position
A41: =IF(ISNA(VLOOKUP(B41,#REF!,3,FALSE))=TRUE,"",VLOOKUP(B41,#REF!,3,FALSE)) ->  | B41: 11 | C41: =VLOOKUP(B41,#REF!,6,FALSE) ->  | D41: =IF(C41="","",VLOOKUP(C41,#REF!,7,FALSE)) ->  | E41: =IF(C41="","",IF((C41+NpZ+ZP)>2*NpZ,(((C41+NpZ+ZP)-2*NpZ)+NpZ),(C41+NpZ+ZP))) ->  | F41: =IF(E41="","",VLOOKUP(E41,#REF!,7,FALSE)) ->  | G41: =IF(E41="","",IF((E41+NpZ+ZP)>3*NpZ,(((E41+NpZ+ZP)-2*NpZ)+NpZ),(E41+NpZ+ZP))) ->  | H41: =IF(G41="","",VLOOKUP(G41,#REF!,7,FALSE)) ->  | I41: =IF(G41="","",IF((G41+NpZ+ZP)>4*NpZ,(((G41+NpZ+ZP)-2*NpZ)+NpZ),(G41+NpZ+ZP))) ->  | J41: =IF(I41="","",VLOOKUP(I41,#REF!,7,FALSE)) ->  | K41: =IF(I41="","",IF((I41+NpZ+ZP)>5*NpZ,(((I41+NpZ+ZP)-2*NpZ)+NpZ),(I41+NpZ+ZP))) ->  | L41: =IF(K41="","",VLOOKUP(K41,#REF!,7,FALSE)) ->  | M41: =IF(B41="","",(D41+F41+H41+J41+L41)) ->  | N41: =IF(M41="","",IF(M41=M40,N40,ROW()-40)) -> 
A42: =IF(ISNA(VLOOKUP(B42,#REF!,3,FALSE))=TRUE,"",VLOOKUP(B42,#REF!,3,FALSE)) ->  | B42: 30 | C42: =VLOOKUP(B42,#REF!,6,FALSE) ->  | D42: =IF(C42="","",VLOOKUP(C42,#REF!,7,FALSE)) ->  | E42: =IF(C42="","",IF((C42+NpZ+ZP)>2*NpZ,(((C42+NpZ+ZP)-2*NpZ)+NpZ),(C42+NpZ+ZP))) ->  | F42: =IF(E42="","",VLOOKUP(E42,#REF!,7,FALSE)) ->  | G42: =IF(E42="","",IF((E42+NpZ+ZP)>3*NpZ,(((E42+NpZ+ZP)-2*NpZ)+NpZ),(E42+NpZ+ZP))) ->  | H42: =IF(G42="","",VLOOKUP(G42,#REF!,7,FALSE)) ->  | I42: =IF(G42="","",IF((G42+NpZ+ZP)>4*NpZ,(((G42+NpZ+ZP)-2*NpZ)+NpZ),(G42+NpZ+ZP))) ->  | J42: =IF(I42="","",VLOOKUP(I42,#REF!,7,FALSE)) ->  | K42: =IF(I42="","",IF((I42+NpZ+ZP)>5*NpZ,(((I42+NpZ+ZP)-2*NpZ)+NpZ),(I42+NpZ+ZP))) ->  | L42: =IF(K42="","",VLOOKUP(K42,#REF!,7,FALSE)) ->  | N42: =IF(M42="","",IF(M42=M41,N41,ROW()-40)) -> 
A43: =IF(ISNA(VLOOKUP(B43,#REF!,3,FALSE))=TRUE,"",VLOOKUP(B43,#REF!,3,FALSE)) ->  | B43: 12 | C43: =VLOOKUP(B43,#REF!,6,FALSE) ->  | D43: =IF(C43="","",VLOOKUP(C43,#REF!,7,FALSE)) ->  | F43: =IF(E43="","",VLOOKUP(E43,#REF!,7,FALSE)) ->  | H43: =IF(G43="","",VLOOKUP(G43,#REF!,7,FALSE)) ->  | J43: =IF(I43="","",VLOOKUP(I43,#REF!,7,FALSE)) ->  | L43: =IF(K43="","",VLOOKUP(K43,#REF!,7,FALSE)) -> 
A44: =IF(ISNA(VLOOKUP(B44,#REF!,3,FALSE))=TRUE,"",VLOOKUP(B44,#REF!,3,FALSE)) ->  | B44: 9 | C44: =VLOOKUP(B44,#REF!,6,FALSE) ->  | D44: =IF(C44="","",VLOOKUP(C44,#REF!,7,FALSE)) ->  | F44: =IF(E44="","",VLOOKUP(E44,#REF!,7,FALSE)) ->  | H44: =IF(G44="","",VLOOKUP(G44,#REF!,7,FALSE)) ->  | J44: =IF(I44="","",VLOOKUP(I44,#REF!,7,FALSE)) ->  | L44: =IF(K44="","",VLOOKUP(K44,#REF!,7,FALSE)) ->  | N44: =IF(M44="","",IF(M44=M43,N43,ROW()-40)) -> 
A45: =IF(ISNA(VLOOKUP(B45,#REF!,3,FALSE))=TRUE,"",VLOOKUP(B45,#REF!,3,FALSE)) ->  | B45: 20 | C45: =VLOOKUP(B45,#REF!,6,FALSE) ->  | D45: =IF(C45="","",VLOOKUP(C45,#REF!,7,FALSE)) ->  | F45: =IF(E45="","",VLOOKUP(E45,#REF!,7,FALSE)) ->  | H45: =IF(G45="","",VLOOKUP(G45,#REF!,7,FALSE)) ->  | J45: =IF(I45="","",VLOOKUP(I45,#REF!,7,FALSE)) ->  | L45: =IF(K45="","",VLOOKUP(K45,#REF!,7,FALSE)) -> 
A46: =IF(ISNA(VLOOKUP(B46,#REF!,3,FALSE))=TRUE,"",VLOOKUP(B46,#REF!,3,FALSE)) ->  | B46: 10 | C46: =VLOOKUP(B46,#REF!,6,FALSE) ->  | D46: =IF(C46="","",VLOOKUP(C46,#REF!,7,FALSE)) ->  | F46: =IF(E46="","",VLOOKUP(E46,#REF!,7,FALSE)) ->  | H46: =IF(G46="","",VLOOKUP(G46,#REF!,7,FALSE)) ->  | J46: =IF(I46="","",VLOOKUP(I46,#REF!,7,FALSE)) ->  | L46: =IF(K46="","",VLOOKUP(K46,#REF!,7,FALSE)) -> 
A47: =IF(ISNA(VLOOKUP(B47,#REF!,3,FALSE))=TRUE,"",VLOOKUP(B47,#REF!,3,FALSE)) ->  | B47: 2 | C47: =VLOOKUP(B47,#REF!,6,FALSE) ->  | D47: =IF(C47="","",VLOOKUP(C47,#REF!,7,FALSE)) ->  | F47: =IF(E47="","",VLOOKUP(E47,#REF!,7,FALSE)) ->  | H47: =IF(G47="","",VLOOKUP(G47,#REF!,7,FALSE)) ->  | J47: =IF(I47="","",VLOOKUP(I47,#REF!,7,FALSE)) ->  | L47: =IF(K47="","",VLOOKUP(K47,#REF!,7,FALSE)) -> 
A48: =IF(ISNA(VLOOKUP(B48,#REF!,3,FALSE))=TRUE,"",VLOOKUP(B48,#REF!,3,FALSE)) ->  | B48: 27 | C48: =VLOOKUP(B48,#REF!,6,FALSE) ->  | D48: =IF(C48="","",VLOOKUP(C48,#REF!,7,FALSE)) ->  | F48: =IF(E48="","",VLOOKUP(E48,#REF!,7,FALSE)) ->  | H48: =IF(G48="","",VLOOKUP(G48,#REF!,7,FALSE)) ->  | J48: =IF(I48="","",VLOOKUP(I48,#REF!,7,FALSE)) ->  | L48: =IF(K48="","",VLOOKUP(K48,#REF!,7,FALSE)) -> 
A49: =IF(ISNA(VLOOKUP(B49,#REF!,3,FALSE))=TRUE,"",VLOOKUP(B49,#REF!,3,FALSE)) ->  | B49: 22 | C49: =VLOOKUP(B49,#REF!,6,FALSE) ->  | D49: =IF(C49="","",VLOOKUP(C49,#REF!,7,FALSE)) ->  | F49: =IF(E49="","",VLOOKUP(E49,#REF!,7,FALSE)) ->  | H49: =IF(G49="","",VLOOKUP(G49,#REF!,7,FALSE)) ->  | J49: =IF(I49="","",VLOOKUP(I49,#REF!,7,FALSE)) ->  | L49: =IF(K49="","",VLOOKUP(K49,#REF!,7,FALSE)) -> 
A50: =IF(ISNA(VLOOKUP(B50,#REF!,3,FALSE))=TRUE,"",VLOOKUP(B50,#REF!,3,FALSE)) ->  | B50: 15 | C50: =VLOOKUP(B50,#REF!,6,FALSE) ->  | D50: =IF(C50="","",VLOOKUP(C50,#REF!,7,FALSE)) ->  | F50: =IF(E50="","",VLOOKUP(E50,#REF!,7,FALSE)) ->  | H50: =IF(G50="","",VLOOKUP(G50,#REF!,7,FALSE)) ->  | J50: =IF(I50="","",VLOOKUP(I50,#REF!,7,FALSE)) ->  | L50: =IF(K50="","",VLOOKUP(K50,#REF!,7,FALSE)) -> 
A51: =IF(ISNA(VLOOKUP(B51,#REF!,3,FALSE))=TRUE,"",VLOOKUP(B51,#REF!,3,FALSE)) ->  | B51: 24 | C51: =VLOOKUP(B51,#REF!,6,FALSE) ->  | D51: =IF(C51="","",VLOOKUP(C51,#REF!,7,FALSE)) ->  | F51: =IF(E51="","",VLOOKUP(E51,#REF!,7,FALSE)) ->  | H51: =IF(G51="","",VLOOKUP(G51,#REF!,7,FALSE)) ->  | J51: =IF(I51="","",VLOOKUP(I51,#REF!,7,FALSE)) ->  | L51: =IF(K51="","",VLOOKUP(K51,#REF!,7,FALSE)) -> 
A52: =IF(ISNA(VLOOKUP(B52,#REF!,3,FALSE))=TRUE,"",VLOOKUP(B52,#REF!,3,FALSE)) ->  | B52: 1 | C52: =VLOOKUP(B52,#REF!,6,FALSE) ->  | D52: =IF(C52="","",VLOOKUP(C52,#REF!,7,FALSE)) ->  | F52: =IF(E52="","",VLOOKUP(E52,#REF!,7,FALSE)) ->  | H52: =IF(G52="","",VLOOKUP(G52,#REF!,7,FALSE)) ->  | J52: =IF(I52="","",VLOOKUP(I52,#REF!,7,FALSE)) ->  | L52: =IF(K52="","",VLOOKUP(K52,#REF!,7,FALSE)) -> 
A53: =IF(ISNA(VLOOKUP(B53,#REF!,3,FALSE))=TRUE,"",VLOOKUP(B53,#REF!,3,FALSE)) ->  | B53: 29 | C53: =VLOOKUP(B53,#REF!,6,FALSE) ->  | D53: =IF(C53="","",VLOOKUP(C53,#REF!,7,FALSE)) ->  | F53: =IF(E53="","",VLOOKUP(E53,#REF!,7,FALSE)) ->  | H53: =IF(G53="","",VLOOKUP(G53,#REF!,7,FALSE)) ->  | J53: =IF(I53="","",VLOOKUP(I53,#REF!,7,FALSE)) ->  | L53: =IF(K53="","",VLOOKUP(K53,#REF!,7,FALSE)) -> 
A54: =IF(ISNA(VLOOKUP(B54,#REF!,3,FALSE))=TRUE,"",VLOOKUP(B54,#REF!,3,FALSE)) ->  | B54: 26 | C54: =VLOOKUP(B54,#REF!,6,FALSE) ->  | D54: =IF(C54="","",VLOOKUP(C54,#REF!,7,FALSE)) ->  | F54: =IF(E54="","",VLOOKUP(E54,#REF!,7,FALSE)) ->  | H54: =IF(G54="","",VLOOKUP(G54,#REF!,7,FALSE)) ->  | J54: =IF(I54="","",VLOOKUP(I54,#REF!,7,FALSE)) ->  | L54: =IF(K54="","",VLOOKUP(K54,#REF!,7,FALSE)) -> 
A55: =IF(ISNA(VLOOKUP(B55,#REF!,3,FALSE))=TRUE,"",VLOOKUP(B55,#REF!,3,FALSE)) ->  | B55: 14 | C55: =VLOOKUP(B55,#REF!,6,FALSE) ->  | D55: =IF(C55="","",VLOOKUP(C55,#REF!,7,FALSE)) ->  | F55: =IF(E55="","",VLOOKUP(E55,#REF!,7,FALSE)) ->  | H55: =IF(G55="","",VLOOKUP(G55,#REF!,7,FALSE)) ->  | J55: =IF(I55="","",VLOOKUP(I55,#REF!,7,FALSE)) ->  | L55: =IF(K55="","",VLOOKUP(K55,#REF!,7,FALSE)) -> 
A56: =IF(ISNA(VLOOKUP(B56,#REF!,3,FALSE))=TRUE,"",VLOOKUP(B56,#REF!,3,FALSE)) ->  | B56: 28 | C56: =VLOOKUP(B56,#REF!,6,FALSE) ->  | D56: =IF(C56="","",VLOOKUP(C56,#REF!,7,FALSE)) ->  | F56: =IF(E56="","",VLOOKUP(E56,#REF!,7,FALSE)) ->  | H56: =IF(G56="","",VLOOKUP(G56,#REF!,7,FALSE)) ->  | J56: =IF(I56="","",VLOOKUP(I56,#REF!,7,FALSE)) ->  | L56: =IF(K56="","",VLOOKUP(K56,#REF!,7,FALSE)) -> 
A57: =IF(ISNA(VLOOKUP(B57,#REF!,3,FALSE))=TRUE,"",VLOOKUP(B57,#REF!,3,FALSE)) ->  | B57: 4 | C57: =VLOOKUP(B57,#REF!,6,FALSE) ->  | D57: =IF(C57="","",VLOOKUP(C57,#REF!,7,FALSE)) ->  | F57: =IF(E57="","",VLOOKUP(E57,#REF!,7,FALSE)) ->  | H57: =IF(G57="","",VLOOKUP(G57,#REF!,7,FALSE)) ->  | J57: =IF(I57="","",VLOOKUP(I57,#REF!,7,FALSE)) ->  | L57: =IF(K57="","",VLOOKUP(K57,#REF!,7,FALSE)) -> 
A58: =IF(ISNA(VLOOKUP(B58,#REF!,3,FALSE))=TRUE,"",VLOOKUP(B58,#REF!,3,FALSE)) ->  | B58: 21 | C58: =VLOOKUP(B58,#REF!,6,FALSE) ->  | D58: =IF(C58="","",VLOOKUP(C58,#REF!,7,FALSE)) ->  | F58: =IF(E58="","",VLOOKUP(E58,#REF!,7,FALSE)) ->  | H58: =IF(G58="","",VLOOKUP(G58,#REF!,7,FALSE)) ->  | J58: =IF(I58="","",VLOOKUP(I58,#REF!,7,FALSE)) ->  | L58: =IF(K58="","",VLOOKUP(K58,#REF!,7,FALSE)) -> 
A59: =IF(ISNA(VLOOKUP(B59,#REF!,3,FALSE))=TRUE,"",VLOOKUP(B59,#REF!,3,FALSE)) ->  | B59: 17 | C59: =VLOOKUP(B59,#REF!,6,FALSE) ->  | D59: =IF(C59="","",VLOOKUP(C59,#REF!,7,FALSE)) ->  | F59: =IF(E59="","",VLOOKUP(E59,#REF!,7,FALSE)) ->  | H59: =IF(G59="","",VLOOKUP(G59,#REF!,7,FALSE)) ->  | J59: =IF(I59="","",VLOOKUP(I59,#REF!,7,FALSE)) ->  | L59: =IF(K59="","",VLOOKUP(K59,#REF!,7,FALSE)) -> 
A60: =IF(ISNA(VLOOKUP(B60,#REF!,3,FALSE))=TRUE,"",VLOOKUP(B60,#REF!,3,FALSE)) ->  | B60: 16 | C60: =VLOOKUP(B60,#REF!,6,FALSE) ->  | D60: =IF(C60="","",VLOOKUP(C60,#REF!,7,FALSE)) ->  | F60: =IF(E60="","",VLOOKUP(E60,#REF!,7,FALSE)) ->  | H60: =IF(G60="","",VLOOKUP(G60,#REF!,7,FALSE)) ->  | J60: =IF(I60="","",VLOOKUP(I60,#REF!,7,FALSE)) ->  | L60: =IF(K60="","",VLOOKUP(K60,#REF!,7,FALSE)) -> 
A61: =IF(ISNA(VLOOKUP(B61,#REF!,3,FALSE))=TRUE,"",VLOOKUP(B61,#REF!,3,FALSE)) ->  | B61: 25 | C61: =VLOOKUP(B61,#REF!,6,FALSE) ->  | D61: =IF(C61="","",VLOOKUP(C61,#REF!,7,FALSE)) ->  | F61: =IF(E61="","",VLOOKUP(E61,#REF!,7,FALSE)) ->  | H61: =IF(G61="","",VLOOKUP(G61,#REF!,7,FALSE)) ->  | J61: =IF(I61="","",VLOOKUP(I61,#REF!,7,FALSE)) ->  | L61: =IF(K61="","",VLOOKUP(K61,#REF!,7,FALSE)) -> 
A62: =IF(ISNA(VLOOKUP(B62,#REF!,3,FALSE))=TRUE,"",VLOOKUP(B62,#REF!,3,FALSE)) ->  | B62: 19 | C62: =VLOOKUP(B62,#REF!,6,FALSE) ->  | D62: =IF(C62="","",VLOOKUP(C62,#REF!,7,FALSE)) ->  | F62: =IF(E62="","",VLOOKUP(E62,#REF!,7,FALSE)) ->  | H62: =IF(G62="","",VLOOKUP(G62,#REF!,7,FALSE)) ->  | J62: =IF(I62="","",VLOOKUP(I62,#REF!,7,FALSE)) ->  | L62: =IF(K62="","",VLOOKUP(K62,#REF!,7,FALSE)) ->  | M62: =IF(B62="","",(D62+F62+H62+J62+L62)) -> 
A63: =IF(ISNA(VLOOKUP(B63,#REF!,3,FALSE))=TRUE,"",VLOOKUP(B63,#REF!,3,FALSE)) ->  | B63: 3 | C63: =VLOOKUP(B63,#REF!,6,FALSE) ->  | D63: =IF(C63="","",VLOOKUP(C63,#REF!,7,FALSE)) ->  | F63: =IF(E63="","",VLOOKUP(E63,#REF!,7,FALSE)) ->  | H63: =IF(G63="","",VLOOKUP(G63,#REF!,7,FALSE)) ->  | J63: =IF(I63="","",VLOOKUP(I63,#REF!,7,FALSE)) ->  | L63: =IF(K63="","",VLOOKUP(K63,#REF!,7,FALSE)) -> 
A64: =IF(ISNA(VLOOKUP(B64,#REF!,3,FALSE))=TRUE,"",VLOOKUP(B64,#REF!,3,FALSE)) ->  | B64: 5 | C64: =VLOOKUP(B64,#REF!,6,FALSE) ->  | D64: =IF(C64="","",VLOOKUP(C64,#REF!,7,FALSE)) ->  | F64: =IF(E64="","",VLOOKUP(E64,#REF!,7,FALSE)) ->  | H64: =IF(G64="","",VLOOKUP(G64,#REF!,7,FALSE)) ->  | J64: =IF(I64="","",VLOOKUP(I64,#REF!,7,FALSE)) ->  | L64: =IF(K64="","",VLOOKUP(K64,#REF!,7,FALSE)) -> 
A65: =IF(ISNA(VLOOKUP(B65,#REF!,3,FALSE))=TRUE,"",VLOOKUP(B65,#REF!,3,FALSE)) ->  | B65: 6 | C65: =VLOOKUP(B65,#REF!,6,FALSE) ->  | D65: =IF(C65="","",VLOOKUP(C65,#REF!,7,FALSE)) ->  | F65: =IF(E65="","",VLOOKUP(E65,#REF!,7,FALSE)) ->  | H65: =IF(G65="","",VLOOKUP(G65,#REF!,7,FALSE)) ->  | J65: =IF(I65="","",VLOOKUP(I65,#REF!,7,FALSE)) ->  | L65: =IF(K65="","",VLOOKUP(K65,#REF!,7,FALSE)) -> 
A66: =IF(ISNA(VLOOKUP(B66,#REF!,3,FALSE))=TRUE,"",VLOOKUP(B66,#REF!,3,FALSE)) ->  | B66: 7 | C66: =VLOOKUP(B66,#REF!,6,FALSE) ->  | D66: =IF(C66="","",VLOOKUP(C66,#REF!,7,FALSE)) ->  | F66: =IF(E66="","",VLOOKUP(E66,#REF!,7,FALSE)) ->  | H66: =IF(G66="","",VLOOKUP(G66,#REF!,7,FALSE)) ->  | J66: =IF(I66="","",VLOOKUP(I66,#REF!,7,FALSE)) ->  | L66: =IF(K66="","",VLOOKUP(K66,#REF!,7,FALSE)) -> 
A67: =IF(ISNA(VLOOKUP(B67,#REF!,3,FALSE))=TRUE,"",VLOOKUP(B67,#REF!,3,FALSE)) ->  | B67: 8 | C67: =VLOOKUP(B67,#REF!,6,FALSE) ->  | D67: =IF(C67="","",VLOOKUP(C67,#REF!,7,FALSE)) ->  | F67: =IF(E67="","",VLOOKUP(E67,#REF!,7,FALSE)) ->  | H67: =IF(G67="","",VLOOKUP(G67,#REF!,7,FALSE)) ->  | J67: =IF(I67="","",VLOOKUP(I67,#REF!,7,FALSE)) ->  | L67: =IF(K67="","",VLOOKUP(K67,#REF!,7,FALSE)) -> 
A68: =IF(ISNA(VLOOKUP(B68,#REF!,3,FALSE))=TRUE,"",VLOOKUP(B68,#REF!,3,FALSE)) ->  | B68: 13 | C68: =VLOOKUP(B68,#REF!,6,FALSE) ->  | D68: =IF(C68="","",VLOOKUP(C68,#REF!,7,FALSE)) ->  | F68: =IF(E68="","",VLOOKUP(E68,#REF!,7,FALSE)) ->  | H68: =IF(G68="","",VLOOKUP(G68,#REF!,7,FALSE)) ->  | J68: =IF(I68="","",VLOOKUP(I68,#REF!,7,FALSE)) ->  | L68: =IF(K68="","",VLOOKUP(K68,#REF!,7,FALSE)) -> 
A69: =IF(ISNA(VLOOKUP(B69,#REF!,3,FALSE))=TRUE,"",VLOOKUP(B69,#REF!,3,FALSE)) ->  | B69: 18 | C69: =VLOOKUP(B69,#REF!,6,FALSE) ->  | D69: =IF(C69="","",VLOOKUP(C69,#REF!,7,FALSE)) ->  | F69: =IF(E69="","",VLOOKUP(E69,#REF!,7,FALSE)) ->  | H69: =IF(G69="","",VLOOKUP(G69,#REF!,7,FALSE)) ->  | J69: =IF(I69="","",VLOOKUP(I69,#REF!,7,FALSE)) ->  | L69: =IF(K69="","",VLOOKUP(K69,#REF!,7,FALSE)) -> 
A70: =IF(ISNA(VLOOKUP(B70,#REF!,3,FALSE))=TRUE,"",VLOOKUP(B70,#REF!,3,FALSE)) ->  | B70: 23 | C70: =VLOOKUP(B70,#REF!,6,FALSE) ->  | D70: =IF(C70="","",VLOOKUP(C70,#REF!,7,FALSE)) ->  | F70: =IF(E70="","",VLOOKUP(E70,#REF!,7,FALSE)) ->  | H70: =IF(G70="","",VLOOKUP(G70,#REF!,7,FALSE)) ->  | J70: =IF(I70="","",VLOOKUP(I70,#REF!,7,FALSE)) ->  | L70: =IF(K70="","",VLOOKUP(K70,#REF!,7,FALSE)) -> 
A71: Day 2 Zone Winner | C71: A. PRICE | E71: DAVE READ | G71: FRANCIS JONES | I71: SIMON DRAYTON | K71: CRAIG BUY
A72: Day 2 Zone Winner | E72: A. HUTCHINGS
A73: Day 2 Zone Second | C73: IAN DAVIS | G73: BRADLEY BONE | I73: JOE ARCH | K73: ALLAN SMITH
A74: Day 2 Zone Third | C74: MARK SHARMAN | E74: RICHARD POTTS | G74: IAN BELLFIELD | I74: MARK VERINDER | K74: JAMES BROWN
A75: Day 2 Zone Third | C75: GERRY BELL
A76: SAMF 2006 National Sea League Final - Final Positions
A77: Team Name | B77: Team No. | C77: Day 1 Points | D77: Day 2 Points | E77: Total Points | F77: Overall Position
A79: =IF(ISNA(VLOOKUP(B79,#REF!,3,FALSE))=TRUE,"",VLOOKUP(B79,#REF!,3,FALSE)) ->  | B79: 12 | C79: =VLOOKUP(B79,$B$4:$M$32,12,FALSE) ->  | D79: =VLOOKUP(B79,$B$41:$M$70,12,FALSE) ->  | E79: =IF(B79="","",(C79+D79)) ->  | F79: =IF(E79="","",IF(E79=E78,F78,ROW()-78)) -> 
A80: =IF(ISNA(VLOOKUP(B80,#REF!,3,FALSE))=TRUE,"",VLOOKUP(B80,#REF!,3,FALSE)) ->  | B80: 11 | F80: =IF(E80="","",IF(E80=E79,F79,ROW()-78)) -> 
A81: =IF(ISNA(VLOOKUP(B81,#REF!,3,FALSE))=TRUE,"",VLOOKUP(B81,#REF!,3,FALSE)) ->  | B81: 9
A82: =IF(ISNA(VLOOKUP(B82,#REF!,3,FALSE))=TRUE,"",VLOOKUP(B82,#REF!,3,FALSE)) ->  | B82: 30
A83: =IF(ISNA(VLOOKUP(B83,#REF!,3,FALSE))=TRUE,"",VLOOKUP(B83,#REF!,3,FALSE)) ->  | B83: 10
A84: =IF(ISNA(VLOOKUP(B84,#REF!,3,FALSE))=TRUE,"",VLOOKUP(B84,#REF!,3,FALSE)) ->  | B84: 20
A85: =IF(ISNA(VLOOKUP(B85,#REF!,3,FALSE))=TRUE,"",VLOOKUP(B85,#REF!,3,FALSE)) ->  | B85: 27
A86: =IF(ISNA(VLOOKUP(B86,#REF!,3,FALSE))=TRUE,"",VLOOKUP(B86,#REF!,3,FALSE)) ->  | B86: 22
A87: =IF(ISNA(VLOOKUP(B87,#REF!,3,FALSE))=TRUE,"",VLOOKUP(B87,#REF!,3,FALSE)) ->  | B87: 26
A88: =IF(ISNA(VLOOKUP(B88,#REF!,3,FALSE))=TRUE,"",VLOOKUP(B88,#REF!,3,FALSE)) ->  | B88: 2
A89: =IF(ISNA(VLOOKUP(B89,#REF!,3,FALSE))=TRUE,"",VLOOKUP(B89,#REF!,3,FALSE)) ->  | B89: 4
A90: =IF(ISNA(VLOOKUP(B90,#REF!,3,FALSE))=TRUE,"",VLOOKUP(B90,#REF!,3,FALSE)) ->  | B90: 21
A91: =IF(ISNA(VLOOKUP(B91,#REF!,3,FALSE))=TRUE,"",VLOOKUP(B91,#REF!,3,FALSE)) ->  | B91: 1 | C91: =VLOOKUP(B91,$B$4:$M$32,12,FALSE) ->  | D91: =VLOOKUP(B91,$B$41:$M$70,12,FALSE) ->  | E91: =IF(B91="","",(C91+D91)) -> 
A92: =IF(ISNA(VLOOKUP(B92,#REF!,3,FALSE))=TRUE,"",VLOOKUP(B92,#REF!,3,FALSE)) ->  | B92: 28
A93: =IF(ISNA(VLOOKUP(B93,#REF!,3,FALSE))=TRUE,"",VLOOKUP(B93,#REF!,3,FALSE)) ->  | B93: 29 | D93: =VLOOKUP(B93,$B$41:$M$70,12,FALSE) ->  | E93: =IF(B93="","",(C93+D93)) -> 
A94: =IF(ISNA(VLOOKUP(B94,#REF!,3,FALSE))=TRUE,"",VLOOKUP(B94,#REF!,3,FALSE)) ->  | B94: 25
A95: =IF(ISNA(VLOOKUP(B95,#REF!,3,FALSE))=TRUE,"",VLOOKUP(B95,#REF!,3,FALSE)) ->  | B95: 17
A96: =IF(ISNA(VLOOKUP(B96,#REF!,3,FALSE))=TRUE,"",VLOOKUP(B96,#REF!,3,FALSE)) ->  | B96: 24
A97: =IF(ISNA(VLOOKUP(B97,#REF!,3,FALSE))=TRUE,"",VLOOKUP(B97,#REF!,3,FALSE)) ->  | B97: 15
A98: =IF(ISNA(VLOOKUP(B98,#REF!,3,FALSE))=TRUE,"",VLOOKUP(B98,#REF!,3,FALSE)) ->  | B98: 14
A99: =IF(ISNA(VLOOKUP(B99,#REF!,3,FALSE))=TRUE,"",VLOOKUP(B99,#REF!,3,FALSE)) ->  | B99: 16
A100: =IF(ISNA(VLOOKUP(B100,#REF!,3,FALSE))=TRUE,"",VLOOKUP(B100,#REF!,3,FALSE)) ->  | B100: 6
A101: =IF(ISNA(VLOOKUP(B101,#REF!,3,FALSE))=TRUE,"",VLOOKUP(B101,#REF!,3,FALSE)) ->  | B101: 19
A102: =IF(ISNA(VLOOKUP(B102,#REF!,3,FALSE))=TRUE,"",VLOOKUP(B102,#REF!,3,FALSE)) ->  | B102: 23
A103: =IF(ISNA(VLOOKUP(B103,#REF!,3,FALSE))=TRUE,"",VLOOKUP(B103,#REF!,3,FALSE)) ->  | B103: 18
A104: =IF(ISNA(VLOOKUP(B104,#REF!,3,FALSE))=TRUE,"",VLOOKUP(B104,#REF!,3,FALSE)) ->  | B104: 7
A105: =IF(ISNA(VLOOKUP(B105,#REF!,3,FALSE))=TRUE,"",VLOOKUP(B105,#REF!,3,FALSE)) ->  | B105: 3
A106: =IF(ISNA(VLOOKUP(B106,#REF!,3,FALSE))=TRUE,"",VLOOKUP(B106,#REF!,3,FALSE)) ->  | B106: 5
A107: =IF(ISNA(VLOOKUP(B107,#REF!,3,FALSE))=TRUE,"",VLOOKUP(B107,#REF!,3,FALSE)) ->  | B107: 8 | D107: =VLOOKUP(B107,$B$41:$M$70,12,FALSE) ->  | E107: =IF(B107="","",(C107+D107)) -> 
A108: =IF(ISNA(VLOOKUP(B108,#REF!,3,FALSE))=TRUE,"",VLOOKUP(B108,#REF!,3,FALSE)) ->  | B108: 13 | C108: =VLOOKUP(B108,$B$4:$M$33,12,FALSE) ->  | D108: =VLOOKUP(B108,$B$41:$M$70,12,FALSE) ->  | E108: =IF(B108="","",(C108+D108)) -> 
A109: =IF(ISNA(VLOOKUP(B109,#REF!,2,FALSE))=TRUE,"",VLOOKUP(B109,#REF!,2,FALSE)) -> 

Sheet Final team results (hidden)
A1: SAMF 2006 National Sea League Final - Final Positions
A2: Team Name | B2: Team No. | C2: Day 1 Points | D2: Day 2 Points | E2: Total Points | F2: Overall Position
A4: ='Auto Team results'!A79 ->  | B4: ='Auto Team results'!B79 -> 12 | C4: ='Auto Team results'!C79 ->  | D4: ='Auto Team results'!D79 ->  | E4: =IF(B4="","",(C4+D4)) ->  | F4: =IF(E4="","",IF(E4=E3,F3,ROW()-3)) -> 
A5: ='Auto Team results'!A80 ->  | B5: ='Auto Team results'!B80 -> 11 | C5: ='Auto Team results'!C80 ->  | D5: ='Auto Team results'!D80 ->  | E5: =IF(B5="","",(C5+D5)) ->  | F5: =IF(E5="","",IF(E5=E4,F4,ROW()-3)) -> 
A6: ='Auto Team results'!A81 ->  | B6: ='Auto Team results'!B81 -> 9 | C6: ='Auto Team results'!C81 ->  | D6: ='Auto Team results'!D81 -> 
A7: ='Auto Team results'!A82 ->  | B7: ='Auto Team results'!B82 -> 30 | C7: ='Auto Team results'!C82 ->  | D7: ='Auto Team results'!D82 -> 
A8: ='Auto Team results'!A83 ->  | B8: ='Auto Team results'!B83 -> 10 | C8: ='Auto Team results'!C83 ->  | D8: ='Auto Team results'!D83 -> 
A9: ='Auto Team results'!A84 ->  | B9: ='Auto Team results'!B84 -> 20 | C9: ='Auto Team results'!C84 ->  | D9: ='Auto Team results'!D84 -> 
A10: ='Auto Team results'!A85 ->  | B10: ='Auto Team results'!B85 -> 27 | C10: ='Auto Team results'!C85 ->  | D10: ='Auto Team results'!D85 -> 
A11: ='Auto Team results'!A86 ->  | B11: ='Auto Team results'!B86 -> 22 | C11: ='Auto Team results'!C86 ->  | D11: ='Auto Team results'!D86 -> 
A12: ='Auto Team results'!A87 ->  | B12: ='Auto Team results'!B87 -> 26 | C12: ='Auto Team results'!C87 ->  | D12: ='Auto Team results'!D87 -> 
A13: ='Auto Team results'!A88 ->  | B13: ='Auto Team results'!B88 -> 2 | C13: ='Auto Team results'!C88 ->  | D13: ='Auto Team results'!D88 -> 
A14: ='Auto Team results'!A89 ->  | B14: ='Auto Team results'!B89 -> 4 | C14: ='Auto Team results'!C89 ->  | D14: ='Auto Team results'!D89 -> 
A15: ='Auto Team results'!A90 ->  | B15: ='Auto Team results'!B90 -> 21 | C15: ='Auto Team results'!C90 ->  | D15: ='Auto Team results'!D90 -> 
A16: ='Auto Team results'!A91 ->  | B16: ='Auto Team results'!B91 -> 1 | C16: ='Auto Team results'!C91 ->  | D16: ='Auto Team results'!D91 -> 
A17: ='Auto Team results'!A92 ->  | B17: ='Auto Team results'!B92 -> 28 | C17: ='Auto Team results'!C92 ->  | D17: ='Auto Team results'!D92 -> 
A18: ='Auto Team results'!A93 ->  | B18: ='Auto Team results'!B93 -> 29 | C18: ='Auto Team results'!C93 ->  | D18: ='Auto Team results'!D93 -> 
A19: ='Auto Team results'!A94 ->  | B19: ='Auto Team results'!B94 -> 25 | C19: ='Auto Team results'!C94 ->  | D19: ='Auto Team results'!D94 -> 
A20: ='Auto Team results'!A95 ->  | B20: ='Auto Team results'!B95 -> 17 | C20: ='Auto Team results'!C95 ->  | D20: ='Auto Team results'!D95 -> 
A21: ='Auto Team results'!A96 ->  | B21: ='Auto Team results'!B96 -> 24 | C21: ='Auto Team results'!C96 ->  | D21: ='Auto Team results'!D96 -> 
A22: ='Auto Team results'!A97 ->  | B22: ='Auto Team results'!B97 -> 15 | C22: ='Auto Team results'!C97 ->  | D22: ='Auto Team results'!D97 -> 
A23: ='Auto Team results'!A98 ->  | B23: ='Auto Team results'!B98 -> 14 | C23: ='Auto Team results'!C98 ->  | D23: ='Auto Team results'!D98 -> 
A24: ='Auto Team results'!A99 ->  | B24: ='Auto Team results'!B99 -> 16 | C24: ='Auto Team results'!C99 ->  | D24: ='Auto Team results'!D99 -> 
A25: ='Auto Team results'!A100 ->  | B25: ='Auto Team results'!B100 -> 6 | C25: ='Auto Team results'!C100 ->  | D25: ='Auto Team results'!D100 -> 
A26: ='Auto Team results'!A101 ->  | B26: ='Auto Team results'!B101 -> 19 | C26: ='Auto Team results'!C101 ->  | D26: ='Auto Team results'!D101 -> 
A27: ='Auto Team results'!A102 ->  | B27: ='Auto Team results'!B102 -> 23 | C27: ='Auto Team results'!C102 ->  | D27: ='Auto Team results'!D102 -> 
A28: ='Auto Team results'!A103 ->  | B28: ='Auto Team results'!B103 -> 18 | C28: ='Auto Team results'!C103 ->  | D28: ='Auto Team results'!D103 -> 
A29: ='Auto Team results'!A104 ->  | B29: ='Auto Team results'!B104 -> 7 | C29: ='Auto Team results'!C104 ->  | D29: ='Auto Team results'!D104 ->  | E29: =IF(B29="","",(C29+D29)) ->  | F29: =IF(E29="","",IF(E29=E28,F28,ROW()-3)) -> 
A30: ='Auto Team results'!A105 ->  | B30: ='Auto Team results'!B105 -> 3 | C30: ='Auto Team results'!C105 ->  | D30: ='Auto Team results'!D105 ->  | E30: =IF(B30="","",(C30+D30)) ->  | F30: =IF(E30="","",IF(E30=E29,F29,ROW()-3)) -> 
A31: ='Auto Team results'!A106 ->  | B31: ='Auto Team results'!B106 -> 5 | C31: ='Auto Team results'!C106 ->  | D31: ='Auto Team results'!D106 ->  | E31: =IF(B31="","",(C31+D31)) ->  | F31: =IF(E31="","",IF(E31=E30,F30,ROW()-3)) -> 

Sheet Bass Festival
B1: BASS FESTIVAL 2019 | E1: Overall - Final Positions
A2: Overall Number | B2: Angler Name | C2: Angler No | D2: Total No. Fish | E2: Total No. Fish Points | F2: Day 1 Points | G2: Day 2 Points | H2: Total Points | I2: Overall Position
A4: 1 | B4: HUTSON, Garry | C4: 113 | D4: 16 | E4: 703 | F4: 2.000003716 | G4: 1.000002304 | H4: 2.99296002 | I4: 1
A5: 2 | B5: WRIGHT, Dave | C5: 33 | D5: 25 | E5: 666 | F5: 2.000002207 | G5: 1.000004693 | H5: 2.9933219 | I5: 2
A6: 3 | B6: AKESTER, Jack | C6: 16 | D6: 28 | E6: 643 | F6: 2.000005206 | G6: 1.000002216 | H6: 2.993549423 | I6: 3
A7: 4 | B7: LINDFIELD, Bill | C7: 86 | D7: 29 | E7: 580 | F7: 1.000002702 | G7: 2.000004759 | H7: 2.99417846 | I7: 4
A8: 5 | B8: RANDELL, Henry | C8: 1 | D8: 25 | E8: 557 | F8: 2.000003278 | G8: 1.000003966 | H8: 2.994412244 | I8: 5
A9: 6 | B9: TURNER, Cameron | C9: 11 | D9: 30 | E9: 674 | F9: 2.000002537 | G9: 2.00000357 | H9: 3.993236107 | I9: 6
A10: 7 | B10: TUCK, Rob | C10: 109 | D10: 36 | E10: 861 | F10: 4.000002966 | G10: 1.000001908 | H10: 4.991358874 | I10: 7
A11: 8 | B11: CLEMENT, Alby | C11: 65 | D11: 30 | E11: 744 | F11: 4.000003688 | G11: 1.000002113 | H11: 4.992535802 | I11: 8
A12: 9 | B12: ADAMS, Stephen | C12: 68 | D12: 28 | E12: 611 | F12: 3.000003173 | G12: 2.000003377 | H12: 4.99386855 | I12: 9
A13: 10 | B13: MEDLER, Gary | C13: 26 | D13: 16 | E13: 605 | F13: 3.000002832 | G13: 2.000003967 | H13: 4.993940799 | I13: 10
A14: 11 | B14: SMITH, George | C14: 114 | D14: 19 | E14: 1047 | F14: 1.000001074 | G14: 5.000008618 | H14: 5.989520692 | I14: 11
A15: 12 | B15: BOWELL, Ian | C15: 93 | D15: 24 | E15: 690 | F15: 1.000001972 | G15: 5.00000546 | H15: 5.993083432 | I15: 12
A16: 13 | B16: CUTLER, Neil | C16: 92 | D16: 37 | E16: 675 | F16: 2.000001904 | G16: 4.000006664 | H16: 5.993221568 | I16: 13
A17: 14 | B17: SPALL, Chris | C17: 4 | D17: 27 | E17: 478 | F17: 3.000004404 | G17: 3.000003981 | H17: 5.995201385 | I17: 14
A18: 15 | B18: HUGHES, Gary | C18: 87 | D18: 26 | E18: 627 | F18: 3.000002145 | G18: 4.000006209 | H18: 6.993712354 | I18: 15
A19: 16 | B19: ELLIOTT, Nathan | C19: 24 | D19: 41 | E19: 605 | F19: 1.000002015 | G19: 6.000009167 | H19: 6.993920182 | I19: 16
A20: 17 | B20: CANNELL, Chris | C20: 43 | D20: 19 | E20: 600 | F20: 4.000002603 | G20: 3.000004628 | H20: 6.993988232 | I20: 17
A21: 18 | B21: BUY, Craig | C21: 119 | D21: 23 | E21: 480 | F21: 1.000002731 | G21: 6.000008768 | H21: 6.995188499 | I21: 18
A22: 19 | B22: BURT, Richard | C22: 19 | D22: 28 | E22: 441 | F22: 3.000003634 | G22: 4.000006022 | H22: 6.995571655 | I22: 19
A23: 20 | B23: ADAMS, Lee | C23: 22 | D23: 19 | E23: 430 | F23: 5.00000383 | G23: 2.000005915 | H23: 6.995690744 | I23: 20
A24: 21 | B24: RUSSELL, Shane | C24: 25 | D24: 27 | E24: 907 | F24: 1.000001314 | G24: 7.000006846 | H24: 7.990911159 | I24: 21
A25: 22 | B25: DRIVER, Ed | C25: 49 | D25: 24 | E25: 541 | F25: 5.000002724 | G25: 3.000005744 | H25: 7.994574468 | I25: 22
A26: 23 | B26: GASCOIGNE, Robert | C26: 5 | D26: 27 | E26: 537 | F26: 7.000005372 | G26: 1.000002848 | H26: 7.99461122 | I26: 23
A27: 24 | B27: CRAWFORD, Vince | C27: 76 | D27: 19 | E27: 319 | F27: 3.000004805 | G27: 5.000009003 | H27: 7.996804808 | I27: 24
A28: 25 | B28: PROVINS, Colin | C28: 100 | D28: 40 | E28: 874 | F28: 1.000001272 | G28: 8.000011353 | H28: 8.991232625 | I28: 25
A29: 26 | B29: WOODS, Graham | C29: 39 | D29: 13 | E29: 546 | F29: 8.000004254 | G29: 1.000003215 | H29: 8.994534469 | I29: 26
A30: 27 | B30: WATTS, Mike | C30: 46 | D30: 37 | E30: 492 | F30: 7.000007089 | G30: 2.000002847 | H30: 8.995052935 | I30: 27
A31: 28 | B31: SHAUL, Jimmy | C31: 94 | D31: 26 | E31: 464 | F31: 6.000004424 | G31: 3.000004198 | H31: 8.995342622 | I31: 28
A32: 29 | B32: KINGDON, Adam | C32: 20 | D32: 24 | E32: 436 | F32: 1.000003143 | G32: 8.000008466 | H32: 8.995627609 | I32: 29
A33: 30 | B33: STORER, Paul | C33: 7 | D33: 24 | E33: 381 | F33: 5.000006169 | G33: 4.000004563 | H33: 8.996176732 | I33: 30
A34: 31 | B34: DIAPER, Greg | C34: 3 | D34: 13 | E34: 331 | F34: 5.000006533 | G34: 4.000005616 | H34: 8.996689149 | I34: 31
A35: 32 | B35: SELF, Bevan | C35: 8 | D35: 17 | E35: 340 | F35: 5.000003967 | G35: 5.000011356 | H35: 9.996598322 | I35: 32
A36: 33 | B36: FRARY, Charlie | C36: 120 | D36: 22 | E36: 379 | F36: 9.000006487 | G36: 2.000004443 | H36: 10.99619893 | I36: 33
A37: 34 | B37: DAWBER, Simon | C37: 116 | D37: 20 | E37: 279 | F37: 8.00001234 | G37: 3.000005046 | H37: 10.99720739 | I37: 34
A38: 35 | B38: ELEY, Kevin | C38: 82 | D38: 30 | E38: 440 | F38: 4.000002679 | G38: 8.000014916 | H38: 11.9955876 | I38: 35
A39: 36 | B39: WARD, Mark | C39: 59 | D39: 20 | E39: 428 | F39: 10.00000546 | G39: 2.00000408 | H39: 11.99570954 | I39: 36
A40: 37 | B40: HURCOMBE, Mark | C40: 58 | D40: 21 | E40: 376 | F40: 9.000005552 | G40: 3.0000051 | H40: 11.99622965 | I40: 37
A41: 38 | B41: BENNETT, Rick | C41: 41 | D41: 24 | E41: 319 | F41: 6.000006845 | G41: 6.000005776 | H41: 11.99679862 | I41: 38
A42: 39 | B42: BRADSHAW, Craig | C42: 117 | D42: 9 | E42: 271 | F42: 4.000004877 | G42: 8.000015142 | H42: 11.99730102 | I42: 39
A43: 40 | B43: HUTCHINSON (BP), Dave | C43: 90 | D43: 19 | E43: 399 | F43: 2.000002957 | G43: 11.00001638 | H43: 12.99601034 | I43: 40
A44: 41 | B44: HIPPERSON, Richard | C44: 77 | D44: 32 | E44: 386 | F44: 7.000003714 | G44: 6.000008541 | H44: 12.99612026 | I44: 41
A45: 42 | B45: THORPE, Doug | C45: 104 | D45: 15 | E45: 343 | F45: 6.000003983 | G45: 7.000010861 | H45: 12.99656984 | I45: 42
A46: 43 | B46: BANHAM, Jason | C46: 15 | D46: 23 | E46: 340 | F46: 9.000008471 | G46: 4.000004501 | H46: 12.99658997 | I46: 43
A47: 44 | B47: STEBBINGS, Robert | C47: 38 | D47: 22 | E47: 326 | F47: 9.00000568 | G47: 4.00000666 | H47: 12.99673034 | I47: 44
A48: 45 | B48: EAGLE, Dan | C48: 91 | D48: 11 | E48: 294 | F48: 7.00000709 | G48: 6.000006533 | H48: 12.99706262 | I48: 45
A49: 46 | B49: STONE, Barry | C49: 79 | D49: 28 | E49: 273 | F49: 6.000005371 | G49: 7.000011481 | H49: 12.99725885 | I49: 46
A50: 47 | B50: McKENZIE, Brian | C50: 112 | D50: 28 | E50: 355 | F50: 6.000003531 | G50: 8.000013875 | H50: 13.99643941 | I50: 47
A51: 48 | B51: GREEN, Kevin | C51: 105 | D51: 24 | E51: 335 | F51: 8.000007748 | G51: 6.00000485 | H51: 13.9966386 | I51: 48
A52: 49 | B52: BORDIANU, Adrian | C52: 103 | D52: 14 | E52: 238 | F52: 5.000007572 | G52: 9.000009427 | H52: 13.997623 | I52: 49
A53: 50 | B53: BATTLE, Ian | C53: 51 | D53: 14 | E53: 206 | F53: 4.000006663 | G53: 10.00001784 | H53: 13.9979505 | I53: 50
A54: 51 | B54: CHAMBERLAIN, Darren | C54: 21 | D54: 23 | E54: 306 | F54: 8.000004758 | G54: 7.000010409 | H54: 14.99693217 | I54: 51
A55: 52 | B55: SMITH, Andy | C55: 31 | D55: 14 | E55: 256 | F55: 12.00001063 | G55: 3.000006171 | H55: 14.9974428 | I55: 52
A56: 53 | B56: SMITH, Leon | C56: 70 | D56: 13 | E56: 221 | F56: 3.000005711 | G56: 12.00002172 | H56: 14.99780444 | I56: 53
A57: 54 | B57: BURR, Dave | C57: 30 | D57: 12 | E57: 220 | F57: 4.000006095 | G57: 11.00001784 | H57: 14.99781193 | I57: 54
A58: 55 | B58: HARRISON, Paul | C58: 96 | D58: 18 | E58: 319 | F58: 13.0000097 | G58: 3.000004627 | H58: 15.99680633 | I58: 55
A59: 56 | B59: NANGLE, Karl | C59: 44 | D59: 21 | E59: 319 | F59: 4.0000038 | G59: 12.00001785 | H59: 15.99681065 | I59: 56
A60: 57 | B60: SMITH, John | C60: 13 | D60: 18 | E60: 315 | F60: 7.000004217 | G60: 9.000012812 | H60: 15.99684903 | I60: 57
A61: 58 | B61: TEMPLE, Billy | C61: 73 | D61: 16 | E61: 308 | F61: 9.000004346 | G61: 7.000012814 | H61: 15.99692116 | I61: 58
A62: 59 | B62: BETTINSON, Charles | C62: 115 | D62: 27 | E62: 270 | F62: 11.00001921 | G62: 5.000004583 | H62: 15.99729679 | I62: 59
A63: 60 | B63: LITTLEWOOD, Stuart | C63: 14 | D63: 20 | E63: 239 | F63: 10.00000636 | G63: 6.000012188 | H63: 15.99760855 | I63: 60
A64: 61 | B64: PRICE, Ben | C64: 34 | D64: 14 | E64: 238 | F64: 10.00000641 | G64: 6.000012185 | H64: 15.99762459 | I64: 61
A65: 62 | B65: GROSSMAN, Martin | C65: 67 | D65: 9 | E65: 232 | F65: 11.0000102 | G65: 5.00000746 | H65: 15.99768866 | I65: 62
A66: 63 | B66: NELSON, Ian | C66: 53 | D66: 7 | E66: 202 | F66: 6.00000952 | G66: 10.00001031 | H66: 15.99799283 | I66: 63
A67: 64 | B67: TOPPING, Mike | C67: 40 | D67: 12 | E67: 198 | F67: 9.0000084 | G67: 7.000012647 | H67: 15.99802905 | I67: 64
A68: 65 | B68: BRIGHTON, Tarrick | C68: 89 | D68: 27 | E68: 304 | F68: 2.000003287 | G68: 15 | H68: 16.99693629 | I68: 65
A69: 66 | B69: JACOBS, Richard | C69: 106 | D69: 15 | E69: 306 | F69: 12.00000775 | G69: 5.000005647 | H69: 16.99693839 | I69: 66
A70: 67 | B70: WALLIS, Craig | C70: 101 | D70: 20 | E70: 268 | F70: 12.00000657 | G70: 5.000008614 | H70: 16.99731519 | I70: 67
A71: 68 | B71: SMITH, Adele | C71: 62 | D71: 16 | E71: 221 | F71: 6.000007087 | G71: 11.00001249 | H71: 16.99779358 | I71: 68
A72: 69 | B72: ALDOUS, David | C72: 50 | D72: 13 | E72: 414 | F72: 3.000002415 | G72: 15 | H72: 17.99584941 | I72: 69
A73: 70 | B73: WHITE, Alan | C73: 54 | D73: 15 | E73: 205 | F73: 14.0000119 | G73: 4.000008258 | H73: 17.99795515 | I73: 70
A74: 71 | B74: BENNINGTON, Tom | C74: 69 | D74: 12 | E74: 184 | F74: 7.000011899 | G74: 11.00000999 | H74: 17.99816989 | I74: 71
A75: 72 | B75: HARVEY, Mark | C75: 80 | D75: 7 | E75: 281 | F75: 5.000003802 | G75: 14.00005546 | H75: 18.99724226 | I75: 72
A76: 73 | B76: THOMAS, Tony | C76: 18 | D76: 12 | E76: 254 | F76: 7.000005433 | G76: 12.00001428 | H76: 18.99746771 | I76: 73
A77: 74 | B77: AUSTIN, John | C77: 74 | D77: 16 | E77: 223 | F77: 12.00001922 | G77: 7.000005844 | H77: 18.99777906 | I77: 74
A78: 75 | B78: HARVEY, Paul | C78: 75 | D78: 12 | E78: 192 | F78: 10.00000735 | G78: 9.000017844 | H78: 18.99809319 | I78: 75
A79: 76 | B79: BANCROFT, Dave | C79: 17 | D79: 14 | E79: 177 | F79: 11.00001999 | G79: 8.000007867 | H79: 18.99824386 | I79: 76
A80: 77 | B80: SHORTHOUSE, Dave | C80: 118 | D80: 14 | E80: 166 | F80: 9.000015145 | G80: 10.00000999 | H80: 18.99835113 | I80: 77
A81: 78 | B81: McCOY, Ken | C81: 52 | D81: 9 | E81: 140 | F81: 11.00008326 | G81: 8.000007808 | H81: 18.99868207 | I81: 78
A82: 79 | B82: DIAPER, Barry | C82: 36 | D82: 16 | E82: 264 | F82: 7.00000467 | G82: 13.00001998 | H82: 19.99736865 | I82: 79
A83: 80 | B83: WOODS, Becky | C83: 63 | D83: 14 | E83: 238 | F83: 11.00000671 | G83: 9.000011228 | H83: 19.99762394 | I83: 80
A84: 81 | B84: SHARMAN, Mark | C84: 108 | D84: 15 | E84: 227 | F84: 5.000004402 | G84: 15 | H84: 19.9977194 | I84: 81
A85: 82 | B85: ADAMS, Graham | C85: 12 | D85: 15 | E85: 184 | F85: 10.00000649 | G85: 10.00003331 | H85: 19.9981848 | I85: 82
A86: 83 | B86: HADDOCK, Roy | C86: 45 | D86: 10 | E86: 136 | F86: 10.00001514 | G86: 10.00001428 | H86: 19.99865942 | I86: 83
A87: 84 | B87: DRAYTON, Simon | C87: 37 | D87: 18 | E87: 241 | F87: 14.0000119 | G87: 7.000006365 | H87: 20.99759026 | I87: 84
A88: 85 | B88: BROCK, Peter | C88: 42 | D88: 17 | E88: 226 | F88: 6.000004421 | G88: 15 | H88: 20.99772742 | I88: 85
A89: 86 | B89: DENHOLM, Paul | C89: 9 | D89: 17 | E89: 213 | F89: 8.000005678 | G89: 13.000027 | H89: 20.99788568 | I89: 86
A90: 87 | B90: NICHOLSON, Steven | C90: 6 | D90: 9 | E90: 176 | F90: 13.00001123 | G90: 8.000011488 | H90: 20.99825372 | I90: 87
A91: 88 | B91: FRARY, June | C91: 32 | D91: 14 | E91: 174 | F91: 12.00000774 | G91: 9.000022212 | H91: 20.99827596 | I91: 88
A92: 89 | B92: LING, Richard | C92: 81 | D92: 12 | E92: 134 | F92: 12.00004757 | G92: 9.000008842 | H92: 20.99870442 | I92: 89
A93: 90 | B93: JARMAN, Wayne | C93: 47 | D93: 15 | E93: 195 | F93: 11.00000591 | G93: 11.0000384 | H93: 21.99807932 | I93: 90
A94: 91 | B94: HARVEY, John | C94: 111 | D94: 9 | E94: 148 | F94: 8.000007933 | G94: 14.00004539 | H94: 21.99856433 | I94: 91
A95: 92 | B95: HART, Paul | C95: 72 | D95: 12 | E95: 141 | F95: 12.00001135 | G95: 10.00001885 | H95: 21.99860821 | I95: 92
A96: 93 | B96: LAY-FLURRIE, Matt | C96: 71 | D96: 12 | E96: 130 | F96: 13.00001122 | G96: 9.000024372 | H96: 21.9987236 | I96: 93
A97: 94 | B97: BENNINGTON, Graham | C97: 57 | D97: 7 | E97: 88 | F97: 10.00002272 | G97: 12.0000227 | H97: 21.99915842 | I97: 94
A98: 95 | B98: FATTIZZO, Tony | C98: 60 | D98: 14 | E98: 254 | F98: 8.000003935 | G98: 15 | H98: 22.99744993 | I98: 95
A99: 96 | B99: SMART, Neil | C99: 107 | D99: 18 | E99: 187 | F99: 8.000005809 | G99: 15.00006658 | H99: 22.99818439 | I99: 96
A100: 97 | B100: SHAUL, Keith | C100: 98 | D100: 10 | E100: 150 | F100: 10.00001249 | G100: 13.00001428 | H100: 22.99851677 | I100: 97
A101: 98 | B101: DOY, Alan | C101: 88 | D101: 8 | E101: 101 | F101: 13.0000333 | G101: 10.00001407 | H101: 22.99902937 | I101: 98
A102: 99 | B102: PARROTT, Ade | C102: 95 | D102: 9 | E102: 150 | F102: 9.000006663 | G102: 15 | H102: 23.99849766 | I102: 99
A103: 100 | B103: RUSH, Billy | C103: 64 | D103: 11 | E103: 156 | F103: 11.00000709 | G103: 13.00006658 | H103: 23.99850267 | I103: 100
A104: 101 | B104: KING, Simon | C104: 78 | D104: 3 | E104: 66 | F104: 15 | G104: 9.000015145 | H104: 23.99935214 | I104: 101
A105: 102 | B105: CREASEY, Shaun | C105: 61 | D105: 6 | E105: 50 | F105: 14.00002378 | G105: 11.00012484 | H105: 24.99964263 | I105: 102
A106: 103 | B106: GOOCH, Mark | C106: 56 | D106: 10 | E106: 197 | F106: 11.00000649 | G106: 15.00002326 | H106: 25.99804975 | I106: 103
A107: 104 | B107: CARTER, John | C107: 66 | D107: 9 | E107: 104 | F107: 14.00001204 | G107: 12.00004755 | H107: 25.99901059 | I107: 104
A108: 105 | B108: THORBURN, Paul | C108: 55 | D108: 3 | E108: 118 | F108: 13.00000847 | G108: 15 | H108: 27.99882547 | I108: 105
A109: 106 | B109: LAMBERT, Ian | C109: 35 | D109: 0 | E109: 0 | F109: 15 | G109: 15 | H109: 30 | I109: 106

Sheet Ladies Champs
B1: UK LADIES CHAMPIONSHIPS 2019 | E1: Overall - Final Positions
A2: Overall Number | B2: Angler Name | C2: Angler No | D2: Total No. Fish | E2: Total No. Fish Points | F2: Day 1 Points | G2: Day 2 Points | H2: Total Points | I2: Overall Position
A4: 1 | B4: LAWN, Kimberley | C4: 23 | D4: 19 | E4: 477 | F4: 2.000003936 | G4: 1.000004482 | H4: 2.995219418 | I4: 1
A5: 2 | B5: LINDFIELD, Heather | C5: 83 | D5: 30 | E5: 427 | F5: 1.000003595 | G5: 3.000006707 | H5: 3.995710301 | I5: 2
A6: 3 | B6: METCALFE, Wendy | C6: 84 | D6: 14 | E6: 357 | F6: 4.000005616 | G6: 2.000005584 | H6: 5.9964272 | I6: 3
A7: 4 | B7: JARMAN, Rachael | C7: 85 | D7: 25 | E7: 285 | F7: 3.000004803 | G7: 7.000012977 | H7: 9.99714278 | I7: 4
A8: 5 | B8: WOODS, Becky | C8: 63 | D8: 14 | E8: 238 | F8: 5.000006708 | G8: 5.000011228 | H8: 9.997623936 | I8: 5
A9: 6 | B9: SMITH, Adele | C9: 62 | D9: 16 | E9: 221 | F9: 6.000007087 | G9: 6.000012491 | H9: 11.99779358 | I9: 6
A10: 7 | B10: BROWN, Kay | C10: 102 | D10: 10 | E10: 124 | F10: 8.000142653 | G10: 4.00000854 | H10: 11.99890119 | I10: 7
A11: 8 | B11: FRARY, June | C11: 32 | D11: 14 | E11: 174 | F11: 7.000007745 | G11: 8.000022212 | H11: 14.99827596 | I11: 8

Sheet Juniors
B1: NORTH NORFOLK JUNIORS TOURNAMENT 2019 | E1: Overall - Final Positions
A2: Overall Number | B2: Angler Name | C2: Angler No | D2: Total No. Fish | E2: Total No. Fish Points | F2: Day 1 Points | G2: Day 2 Points | H2: Total Points | I2: Overall Position
A4: 1 | B4: SHAUL, Jimmy | C4: 94 | D4: 26 | E4: 464 | F4: 1 | G4: 2 | H4: 3 | I4: 1
A5: 2 | B5: BANHAM, Mark | C5: 29 | D5: 23 | E5: 438 | F5: 3 | G5: 1 | H5: 4 | I5: 2
A6: 3 | B6: ALDOUS, Brayden | C6: 10 | D6: 14 | E6: 308 | F6: 2 | G6: 3 | H6: 5 | I6: 3
A7: 4 | B7: BRADSHAW, Daine | C7: 27 | D7: 7 | E7: 123 | F7: 4 | G7: 5 | H7: 9 | I7: 4
A8: 5 | B8: TOPPING, Jack | C8: 110 | D8: 6 | E8: 153 | F8: 5 | G8: 4 | H8: 9 | I8: 4

Sheet Shannock Quads
B1: SHANNOCK QUADS 2019 | E1: Overall (Teams)
A2: Team Count | B2: Overall Position | C2: Team No. | D2: Team Name | E2: No. Fish | F2: Fish Points | G2: Weight
G3: lbs | H3: oz
A4: 1 | B4: 1 | C4: 2 | D4: TEAM BREAKAWAY | E4: 115 | F4: 2393 | G4: 49 | H4: 13.66666667
A5: 2 | B5: 2 | C5: 8 | D5: ASSO ANYFISH ANYWHERE | E5: 74 | F5: 2310 | G5: 48 | H5: 2
A6: 3 | B6: 3 | C6: 4 | D6: THE POD BASHERS | E6: 99 | F6: 1979 | G6: 41 | H6: 3.666666667
A7: 4 | B7: 4 | C7: 3 | D7: BIRDS TACKLE | E7: 75 | F7: 1648 | G7: 34 | H7: 5.333333333
A8: 5 | B8: 5 | C8: 7 | D8: IPSWICH SEA ANGLERS 1 | E8: 89 | F8: 1446 | G8: 30 | H8: 2
A9: 6 | B9: 6 | C9: 6 | D9: HARTIES ODD BODS | E9: 65 | F9: 1117 | G9: 23 | H9: 4.333333333
A10: 7 | B10: 7 | C10: 9 | D10: NORTH NORFOLK LADS | E10: 73 | F10: 1081 | G10: 22 | H10: 8.333333333
A11: 8 | B11: 8 | C11: 5 | D11: IPSWICH SEA ANGLERS 2 | E11: 47 | F11: 1026 | G11: 21 | H11: 6
A12: 9 | B12: 9 | C12: 10 | D12: THE JUNIORS | E12: 43 | F12: 899 | G12: 18 | H12: 11.66666667
A13: 10 | B13: 10 | C13: 12 | D13: STUART GUNS & TACKLE | E13: 49 | F13: 804 | G13: 16 | H13: 12
A14: 11 | B14: 11 | C14: 1 | D14: ITALCANNA | E14: 38 | F14: 524 | G14: 10 | H14: 14.66666667
A15: 12 | B15: 12 | C15: 11 | D15: GOOCHIE'S TEAM | E15: 25 | F15: 424 | G15: 8 | H15: 13.33333333

Sheet Mystery Pairs
B1: BASS FESTIVAL MYSTERY PAIRS 2019 | E1: Overall (Pairs)
A2: Team Count | B2: Overall Position | C2: Team No. | D2: Team Name | E2: Day 1 Zone Points | F2: Day 2 Zone Points | G2: Total No. Fish | H2: Total Fish Points | I2: Total Weight | K2: Total Zone Points
I3: lbs | J3: oz
A4: 1 | B4: 1 | C4: 9 | D4: CUTLER, Neil & GASCOIGNE, Robert | E4: 10 | F4: 5 | G4: 69 | H4: 1189 | I4: 24 | J4: 12.33333333 | K4: 14.988041
A5: 2 | B5: 2 | C5: 1 | D5: SMITH, George & WATTS, Mike | E5: 10 | F5: 7 | G5: 61 | H5: 1529 | I5: 31 | J5: 13.66666667 | K5: 16.984649
A6: 3 | B6: 3 | C6: 19 | D6: ADAMS, Stephen & FRARY, Charlie | E6: 13 | F6: 4 | G6: 48 | H6: 843 | I6: 17 | J6: 9 | K6: 16.991522
A7: 4 | B7: 4 | C7: 15 | D7: HUTSON, Garry & HARRISON, Paul | E7: 16 | F7: 4 | G7: 36 | H7: 697 | I7: 14 | J7: 8.333333333 | K7: 19.992994
A8: 5 | B8: 5 | C8: 21 | D8: SPALL, Chris & TEMPLE, Billy | E8: 12 | F8: 11 | G8: 37 | H8: 831 | I8: 17 | J8: 5 | K8: 22.991653
A9: 6 | B9: 6 | C9: 26 | D9: TUCK, Rob & GREEN, Kevin | E9: 14 | F9: 9 | G9: 37 | H9: 672 | I9: 14 | J9: 0 | K9: 22.993243
A10: 7 | B10: 7 | C10: 3 | D10: RUSSELL, Shane & BANHAM, Jason | E10: 12 | F10: 13 | G10: 47 | H10: 1188 | I10: 24 | J10: 12 | K10: 24.988073
A11: 8 | B11: 8 | C11: 4 | D11: BOWELL, Ian & PRICE, Ben | E11: 12 | F11: 14 | G11: 28 | H11: 801 | I11: 16 | J11: 11 | K11: 25.991962
A12: 9 | B12: 9 | C12: 18 | D12: MEDLER, Gary & WOODS, Becky | E12: 15 | F12: 11 | G12: 28 | H12: 753 | I12: 15 | J12: 11 | K12: 25.992442
A13: 10 | B13: 10 | C13: 11 | D13: TURNER, Cameron & SHORTHOUSE, Dave | E13: 12 | F13: 14 | G13: 34 | H13: 613 | I13: 12 | J13: 12.33333333 | K13: 25.993836
A14: 11 | B14: 11 | C14: 13 | D14: RANDELL, Henry & BANCROFT, Dave | E14: 15 | F14: 11 | G14: 32 | H14: 578 | I14: 12 | J14: 0.6666666667 | K14: 25.994188
A15: 12 | B15: 12 | C15: 46 | D15: SHAUL, Jimmy & STEBBINGS, Robert | E15: 17 | F15: 9 | G15: 27 | H15: 552 | I15: 11 | J15: 8 | K15: 25.994453
A16: 13 | B16: 13 | C16: 6 | D16: LINDFIELD, Bill & DOY, Alan | E16: 14 | F16: 12 | G16: 30 | H16: 543 | I16: 11 | J16: 5 | K16: 25.99454
A17: 14 | B17: 14 | C17: 17 | D17: ALDOUS, David & WOODS, Graham | E17: 11 | F17: 16 | G17: 40 | H17: 1176 | I17: 24 | J17: 8 | K17: 26.9882
A18: 15 | B18: 15 | C18: 24 | D18: CANNELL, Chris & BETTINSON, Charles | E18: 17 | F18: 10 | G18: 47 | H18: 1088 | I18: 22 | J18: 10.66666667 | K18: 26.989073
A19: 16 | B19: 16 | C19: 16 | D19: HUGHES, Gary & THOMAS, Tony | E19: 11 | F19: 16 | G19: 54 | H19: 938 | I19: 19 | J19: 8.666666667 | K19: 26.990566
A20: 17 | B20: 17 | C20: 33 | D20: SELF, Bevan & GROSSMAN, Martin | E20: 16 | F20: 11 | G20: 23 | H20: 581 | I20: 12 | J20: 1.666666667 | K20: 26.994167
A21: 18 | B21: 18 | C21: 10 | D21: WRIGHT, Dave & BENNINGTON, Graham | E21: 13 | F21: 15 | G21: 31 | H21: 694 | I21: 14 | J21: 7.333333333 | K21: 27.993029
A22: 19 | B22: 19 | C22: 7 | D22: BUY, Craig & ADAMS, Graham | E22: 12 | F22: 16 | G22: 40 | H22: 629 | I22: 13 | J22: 1.666666667 | K22: 27.99367
A23: 20 | B23: 20 | C23: 23 | D23: AKESTER, Jack & SHAUL, Keith | E23: 14 | F23: 14 | G23: 25 | H23: 459 | I23: 9 | J23: 9 | K23: 27.995385
A24: 21 | B24: 21 | C24: 45 | D24: SMITH, John & WARD, Mark | E24: 18 | F24: 11 | G24: 40 | H24: 917 | I24: 19 | J24: 1.666666667 | K24: 28.99079
A25: 22 | B25: 22 | C25: 20 | D25: BURT, Richard & HARVEY, John | E25: 11 | F25: 18 | G25: 44 | H25: 703 | I25: 14 | J25: 10.33333333 | K25: 28.992926
A26: 23 | B26: 23 | C26: 38 | D26: McKENZIE, Brian & CHAMBERLAIN, Darren | E26: 14 | F26: 15 | G26: 49 | H26: 633 | I26: 13 | J26: 3 | K26: 28.993621
A27: 24 | B27: 24 | C27: 44 | D27: HIPPERSON, Richard & LITTLEWOOD, Stuart | E27: 17 | F27: 13 | G27: 55 | H27: 731 | I27: 15 | J27: 3.666666667 | K27: 29.992635
A28: 25 | B28: 25 | C28: 32 | D28: ADAMS, Lee & FRARY, June | E28: 18 | F28: 12 | G28: 32 | H28: 524 | I28: 10 | J28: 14.66666667 | K28: 29.994728
A29: 26 | B29: 26 | C29: 37 | D29: BATTLE, Ian & HURCOMBE, Mark | E29: 14 | F29: 17 | G29: 36 | H29: 692 | I29: 14 | J29: 6.666666667 | K29: 30.993044
A30: 27 | B30: 27 | C30: 42 | D30: BENNETT, Rick & WHITE, Alan | E30: 21 | F30: 10 | G30: 34 | H30: 467 | I30: 9 | J30: 11.66666667 | K30: 30.995296
A31: 28 | B31: 28 | C31: 47 | D31: DIAPER, Barry & DAWBER, Simon | E31: 16 | F31: 16 | G31: 55 | H31: 1017 | I31: 21 | J31: 3 | K31: 31.989775
A32: 29 | B32: 29 | C32: 5 | D32: ELLIOTT, Nathan & LING, Richard | E32: 15 | F32: 17 | G32: 56 | H32: 801 | I32: 16 | J32: 11 | K32: 31.991934
A33: 30 | B33: 30 | C33: 30 | D33: DRIVER, Ed & DRAYTON, Simon | E33: 20 | F33: 12 | G33: 44 | H33: 765 | I33: 15 | J33: 15 | K33: 31.992306
A34: 31 | B34: 31 | C34: 49 | D34: DIAPER, Greg & AUSTIN, John | E34: 21 | F34: 11 | G34: 22 | H34: 376 | I34: 7 | J34: 13.33333333 | K34: 31.996218
A35: 32 | B35: 32 | C35: 2 | D35: PROVINS, Colin & PARROTT, Ade | E35: 10 | F35: 23 | G35: 49 | H35: 1036 | I35: 21 | J35: 9.333333333 | K35: 32.989591
A36: 33 | B36: 33 | C36: 22 | D36: CRAWFORD, Vince & LAY-FLURRIE, Matt | E36: 17 | F36: 17 | G36: 31 | H36: 430 | I36: 8 | J36: 15.33333333 | K36: 33.995669
A37: 34 | B37: 34 | C37: 51 | D37: NELSON, Ian & JACOBS, Richard | E37: 20 | F37: 15 | G37: 24 | H37: 722 | I37: 15 | J37: 0.6666666667 | K37: 34.992756
A38: 35 | B38: 35 | C38: 8 | D38: KINGDON, Adam & GOOCH, Mark | E38: 12 | F38: 23 | G38: 27 | H38: 586 | I38: 12 | J38: 3.333333333 | K38: 34.994113
A39: 36 | B39: 36 | C39: 34 | D39: SHARMAN, Mark & SMITH, Andy | E39: 17 | F39: 18 | G39: 31 | H39: 561 | I39: 11 | J39: 11 | K39: 34.994359
A40: 37 | B40: 37 | C40: 27 | D40: CLEMENT, Alby & LAMBERT, Ian | E40: 19 | F40: 16 | G40: 12 | H40: 271 | I40: 5 | J40: 10.33333333 | K40: 34.997278
A41: 38 | B41: 38 | C41: 48 | D41: STONE, Barry & HADDOCK, Roy | E41: 19 | F41: 17 | G41: 43 | H41: 472 | I41: 9 | J41: 13.33333333 | K41: 35.995237
A42: 39 | B42: 39 | C42: 25 | D42: ELEY, Kevin & JARMAN, Wayne | E42: 16 | F42: 21 | G42: 71 | H42: 919 | I42: 19 | J42: 2.333333333 | K42: 36.990739
A43: 40 | B43: 40 | C43: 29 | D43: BRADSHAW, Craig & HARVEY, Paul | E43: 14 | F43: 23 | G43: 28 | H43: 748 | I43: 15 | J43: 9.333333333 | K43: 36.992492
A44: 41 | B44: 41 | C44: 14 | D44: BRIGHTON, Tarrick & McCOY, Ken | E44: 14 | F44: 23 | G44: 50 | H44: 617 | I44: 12 | J44: 13.66666667 | K44: 36.99378
A45: 42 | B45: 42 | C45: 12 | D45: HUTCHINSON (BP), Dave & HART, Paul | E45: 14 | F45: 23 | G45: 30 | H45: 545 | I45: 11 | J45: 5.666666667 | K45: 36.99452
A46: 43 | B46: 43 | C46: 28 | D46: NANGLE, Karl & BENNINGTON, Tom | E46: 12 | F46: 25 | G46: 37 | H46: 529 | I46: 11 | J46: 0.3333333333 | K46: 36.994673
A47: 44 | B47: 44 | C47: 50 | D47: EAGLE, Dan & SMART, Neil | E47: 16 | F47: 21 | G47: 33 | H47: 502 | I47: 10 | J47: 7.333333333 | K47: 36.994947
A48: 45 | B48: 45 | C48: 36 | D48: STORER, Paul & THORBURN, Paul | E48: 19 | F48: 19 | G48: 16 | H48: 321 | I48: 6 | J48: 11 | K48: 37.996774
A49: 46 | B49: 46 | C49: 41 | D49: BURR, Dave & DENHOLM, Paul | E49: 15 | F49: 24 | G49: 23 | H49: 377 | I49: 7 | J49: 13.66666667 | K49: 38.996207
A50: 47 | B50: 47 | C50: 31 | D50: HARVEY, Mark & NICHOLSON, Steven | E50: 18 | F50: 22 | G50: 19 | H50: 527 | I50: 10 | J50: 15.66666667 | K50: 39.994711
A51: 48 | B51: 48 | C51: 43 | D51: BORDIANU, Adrian & RUSH, Billy | E51: 18 | F51: 22 | G51: 23 | H51: 504 | I51: 10 | J51: 8 | K51: 39.994937
A52: 49 | B52: 49 | C52: 40 | D52: BROCK, Peter & TOPPING, Mike | E52: 15 | F52: 25 | G52: 32 | H52: 442 | I52: 9 | J52: 3.333333333 | K52: 39.995548
A53: 50 | B53: 50 | C53: 39 | D53: THORPE, Doug & CREASEY, Shaun | E53: 20 | F53: 20 | G53: 20 | H53: 381 | I53: 7 | J53: 15 | K53: 39.99617
A54: 51 | B54: 51 | C54: 52 | D54: FATTIZZO, Tony & SMITH, Adele | E54: 16 | F54: 26 | G54: 47 | H54: 681 | I54: 14 | J54: 3 | K54: 41.993143
A55: 52 | B55: 52 | C55: 35 | D55: SMITH, Leon & CARTER, John | E55: 20 | F55: 24 | G55: 29 | H55: 366 | I55: 7 | J55: 10 | K55: 43.996311

Sheet Heaviest Bass
C1: NORTH NORFOLK BASS FESTIVAL 2019 | F1: Overall Heaviest Bass
A2: Overall Number | B2: Individual No. | C2: Angler Name | D2: Angler No. | E2: Peg | F2: Fish Points | G2: Weight | I2: Day | J2: Position
G3: lbs | H3: oz
A4: 1 | B4: 1 | C4: HARVEY, Mark | D4: 80-1 | E4: 38 | F4: 200 | G4: 4 | H4: 2.666666667 | I4: Day 1 | J4: 1
A5: 2 | B5: 2 | C5: BOWELL, Ian | D5: 93-1 | E5: 43 | F5: 174 | G5: 3 | H5: 10 | I5: Day 1 | J5: 2
A6: 3 | B6: 3 | C6: ALDOUS, David | D6: 50-1 | E6: 65 | F6: 174 | G6: 3 | H6: 10 | I6: Day 1 | J6: 2
A7: 4 | B7: 4 | C7: GASCOIGNE, Robert | D7: 5-2 | E7: 11 | F7: 174 | G7: 3 | H7: 10 | I7: Day 2 | J7: 2
A8: 5 | B8: 5 | C8: LINDFIELD, Bill | D8: 86-1 | E8: 1 | F8: 166 | G8: 3 | H8: 7.333333333 | I8: Day 1 | J8: 5
A9: 6 | B9: 6 | C9: ELLIOTT, Nathan | D9: 24-1 | E9: 83 | F9: 166 | G9: 3 | H9: 7.333333333 | I9: Day 1 | J9: 5
A10: 7 | B10: 7 | C10: HUTCHINSON (BP), Dave | D10: 90-1 | E10: 105 | F10: 166 | G10: 3 | H10: 7.333333333 | I10: Day 1 | J10: 5
A11: 8 | B11: 8 | C11: WOODS, Graham | D11: 39-2 | E11: 47 | F11: 166 | G11: 3 | H11: 7.333333333 | I11: Day 2 | J11: 5
A12: 9 | B12: 9 | C12: MEDLER, Gary | D12: 26-1 | E12: 37 | F12: 158 | G12: 3 | H12: 4.666666667 | I12: Day 1 | J12: 9
A13: 10 | B13: 10 | C13: CANNELL, Chris | D13: 43-2 | E13: 54 | F13: 158 | G13: 3 | H13: 4.666666667 | I13: Day 2 | J13: 9
A14: 11 | B14: 11 | C14: SHAUL, Jimmy | D14: 94-1 | E14: 44 | F14: 129 | G14: 2 | H14: 11 | I14: Day 1 | J14: 11
A15: 12 | B15: 12 | C15: SMITH, George | D15: 114-1 | E15: 66 | F15: 129 | G15: 2 | H15: 11 | I15: Day 1 | J15: 11
A16: 13 | B16: 13 | C16: RUSSELL, Shane | D16: 25-1 | E16: 29 | F16: 122 | G16: 2 | H16: 8.666666667 | I16: Day 1 | J16: 13
A17: 14 | B17: 14 | C17: KINGDON, Adam | D17: 20-1 | E17: 60 | F17: 122 | G17: 2 | H17: 8.666666667 | I17: Day 1 | J17: 13
A18: 15 | B18: 15 | C18: HUGHES, Gary | D18: 87-2 | E18: 30 | F18: 122 | G18: 2 | H18: 8.666666667 | I18: Day 2 | J18: 13
A19: 16 | B19: 16 | C19: WOODS, Graham | D19: 39-1 | E19: 74 | F19: 116 | G19: 2 | H19: 6.666666667 | I19: Day 1 | J19: 16
A20: 17 | B20: 17 | C20: ADAMS, Lee | D20: 22-1 | E20: 76 | F20: 104 | G20: 2 | H20: 2.666666667 | I20: Day 1 | J20: 17
A21: 18 | B21: 18 | C21: CLEMENT, Alby | D21: 65-1 | E21: 85 | F21: 104 | G21: 2 | H21: 2.666666667 | I21: Day 1 | J21: 17
A22: 19 | B22: 19 | C22: CANNELL, Chris | D22: 43-1 | E22: 61 | F22: 98 | G22: 2 | H22: 0.6666666667 | I22: Day 1 | J22: 19
A23: 20 | B23: 20 | C23: BUY, Craig | D23: 119-1 | E23: 97 | F23: 92 | G23: 1 | H23: 14.66666667 | I23: Day 1 | J23: 20
A24: 21 | B24: 21 | C24: BRADSHAW, Craig | D24: 117-1 | E24: 11 | F24: 86 | G24: 1 | H24: 12.66666667 | I24: Day 1 | J24: 21
A25: 22 | B25: 22 | C25: METCALFE, Wendy | D25: 84-1 | E25: 59 | F25: 86 | G25: 1 | H25: 12.66666667 | I25: Day 1 | J25: 21
A26: 23 | B26: 23 | C26: HUTSON, Garry | D26: 113-1 | E26: 3 | F26: 74 | G26: 1 | H26: 8.666666667 | I26: Day 1 | J26: 23
A27: 24 | B27: 24 | C27: LINDFIELD, Heather | D27: 83-1 | E27: 30 | F27: 74 | G27: 1 | H27: 8.666666667 | I27: Day 1 | J27: 23
A28: 25 | B28: 25 | C28: BURR, Dave | D28: 30-1 | E28: 26 | F28: 68 | G28: 1 | H28: 6.666666667 | I28: Day 1 | J28: 25
A29: 26 | B29: 26 | C29: CUTLER, Neil | D29: 92-1 | E29: 114 | F29: 63 | G29: 1 | H29: 5 | I29: Day 1 | J29: 26
A30: 27 | B30: 27 | C30: GREEN, Kevin | D30: 105-1 | E30: 16 | F30: 59 | G30: 1 | H30: 3.666666667 | I30: Day 1 | J30: 27
A31: 28 | B31: 28 | C31: SMITH, Adele | D31: 62-1 | E31: 21 | F31: 59 | G31: 1 | H31: 3.666666667 | I31: Day 1 | J31: 27
A32: 29 | B32: 29 | C32: DIAPER, Greg | D32: 3-1 | E32: 25 | F32: 59 | G32: 1 | H32: 3.666666667 | I32: Day 1 | J32: 27
A33: 30 | B33: 30 | C33: AKESTER, Jack | D33: 16-1 | E33: 27 | F33: 59 | G33: 1 | H33: 3.666666667 | I33: Day 1 | J33: 27
A34: 31 | B34: 31 | C34: STEBBINGS, Robert | D34: 38-1 | E34: 36 | F34: 59 | G34: 1 | H34: 3.666666667 | I34: Day 1 | J34: 27
A35: 32 | B35: 32 | C35: WRIGHT, Dave | D35: 33-1 | E35: 62 | F35: 59 | G35: 1 | H35: 3.666666667 | I35: Day 1 | J35: 27
A36: 33 | B36: 33 | C36: ALDOUS, Brayden | D36: 10-1 | E36: 64 | F36: 59 | G36: 1 | H36: 3.666666667 | I36: Day 1 | J36: 27
A37: 34 | B37: 34 | C37: PROVINS, Colin | D37: 100-1 | E37: 117 | F37: 59 | G37: 1 | H37: 3.666666667 | I37: Day 1 | J37: 27
A38: 35 | B38: 35 | C38: SMITH, John | D38: 13-1 | E38: 67 | F38: 55 | G38: 1 | H38: 2.333333333 | I38: Day 1 | J38: 35
A39: 36 | B39: 36 | C39: HURCOMBE, Mark | D39: 58-1 | E39: 78 | F39: 55 | G39: 1 | H39: 2.333333333 | I39: Day 1 | J39: 35
A40: 37 | B40: 37 | C40: HARVEY, John | D40: 111-1 | E40: 14 | F40: 51 | G40: 1 | H40: 1 | I40: Day 1 | J40: 37
A41: 38 | B41: 38 | C41: THOMAS, Tony | D41: 18-1 | E41: 40 | F41: 51 | G41: 1 | H41: 1 | I41: Day 1 | J41: 37
A42: 39 | B42: 39 | C42: TUCK, Rob | D42: 109-1 | E42: 42 | F42: 51 | G42: 1 | H42: 1 | I42: Day 1 | J42: 37
A43: 40 | B43: 40 | C43: WARD, Mark | D43: 59-1 | E43: 63 | F43: 51 | G43: 1 | H43: 1 | I43: Day 1 | J43: 37
A44: 41 | B44: 41 | C44: BURT, Richard | D44: 19-1 | E44: 86 | F44: 51 | G44: 1 | H44: 1 | I44: Day 1 | J44: 37
A45: 42 | B45: 42 | C45: HARRISON, Paul | D45: 96-1 | E45: 41 | F45: 47 | G45: 0 | H45: 15.66666667 | I45: Day 1 | J45: 42
A46: 43 | B46: 43 | C46: LAWN, Kimberley | D46: 23-1 | E46: 45 | F46: 47 | G46: 0 | H46: 15.66666667 | I46: Day 1 | J46: 42
A47: 44 | B47: 44 | C47: SPALL, Chris | D47: 4-1 | E47: 46 | F47: 47 | G47: 0 | H47: 15.66666667 | I47: Day 1 | J47: 42
A48: 45 | B48: 45 | C48: DAWBER, Simon | D48: 116-1 | E48: 53 | F48: 47 | G48: 0 | H48: 15.66666667 | I48: Day 1 | J48: 42
A49: 46 | B49: 46 | C49: BRADSHAW, Daine | D49: 27-1 | E49: 12 | F49: 43 | G49: 0 | H49: 14.33333333 | I49: Day 1 | J49: 46
A50: 47 | B50: 47 | C50: BENNETT, Rick | D50: 41-1 | E50: 15 | F50: 40 | G50: 0 | H50: 13.33333333 | I50: Day 1 | J50: 47
A51: 48 | B51: 48 | C51: CRAWFORD, Vince | D51: 76-1 | E51: 8 | F51: 34 | G51: 0 | H51: 11.33333333 | I51: Day 1 | J51: 48
A52: 49 | B52: 49 | C52: BANHAM, Mark | D52: 29-1 | E52: 22 | F52: 22 | G52: 0 | H52: 7.333333333 | I52: Day 1 | J52: 49
A53: 50 | B53: 50 | C53: BANHAM, Jason | D53: 15-1 | E53: 23 | F53: 20 | G53: 0 | H53: 6.666666667 | I53: Day 1 | J53: 50
C55: ( PLEASE NOTE … SOME SMALLER FISH WERE NOT ENTERED AND WILL THEREFORE NOT APPEAR IN THIS REPORT )

Sheet Heaviest Catch
C1: NORTH NORFOLK BASS FESTIVAL 2019 | F1: Overall Heaviest Catch
A2: Overall Number | B2: Individual No. | C2: Angler Name | D2: Angler No. | E2: Peg | F2: Fish Points | G2: Weight | I2: Day | J2: Position
G3: lbs | H3: oz
A4: 1 | B4: 1 | C4: SMITH, George | D4: 114-1 | E4: 66 | F4: 931 | G4: 19 | H4: 6.333333333 | I4: Day 1 | J4: 1
A5: 2 | B5: 2 | C5: PROVINS, Colin | D5: 100-1 | E5: 117 | F5: 786 | G5: 16 | H5: 6 | I5: Day 1 | J5: 2
A6: 3 | B6: 3 | C6: RUSSELL, Shane | D6: 25-1 | E6: 29 | F6: 761 | G6: 15 | H6: 13.66666667 | I6: Day 1 | J6: 3
A7: 4 | B7: 4 | C7: CUTLER, Neil | D7: 92-1 | E7: 114 | F7: 525 | G7: 10 | H7: 15 | I7: Day 1 | J7: 4
A8: 5 | B8: 5 | C8: TUCK, Rob | D8: 109-2 | E8: 81 | F8: 524 | G8: 10 | H8: 14.66666667 | I8: Day 2 | J8: 5
A9: 6 | B9: 6 | C9: BOWELL, Ian | D9: 93-1 | E9: 43 | F9: 507 | G9: 10 | H9: 9 | I9: Day 1 | J9: 6
A10: 7 | B10: 7 | C10: ELLIOTT, Nathan | D10: 24-1 | E10: 83 | F10: 496 | G10: 10 | H10: 5.333333333 | I10: Day 1 | J10: 7
A11: 8 | B11: 8 | C11: CLEMENT, Alby | D11: 65-2 | E11: 20 | F11: 473 | G11: 9 | H11: 13.66666667 | I11: Day 2 | J11: 8
A12: 9 | B12: 9 | C12: HUGHES, Gary | D12: 87-1 | E12: 119 | F12: 466 | G12: 9 | H12: 11.33333333 | I12: Day 1 | J12: 9
A13: 10 | B13: 10 | C13: WRIGHT, Dave | D13: 33-1 | E13: 62 | F13: 453 | G13: 9 | H13: 7 | I13: Day 1 | J13: 10
A14: 11 | B14: 11 | C14: AKESTER, Jack | D14: 16-2 | E14: 109 | F14: 451 | G14: 9 | H14: 6.333333333 | I14: Day 2 | J14: 11
A15: 12 | B15: 12 | C15: HUTSON, Garry | D15: 113-2 | E15: 61 | F15: 434 | G15: 9 | H15: 0.6666666667 | I15: Day 2 | J15: 12
A16: 13 | B16: 13 | C16: ALDOUS, David | D16: 50-1 | E16: 65 | F16: 414 | G16: 8 | H16: 10 | I16: Day 1 | J16: 13
A17: 14 | B17: 14 | C17: TURNER, Cameron | D17: 11-1 | E17: 31 | F17: 394 | G17: 8 | H17: 3.333333333 | I17: Day 1 | J17: 14
A18: 15 | B18: 15 | C18: CANNELL, Chris | D18: 43-1 | E18: 61 | F18: 384 | G18: 8 | H18: 0 | I18: Day 1 | J18: 15
A19: 16 | B19: 16 | C19: ELEY, Kevin | D19: 82-1 | E19: 120 | F19: 373 | G19: 7 | H19: 12.33333333 | I19: Day 1 | J19: 16
A20: 17 | B20: 17 | C20: LINDFIELD, Bill | D20: 86-1 | E20: 1 | F20: 370 | G20: 7 | H20: 11.33333333 | I20: Day 1 | J20: 17
A21: 18 | B21: 18 | C21: DRIVER, Ed | D21: 49-1 | E21: 107 | F21: 367 | G21: 7 | H21: 10.33333333 | I21: Day 1 | J21: 18
A22: 19 | B22: 19 | C22: BUY, Craig | D22: 119-1 | E22: 97 | F22: 366 | G22: 7 | H22: 10 | I22: Day 1 | J22: 19
A23: 20 | B23: 20 | C23: MEDLER, Gary | D23: 26-1 | E23: 37 | F23: 353 | G23: 7 | H23: 5.666666667 | I23: Day 1 | J23: 20
A24: 21 | B24: 21 | C24: GASCOIGNE, Robert | D24: 5-2 | E24: 11 | F24: 351 | G24: 7 | H24: 5 | I24: Day 2 | J24: 21
A25: 22 | B25: 22 | C25: WATTS, Mike | D25: 46-2 | E25: 120 | F25: 351 | G25: 7 | H25: 5 | I25: Day 2 | J25: 21
A26: 23 | B26: 23 | C26: HUTCHINSON (BP), Dave | D26: 90-1 | E26: 105 | F26: 338 | G26: 7 | H26: 0.6666666667 | I26: Day 1 | J26: 23
A27: 24 | B27: 24 | C27: TUCK, Rob | D27: 109-1 | E27: 42 | F27: 337 | G27: 7 | H27: 0.3333333333 | I27: Day 1 | J27: 24
A28: 25 | B28: 25 | C28: KINGDON, Adam | D28: 20-1 | E28: 60 | F28: 318 | G28: 6 | H28: 10 | I28: Day 1 | J28: 25
A29: 26 | B29: 26 | C29: ADAMS, Stephen | D29: 68-1 | E29: 94 | F29: 315 | G29: 6 | H29: 9 | I29: Day 1 | J29: 26
A30: 27 | B30: 27 | C30: WOODS, Graham | D30: 39-2 | E30: 47 | F30: 311 | G30: 6 | H30: 7.666666667 | I30: Day 2 | J30: 27
A31: 28 | B31: 28 | C31: RANDELL, Henry | D31: 1-1 | E31: 48 | F31: 305 | G31: 6 | H31: 5.666666667 | I31: Day 1 | J31: 28
A32: 29 | B32: 29 | C32: BRIGHTON, Tarrick | D32: 89-1 | E32: 82 | F32: 304 | G32: 6 | H32: 5.333333333 | I32: Day 1 | J32: 29
A33: 30 | B33: 30 | C33: ADAMS, Stephen | D33: 68-2 | E33: 46 | F33: 296 | G33: 6 | H33: 2.666666667 | I33: Day 2 | J33: 30
A34: 31 | B34: 31 | C34: McKENZIE, Brian | D34: 112-1 | E34: 118 | F34: 283 | G34: 5 | H34: 14.33333333 | I34: Day 1 | J34: 31
A35: 32 | B35: 32 | C35: TURNER, Cameron | D35: 11-2 | E35: 86 | F35: 280 | G35: 5 | H35: 13.33333333 | I35: Day 2 | J35: 32
A36: 33 | B36: 33 | C36: LINDFIELD, Heather | D36: 83-1 | E36: 30 | F36: 278 | G36: 5 | H36: 12.66666667 | I36: Day 1 | J36: 33
A37: 34 | B37: 34 | C37: BURT, Richard | D37: 19-1 | E37: 86 | F37: 275 | G37: 5 | H37: 11.66666667 | I37: Day 1 | J37: 34
A38: 35 | B38: 35 | C38: CLEMENT, Alby | D38: 65-1 | E38: 85 | F38: 271 | G38: 5 | H38: 10.33333333 | I38: Day 1 | J38: 35
A39: 36 | B39: 36 | C39: HUTSON, Garry | D39: 113-1 | E39: 3 | F39: 269 | G39: 5 | H39: 9.666666667 | I39: Day 1 | J39: 36
A40: 37 | B40: 37 | C40: HIPPERSON, Richard | D40: 77-1 | E40: 115 | F40: 269 | G40: 5 | H40: 9.666666667 | I40: Day 1 | J40: 36
A41: 38 | B41: 38 | C41: HARVEY, Mark | D41: 80-1 | E41: 38 | F41: 263 | G41: 5 | H41: 7.666666667 | I41: Day 1 | J41: 38
A42: 39 | B42: 39 | C42: NANGLE, Karl | D42: 44-1 | E42: 99 | F42: 263 | G42: 5 | H42: 7.666666667 | I42: Day 1 | J42: 38
A43: 40 | B43: 40 | C43: ADAMS, Lee | D43: 22-1 | E43: 76 | F43: 261 | G43: 5 | H43: 7 | I43: Day 1 | J43: 40
A44: 41 | B44: 41 | C44: LAWN, Kimberley | D44: 23-1 | E44: 45 | F44: 254 | G44: 5 | H44: 4.666666667 | I44: Day 1 | J44: 41
A45: 42 | B45: 42 | C45: FATTIZZO, Tony | D45: 60-1 | E45: 111 | F45: 254 | G45: 5 | H45: 4.666666667 | I45: Day 1 | J45: 41
A46: 43 | B46: 43 | C46: SELF, Bevan | D46: 8-1 | E46: 68 | F46: 252 | G46: 5 | H46: 4 | I46: Day 1 | J46: 43
A47: 44 | B47: 44 | C47: MEDLER, Gary | D47: 26-2 | E47: 67 | F47: 252 | G47: 5 | H47: 4 | I47: Day 2 | J47: 43
A48: 45 | B48: 45 | C48: RANDELL, Henry | D48: 1-2 | E48: 100 | F48: 252 | G48: 5 | H48: 4 | I48: Day 2 | J48: 43
A49: 46 | B49: 46 | C49: BANHAM, Mark | D49: 29-2 | E49: 113 | F49: 252 | G49: 5 | H49: 4 | I49: Day 2 | J49: 43
A50: 47 | B50: 47 | C50: THORPE, Doug | D50: 104-1 | E50: 70 | F50: 251 | G50: 5 | H50: 3.666666667 | I50: Day 1 | J50: 47
A51: 48 | B51: 48 | C51: SPALL, Chris | D51: 4-2 | E51: 89 | F51: 251 | G51: 5 | H51: 3.666666667 | I51: Day 2 | J51: 47
A52: 49 | B52: 49 | C52: WARD, Mark | D52: 59-2 | E52: 2 | F52: 245 | G52: 5 | H52: 1.666666667 | I52: Day 2 | J52: 49
A53: 50 | B53: 50 | C53: SHAUL, Jimmy | D53: 94-2 | E53: 116 | F53: 238 | G53: 4 | H53: 15.33333333 | I53: Day 2 | J53: 50
A54: 51 | B54: 51 | C54: SMITH, John | D54: 13-1 | E54: 67 | F54: 237 | G54: 4 | H54: 15 | I54: Day 1 | J54: 51
A55: 52 | B55: 52 | C55: WOODS, Graham | D55: 39-1 | E55: 74 | F55: 235 | G55: 4 | H55: 14.33333333 | I55: Day 1 | J55: 52
A56: 53 | B56: 53 | C56: TEMPLE, Billy | D56: 73-1 | E56: 72 | F56: 230 | G56: 4 | H56: 12.66666667 | I56: Day 1 | J56: 53
A57: 54 | B57: 54 | C57: SPALL, Chris | D57: 4-1 | E57: 46 | F57: 227 | G57: 4 | H57: 11.66666667 | I57: Day 1 | J57: 54
A58: 55 | B58: 55 | C58: SHARMAN, Mark | D58: 108-1 | E58: 98 | F58: 227 | G58: 4 | H58: 11.66666667 | I58: Day 1 | J58: 54
A59: 56 | B59: 56 | C59: SHAUL, Jimmy | D59: 94-1 | E59: 44 | F59: 226 | G59: 4 | H59: 11.33333333 | I59: Day 1 | J59: 56
A60: 57 | B60: 57 | C60: BROCK, Peter | D60: 42-1 | E60: 77 | F60: 226 | G60: 4 | H60: 11.33333333 | I60: Day 1 | J60: 56
A61: 58 | B61: 58 | C61: FRARY, Charlie | D61: 120-2 | E61: 22 | F61: 225 | G61: 4 | H61: 11 | I61: Day 2 | J61: 58
A62: 59 | B62: 59 | C62: LAWN, Kimberley | D62: 23-2 | E62: 115 | F62: 223 | G62: 4 | H62: 10.33333333 | I62: Day 2 | J62: 59
A63: 60 | B63: 60 | C63: BANHAM, Jason | D63: 15-2 | E63: 112 | F63: 222 | G63: 4 | H63: 10 | I63: Day 2 | J63: 60
A64: 61 | B64: 61 | C64: STORER, Paul | D64: 7-2 | E64: 80 | F64: 219 | G64: 4 | H64: 9 | I64: Day 2 | J64: 61
A65: 62 | B65: 62 | C65: BETTINSON, Charles | D65: 115-2 | E65: 119 | F65: 218 | G65: 4 | H65: 8.666666667 | I65: Day 2 | J65: 62
A66: 63 | B66: 63 | C66: CANNELL, Chris | D66: 43-2 | E66: 54 | F66: 216 | G66: 4 | H66: 8 | I66: Day 2 | J66: 63
A67: 64 | B67: 64 | C67: HARRISON, Paul | D67: 96-2 | E67: 65 | F67: 216 | G67: 4 | H67: 8 | I67: Day 2 | J67: 63
A68: 65 | B68: 65 | C68: DIAPER, Barry | D68: 36-1 | E68: 81 | F68: 214 | G68: 4 | H68: 7.333333333 | I68: Day 1 | J68: 65
A69: 66 | B69: 66 | C69: WRIGHT, Dave | D69: 33-2 | E69: 36 | F69: 213 | G69: 4 | H69: 7 | I69: Day 2 | J69: 66
A70: 67 | B70: 67 | C70: CHAMBERLAIN, Darren | D70: 21-1 | E70: 84 | F70: 210 | G70: 4 | H70: 6 | I70: Day 1 | J70: 67
A71: 68 | B71: 68 | C71: LINDFIELD, Bill | D71: 86-2 | E71: 93 | F71: 210 | G71: 4 | H71: 6 | I71: Day 2 | J71: 67
A72: 69 | B72: 69 | C72: CRAWFORD, Vince | D72: 76-1 | E72: 8 | F72: 208 | G72: 4 | H72: 5.333333333 | I72: Day 1 | J72: 69
A73: 70 | B73: 70 | C73: JARMAN, Rachael | D73: 85-1 | E73: 100 | F73: 208 | G73: 4 | H73: 5.333333333 | I73: Day 1 | J73: 69
A74: 71 | B74: 71 | C74: GREEN, Kevin | D74: 105-2 | E74: 111 | F74: 206 | G74: 4 | H74: 4.666666667 | I74: Day 2 | J74: 71
A75: 72 | B75: 72 | C75: BRADSHAW, Craig | D75: 117-1 | E75: 11 | F75: 205 | G75: 4 | H75: 4.333333333 | I75: Day 1 | J75: 72
A76: 73 | B76: 73 | C76: DAWBER, Simon | D76: 116-2 | E76: 95 | F76: 198 | G76: 4 | H76: 2 | I76: Day 2 | J76: 73
A77: 74 | B77: 74 | C77: HURCOMBE, Mark | D77: 58-2 | E77: 23 | F77: 196 | G77: 4 | H77: 1.333333333 | I77: Day 2 | J77: 74
A78: 75 | B78: 75 | C78: AKESTER, Jack | D78: 16-1 | E78: 27 | F78: 192 | G78: 4 | H78: 0 | I78: Day 1 | J78: 75
A79: 76 | B79: 76 | C79: ALDOUS, Brayden | D79: 10-1 | E79: 64 | F79: 191 | G79: 3 | H79: 15.66666667 | I79: Day 1 | J79: 76
A80: 77 | B80: 77 | C80: BANHAM, Mark | D80: 29-1 | E80: 22 | F80: 186 | G80: 3 | H80: 14 | I80: Day 1 | J80: 77
A81: 78 | B81: 78 | C81: GASCOIGNE, Robert | D81: 5-1 | E81: 91 | F81: 186 | G81: 3 | H81: 14 | I81: Day 1 | J81: 77
A82: 79 | B82: 79 | C82: STONE, Barry | D82: 79-1 | E82: 92 | F82: 186 | G82: 3 | H82: 14 | I82: Day 1 | J82: 77
A83: 80 | B83: 80 | C83: THOMAS, Tony | D83: 18-1 | E83: 40 | F83: 184 | G83: 3 | H83: 13.33333333 | I83: Day 1 | J83: 80
A84: 81 | B84: 81 | C84: WARD, Mark | D84: 59-1 | E84: 63 | F84: 183 | G84: 3 | H84: 13 | I84: Day 1 | J84: 81
A85: 82 | B85: 82 | C85: BOWELL, Ian | D85: 93-2 | E85: 88 | F85: 183 | G85: 3 | H85: 13 | I85: Day 2 | J85: 81
A86: 83 | B86: 83 | C86: HURCOMBE, Mark | D86: 58-1 | E86: 78 | F86: 180 | G86: 3 | H86: 12 | I86: Day 1 | J86: 83
A87: 84 | B87: 84 | C87: METCALFE, Wendy | D87: 84-2 | E87: 104 | F87: 179 | G87: 3 | H87: 11.66666667 | I87: Day 2 | J87: 84
A88: 85 | B88: 85 | C88: METCALFE, Wendy | D88: 84-1 | E88: 59 | F88: 178 | G88: 3 | H88: 11.33333333 | I88: Day 1 | J88: 85
A89: 86 | B89: 86 | C89: DIAPER, Greg | D89: 3-2 | E89: 74 | F89: 178 | G89: 3 | H89: 11.33333333 | I89: Day 2 | J89: 85
A90: 87 | B90: 87 | C90: JACOBS, Richard | D90: 106-2 | E90: 72 | F90: 177 | G90: 3 | H90: 11 | I90: Day 2 | J90: 87
A91: 88 | B91: 88 | C91: DENHOLM, Paul | D91: 9-1 | E91: 34 | F91: 176 | G91: 3 | H91: 10.66666667 | I91: Day 1 | J91: 88
A92: 89 | B92: 89 | C92: STEBBINGS, Robert | D92: 38-1 | E92: 36 | F92: 176 | G92: 3 | H92: 10.66666667 | I92: Day 1 | J92: 88
A93: 90 | B93: 90 | C93: SMITH, Leon | D93: 70-1 | E93: 28 | F93: 175 | G93: 3 | H93: 10.33333333 | I93: Day 1 | J93: 90
A94: 91 | B94: 91 | C94: DRIVER, Ed | D94: 49-2 | E94: 10 | F94: 174 | G94: 3 | H94: 10 | I94: Day 2 | J94: 91
A95: 92 | B95: 92 | C95: BENNETT, Rick | D95: 41-2 | E95: 82 | F95: 173 | G95: 3 | H95: 9.666666667 | I95: Day 2 | J95: 92
A96: 93 | B96: 93 | C96: SMART, Neil | D96: 107-1 | E96: 95 | F96: 172 | G96: 3 | H96: 9.333333333 | I96: Day 1 | J96: 93
A97: 94 | B97: 94 | C97: AUSTIN, John | D97: 74-2 | E97: 83 | F97: 171 | G97: 3 | H97: 9 | I97: Day 2 | J97: 94
A98: 95 | B98: 95 | C98: JARMAN, Wayne | D98: 47-1 | E98: 69 | F98: 169 | G98: 3 | H98: 8.333333333 | I98: Day 1 | J98: 95
A99: 96 | B99: 96 | C99: ADAMS, Lee | D99: 22-2 | E99: 34 | F99: 169 | G99: 3 | H99: 8.333333333 | I99: Day 2 | J99: 95
A100: 97 | B100: 97 | C100: BURT, Richard | D100: 19-2 | E100: 57 | F100: 166 | G100: 3 | H100: 7.333333333 | I100: Day 2 | J100: 97
A101: 98 | B101: 98 | C101: BURR, Dave | D101: 30-1 | E101: 26 | F101: 164 | G101: 3 | H101: 6.666666667 | I101: Day 1 | J101: 98
A102: 99 | B102: 99 | C102: STORER, Paul | D102: 7-1 | E102: 9 | F102: 162 | G102: 3 | H102: 6 | I102: Day 1 | J102: 99
A103: 100 | B103: 100 | C103: SMITH, Andy | D103: 31-2 | E103: 37 | F103: 162 | G103: 3 | H103: 6 | I103: Day 2 | J103: 99
A104: 101 | B104: 101 | C104: HUGHES, Gary | D104: 87-2 | E104: 30 | F104: 161 | G104: 3 | H104: 5.666666667 | I104: Day 2 | J104: 101
A105: 102 | B105: 102 | C105: LITTLEWOOD, Stuart | D105: 14-1 | E105: 90 | F105: 157 | G105: 3 | H105: 4.333333333 | I105: Day 1 | J105: 102
A106: 103 | B106: 103 | C106: DRAYTON, Simon | D106: 37-2 | E106: 107 | F106: 157 | G106: 3 | H106: 4.333333333 | I106: Day 2 | J106: 102
A107: 104 | B107: 104 | C107: PRICE, Ben | D107: 34-1 | E107: 33 | F107: 156 | G107: 3 | H107: 4 | I107: Day 1 | J107: 104
A108: 105 | B108: 105 | C108: GOOCH, Mark | D108: 56-1 | E108: 88 | F108: 154 | G108: 3 | H108: 3.333333333 | I108: Day 1 | J108: 105
A109: 106 | B109: 106 | C109: ADAMS, Graham | D109: 12-1 | E109: 93 | F109: 154 | G109: 3 | H109: 3.333333333 | I109: Day 1 | J109: 105
A110: 107 | B110: 107 | C110: FRARY, Charlie | D110: 120-1 | E110: 102 | F110: 154 | G110: 3 | H110: 3.333333333 | I110: Day 1 | J110: 105
A111: 108 | B111: 108 | C111: DIAPER, Greg | D111: 3-1 | E111: 25 | F111: 153 | G111: 3 | H111: 3 | I111: Day 1 | J111: 108
A112: 109 | B112: 109 | C112: EAGLE, Dan | D112: 91-2 | E112: 62 | F112: 153 | G112: 3 | H112: 3 | I112: Day 2 | J112: 108
A113: 110 | B113: 110 | C113: WALLIS, Craig | D113: 101-1 | E113: 71 | F113: 152 | G113: 3 | H113: 2.666666667 | I113: Day 1 | J113: 110
A114: 111 | B114: 111 | C114: BATTLE, Ian | D114: 51-1 | E114: 57 | F114: 150 | G114: 3 | H114: 2 | I114: Day 1 | J114: 111
A115: 112 | B115: 112 | C115: PARROTT, Ade | D115: 95-1 | E115: 112 | F115: 150 | G115: 3 | H115: 2 | I115: Day 1 | J115: 111
A116: 113 | B116: 113 | C116: CUTLER, Neil | D116: 92-2 | E116: 35 | F116: 150 | G116: 3 | H116: 2 | I116: Day 2 | J116: 111
A117: 114 | B117: 114 | C117: STEBBINGS, Robert | D117: 38-2 | E117: 92 | F117: 150 | G117: 3 | H117: 2 | I117: Day 2 | J117: 111
A118: 115 | B118: 115 | C118: WOODS, Becky | D118: 63-1 | E118: 35 | F118: 149 | G118: 3 | H118: 1.666666667 | I118: Day 1 | J118: 115
A119: 116 | B119: 116 | C119: LINDFIELD, Heather | D119: 83-2 | E119: 94 | F119: 149 | G119: 3 | H119: 1.666666667 | I119: Day 2 | J119: 115
A120: 117 | B120: 117 | C120: BENNETT, Rick | D120: 41-1 | E120: 15 | F120: 146 | G120: 3 | H120: 0.6666666667 | I120: Day 1 | J120: 117
A121: 118 | B121: 118 | C121: RUSSELL, Shane | D121: 25-2 | E121: 69 | F121: 146 | G121: 3 | H121: 0.6666666667 | I121: Day 2 | J121: 117
A122: 119 | B122: 119 | C122: EAGLE, Dan | D122: 91-1 | E122: 10 | F122: 141 | G122: 2 | H122: 15 | I122: Day 1 | J122: 119
A123: 120 | B123: 120 | C123: SMITH, Adele | D123: 62-1 | E123: 21 | F123: 141 | G123: 2 | H123: 15 | I123: Day 1 | J123: 119
A124: 121 | B124: 121 | C124: WATTS, Mike | D124: 46-1 | E124: 24 | F124: 141 | G124: 2 | H124: 15 | I124: Day 1 | J124: 119
A125: 122 | B125: 122 | C125: RUSH, Billy | D125: 64-1 | E125: 101 | F125: 141 | G125: 2 | H125: 15 | I125: Day 1 | J125: 119
A126: 123 | B126: 123 | C126: HARVEY, Paul | D126: 75-1 | E126: 116 | F126: 136 | G126: 2 | H126: 13.33333333 | I126: Day 1 | J126: 123
A127: 124 | B127: 124 | C127: GROSSMAN, Martin | D127: 67-2 | E127: 19 | F127: 134 | G127: 2 | H127: 12.66666667 | I127: Day 2 | J127: 124
A128: 125 | B128: 125 | C128: BORDIANU, Adrian | D128: 103-1 | E128: 54 | F128: 132 | G128: 2 | H128: 12 | I128: Day 1 | J128: 125
A129: 126 | B129: 126 | C129: GREEN, Kevin | D129: 105-1 | E129: 16 | F129: 129 | G129: 2 | H129: 11 | I129: Day 1 | J129: 126
A130: 127 | B130: 127 | C130: JACOBS, Richard | D130: 106-1 | E130: 32 | F130: 129 | G130: 2 | H130: 11 | I130: Day 1 | J130: 126
A131: 128 | B131: 128 | C131: FRARY, June | D131: 32-1 | E131: 103 | F131: 129 | G131: 2 | H131: 11 | I131: Day 1 | J131: 126
A132: 129 | B132: 129 | C132: McCOY, Ken | D132: 52-2 | E132: 63 | F132: 128 | G132: 2 | H132: 10.66666667 | I132: Day 2 | J132: 129
A133: 130 | B133: 130 | C133: BANCROFT, Dave | D133: 17-2 | E133: 114 | F133: 127 | G133: 2 | H133: 10.33333333 | I133: Day 2 | J133: 130
A134: 131 | B134: 131 | C134: HARVEY, John | D134: 111-1 | E134: 14 | F134: 126 | G134: 2 | H134: 10 | I134: Day 1 | J134: 131
A135: 132 | B135: 132 | C135: WHITE, Alan | D135: 54-2 | E135: 4 | F135: 121 | G135: 2 | H135: 8.333333333 | I135: Day 2 | J135: 132
A136: 133 | B136: 133 | C136: TOPPING, Mike | D136: 40-1 | E136: 6 | F136: 119 | G136: 2 | H136: 7.666666667 | I136: Day 1 | J136: 133
A137: 134 | B137: 134 | C137: BANHAM, Jason | D137: 15-1 | E137: 23 | F137: 118 | G137: 2 | H137: 7.333333333 | I137: Day 1 | J137: 134
A138: 135 | B138: 135 | C138: THORBURN, Paul | D138: 55-1 | E138: 73 | F138: 118 | G138: 2 | H138: 7.333333333 | I138: Day 1 | J138: 134
A139: 136 | B139: 136 | C139: KINGDON, Adam | D139: 20-2 | E139: 78 | F139: 118 | G139: 2 | H139: 7.333333333 | I139: Day 2 | J139: 134
A140: 137 | B140: 137 | C140: HIPPERSON, Richard | D140: 77-2 | E140: 27 | F140: 117 | G140: 2 | H140: 7 | I140: Day 2 | J140: 137
A141: 138 | B141: 138 | C141: ALDOUS, Brayden | D141: 10-2 | E141: 41 | F141: 117 | G141: 2 | H141: 7 | I141: Day 2 | J141: 137
A142: 139 | B142: 139 | C142: BROWN, Kay | D142: 102-2 | E142: 103 | F142: 117 | G142: 2 | H142: 7 | I142: Day 2 | J142: 137
A143: 140 | B143: 140 | C143: WALLIS, Craig | D143: 101-2 | E143: 15 | F143: 116 | G143: 2 | H143: 6.666666667 | I143: Day 2 | J143: 140
A144: 141 | B144: 141 | C144: SMITH, George | D144: 114-2 | E144: 56 | F144: 116 | G144: 2 | H144: 6.666666667 | I144: Day 2 | J144: 140
A145: 142 | B145: 142 | C145: BUY, Craig | D145: 119-2 | E145: 55 | F145: 114 | G145: 2 | H145: 6 | I145: Day 2 | J145: 142
A146: 143 | B146: 143 | C146: LING, Richard | D146: 81-2 | E146: 108 | F146: 113 | G146: 2 | H146: 5.666666667 | I146: Day 2 | J146: 143
A147: 144 | B147: 144 | C147: CRAWFORD, Vince | D147: 76-2 | E147: 91 | F147: 111 | G147: 2 | H147: 5 | I147: Day 2 | J147: 144
A148: 145 | B148: 145 | C148: ELLIOTT, Nathan | D148: 24-2 | E148: 3 | F148: 109 | G148: 2 | H148: 4.333333333 | I148: Day 2 | J148: 145
A149: 146 | B149: 146 | C149: BORDIANU, Adrian | D149: 103-2 | E149: 66 | F149: 106 | G149: 2 | H149: 3.333333333 | I149: Day 2 | J149: 146
A150: 147 | B150: 147 | C150: NELSON, Ian | D150: 53-1 | E150: 47 | F150: 105 | G150: 2 | H150: 3 | I150: Day 1 | J150: 147
A151: 148 | B151: 148 | C151: HARRISON, Paul | D151: 96-1 | E151: 41 | F151: 103 | G151: 2 | H151: 2.333333333 | I151: Day 1 | J151: 148
A152: 149 | B152: 149 | C152: SHORTHOUSE, Dave | D152: 118-2 | E152: 106 | F152: 100 | G152: 2 | H152: 1.333333333 | I152: Day 2 | J152: 149
A153: 150 | B153: 150 | C153: BENNINGTON, Tom | D153: 69-2 | E153: 117 | F153: 100 | G153: 2 | H153: 1.333333333 | I153: Day 2 | J153: 149
A154: 151 | B154: 151 | C154: GROSSMAN, Martin | D154: 67-1 | E154: 110 | F154: 98 | G154: 2 | H154: 0.6666666667 | I154: Day 1 | J154: 151
A155: 152 | B155: 152 | C155: NELSON, Ian | D155: 53-2 | E155: 68 | F155: 97 | G155: 2 | H155: 0.3333333333 | I155: Day 2 | J155: 152
A156: 153 | B156: 153 | C156: CHAMBERLAIN, Darren | D156: 21-2 | E156: 48 | F156: 96 | G156: 2 | H156: 0 | I156: Day 2 | J156: 153
A157: 154 | B157: 154 | C157: SMITH, Andy | D157: 31-1 | E157: 106 | F157: 94 | G157: 1 | H157: 15.33333333 | I157: Day 1 | J157: 154
A158: 155 | B158: 155 | C158: THORPE, Doug | D158: 104-2 | E158: 8 | F158: 92 | G158: 1 | H158: 14.66666667 | I158: Day 2 | J158: 155
A159: 156 | B159: 156 | C159: BRADSHAW, Daine | D159: 27-1 | E159: 12 | F159: 89 | G159: 1 | H159: 13.66666667 | I159: Day 1 | J159: 156
A160: 157 | B160: 157 | C160: LAY-FLURRIE, Matt | D160: 71-1 | E160: 96 | F160: 89 | G160: 1 | H160: 13.66666667 | I160: Day 1 | J160: 156
A161: 158 | B161: 158 | C161: NICHOLSON, Steven | D161: 6-1 | E161: 109 | F161: 89 | G161: 1 | H161: 13.66666667 | I161: Day 1 | J161: 156
A162: 159 | B162: 159 | C162: WOODS, Becky | D162: 63-2 | E162: 76 | F162: 89 | G162: 1 | H162: 13.66666667 | I162: Day 2 | J162: 156
A163: 160 | B163: 160 | C163: HART, Paul | D163: 72-1 | E163: 89 | F163: 88 | G163: 1 | H163: 13.33333333 | I163: Day 1 | J163: 160
A164: 161 | B164: 161 | C164: SELF, Bevan | D164: 8-2 | E164: 38 | F164: 88 | G164: 1 | H164: 13.33333333 | I164: Day 2 | J164: 160
A165: 162 | B165: 162 | C165: PROVINS, Colin | D165: 100-2 | E165: 59 | F165: 88 | G165: 1 | H165: 13.33333333 | I165: Day 2 | J165: 160
A166: 163 | B166: 163 | C166: STONE, Barry | D166: 79-2 | E166: 28 | F166: 87 | G166: 1 | H166: 13 | I166: Day 2 | J166: 163
A167: 164 | B167: 164 | C167: NICHOLSON, Steven | D167: 6-2 | E167: 29 | F167: 87 | G167: 1 | H167: 13 | I167: Day 2 | J167: 163
A168: 165 | B168: 165 | C168: DRAYTON, Simon | D168: 37-1 | E168: 39 | F168: 84 | G168: 1 | H168: 12 | I168: Day 1 | J168: 165
A169: 166 | B169: 166 | C169: BENNINGTON, Tom | D169: 69-1 | E169: 55 | F169: 84 | G169: 1 | H169: 12 | I169: Day 1 | J169: 165
A170: 167 | B170: 167 | C170: WHITE, Alan | D170: 54-1 | E170: 75 | F170: 84 | G170: 1 | H170: 12 | I170: Day 1 | J170: 165
A171: 168 | B171: 168 | C171: CARTER, John | D171: 66-1 | E171: 104 | F171: 83 | G171: 1 | H171: 11.66666667 | I171: Day 1 | J171: 168
A172: 169 | B172: 169 | C172: LITTLEWOOD, Stuart | D172: 14-2 | E172: 40 | F172: 82 | G172: 1 | H172: 11.33333333 | I172: Day 2 | J172: 169
A173: 170 | B173: 170 | C173: PRICE, Ben | D173: 34-2 | E173: 99 | F173: 82 | G173: 1 | H173: 11.33333333 | I173: Day 2 | J173: 169
A174: 171 | B174: 171 | C174: DAWBER, Simon | D174: 116-1 | E174: 53 | F174: 81 | G174: 1 | H174: 11 | I174: Day 1 | J174: 171
A175: 172 | B175: 172 | C175: SHAUL, Keith | D175: 98-1 | E175: 2 | F175: 80 | G175: 1 | H175: 10.66666667 | I175: Day 1 | J175: 172
A176: 173 | B176: 173 | C176: SMITH, Adele | D176: 62-2 | E176: 70 | F176: 80 | G176: 1 | H176: 10.66666667 | I176: Day 2 | J176: 172
A177: 174 | B177: 174 | C177: TOPPING, Mike | D177: 40-2 | E177: 97 | F177: 79 | G177: 1 | H177: 10.33333333 | I177: Day 2 | J177: 174
A178: 175 | B178: 175 | C178: TEMPLE, Billy | D178: 73-2 | E178: 45 | F178: 78 | G178: 1 | H178: 10 | I178: Day 2 | J178: 175
A179: 176 | B179: 176 | C179: SMITH, John | D179: 13-2 | E179: 58 | F179: 78 | G179: 1 | H179: 10 | I179: Day 2 | J179: 175
A180: 177 | B180: 177 | C180: TOPPING, Jack | D180: 110-2 | E180: 98 | F180: 78 | G180: 1 | H180: 10 | I180: Day 2 | J180: 175
A181: 178 | B181: 178 | C181: JARMAN, Rachael | D181: 85-2 | E181: 33 | F181: 77 | G181: 1 | H181: 9.666666667 | I181: Day 2 | J181: 178
A182: 179 | B182: 179 | C182: TOPPING, Jack | D182: 110-1 | E182: 5 | F182: 75 | G182: 1 | H182: 9 | I182: Day 1 | J182: 179
A183: 180 | B183: 180 | C183: McKENZIE, Brian | D183: 112-2 | E183: 1 | F183: 72 | G183: 1 | H183: 8 | I183: Day 2 | J183: 180
A184: 181 | B184: 181 | C184: DOY, Alan | D184: 88-2 | E184: 60 | F184: 71 | G184: 1 | H184: 7.666666667 | I184: Day 2 | J184: 181
A185: 182 | B185: 182 | C185: THOMAS, Tony | D185: 18-2 | E185: 73 | F185: 70 | G185: 1 | H185: 7.333333333 | I185: Day 2 | J185: 182
A186: 183 | B186: 183 | C186: SHAUL, Keith | D186: 98-2 | E186: 75 | F186: 70 | G186: 1 | H186: 7.333333333 | I186: Day 2 | J186: 182
A187: 184 | B187: 184 | C187: HADDOCK, Roy | D187: 45-2 | E187: 90 | F187: 70 | G187: 1 | H187: 7.333333333 | I187: Day 2 | J187: 182
A188: 185 | B188: 185 | C188: MILLS, Rodney | D188: 48-2 | E188: 18 | F188: 67 | G188: 1 | H188: 6.333333333 | I188: Day 2 | J188: 185
A189: 186 | B189: 186 | C189: ELEY, Kevin | D189: 82-2 | E189: 39 | F189: 67 | G189: 1 | H189: 6.333333333 | I189: Day 2 | J189: 185
A190: 187 | B190: 187 | C190: HADDOCK, Roy | D190: 45-1 | E190: 18 | F190: 66 | G190: 1 | H190: 6 | I190: Day 1 | J190: 187
A191: 188 | B191: 188 | C191: SHORTHOUSE, Dave | D191: 118-1 | E191: 52 | F191: 66 | G191: 1 | H191: 6 | I191: Day 1 | J191: 187
A192: 189 | B192: 189 | C192: BRADSHAW, Craig | D192: 117-2 | E192: 101 | F192: 66 | G192: 1 | H192: 6 | I192: Day 2 | J192: 187
A193: 190 | B193: 190 | C193: KING, Simon | D193: 78-2 | E193: 105 | F193: 66 | G193: 1 | H193: 6 | I193: Day 2 | J193: 187
A194: 191 | B194: 191 | C194: HUTCHINSON (BP), Dave | D194: 90-2 | E194: 50 | F194: 61 | G194: 1 | H194: 4.333333333 | I194: Day 2 | J194: 191
A195: 192 | B195: 192 | C195: HARVEY, Paul | D195: 75-2 | E195: 43 | F195: 56 | G195: 1 | H195: 2.666666667 | I195: Day 2 | J195: 192
A196: 193 | B196: 193 | C196: NANGLE, Karl | D196: 44-2 | E196: 53 | F196: 56 | G196: 1 | H196: 2.666666667 | I196: Day 2 | J196: 192
A197: 194 | B197: 194 | C197: BURR, Dave | D197: 30-2 | E197: 84 | F197: 56 | G197: 1 | H197: 2.666666667 | I197: Day 2 | J197: 192
A198: 195 | B198: 195 | C198: BATTLE, Ian | D198: 51-2 | E198: 96 | F198: 56 | G198: 1 | H198: 2.666666667 | I198: Day 2 | J198: 192
A199: 196 | B199: 196 | C199: HART, Paul | D199: 72-2 | E199: 31 | F199: 53 | G199: 1 | H199: 1.666666667 | I199: Day 2 | J199: 196
A200: 197 | B200: 197 | C200: BETTINSON, Charles | D200: 115-1 | E200: 4 | F200: 52 | G200: 1 | H200: 1.333333333 | I200: Day 1 | J200: 197
... 24 more rows

Sheet Day 1 Zones-All
B1: NORTH NORFOLK BASS FESTIVAL 2019 | F1: Day 1 ZONE A
A2: Zone Number | B2: Peg | C2: Name | D2: No. Fish | E2: Total Weight Points | F2: Weight | H2: Optional Pools | I2: Zone Position
F3: (lbs) | G3: (ozs)
A4: 1 | B4: 1 | C4: LINDFIELD, Bill | D4: 15 | E4: 370 | F4: 7 | G4: 11.33333333 | H4: X | I4: 1
A5: 2 | B5: 3 | C5: HUTSON, Garry | D5: 9 | E5: 269 | F5: 5 | G5: 9.666666667 | H5: X | I5: 2
A6: 3 | B6: 8 | C6: CRAWFORD, Vince | D6: 12 | E6: 208 | F6: 4 | G6: 5.333333333 | H6: X | I6: 3
A7: 4 | B7: 11 | C7: BRADSHAW, Craig | D7: 5 | E7: 205 | F7: 4 | G7: 4.333333333 | H7: X | I7: 4
A8: 5 | B8: 9 | C8: STORER, Paul | D8: 10 | E8: 162 | F8: 3 | G8: 6 | H8: X | I8: 5
A9: 6 | B9: 15 | C9: BENNETT, Rick | D9: 10 | E9: 146 | F9: 3 | G9: 0.6666666667 | H9: X | I9: 6
A10: 7 | B10: 10 | C10: EAGLE, Dan | D10: 5 | E10: 141 | F10: 2 | G10: 15 | H10: X | I10: 7
A11: 8 | B11: 14 | C11: HARVEY, John | D11: 6 | E11: 126 | F11: 2 | G11: 10 | H11: X | I11: 8
A12: 9 | B12: 6 | C12: TOPPING, Mike | D12: 5 | E12: 119 | F12: 2 | G12: 7.666666667 | H12: X | I12: 9
A13: 10 | B13: 12 | C13: BRADSHAW, Daine | D13: 5 | E13: 89 | F13: 1 | G13: 13.66666667 | I13: 10
A14: 11 | B14: 2 | C14: SHAUL, Keith | D14: 7 | E14: 80 | F14: 1 | G14: 10.66666667 | H14: X | I14: 11
A15: 12 | B15: 5 | C15: TOPPING, Jack | D15: 4 | E15: 75 | F15: 1 | G15: 9 | I15: 12
A16: 13 | B16: 4 | C16: BETTINSON, Charles | D16: 5 | E16: 52 | F16: 1 | G16: 1.333333333 | H16: X | I16: 13
A17: 14 | B17: 7 | C17: AUSTIN, John | D17: 4 | E17: 52 | F17: 1 | G17: 1.333333333 | H17: X | I17: 14
A18: 15 | B18: 13 | C18: KING, Simon | D18: 0 | E18: 0 | F18: 0 | G18: 0 | I18: 15
A19: 16
A20: 17
A21: 18
A22: 19
A23: 20
A24: 21
A25: 22
A26: 23
A27: 24
A28: 25
A29: 26
A30: 27
A31: 28
A32: 29
A33: 30
B34: NORTH NORFOLK BASS FESTIVAL 2019 | F34: Day 1 ZONE B
A35: Zone Number | B35: Peg | C35: Name | D35: No. Fish | E35: Total Weight Points | F35: Weight | H35: Optional Pools | I35: Zone Position
F36: (lbs) | G36: (ozs)
A37: 1 | B37: 29 | C37: RUSSELL, Shane | D37: 19 | E37: 761 | F37: 15 | G37: 13.66666667 | H37: X | I37: 1
A38: 2 | B38: 30 | C38: LINDFIELD, Heather | D38: 20 | E38: 278 | F38: 5 | G38: 12.66666667 | I38: 2
A39: 3 | B39: 27 | C39: AKESTER, Jack | D39: 7 | E39: 192 | F39: 4 | G39: 0 | H39: X | I39: 3
A40: 4 | B40: 22 | C40: BANHAM, Mark | D40: 10 | E40: 186 | F40: 3 | G40: 14 | I40: 4
A41: 5 | B41: 28 | C41: SMITH, Leon | D41: 10 | E41: 175 | F41: 3 | G41: 10.33333333 | H41: X | I41: 5
A42: 6 | B42: 26 | C42: BURR, Dave | D42: 6 | E42: 164 | F42: 3 | G42: 6.666666667 | H42: X | I42: 6
A43: 7 | B43: 25 | C43: DIAPER, Greg | D43: 6 | E43: 153 | F43: 3 | G43: 3 | H43: X | I43: 7
A44: 8 | B44: 21 | C44: SMITH, Adele | D44: 10 | E44: 141 | F44: 2 | G44: 15 | H44: X | I44: 8
A45: 9 | B45: 24 | C45: WATTS, Mike | D45: 7 | E45: 141 | F45: 2 | G45: 15 | H45: X | I45: 9
A46: 10 | B46: 16 | C46: GREEN, Kevin | D46: 7 | E46: 129 | F46: 2 | G46: 11 | H46: X | I46: 10
A47: 11 | B47: 23 | C47: BANHAM, Jason | D47: 5 | E47: 118 | F47: 2 | G47: 7.333333333 | H47: X | I47: 11
A48: 12 | B48: 18 | C48: HADDOCK, Roy | D48: 5 | E48: 66 | F48: 1 | G48: 6 | H48: X | I48: 12
A49: 13 | B49: 19 | C49: BANCROFT, Dave | D49: 3 | E49: 50 | F49: 1 | G49: 0.6666666667 | H49: X | I49: 13
A50: 14 | B50: 20 | C50: LING, Richard | D50: 2 | E50: 21 | F50: 0 | G50: 7 | H50: X | I50: 14
A51: 15 | B51: 17 | C51: DID NOT FISH 3 | D51: 0 | E51: 0 | F51: 0 | G51: 0 | I51: 15
A52: 16
A53: 17
A54: 18
A55: 19
A56: 20
A57: 21
A58: 22
A59: 23
A60: 24
A61: 25
A62: 26
A63: 27
A64: 28
A65: 29
A66: 30
B67: NORTH NORFOLK BASS FESTIVAL 2019 | F67: Day 1 ZONE C
A68: Zone Number | B68: Peg | C68: Name | D68: No. Fish | E68: Total Weight Points | F68: Weight | H68: Optional Pools | I68: Zone Position
F69: (lbs) | G69: (ozs)
A70: 1 | B70: 43 | C70: BOWELL, Ian | D70: 10 | E70: 507 | F70: 10 | G70: 9 | H70: X | I70: 1
A71: 2 | B71: 31 | C71: TURNER, Cameron | D71: 16 | E71: 394 | F71: 8 | G71: 3.333333333 | H71: X | I71: 2
A72: 3 | B72: 37 | C72: MEDLER, Gary | D72: 9 | E72: 353 | F72: 7 | G72: 5.666666667 | H72: X | I72: 3
A73: 4 | B73: 42 | C73: TUCK, Rob | D73: 13 | E73: 337 | F73: 7 | G73: 0.3333333333 | H73: X | I73: 4
A74: 5 | B74: 38 | C74: HARVEY, Mark | D74: 4 | E74: 263 | F74: 5 | G74: 7.666666667 | H74: X | I74: 5
A75: 6 | B75: 45 | C75: LAWN, Kimberley | D75: 8 | E75: 254 | F75: 5 | G75: 4.666666667 | I75: 6
A76: 7 | B76: 44 | C76: SHAUL, Jimmy | D76: 5 | E76: 226 | F76: 4 | G76: 11.33333333 | H76: X | I76: 7
A77: 8 | B77: 40 | C77: THOMAS, Tony | D77: 7 | E77: 184 | F77: 3 | G77: 13.33333333 | H77: X | I77: 8
A78: 9 | B78: 34 | C78: DENHOLM, Paul | D78: 13 | E78: 176 | F78: 3 | G78: 10.66666667 | H78: X | I78: 9
A79: 10 | B79: 36 | C79: STEBBINGS, Robert | D79: 7 | E79: 176 | F79: 3 | G79: 10.66666667 | H79: X | I79: 10
A80: 11 | B80: 33 | C80: PRICE, Ben | D80: 7 | E80: 156 | F80: 3 | G80: 4 | H80: X | I80: 11
A81: 12 | B81: 35 | C81: WOODS, Becky | D81: 8 | E81: 149 | F81: 3 | G81: 1.666666667 | H81: X | I81: 12
A82: 13 | B82: 32 | C82: JACOBS, Richard | D82: 7 | E82: 129 | F82: 2 | G82: 11 | H82: X | I82: 13
A83: 14 | B83: 41 | C83: HARRISON, Paul | D83: 4 | E83: 103 | F83: 2 | G83: 2.333333333 | H83: X | I83: 14
A84: 15 | B84: 39 | C84: DRAYTON, Simon | D84: 6 | E84: 84 | F84: 1 | G84: 12 | H84: X | I84: 15
A85: 16
A86: 17
A87: 18
A88: 19
A89: 20
A90: 21
A91: 22
A92: 23
A93: 24
A94: 25
A95: 26
A96: 27
A97: 28
A98: 29
A99: 30
B100: NORTH NORFOLK BASS FESTIVAL 2019 | F100: Day 1 ZONE D
A101: Zone Number | B101: Peg | C101: Name | D101: No. Fish | E101: Total Weight Points | F101: Weight | H101: Optional Pools | I101: Zone Position
F102: (lbs) | G102: (ozs)
A103: 1 | B103: 60 | C103: KINGDON, Adam | D103: 12 | E103: 318 | F103: 6 | G103: 10 | H103: X | I103: 1
A104: 2 | B104: 48 | C104: RANDELL, Henry | D104: 11 | E104: 305 | F104: 6 | G104: 5.666666667 | H104: X | I104: 2
A105: 3 | B105: 46 | C105: SPALL, Chris | D105: 9 | E105: 227 | F105: 4 | G105: 11.66666667 | H105: X | I105: 3
A106: 4 | B106: 59 | C106: METCALFE, Wendy | D106: 5 | E106: 178 | F106: 3 | G106: 11.33333333 | I106: 4
A107: 5 | B107: 57 | C107: BATTLE, Ian | D107: 8 | E107: 150 | F107: 3 | G107: 2 | H107: X | I107: 5
A108: 6 | B108: 54 | C108: BORDIANU, Adrian | D108: 6 | E108: 132 | F108: 2 | G108: 12 | H108: X | I108: 6
A109: 7 | B109: 47 | C109: NELSON, Ian | D109: 4 | E109: 105 | F109: 2 | G109: 3 | H109: X | I109: 7
A110: 8 | B110: 55 | C110: BENNINGTON, Tom | D110: 4 | E110: 84 | F110: 1 | G110: 12 | H110: X | I110: 8
A111: 9 | B111: 53 | C111: DAWBER, Simon | D111: 4 | E111: 81 | F111: 1 | G111: 11 | H111: X | I111: 9
A112: 10 | B112: 52 | C112: SHORTHOUSE, Dave | D112: 3 | E112: 66 | F112: 1 | G112: 6 | H112: X | I112: 10
A113: 11 | B113: 56 | C113: BENNINGTON, Graham | D113: 2 | E113: 44 | F113: 0 | G113: 14.66666667 | H113: X | I113: 11
A114: 12 | B114: 50 | C114: McCOY, Ken | D114: 1 | E114: 12 | F114: 0 | G114: 4 | H114: X | I114: 12
A115: 13 | B115: 58 | C115: BROWN, Kay | D115: 1 | E115: 7 | F115: 0 | G115: 2.333333333 | I115: 13
A116: 14 | B116: 49 | C116: LAMBERT, Ian | D116: 0 | E116: 0 | F116: 0 | G116: 0 | H116: X | I116: 15
A117: 15 | B117: 51 | C117: DID NOT FISH 4 | D117: 0 | E117: 0 | F117: 0 | G117: 0 | I117: 15
A118: 16
A119: 17
A120: 18
A121: 19
A122: 20
A123: 21
A124: 22
A125: 23
A126: 24
A127: 25
A128: 26
A129: 27
A130: 28
A131: 29
A132: 30
B133: NORTH NORFOLK BASS FESTIVAL 2019 | F133: Day 1 ZONE E
A134: Zone Number | B134: Peg | C134: Name | D134: No. Fish | E134: Total Weight Points | F134: Weight | H134: Optional Pools | I134: Zone Position
F135: (lbs) | G135: (ozs)
A136: 1 | B136: 66 | C136: SMITH, George | D136: 16 | E136: 931 | F136: 19 | G136: 6.333333333 | H136: X | I136: 1
A137: 2 | B137: 62 | C137: WRIGHT, Dave | D137: 18 | E137: 453 | F137: 9 | G137: 7 | H137: X | I137: 2
A138: 3 | B138: 65 | C138: ALDOUS, David | D138: 13 | E138: 414 | F138: 8 | G138: 10 | H138: X | I138: 3
A139: 4 | B139: 61 | C139: CANNELL, Chris | D139: 13 | E139: 384 | F139: 8 | G139: 0 | H139: X | I139: 4
A140: 5 | B140: 68 | C140: SELF, Bevan | D140: 11 | E140: 252 | F140: 5 | G140: 4 | H140: X | I140: 5
A141: 6 | B141: 70 | C141: THORPE, Doug | D141: 8 | E141: 251 | F141: 5 | G141: 3.666666667 | H141: X | I141: 6
A142: 7 | B142: 67 | C142: SMITH, John | D142: 13 | E142: 237 | F142: 4 | G142: 15 | H142: X | I142: 7
A143: 8 | B143: 74 | C143: WOODS, Graham | D143: 8 | E143: 235 | F143: 4 | G143: 14.33333333 | H143: X | I143: 8
A144: 9 | B144: 72 | C144: TEMPLE, Billy | D144: 12 | E144: 230 | F144: 4 | G144: 12.66666667 | H144: X | I144: 9
A145: 10 | B145: 64 | C145: ALDOUS, Brayden | D145: 8 | E145: 191 | F145: 3 | G145: 15.66666667 | I145: 10
A146: 11 | B146: 63 | C146: WARD, Mark | D146: 8 | E146: 183 | F146: 3 | G146: 13 | H146: X | I146: 11
A147: 12 | B147: 69 | C147: JARMAN, Wayne | D147: 11 | E147: 169 | F147: 3 | G147: 8.333333333 | H147: X | I147: 12
A148: 13 | B148: 71 | C148: WALLIS, Craig | D148: 11 | E148: 152 | F148: 3 | G148: 2.666666667 | I148: 13
A149: 14 | B149: 73 | C149: THORBURN, Paul | D149: 3 | E149: 118 | F149: 2 | G149: 7.333333333 | H149: X | I149: 14
A150: 15 | B150: 75 | C150: WHITE, Alan | D150: 6 | E150: 84 | F150: 1 | G150: 12 | H150: X | I150: 15
A151: 16
A152: 17
A153: 18
A154: 19
A155: 20
A156: 21
A157: 22
A158: 23
A159: 24
A160: 25
A161: 26
A162: 27
A163: 28
A164: 29
A165: 30
B166: NORTH NORFOLK BASS FESTIVAL 2019 | F166: Day 1 ZONE F
A167: Zone Number | B167: Peg | C167: Name | D167: No. Fish | E167: Total Weight Points | F167: Weight | H167: Optional Pools | I167: Zone Position
F168: (lbs) | G168: (ozs)
A169: 1 | B169: 83 | C169: ELLIOTT, Nathan | D169: 32 | E169: 496 | F169: 10 | G169: 5.333333333 | H169: X | I169: 1
A170: 2 | B170: 82 | C170: BRIGHTON, Tarrick | D170: 27 | E170: 304 | F170: 6 | G170: 5.333333333 | H170: X | I170: 2
A171: 3 | B171: 86 | C171: BURT, Richard | D171: 21 | E171: 275 | F171: 5 | G171: 11.66666667 | H171: X | I171: 3
A172: 4 | B172: 85 | C172: CLEMENT, Alby | D172: 12 | E172: 271 | F172: 5 | G172: 10.33333333 | H172: X | I172: 4
A173: 5 | B173: 76 | C173: ADAMS, Lee | D173: 12 | E173: 261 | F173: 5 | G173: 7 | H173: X | I173: 5
A174: 6 | B174: 77 | C174: BROCK, Peter | D174: 17 | E174: 226 | F174: 4 | G174: 11.33333333 | H174: X | I174: 6
A175: 7 | B175: 81 | C175: DIAPER, Barry | D175: 12 | E175: 214 | F175: 4 | G175: 7.333333333 | H175: X | I175: 7
A176: 8 | B176: 84 | C176: CHAMBERLAIN, Darren | D176: 16 | E176: 210 | F176: 4 | G176: 6 | H176: X | I176: 8
A177: 9 | B177: 78 | C177: HURCOMBE, Mark | D177: 13 | E177: 180 | F177: 3 | G177: 12 | H177: X | I177: 9
A178: 10 | B178: 90 | C178: LITTLEWOOD, Stuart | D178: 15 | E178: 157 | F178: 3 | G178: 4.333333333 | H178: X | I178: 10
A179: 11 | B179: 88 | C179: GOOCH, Mark | D179: 10 | E179: 154 | F179: 3 | G179: 3.333333333 | H179: X | I179: 11
A180: 12 | B180: 89 | C180: HART, Paul | D180: 8 | E180: 88 | F180: 1 | G180: 13.33333333 | H180: X | I180: 12
A181: 13 | B181: 87 | C181: DOY, Alan | D181: 3 | E181: 30 | F181: 0 | G181: 10 | H181: X | I181: 13
A182: 14 | B182: 79 | C182: DID NOT FISH 1 | D182: 0 | E182: 0 | F182: 0 | G182: 0 | I182: 15
A183: 15 | B183: 80 | C183: DID NOT FISH 2 | D183: 0 | E183: 0 | F183: 0 | G183: 0 | I183: 15
A184: 16
A185: 17
A186: 18
A187: 19
A188: 20
A189: 21
A190: 22
A191: 23
A192: 24
A193: 25
A194: 26
A195: 27
A196: 28
A197: 29
A198: 30
B199: NORTH NORFOLK BASS FESTIVAL 2019 | F199: Day 1 ZONE G
A200: Zone Number | B200: Peg | C200: Name | D200: No. Fish | E200: Total Weight Points | F200: Weight | H200: Optional Pools | I200: Zone Position
... 62 more rows

Sheet Day 2 Zones-All
B1: NORTH NORFOLK BASS FESTIVAL 2019 | F1: Day 2 ZONE A
A2: Zone Number | B2: Peg | C2: Name | D2: No. Fish | E2: Total Weight Points | F2: Weight | H2: Optional Pools | I2: Zone Position
F3: (lbs) | G3: (ozs)
A4: 1 | B4: 11 | C4: GASCOIGNE, Robert | D4: 11 | E4: 351 | F4: 7 | G4: 5 | H4: X | I4: 1
A5: 2 | B5: 2 | C5: WARD, Mark | D5: 12 | E5: 245 | F5: 5 | G5: 1.666666667 | H5: X | I5: 2
A6: 3 | B6: 10 | C6: DRIVER, Ed | D6: 10 | E6: 174 | F6: 3 | G6: 10 | H6: X | I6: 3
A7: 4 | B7: 4 | C7: WHITE, Alan | D7: 9 | E7: 121 | F7: 2 | G7: 8.333333333 | H7: X | I7: 4
A8: 5 | B8: 15 | C8: WALLIS, Craig | D8: 9 | E8: 116 | F8: 2 | G8: 6.666666667 | I8: 5
A9: 6 | B9: 3 | C9: ELLIOTT, Nathan | D9: 9 | E9: 109 | F9: 2 | G9: 4.333333333 | H9: X | I9: 6
A10: 7 | B10: 8 | C10: THORPE, Doug | D10: 7 | E10: 92 | F10: 1 | G10: 14.66666667 | H10: X | I10: 7
A11: 8 | B11: 1 | C11: McKENZIE, Brian | D11: 7 | E11: 72 | F11: 1 | G11: 8 | H11: X | I11: 8
A12: 9 | B12: 9 | C12: LAY-FLURRIE, Matt | D12: 3 | E12: 41 | F12: 0 | G12: 13.66666667 | H12: X | I12: 9
A13: 10 | B13: 7 | C13: ADAMS, Graham | D13: 2 | E13: 30 | F13: 0 | G13: 10 | H13: X | I13: 10
A14: 11 | B14: 13 | C14: JARMAN, Wayne | D14: 4 | E14: 26 | F14: 0 | G14: 8.666666667 | H14: X | I14: 11
A15: 12 | B15: 12 | C15: CARTER, John | D15: 3 | E15: 21 | F15: 0 | G15: 7 | H15: X | I15: 12
A16: 13 | B16: 14 | C16: RUSH, Billy | D16: 2 | E16: 15 | F16: 0 | G16: 5 | H16: X | I16: 13
A17: 14 | B17: 5 | C17: DID NOT FISH 1 | D17: 0 | E17: 0 | F17: 0 | G17: 0 | I17: 15
A18: 15 | B18: 6 | C18: DID NOT FISH 2 | D18: 0 | E18: 0 | F18: 0 | G18: 0 | I18: 15
A19: 16
A20: 17
A21: 18
A22: 19
A23: 20
A24: 21
A25: 22
A26: 23
A27: 24
A28: 25
A29: 26
A30: 27
A31: 28
A32: 29
A33: 30
B34: NORTH NORFOLK BASS FESTIVAL 2019 | F34: Day 2 ZONE B
A35: Zone Number | B35: Peg | C35: Name | D35: No. Fish | E35: Total Weight Points | F35: Weight | H35: Optional Pools | I35: Zone Position
F36: (lbs) | G36: (ozs)
A37: 1 | B37: 20 | C37: CLEMENT, Alby | D37: 18 | E37: 473 | F37: 9 | G37: 13.66666667 | H37: X | I37: 1
A38: 2 | B38: 22 | C38: FRARY, Charlie | D38: 7 | E38: 225 | F38: 4 | G38: 11 | H38: X | I38: 2
A39: 3 | B39: 23 | C39: HURCOMBE, Mark | D39: 8 | E39: 196 | F39: 4 | G39: 1.333333333 | H39: X | I39: 3
A40: 4 | B40: 30 | C40: HUGHES, Gary | D40: 6 | E40: 161 | F40: 3 | G40: 5.666666667 | H40: X | I40: 4
A41: 5 | B41: 19 | C41: GROSSMAN, Martin | D41: 5 | E41: 134 | F41: 2 | G41: 12.66666667 | H41: X | I41: 5
A42: 6 | B42: 27 | C42: HIPPERSON, Richard | D42: 8 | E42: 117 | F42: 2 | G42: 7 | H42: X | I42: 6
A43: 7 | B43: 28 | C43: STONE, Barry | D43: 10 | E43: 87 | F43: 1 | G43: 13 | H43: X | I43: 7
A44: 8 | B44: 29 | C44: NICHOLSON, Steven | D44: 5 | E44: 87 | F44: 1 | G44: 13 | H44: X | I44: 8
A45: 9 | B45: 18 | C45: MILLS, Rodney | D45: 7 | E45: 67 | F45: 1 | G45: 6.333333333 | H45: X | I45: 9
A46: 10 | B46: 21 | C46: FRARY, June | D46: 2 | E46: 45 | F46: 0 | G46: 15 | H46: X | I46: 10
A47: 11 | B47: 16 | C47: THORBURN, Paul | D47: 0 | E47: 0 | F47: 0 | G47: 0 | H47: X | I47: 15
A48: 12 | B48: 17 | C48: BRIGHTON, Tarrick | D48: 0 | E48: 0 | F48: 0 | G48: 0 | H48: X | I48: 15
A49: 13 | B49: 24 | C49: FATTIZZO, Tony | D49: 0 | E49: 0 | F49: 0 | G49: 0 | H49: X | I49: 15
A50: 14 | B50: 25 | C50: PARROTT, Ade | D50: 0 | E50: 0 | F50: 0 | G50: 0 | H50: X | I50: 15
A51: 15 | B51: 26 | C51: SHARMAN, Mark | D51: 0 | E51: 0 | F51: 0 | G51: 0 | H51: X | I51: 15
A52: 16
A53: 17
A54: 18
A55: 19
A56: 20
A57: 21
A58: 22
A59: 23
A60: 24
A61: 25
A62: 26
A63: 27
A64: 28
A65: 29
A66: 30
B67: NORTH NORFOLK BASS FESTIVAL 2019 | F67: Day 2 ZONE C
A68: Zone Number | B68: Peg | C68: Name | D68: No. Fish | E68: Total Weight Points | F68: Weight | H68: Optional Pools | I68: Zone Position
F69: (lbs) | G69: (ozs)
A70: 1 | B70: 36 | C70: WRIGHT, Dave | D70: 7 | E70: 213 | F70: 4 | G70: 7 | H70: X | I70: 1
A71: 2 | B71: 34 | C71: ADAMS, Lee | D71: 7 | E71: 169 | F71: 3 | G71: 8.333333333 | H71: X | I71: 2
A72: 3 | B72: 37 | C72: SMITH, Andy | D72: 5 | E72: 162 | F72: 3 | G72: 6 | H72: X | I72: 3
A73: 4 | B73: 35 | C73: CUTLER, Neil | D73: 6 | E73: 150 | F73: 3 | G73: 2 | H73: X | I73: 4
A74: 5 | B74: 41 | C74: ALDOUS, Brayden | D74: 6 | E74: 117 | F74: 2 | G74: 7 | I74: 5
A75: 6 | B75: 38 | C75: SELF, Bevan | D75: 6 | E75: 88 | F75: 1 | G75: 13.33333333 | H75: X | I75: 6
A76: 7 | B76: 40 | C76: LITTLEWOOD, Stuart | D76: 5 | E76: 82 | F76: 1 | G76: 11.33333333 | H76: X | I76: 7
A77: 8 | B77: 45 | C77: TEMPLE, Billy | D77: 4 | E77: 78 | F77: 1 | G77: 10 | H77: X | I77: 8
A78: 9 | B78: 33 | C78: JARMAN, Rachael | D78: 6 | E78: 77 | F78: 1 | G78: 9.666666667 | I78: 9
A79: 10 | B79: 39 | C79: ELEY, Kevin | D79: 4 | E79: 67 | F79: 1 | G79: 6.333333333 | H79: X | I79: 10
A80: 11 | B80: 43 | C80: HARVEY, Paul | D80: 4 | E80: 56 | F80: 1 | G80: 2.666666667 | H80: X | I80: 11
A81: 12 | B81: 31 | C81: HART, Paul | D81: 4 | E81: 53 | F81: 1 | G81: 1.666666667 | H81: X | I81: 12
A82: 13 | B82: 32 | C82: CREASEY, Shaun | D82: 1 | E82: 8 | F82: 0 | G82: 2.666666667 | H82: X | I82: 13
A83: 14 | B83: 42 | C83: ALDOUS, David | D83: 0 | E83: 0 | F83: 0 | G83: 0 | H83: X | I83: 15
A84: 15 | B84: 44 | C84: BROCK, Peter | D84: 0 | E84: 0 | F84: 0 | G84: 0 | H84: X | I84: 15
A85: 16
A86: 17
A87: 18
A88: 19
A89: 20
A90: 21
A91: 22
A92: 23
A93: 24
A94: 25
A95: 26
A96: 27
A97: 28
A98: 29
A99: 30
B100: NORTH NORFOLK BASS FESTIVAL 2019 | F100: Day 2 ZONE D
A101: Zone Number | B101: Peg | C101: Name | D101: No. Fish | E101: Total Weight Points | F101: Weight | H101: Optional Pools | I101: Zone Position
F102: (lbs) | G102: (ozs)
A103: 1 | B103: 47 | C103: WOODS, Graham | D103: 5 | E103: 311 | F103: 6 | G103: 7.666666667 | H103: X | I103: 1
A104: 2 | B104: 46 | C104: ADAMS, Stephen | D104: 12 | E104: 296 | F104: 6 | G104: 2.666666667 | H104: X | I104: 2
A105: 3 | B105: 54 | C105: CANNELL, Chris | D105: 6 | E105: 216 | F105: 4 | G105: 8 | H105: X | I105: 3
A106: 4 | B106: 57 | C106: BURT, Richard | D106: 7 | E106: 166 | F106: 3 | G106: 7.333333333 | H106: X | I106: 4
A107: 5 | B107: 56 | C107: SMITH, George | D107: 3 | E107: 116 | F107: 2 | G107: 6.666666667 | H107: X | I107: 5
A108: 6 | B108: 55 | C108: BUY, Craig | D108: 5 | E108: 114 | F108: 2 | G108: 6 | H108: X | I108: 6
A109: 7 | B109: 48 | C109: CHAMBERLAIN, Darren | D109: 7 | E109: 96 | F109: 2 | G109: 0 | H109: X | I109: 7
A110: 8 | B110: 59 | C110: PROVINS, Colin | D110: 8 | E110: 88 | F110: 1 | G110: 13.33333333 | H110: X | I110: 8
A111: 9 | B111: 58 | C111: SMITH, John | D111: 5 | E111: 78 | F111: 1 | G111: 10 | H111: X | I111: 9
A112: 10 | B112: 60 | C112: DOY, Alan | D112: 5 | E112: 71 | F112: 1 | G112: 7.666666667 | H112: X | I112: 10
A113: 11 | B113: 50 | C113: HUTCHINSON (BP), Dave | D113: 4 | E113: 61 | F113: 1 | G113: 4.333333333 | H113: X | I113: 11
A114: 12 | B114: 53 | C114: NANGLE, Karl | D114: 3 | E114: 56 | F114: 1 | G114: 2.666666667 | H114: X | I114: 12
A115: 13 | B115: 52 | C115: DIAPER, Barry | D115: 4 | E115: 50 | F115: 1 | G115: 0.6666666667 | H115: X | I115: 13
A116: 14 | B116: 49 | C116: GOOCH, Mark | D116: 0 | E116: 43 | F116: 0 | G116: 14.33333333 | H116: X | I116: 15
A117: 15 | B117: 51 | C117: SMART, Neil | D117: 2 | E117: 15 | F117: 0 | G117: 5 | H117: X | I117: 15
A118: 16
A119: 17
A120: 18
A121: 19
A122: 20
A123: 21
A124: 22
A125: 23
A126: 24
A127: 25
A128: 26
A129: 27
A130: 28
A131: 29
A132: 30
B133: NORTH NORFOLK BASS FESTIVAL 2019 | F133: Day 2 ZONE E
A134: Zone Number | B134: Peg | C134: Name | D134: No. Fish | E134: Total Weight Points | F134: Weight | H134: Optional Pools | I134: Zone Position
F135: (lbs) | G135: (ozs)
A136: 1 | B136: 61 | C136: HUTSON, Garry | D136: 7 | E136: 434 | F136: 9 | G136: 0.6666666667 | H136: X | I136: 1
A137: 2 | B137: 67 | C137: MEDLER, Gary | D137: 7 | E137: 252 | F137: 5 | G137: 4 | H137: X | I137: 2
A138: 3 | B138: 65 | C138: HARRISON, Paul | D138: 14 | E138: 216 | F138: 4 | G138: 8 | H138: X | I138: 3
A139: 4 | B139: 74 | C139: DIAPER, Greg | D139: 7 | E139: 178 | F139: 3 | G139: 11.33333333 | H139: X | I139: 4
A140: 5 | B140: 72 | C140: JACOBS, Richard | D140: 8 | E140: 177 | F140: 3 | G140: 11 | H140: X | I140: 5
A141: 6 | B141: 62 | C141: EAGLE, Dan | D141: 6 | E141: 153 | F141: 3 | G141: 3 | H141: X | I141: 6
A142: 7 | B142: 69 | C142: RUSSELL, Shane | D142: 8 | E142: 146 | F142: 3 | G142: 0.6666666667 | H142: X | I142: 7
A143: 8 | B143: 63 | C143: McCOY, Ken | D143: 8 | E143: 128 | F143: 2 | G143: 10.66666667 | H143: X | I143: 8
A144: 9 | B144: 66 | C144: BORDIANU, Adrian | D144: 8 | E144: 106 | F144: 2 | G144: 3.333333333 | H144: X | I144: 9
A145: 10 | B145: 68 | C145: NELSON, Ian | D145: 3 | E145: 97 | F145: 2 | G145: 0.3333333333 | H145: X | I145: 10
A146: 11 | B146: 70 | C146: SMITH, Adele | D146: 6 | E146: 80 | F146: 1 | G146: 10.66666667 | H146: X | I146: 11
A147: 12 | B147: 73 | C147: THOMAS, Tony | D147: 5 | E147: 70 | F147: 1 | G147: 7.333333333 | H147: X | I147: 12
A148: 13 | B148: 75 | C148: SHAUL, Keith | D148: 3 | E148: 70 | F148: 1 | G148: 7.333333333 | H148: X | I148: 13
A149: 14 | B149: 64 | C149: HARVEY, John | D149: 3 | E149: 22 | F149: 0 | G149: 7.333333333 | H149: X | I149: 14
A150: 15 | B150: 71 | C150: LAMBERT, Ian | D150: 0 | E150: 0 | F150: 0 | G150: 0 | H150: X | I150: 15
A151: 16
A152: 17
A153: 18
A154: 19
A155: 20
A156: 21
A157: 22
A158: 23
A159: 24
A160: 25
A161: 26
A162: 27
A163: 28
A164: 29
A165: 30
B166: NORTH NORFOLK BASS FESTIVAL 2019 | F166: Day 2 ZONE F
A167: Zone Number | B167: Peg | C167: Name | D167: No. Fish | E167: Total Weight Points | F167: Weight | H167: Optional Pools | I167: Zone Position
F168: (lbs) | G168: (ozs)
A169: 1 | B169: 81 | C169: TUCK, Rob | D169: 23 | E169: 524 | F169: 10 | G169: 14.66666667 | H169: X | I169: 1
A170: 2 | B170: 86 | C170: TURNER, Cameron | D170: 14 | E170: 280 | F170: 5 | G170: 13.33333333 | H170: X | I170: 2
A171: 3 | B171: 89 | C171: SPALL, Chris | D171: 18 | E171: 251 | F171: 5 | G171: 3.666666667 | H171: X | I171: 3
A172: 4 | B172: 80 | C172: STORER, Paul | D172: 14 | E172: 219 | F172: 4 | G172: 9 | H172: X | I172: 4
A173: 5 | B173: 88 | C173: BOWELL, Ian | D173: 14 | E173: 183 | F173: 3 | G173: 13 | H173: X | I173: 5
A174: 6 | B174: 82 | C174: BENNETT, Rick | D174: 14 | E174: 173 | F174: 3 | G174: 9.666666667 | H174: X | I174: 6
A175: 7 | B175: 83 | C175: AUSTIN, John | D175: 12 | E175: 171 | F175: 3 | G175: 9 | H175: X | I175: 7
A176: 8 | B176: 78 | C176: KINGDON, Adam | D176: 12 | E176: 118 | F176: 2 | G176: 7.333333333 | H176: X | I176: 8
A177: 9 | B177: 76 | C177: WOODS, Becky | D177: 6 | E177: 89 | F177: 1 | G177: 13.66666667 | H177: X | I177: 9
A178: 10 | B178: 90 | C178: HADDOCK, Roy | D178: 5 | E178: 70 | F178: 1 | G178: 7.333333333 | H178: X | I178: 10
A179: 11 | B179: 84 | C179: BURR, Dave | D179: 6 | E179: 56 | F179: 1 | G179: 2.666666667 | H179: X | I179: 11
A180: 12 | B180: 79 | C180: SMITH, Leon | D180: 3 | E180: 46 | F180: 0 | G180: 15.33333333 | H180: X | I180: 12
A181: 13 | B181: 87 | C181: DENHOLM, Paul | D181: 4 | E181: 37 | F181: 0 | G181: 12.33333333 | H181: X | I181: 13
A182: 14 | B182: 77 | C182: HARVEY, Mark | D182: 3 | E182: 18 | F182: 0 | G182: 6 | H182: X | I182: 14
A183: 15 | B183: 85 | C183: DID NOT FISH 4 | D183: 0 | E183: 0 | F183: 0 | G183: 0 | I183: 15
A184: 16
A185: 17
A186: 18
A187: 19
A188: 20
A189: 21
A190: 22
A191: 23
A192: 24
A193: 25
A194: 26
A195: 27
A196: 28
A197: 29
A198: 30
B199: NORTH NORFOLK BASS FESTIVAL 2019 | F199: Day 2 ZONE G
A200: Zone Number | B200: Peg | C200: Name | D200: No. Fish | E200: Total Weight Points | F200: Weight | H200: Optional Pools | I200: Zone Position
... 62 more rows

Sheet Day 1 Zones-Bass Fest
B1: NORTH NORFOLK BASS FESTIVAL 2019 | F1: Day 1 ZONE A
A2: Zone Number | B2: Peg | C2: Name | D2: No. Fish | E2: Total Weight Points | F2: Weight | H2: Optional Pools | I2: Day 1 Points | J2: Zone Position
F3: (lbs) | G3: (ozs)
A4: 1 | B4: 1 | C4: LINDFIELD, Bill | D4: 15 | E4: 370 | F4: 7 | G4: 11.33333333 | H4: X | I4: 1 | J4: 1
A5: 2 | B5: 3 | C5: HUTSON, Garry | D5: 9 | E5: 269 | F5: 5 | G5: 9.666666667 | H5: X | I5: 2 | J5: 2
A6: 3 | B6: 8 | C6: CRAWFORD, Vince | D6: 12 | E6: 208 | F6: 4 | G6: 5.333333333 | H6: X | I6: 3 | J6: 3
A7: 4 | B7: 11 | C7: BRADSHAW, Craig | D7: 5 | E7: 205 | F7: 4 | G7: 4.333333333 | H7: X | I7: 4 | J7: 4
A8: 5 | B8: 9 | C8: STORER, Paul | D8: 10 | E8: 162 | F8: 3 | G8: 6 | H8: X | I8: 5 | J8: 5
A9: 6 | B9: 15 | C9: BENNETT, Rick | D9: 10 | E9: 146 | F9: 3 | G9: 0.6666666667 | H9: X | I9: 6 | J9: 6
A10: 7 | B10: 10 | C10: EAGLE, Dan | D10: 5 | E10: 141 | F10: 2 | G10: 15 | H10: X | I10: 7 | J10: 7
A11: 8 | B11: 14 | C11: HARVEY, John | D11: 6 | E11: 126 | F11: 2 | G11: 10 | H11: X | I11: 8 | J11: 8
A12: 9 | B12: 6 | C12: TOPPING, Mike | D12: 5 | E12: 119 | F12: 2 | G12: 7.666666667 | H12: X | I12: 9 | J12: 9
A13: 10 | B13: 2 | C13: SHAUL, Keith | D13: 7 | E13: 80 | F13: 1 | G13: 10.66666667 | H13: X | I13: 11 | J13: 10
A14: 11 | B14: 4 | C14: BETTINSON, Charles | D14: 5 | E14: 52 | F14: 1 | G14: 1.333333333 | H14: X | I14: 13 | J14: 11
A15: 12 | B15: 7 | C15: AUSTIN, John | D15: 4 | E15: 52 | F15: 1 | G15: 1.333333333 | H15: X | I15: 14 | J15: 12
A16: 13 | B16: 13 | C16: KING, Simon | D16: 0 | E16: 0 | F16: 0 | G16: 0 | I16: 15 | J16: 15
B18: NORTH NORFOLK BASS FESTIVAL 2019 | F18: Day 1 ZONE B
A19: Zone Number | B19: Peg | C19: Name | D19: No. Fish | E19: Total Weight Points | F19: Weight | H19: Optional Pools | I19: Day 1 Points | J19: Zone Position
F20: (lbs) | G20: (ozs)
A21: 1 | B21: 29 | C21: RUSSELL, Shane | D21: 19 | E21: 761 | F21: 15 | G21: 13.66666667 | H21: X | I21: 1 | J21: 1
A22: 2 | B22: 27 | C22: AKESTER, Jack | D22: 7 | E22: 192 | F22: 4 | G22: 0 | H22: X | I22: 3 | J22: 2
A23: 3 | B23: 28 | C23: SMITH, Leon | D23: 10 | E23: 175 | F23: 3 | G23: 10.33333333 | H23: X | I23: 5 | J23: 3
A24: 4 | B24: 26 | C24: BURR, Dave | D24: 6 | E24: 164 | F24: 3 | G24: 6.666666667 | H24: X | I24: 6 | J24: 4
A25: 5 | B25: 25 | C25: DIAPER, Greg | D25: 6 | E25: 153 | F25: 3 | G25: 3 | H25: X | I25: 7 | J25: 5
A26: 6 | B26: 21 | C26: SMITH, Adele | D26: 10 | E26: 141 | F26: 2 | G26: 15 | H26: X | I26: 8 | J26: 6
A27: 7 | B27: 24 | C27: WATTS, Mike | D27: 7 | E27: 141 | F27: 2 | G27: 15 | H27: X | I27: 9 | J27: 7
A28: 8 | B28: 16 | C28: GREEN, Kevin | D28: 7 | E28: 129 | F28: 2 | G28: 11 | H28: X | I28: 10 | J28: 8
A29: 9 | B29: 23 | C29: BANHAM, Jason | D29: 5 | E29: 118 | F29: 2 | G29: 7.333333333 | H29: X | I29: 11 | J29: 9
A30: 10 | B30: 18 | C30: HADDOCK, Roy | D30: 5 | E30: 66 | F30: 1 | G30: 6 | H30: X | I30: 12 | J30: 10
A31: 11 | B31: 19 | C31: BANCROFT, Dave | D31: 3 | E31: 50 | F31: 1 | G31: 0.6666666667 | H31: X | I31: 13 | J31: 11
A32: 12 | B32: 20 | C32: LING, Richard | D32: 2 | E32: 21 | F32: 0 | G32: 7 | H32: X | I32: 14 | J32: 12
B33: NORTH NORFOLK BASS FESTIVAL 2019 | F33: Day 1 ZONE C
A34: Zone Number | B34: Peg | C34: Name | D34: No. Fish | E34: Total Weight Points | F34: Weight | H34: Optional Pools | I34: Day 1 Points | J34: Zone Position
F35: (lbs) | G35: (ozs)
A36: 1 | B36: 43 | C36: BOWELL, Ian | D36: 10 | E36: 507 | F36: 10 | G36: 9 | H36: X | I36: 1 | J36: 1
A37: 2 | B37: 31 | C37: TURNER, Cameron | D37: 16 | E37: 394 | F37: 8 | G37: 3.333333333 | H37: X | I37: 2 | J37: 2
A38: 3 | B38: 37 | C38: MEDLER, Gary | D38: 9 | E38: 353 | F38: 7 | G38: 5.666666667 | H38: X | I38: 3 | J38: 3
A39: 4 | B39: 42 | C39: TUCK, Rob | D39: 13 | E39: 337 | F39: 7 | G39: 0.3333333333 | H39: X | I39: 4 | J39: 4
A40: 5 | B40: 38 | C40: HARVEY, Mark | D40: 4 | E40: 263 | F40: 5 | G40: 7.666666667 | H40: X | I40: 5 | J40: 5
A41: 6 | B41: 44 | C41: SHAUL, Jimmy | D41: 5 | E41: 226 | F41: 4 | G41: 11.33333333 | H41: X | I41: 7 | J41: 6
A42: 7 | B42: 40 | C42: THOMAS, Tony | D42: 7 | E42: 184 | F42: 3 | G42: 13.33333333 | H42: X | I42: 8 | J42: 7
A43: 8 | B43: 34 | C43: DENHOLM, Paul | D43: 13 | E43: 176 | F43: 3 | G43: 10.66666667 | H43: X | I43: 9 | J43: 8
A44: 9 | B44: 36 | C44: STEBBINGS, Robert | D44: 7 | E44: 176 | F44: 3 | G44: 10.66666667 | H44: X | I44: 10 | J44: 9
A45: 10 | B45: 33 | C45: PRICE, Ben | D45: 7 | E45: 156 | F45: 3 | G45: 4 | H45: X | I45: 11 | J45: 10
A46: 11 | B46: 35 | C46: WOODS, Becky | D46: 8 | E46: 149 | F46: 3 | G46: 1.666666667 | H46: X | I46: 12 | J46: 11
A47: 12 | B47: 32 | C47: JACOBS, Richard | D47: 7 | E47: 129 | F47: 2 | G47: 11 | H47: X | I47: 13 | J47: 12
A48: 13 | B48: 41 | C48: HARRISON, Paul | D48: 4 | E48: 103 | F48: 2 | G48: 2.333333333 | H48: X | I48: 14 | J48: 13
A49: 14 | B49: 39 | C49: DRAYTON, Simon | D49: 6 | E49: 84 | F49: 1 | G49: 12 | H49: X | I49: 15 | J49: 14
B51: NORTH NORFOLK BASS FESTIVAL 2019 | F51: Day 1 ZONE D
A52: Zone Number | B52: Peg | C52: Name | D52: No. Fish | E52: Total Weight Points | F52: Weight | H52: Optional Pools | I52: Day 1 Points | J52: Zone Position
F53: (lbs) | G53: (ozs)
A54: 1 | B54: 60 | C54: KINGDON, Adam | D54: 12 | E54: 318 | F54: 6 | G54: 10 | H54: X | I54: 1 | J54: 1
A55: 2 | B55: 48 | C55: RANDELL, Henry | D55: 11 | E55: 305 | F55: 6 | G55: 5.666666667 | H55: X | I55: 2 | J55: 2
A56: 3 | B56: 46 | C56: SPALL, Chris | D56: 9 | E56: 227 | F56: 4 | G56: 11.66666667 | H56: X | I56: 3 | J56: 3
A57: 4 | B57: 57 | C57: BATTLE, Ian | D57: 8 | E57: 150 | F57: 3 | G57: 2 | H57: X | I57: 5 | J57: 4
A58: 5 | B58: 54 | C58: BORDIANU, Adrian | D58: 6 | E58: 132 | F58: 2 | G58: 12 | H58: X | I58: 6 | J58: 5
A59: 6 | B59: 47 | C59: NELSON, Ian | D59: 4 | E59: 105 | F59: 2 | G59: 3 | H59: X | I59: 7 | J59: 6
A60: 7 | B60: 55 | C60: BENNINGTON, Tom | D60: 4 | E60: 84 | F60: 1 | G60: 12 | H60: X | I60: 8 | J60: 7
A61: 8 | B61: 53 | C61: DAWBER, Simon | D61: 4 | E61: 81 | F61: 1 | G61: 11 | H61: X | I61: 9 | J61: 8
A62: 9 | B62: 52 | C62: SHORTHOUSE, Dave | D62: 3 | E62: 66 | F62: 1 | G62: 6 | H62: X | I62: 10 | J62: 9
A63: 10 | B63: 56 | C63: BENNINGTON, Graham | D63: 2 | E63: 44 | F63: 0 | G63: 14.66666667 | H63: X | I63: 11 | J63: 10
A64: 11 | B64: 50 | C64: McCOY, Ken | D64: 1 | E64: 12 | F64: 0 | G64: 4 | H64: X | I64: 12 | J64: 11
A65: 12 | B65: 49 | C65: LAMBERT, Ian | D65: 0 | E65: 0 | F65: 0 | G65: 0 | H65: X | I65: 15 | J65: 15
B66: NORTH NORFOLK BASS FESTIVAL 2019 | F66: Day 1 ZONE E
A67: Zone Number | B67: Peg | C67: Name | D67: No. Fish | E67: Total Weight Points | F67: Weight | H67: Optional Pools | I67: Day 1 Points | J67: Zone Position
F68: (lbs) | G68: (ozs)
A69: 1 | B69: 66 | C69: SMITH, George | D69: 16 | E69: 931 | F69: 19 | G69: 6.333333333 | H69: X | I69: 1 | J69: 1
A70: 2 | B70: 62 | C70: WRIGHT, Dave | D70: 18 | E70: 453 | F70: 9 | G70: 7 | H70: X | I70: 2 | J70: 2
A71: 3 | B71: 65 | C71: ALDOUS, David | D71: 13 | E71: 414 | F71: 8 | G71: 10 | H71: X | I71: 3 | J71: 3
A72: 4 | B72: 61 | C72: CANNELL, Chris | D72: 13 | E72: 384 | F72: 8 | G72: 0 | H72: X | I72: 4 | J72: 4
A73: 5 | B73: 68 | C73: SELF, Bevan | D73: 11 | E73: 252 | F73: 5 | G73: 4 | H73: X | I73: 5 | J73: 5
A74: 6 | B74: 70 | C74: THORPE, Doug | D74: 8 | E74: 251 | F74: 5 | G74: 3.666666667 | H74: X | I74: 6 | J74: 6
A75: 7 | B75: 67 | C75: SMITH, John | D75: 13 | E75: 237 | F75: 4 | G75: 15 | H75: X | I75: 7 | J75: 7
A76: 8 | B76: 74 | C76: WOODS, Graham | D76: 8 | E76: 235 | F76: 4 | G76: 14.33333333 | H76: X | I76: 8 | J76: 8
A77: 9 | B77: 72 | C77: TEMPLE, Billy | D77: 12 | E77: 230 | F77: 4 | G77: 12.66666667 | H77: X | I77: 9 | J77: 9
A78: 10 | B78: 63 | C78: WARD, Mark | D78: 8 | E78: 183 | F78: 3 | G78: 13 | H78: X | I78: 11 | J78: 10
A79: 11 | B79: 69 | C79: JARMAN, Wayne | D79: 11 | E79: 169 | F79: 3 | G79: 8.333333333 | H79: X | I79: 12 | J79: 11
A80: 12 | B80: 71 | C80: WALLIS, Craig | D80: 11 | E80: 152 | F80: 3 | G80: 2.666666667 | I80: 13 | J80: 12
A81: 13 | B81: 73 | C81: THORBURN, Paul | D81: 3 | E81: 118 | F81: 2 | G81: 7.333333333 | H81: X | I81: 14 | J81: 13
A82: 14 | B82: 75 | C82: WHITE, Alan | D82: 6 | E82: 84 | F82: 1 | G82: 12 | H82: X | I82: 15 | J82: 14
B84: NORTH NORFOLK BASS FESTIVAL 2019 | F84: Day 1 ZONE F
A85: Zone Number | B85: Peg | C85: Name | D85: No. Fish | E85: Total Weight Points | F85: Weight | H85: Optional Pools | I85: Day 1 Points | J85: Zone Position
F86: (lbs) | G86: (ozs)
A87: 1 | B87: 83 | C87: ELLIOTT, Nathan | D87: 32 | E87: 496 | F87: 10 | G87: 5.333333333 | H87: X | I87: 1 | J87: 1
A88: 2 | B88: 82 | C88: BRIGHTON, Tarrick | D88: 27 | E88: 304 | F88: 6 | G88: 5.333333333 | H88: X | I88: 2 | J88: 2
A89: 3 | B89: 86 | C89: BURT, Richard | D89: 21 | E89: 275 | F89: 5 | G89: 11.66666667 | H89: X | I89: 3 | J89: 3
A90: 4 | B90: 85 | C90: CLEMENT, Alby | D90: 12 | E90: 271 | F90: 5 | G90: 10.33333333 | H90: X | I90: 4 | J90: 4
A91: 5 | B91: 76 | C91: ADAMS, Lee | D91: 12 | E91: 261 | F91: 5 | G91: 7 | H91: X | I91: 5 | J91: 5
A92: 6 | B92: 77 | C92: BROCK, Peter | D92: 17 | E92: 226 | F92: 4 | G92: 11.33333333 | H92: X | I92: 6 | J92: 6
A93: 7 | B93: 81 | C93: DIAPER, Barry | D93: 12 | E93: 214 | F93: 4 | G93: 7.333333333 | H93: X | I93: 7 | J93: 7
A94: 8 | B94: 84 | C94: CHAMBERLAIN, Darren | D94: 16 | E94: 210 | F94: 4 | G94: 6 | H94: X | I94: 8 | J94: 8
A95: 9 | B95: 78 | C95: HURCOMBE, Mark | D95: 13 | E95: 180 | F95: 3 | G95: 12 | H95: X | I95: 9 | J95: 9
A96: 10 | B96: 90 | C96: LITTLEWOOD, Stuart | D96: 15 | E96: 157 | F96: 3 | G96: 4.333333333 | H96: X | I96: 10 | J96: 10
A97: 11 | B97: 88 | C97: GOOCH, Mark | D97: 10 | E97: 154 | F97: 3 | G97: 3.333333333 | H97: X | I97: 11 | J97: 11
A98: 12 | B98: 89 | C98: HART, Paul | D98: 8 | E98: 88 | F98: 1 | G98: 13.33333333 | H98: X | I98: 12 | J98: 12
A99: 13 | B99: 87 | C99: DOY, Alan | D99: 3 | E99: 30 | F99: 0 | G99: 10 | H99: X | I99: 13 | J99: 13
B100: NORTH NORFOLK BASS FESTIVAL 2019 | F100: Day 1 ZONE G
A101: Zone Number | B101: Peg | C101: Name | D101: No. Fish | E101: Total Weight Points | F101: Weight | H101: Optional Pools | I101: Day 1 Points | J101: Zone Position
F102: (lbs) | G102: (ozs)
A103: 1 | B103: 97 | C103: BUY, Craig | D103: 18 | E103: 366 | F103: 7 | G103: 10 | H103: X | I103: 1 | J103: 1
A104: 2 | B104: 105 | C104: HUTCHINSON (BP), Dave | D104: 15 | E104: 338 | F104: 7 | G104: 0.6666666667 | H104: X | I104: 2 | J104: 2
A105: 3 | B105: 94 | C105: ADAMS, Stephen | D105: 16 | E105: 315 | F105: 6 | G105: 9 | H105: X | I105: 3 | J105: 3
A106: 4 | B106: 99 | C106: NANGLE, Karl | D106: 18 | E106: 263 | F106: 5 | G106: 7.666666667 | H106: X | I106: 4 | J106: 4
A107: 5 | B107: 98 | C107: SHARMAN, Mark | D107: 15 | E107: 227 | F107: 4 | G107: 11.66666667 | H107: X | I107: 5 | J107: 5
A108: 6 | B108: 92 | C108: STONE, Barry | D108: 18 | E108: 186 | F108: 3 | G108: 14 | H108: X | I108: 7 | J108: 6
A109: 7 | B109: 91 | C109: GASCOIGNE, Robert | D109: 16 | E109: 186 | F109: 3 | G109: 14 | H109: X | I109: 8 | J109: 7
A110: 8 | B110: 95 | C110: SMART, Neil | D110: 16 | E110: 172 | F110: 3 | G110: 9.333333333 | H110: X | I110: 9 | J110: 8
A111: 9 | B111: 102 | C111: FRARY, Charlie | D111: 15 | E111: 154 | F111: 3 | G111: 3.333333333 | H111: X | I111: 10 | J111: 9
A112: 10 | B112: 93 | C112: ADAMS, Graham | D112: 13 | E112: 154 | F112: 3 | G112: 3.333333333 | H112: X | I112: 11 | J112: 10
A113: 11 | B113: 101 | C113: RUSH, Billy | D113: 9 | E113: 141 | F113: 2 | G113: 15 | H113: X | I113: 12 | J113: 11
A114: 12 | B114: 103 | C114: FRARY, June | D114: 12 | E114: 129 | F114: 2 | G114: 11 | H114: X | I114: 13 | J114: 12
A115: 13 | B115: 96 | C115: LAY-FLURRIE, Matt | D115: 9 | E115: 89 | F115: 1 | G115: 13.66666667 | H115: X | I115: 14 | J115: 13
A116: 14 | B116: 104 | C116: CARTER, John | D116: 6 | E116: 83 | F116: 1 | G116: 11.66666667 | H116: X | I116: 15 | J116: 14
B118: NORTH NORFOLK BASS FESTIVAL 2019 | F118: Day 1 ZONE H
A119: Zone Number | B119: Peg | C119: Name | D119: No. Fish | E119: Total Weight Points | F119: Weight | H119: Optional Pools | I119: Day 1 Points | J119: Zone Position
F120: (lbs) | G120: (ozs)
A121: 1 | B121: 117 | C121: PROVINS, Colin | D121: 32 | E121: 786 | F121: 16 | G121: 6 | H121: X | I121: 1 | J121: 1
A122: 2 | B122: 114 | C122: CUTLER, Neil | D122: 31 | E122: 525 | F122: 10 | G122: 15 | H122: X | I122: 2 | J122: 2
A123: 3 | B123: 119 | C123: HUGHES, Gary | D123: 20 | E123: 466 | F123: 9 | G123: 11.33333333 | H123: X | I123: 3 | J123: 3
A124: 4 | B124: 120 | C124: ELEY, Kevin | D124: 26 | E124: 373 | F124: 7 | G124: 12.33333333 | H124: X | I124: 4 | J124: 4
A125: 5 | B125: 107 | C125: DRIVER, Ed | D125: 14 | E125: 367 | F125: 7 | G125: 10.33333333 | H125: X | I125: 5 | J125: 5
A126: 6 | B126: 118 | C126: McKENZIE, Brian | D126: 21 | E126: 283 | F126: 5 | G126: 14.33333333 | H126: X | I126: 6 | J126: 6
A127: 7 | B127: 115 | C127: HIPPERSON, Richard | D127: 24 | E127: 269 | F127: 5 | G127: 9.666666667 | H127: X | I127: 7 | J127: 7
A128: 8 | B128: 111 | C128: FATTIZZO, Tony | D128: 14 | E128: 254 | F128: 5 | G128: 4.666666667 | H128: X | I128: 8 | J128: 8
A129: 9 | B129: 112 | C129: PARROTT, Ade | D129: 9 | E129: 150 | F129: 3 | G129: 2 | H129: X | I129: 9 | J129: 9
A130: 10 | B130: 116 | C130: HARVEY, Paul | D130: 8 | E130: 136 | F130: 2 | G130: 13.33333333 | H130: X | I130: 10 | J130: 10
A131: 11 | B131: 110 | C131: GROSSMAN, Martin | D131: 4 | E131: 98 | F131: 2 | G131: 0.6666666667 | H131: X | I131: 11 | J131: 11
A132: 12 | B132: 106 | C132: SMITH, Andy | D132: 9 | E132: 94 | F132: 1 | G132: 15.33333333 | H132: X | I132: 12 | J132: 12
A133: 13 | B133: 109 | C133: NICHOLSON, Steven | D133: 4 | E133: 89 | F133: 1 | G133: 13.66666667 | H133: X | I133: 13 | J133: 13
A134: 14 | B134: 108 | C134: CREASEY, Shaun | D134: 5 | E134: 42 | F134: 0 | G134: 14 | H134: X | I134: 14 | J134: 14

Sheet Day 2 Zones-Bast Fest
B1: NORTH NORFOLK BASS FESTIVAL 2019 | F1: Day 2 ZONE A
A2: Zone Number | B2: Peg | C2: Name | D2: No. Fish | E2: Total Weight Points | F2: Weight | H2: Optional Pools | I2: Day 2 Points | J2: Zone Position
F3: (lbs) | G3: (ozs)
A4: 1 | B4: 11 | C4: GASCOIGNE, Robert | D4: 11 | E4: 351 | F4: 7 | G4: 5 | H4: X | I4: 1 | J4: 1
A5: 2 | B5: 2 | C5: WARD, Mark | D5: 12 | E5: 245 | F5: 5 | G5: 1.666666667 | H5: X | I5: 2 | J5: 2
A6: 3 | B6: 10 | C6: DRIVER, Ed | D6: 10 | E6: 174 | F6: 3 | G6: 10 | H6: X | I6: 3 | J6: 3
A7: 4 | B7: 4 | C7: WHITE, Alan | D7: 9 | E7: 121 | F7: 2 | G7: 8.333333333 | H7: X | I7: 4 | J7: 4
A8: 5 | B8: 15 | C8: WALLIS, Craig | D8: 9 | E8: 116 | F8: 2 | G8: 6.666666667 | I8: 5 | J8: 5
A9: 6 | B9: 3 | C9: ELLIOTT, Nathan | D9: 9 | E9: 109 | F9: 2 | G9: 4.333333333 | H9: X | I9: 6 | J9: 6
A10: 7 | B10: 8 | C10: THORPE, Doug | D10: 7 | E10: 92 | F10: 1 | G10: 14.66666667 | H10: X | I10: 7 | J10: 7
A11: 8 | B11: 1 | C11: McKENZIE, Brian | D11: 7 | E11: 72 | F11: 1 | G11: 8 | H11: X | I11: 8 | J11: 8
A12: 9 | B12: 9 | C12: LAY-FLURRIE, Matt | D12: 3 | E12: 41 | F12: 0 | G12: 13.66666667 | H12: X | I12: 9 | J12: 9
A13: 10 | B13: 7 | C13: ADAMS, Graham | D13: 2 | E13: 30 | F13: 0 | G13: 10 | H13: X | I13: 10 | J13: 10
A14: 11 | B14: 13 | C14: JARMAN, Wayne | D14: 4 | E14: 26 | F14: 0 | G14: 8.666666667 | H14: X | I14: 11 | J14: 11
A15: 12 | B15: 12 | C15: CARTER, John | D15: 3 | E15: 21 | F15: 0 | G15: 7 | H15: X | I15: 12 | J15: 12
A16: 13 | B16: 14 | C16: RUSH, Billy | D16: 2 | E16: 15 | F16: 0 | G16: 5 | H16: X | I16: 13 | J16: 13
B18: NORTH NORFOLK BASS FESTIVAL 2019 | F18: Day 2 ZONE B
A19: Zone Number | B19: Peg | C19: Name | D19: No. Fish | E19: Total Weight Points | F19: Weight | H19: Optional Pools | I19: Day 2 Points | J19: Zone Position
F20: (lbs) | G20: (ozs)
A21: 1 | B21: 20 | C21: CLEMENT, Alby | D21: 18 | E21: 473 | F21: 9 | G21: 13.66666667 | H21: X | I21: 1 | J21: 1
A22: 2 | B22: 22 | C22: FRARY, Charlie | D22: 7 | E22: 225 | F22: 4 | G22: 11 | H22: X | I22: 2 | J22: 2
A23: 3 | B23: 23 | C23: HURCOMBE, Mark | D23: 8 | E23: 196 | F23: 4 | G23: 1.333333333 | H23: X | I23: 3 | J23: 3
A24: 4 | B24: 30 | C24: HUGHES, Gary | D24: 6 | E24: 161 | F24: 3 | G24: 5.666666667 | H24: X | I24: 4 | J24: 4
A25: 5 | B25: 19 | C25: GROSSMAN, Martin | D25: 5 | E25: 134 | F25: 2 | G25: 12.66666667 | H25: X | I25: 5 | J25: 5
A26: 6 | B26: 27 | C26: HIPPERSON, Richard | D26: 8 | E26: 117 | F26: 2 | G26: 7 | H26: X | I26: 6 | J26: 6
A27: 7 | B27: 28 | C27: STONE, Barry | D27: 10 | E27: 87 | F27: 1 | G27: 13 | H27: X | I27: 7 | J27: 7
A28: 8 | B28: 29 | C28: NICHOLSON, Steven | D28: 5 | E28: 87 | F28: 1 | G28: 13 | H28: X | I28: 8 | J28: 8
A29: 9 | B29: 21 | C29: FRARY, June | D29: 2 | E29: 45 | F29: 0 | G29: 15 | H29: X | I29: 10 | J29: 9
A30: 10 | B30: 16 | C30: THORBURN, Paul | D30: 0 | E30: 0 | F30: 0 | G30: 0 | H30: X | I30: 15 | J30: 15
A31: 11 | B31: 17 | C31: BRIGHTON, Tarrick | D31: 0 | E31: 0 | F31: 0 | G31: 0 | H31: X | I31: 15 | J31: 15
A32: 12 | B32: 24 | C32: FATTIZZO, Tony | D32: 0 | E32: 0 | F32: 0 | G32: 0 | H32: X | I32: 15 | J32: 15
A33: 13 | B33: 25 | C33: PARROTT, Ade | D33: 0 | E33: 0 | F33: 0 | G33: 0 | H33: X | I33: 15 | J33: 15
A34: 14 | B34: 26 | C34: SHARMAN, Mark | D34: 0 | E34: 0 | F34: 0 | G34: 0 | H34: X | I34: 15 | J34: 15
A35: 15
B36: NORTH NORFOLK BASS FESTIVAL 2019 | F36: Day 2 ZONE C
A37: Zone Number | B37: Peg | C37: Name | D37: No. Fish | E37: Total Weight Points | F37: Weight | H37: Optional Pools | I37: Day 2 Points | J37: Zone Position
F38: (lbs) | G38: (ozs)
A39: 1 | B39: 36 | C39: WRIGHT, Dave | D39: 7 | E39: 213 | F39: 4 | G39: 7 | H39: X | I39: 1 | J39: 1
A40: 2 | B40: 34 | C40: ADAMS, Lee | D40: 7 | E40: 169 | F40: 3 | G40: 8.333333333 | H40: X | I40: 2 | J40: 2
A41: 3 | B41: 37 | C41: SMITH, Andy | D41: 5 | E41: 162 | F41: 3 | G41: 6 | H41: X | I41: 3 | J41: 3
A42: 4 | B42: 35 | C42: CUTLER, Neil | D42: 6 | E42: 150 | F42: 3 | G42: 2 | H42: X | I42: 4 | J42: 4
A43: 5 | B43: 38 | C43: SELF, Bevan | D43: 6 | E43: 88 | F43: 1 | G43: 13.33333333 | H43: X | I43: 6 | J43: 5
A44: 6 | B44: 40 | C44: LITTLEWOOD, Stuart | D44: 5 | E44: 82 | F44: 1 | G44: 11.33333333 | H44: X | I44: 7 | J44: 6
A45: 7 | B45: 45 | C45: TEMPLE, Billy | D45: 4 | E45: 78 | F45: 1 | G45: 10 | H45: X | I45: 8 | J45: 7
A46: 8 | B46: 39 | C46: ELEY, Kevin | D46: 4 | E46: 67 | F46: 1 | G46: 6.333333333 | H46: X | I46: 10 | J46: 8
A47: 9 | B47: 43 | C47: HARVEY, Paul | D47: 4 | E47: 56 | F47: 1 | G47: 2.666666667 | H47: X | I47: 11 | J47: 9
A48: 10 | B48: 31 | C48: HART, Paul | D48: 4 | E48: 53 | F48: 1 | G48: 1.666666667 | H48: X | I48: 12 | J48: 10
A49: 11 | B49: 32 | C49: CREASEY, Shaun | D49: 1 | E49: 8 | F49: 0 | G49: 2.666666667 | H49: X | I49: 13 | J49: 11
A50: 12 | B50: 42 | C50: ALDOUS, David | D50: 0 | E50: 0 | F50: 0 | G50: 0 | H50: X | I50: 15 | J50: 15
A51: 13 | B51: 44 | C51: BROCK, Peter | D51: 0 | E51: 0 | F51: 0 | G51: 0 | H51: X | I51: 15 | J51: 15
B53: NORTH NORFOLK BASS FESTIVAL 2019 | F53: Day 2 ZONE D
A54: Zone Number | B54: Peg | C54: Name | D54: No. Fish | E54: Total Weight Points | F54: Weight | H54: Optional Pools | I54: Day 2 Points | J54: Zone Position
F55: (lbs) | G55: (ozs)
A56: 1 | B56: 47 | C56: WOODS, Graham | D56: 5 | E56: 311 | F56: 6 | G56: 7.666666667 | H56: X | I56: 1 | J56: 1
A57: 2 | B57: 46 | C57: ADAMS, Stephen | D57: 12 | E57: 296 | F57: 6 | G57: 2.666666667 | H57: X | I57: 2 | J57: 2
A58: 3 | B58: 54 | C58: CANNELL, Chris | D58: 6 | E58: 216 | F58: 4 | G58: 8 | H58: X | I58: 3 | J58: 3
A59: 4 | B59: 57 | C59: BURT, Richard | D59: 7 | E59: 166 | F59: 3 | G59: 7.333333333 | H59: X | I59: 4 | J59: 4
A60: 5 | B60: 56 | C60: SMITH, George | D60: 3 | E60: 116 | F60: 2 | G60: 6.666666667 | H60: X | I60: 5 | J60: 5
A61: 6 | B61: 55 | C61: BUY, Craig | D61: 5 | E61: 114 | F61: 2 | G61: 6 | H61: X | I61: 6 | J61: 6
A62: 7 | B62: 48 | C62: CHAMBERLAIN, Darren | D62: 7 | E62: 96 | F62: 2 | G62: 0 | H62: X | I62: 7 | J62: 7
A63: 8 | B63: 59 | C63: PROVINS, Colin | D63: 8 | E63: 88 | F63: 1 | G63: 13.33333333 | H63: X | I63: 8 | J63: 8
A64: 9 | B64: 58 | C64: SMITH, John | D64: 5 | E64: 78 | F64: 1 | G64: 10 | H64: X | I64: 9 | J64: 9
A65: 10 | B65: 60 | C65: DOY, Alan | D65: 5 | E65: 71 | F65: 1 | G65: 7.666666667 | H65: X | I65: 10 | J65: 10
A66: 11 | B66: 50 | C66: HUTCHINSON (BP), Dave | D66: 4 | E66: 61 | F66: 1 | G66: 4.333333333 | H66: X | I66: 11 | J66: 11
A67: 12 | B67: 53 | C67: NANGLE, Karl | D67: 3 | E67: 56 | F67: 1 | G67: 2.666666667 | H67: X | I67: 12 | J67: 12
A68: 13 | B68: 52 | C68: DIAPER, Barry | D68: 4 | E68: 50 | F68: 1 | G68: 0.6666666667 | H68: X | I68: 13 | J68: 13
A69: 14 | B69: 49 | C69: GOOCH, Mark | D69: 0 | E69: 43 | F69: 0 | G69: 14.33333333 | H69: X | I69: 15 | J69: 15
A70: 15 | B70: 51 | C70: SMART, Neil | D70: 2 | E70: 15 | F70: 0 | G70: 5 | H70: X | I70: 15 | J70: 15
B71: NORTH NORFOLK BASS FESTIVAL 2019 | F71: Day 2 ZONE E
A72: Zone Number | B72: Peg | C72: Name | D72: No. Fish | E72: Total Weight Points | F72: Weight | H72: Optional Pools | I72: Day 2 Points | J72: Zone Position
F73: (lbs) | G73: (ozs)
A74: 1 | B74: 61 | C74: HUTSON, Garry | D74: 7 | E74: 434 | F74: 9 | G74: 0.6666666667 | H74: X | I74: 1 | J74: 1
A75: 2 | B75: 67 | C75: MEDLER, Gary | D75: 7 | E75: 252 | F75: 5 | G75: 4 | H75: X | I75: 2 | J75: 2
A76: 3 | B76: 65 | C76: HARRISON, Paul | D76: 14 | E76: 216 | F76: 4 | G76: 8 | H76: X | I76: 3 | J76: 3
A77: 4 | B77: 74 | C77: DIAPER, Greg | D77: 7 | E77: 178 | F77: 3 | G77: 11.33333333 | H77: X | I77: 4 | J77: 4
A78: 5 | B78: 72 | C78: JACOBS, Richard | D78: 8 | E78: 177 | F78: 3 | G78: 11 | H78: X | I78: 5 | J78: 5
A79: 6 | B79: 62 | C79: EAGLE, Dan | D79: 6 | E79: 153 | F79: 3 | G79: 3 | H79: X | I79: 6 | J79: 6
A80: 7 | B80: 69 | C80: RUSSELL, Shane | D80: 8 | E80: 146 | F80: 3 | G80: 0.6666666667 | H80: X | I80: 7 | J80: 7
A81: 8 | B81: 63 | C81: McCOY, Ken | D81: 8 | E81: 128 | F81: 2 | G81: 10.66666667 | H81: X | I81: 8 | J81: 8
A82: 9 | B82: 66 | C82: BORDIANU, Adrian | D82: 8 | E82: 106 | F82: 2 | G82: 3.333333333 | H82: X | I82: 9 | J82: 9
A83: 10 | B83: 68 | C83: NELSON, Ian | D83: 3 | E83: 97 | F83: 2 | G83: 0.3333333333 | H83: X | I83: 10 | J83: 10
A84: 11 | B84: 70 | C84: SMITH, Adele | D84: 6 | E84: 80 | F84: 1 | G84: 10.66666667 | H84: X | I84: 11 | J84: 11
A85: 12 | B85: 73 | C85: THOMAS, Tony | D85: 5 | E85: 70 | F85: 1 | G85: 7.333333333 | H85: X | I85: 12 | J85: 12
A86: 13 | B86: 75 | C86: SHAUL, Keith | D86: 3 | E86: 70 | F86: 1 | G86: 7.333333333 | H86: X | I86: 13 | J86: 13
A87: 14 | B87: 64 | C87: HARVEY, John | D87: 3 | E87: 22 | F87: 0 | G87: 7.333333333 | H87: X | I87: 14 | J87: 14
A88: 15 | B88: 71 | C88: LAMBERT, Ian | D88: 0 | E88: 0 | F88: 0 | G88: 0 | H88: X | I88: 15 | J88: 15
B90: NORTH NORFOLK BASS FESTIVAL 2019 | F90: Day 2 ZONE F
A91: Zone Number | B91: Peg | C91: Name | D91: No. Fish | E91: Total Weight Points | F91: Weight | H91: Optional Pools | I91: Day 2 Points | J91: Zone Position
F92: (lbs) | G92: (ozs)
A93: 1 | B93: 81 | C93: TUCK, Rob | D93: 23 | E93: 524 | F93: 10 | G93: 14.66666667 | H93: X | I93: 1 | J93: 1
A94: 2 | B94: 86 | C94: TURNER, Cameron | D94: 14 | E94: 280 | F94: 5 | G94: 13.33333333 | H94: X | I94: 2 | J94: 2
A95: 3 | B95: 89 | C95: SPALL, Chris | D95: 18 | E95: 251 | F95: 5 | G95: 3.666666667 | H95: X | I95: 3 | J95: 3
A96: 4 | B96: 80 | C96: STORER, Paul | D96: 14 | E96: 219 | F96: 4 | G96: 9 | H96: X | I96: 4 | J96: 4
A97: 5 | B97: 88 | C97: BOWELL, Ian | D97: 14 | E97: 183 | F97: 3 | G97: 13 | H97: X | I97: 5 | J97: 5
A98: 6 | B98: 82 | C98: BENNETT, Rick | D98: 14 | E98: 173 | F98: 3 | G98: 9.666666667 | H98: X | I98: 6 | J98: 6
A99: 7 | B99: 83 | C99: AUSTIN, John | D99: 12 | E99: 171 | F99: 3 | G99: 9 | H99: X | I99: 7 | J99: 7
A100: 8 | B100: 78 | C100: KINGDON, Adam | D100: 12 | E100: 118 | F100: 2 | G100: 7.333333333 | H100: X | I100: 8 | J100: 8
A101: 9 | B101: 76 | C101: WOODS, Becky | D101: 6 | E101: 89 | F101: 1 | G101: 13.66666667 | H101: X | I101: 9 | J101: 9
A102: 10 | B102: 90 | C102: HADDOCK, Roy | D102: 5 | E102: 70 | F102: 1 | G102: 7.333333333 | H102: X | I102: 10 | J102: 10
A103: 11 | B103: 84 | C103: BURR, Dave | D103: 6 | E103: 56 | F103: 1 | G103: 2.666666667 | H103: X | I103: 11 | J103: 11
A104: 12 | B104: 79 | C104: SMITH, Leon | D104: 3 | E104: 46 | F104: 0 | G104: 15.33333333 | H104: X | I104: 12 | J104: 12
A105: 13 | B105: 87 | C105: DENHOLM, Paul | D105: 4 | E105: 37 | F105: 0 | G105: 12.33333333 | H105: X | I105: 13 | J105: 13
A106: 14 | B106: 77 | C106: HARVEY, Mark | D106: 3 | E106: 18 | F106: 0 | G106: 6 | H106: X | I106: 14 | J106: 14
B107: NORTH NORFOLK BASS FESTIVAL 2019 | F107: Day 2 ZONE G
A108: Zone Number | B108: Peg | C108: Name | D108: No. Fish | E108: Total Weight Points | F108: Weight | H108: Optional Pools | I108: Day 2 Points | J108: Zone Position
F109: (lbs) | G109: (ozs)
A110: 1 | B110: 100 | C110: RANDELL, Henry | D110: 14 | E110: 252 | F110: 5 | G110: 4 | H110: X | I110: 1 | J110: 1
A111: 2 | B111: 93 | C111: LINDFIELD, Bill | D111: 14 | E111: 210 | F111: 4 | G111: 6 | H111: X | I111: 2 | J111: 2
A112: 3 | B112: 95 | C112: DAWBER, Simon | D112: 16 | E112: 198 | F112: 4 | G112: 2 | H112: X | I112: 3 | J112: 3
A113: 4 | B113: 92 | C113: STEBBINGS, Robert | D113: 15 | E113: 150 | F113: 3 | G113: 2 | H113: X | I113: 5 | J113: 4
A114: 5 | B114: 91 | C114: CRAWFORD, Vince | D114: 7 | E114: 111 | F114: 2 | G114: 5 | H114: X | I114: 8 | J114: 5
A115: 6 | B115: 99 | C115: PRICE, Ben | D115: 7 | E115: 82 | F115: 1 | G115: 11.33333333 | H115: X | I115: 9 | J115: 6
A116: 7 | B116: 97 | C116: TOPPING, Mike | D116: 7 | E116: 79 | F116: 1 | G116: 10.33333333 | H116: X | I116: 10 | J116: 7
A117: 8 | B117: 101 | C117: BRADSHAW, Craig | D117: 4 | E117: 66 | F117: 1 | G117: 6 | H117: X | I117: 12 | J117: 8
A118: 9 | B118: 105 | C118: KING, Simon | D118: 3 | E118: 66 | F118: 1 | G118: 6 | I118: 13 | J118: 9
A119: 10 | B119: 96 | C119: BATTLE, Ian | D119: 6 | E119: 56 | F119: 1 | G119: 2.666666667 | H119: X | I119: 14 | J119: 10
B121: NORTH NORFOLK BASS FESTIVAL 2019 | F121: Day 2 ZONE H
A122: Zone Number | B122: Peg | C122: Name | D122: No. Fish | E122: Total Weight Points | F122: Weight | H122: Optional Pools | I122: Day 2 Points | J122: Zone Position
F123: (lbs) | G123: (ozs)
A124: 1 | B124: 109 | C124: AKESTER, Jack | D124: 21 | E124: 451 | F124: 9 | G124: 6.333333333 | H124: X | I124: 1 | J124: 1
A125: 2 | B125: 120 | C125: WATTS, Mike | D125: 30 | E125: 351 | F125: 7 | G125: 5 | H125: X | I125: 2 | J125: 2
A126: 3 | B126: 116 | C126: SHAUL, Jimmy | D126: 21 | E126: 238 | F126: 4 | G126: 15.33333333 | H126: X | I126: 4 | J126: 3
A127: 4 | B127: 112 | C127: BANHAM, Jason | D127: 18 | E127: 222 | F127: 4 | G127: 10 | H127: X | I127: 6 | J127: 4
A128: 5 | B128: 119 | C128: BETTINSON, Charles | D128: 22 | E128: 218 | F128: 4 | G128: 8.666666667 | H128: X | I128: 7 | J128: 5
A129: 6 | B129: 111 | C129: GREEN, Kevin | D129: 17 | E129: 206 | F129: 4 | G129: 4.666666667 | H129: X | I129: 8 | J129: 6
A130: 7 | B130: 107 | C130: DRAYTON, Simon | D130: 12 | E130: 157 | F130: 3 | G130: 4.333333333 | H130: X | I130: 9 | J130: 7
A131: 8 | B131: 114 | C131: BANCROFT, Dave | D131: 11 | E131: 127 | F131: 2 | G131: 10.33333333 | H131: X | I131: 10 | J131: 8
A132: 9 | B132: 108 | C132: LING, Richard | D132: 10 | E132: 113 | F132: 2 | G132: 5.666666667 | H132: X | I132: 11 | J132: 9
A133: 10 | B133: 106 | C133: SHORTHOUSE, Dave | D133: 11 | E133: 100 | F133: 2 | G133: 1.333333333 | H133: X | I133: 12 | J133: 10
A134: 11 | B134: 117 | C134: BENNINGTON, Tom | D134: 8 | E134: 100 | F134: 2 | G134: 1.333333333 | H134: X | I134: 13 | J134: 11
A135: 12 | B135: 118 | C135: BENNINGTON, Graham | D135: 5 | E135: 44 | F135: 0 | G135: 14.66666667 | H135: X | I135: 14 | J135: 12

Sheet Day 1 Zones-Pools
B1: NORTH NORFOLK BASS FESTIVAL 2019 | F1: Day 1 ZONE A
A2: Zone Number | B2: Peg | C2: Name | D2: No. Fish | E2: Total Weight Points | F2: Weight | H2: Optional Pools | I2: Day 1 Points | J2: Zone Position
F3: (lbs) | G3: (ozs)
A4: 1 | B4: 1 | C4: LINDFIELD, Bill | D4: 15 | E4: 370 | F4: 7 | G4: 11.33333333 | H4: X | I4: 1 | J4: 1
A5: 2 | B5: 3 | C5: HUTSON, Garry | D5: 9 | E5: 269 | F5: 5 | G5: 9.666666667 | H5: X | I5: 2 | J5: 2
A6: 3 | B6: 8 | C6: CRAWFORD, Vince | D6: 12 | E6: 208 | F6: 4 | G6: 5.333333333 | H6: X | I6: 3 | J6: 3
A7: 4 | B7: 11 | C7: BRADSHAW, Craig | D7: 5 | E7: 205 | F7: 4 | G7: 4.333333333 | H7: X | I7: 4 | J7: 4
A8: 5 | B8: 9 | C8: STORER, Paul | D8: 10 | E8: 162 | F8: 3 | G8: 6 | H8: X | I8: 5 | J8: 5
A9: 6 | B9: 15 | C9: BENNETT, Rick | D9: 10 | E9: 146 | F9: 3 | G9: 0.6666666667 | H9: X | I9: 6 | J9: 6
A10: 7 | B10: 10 | C10: EAGLE, Dan | D10: 5 | E10: 141 | F10: 2 | G10: 15 | H10: X | I10: 7 | J10: 7
A11: 8 | B11: 14 | C11: HARVEY, John | D11: 6 | E11: 126 | F11: 2 | G11: 10 | H11: X | I11: 8 | J11: 8
A12: 9 | B12: 6 | C12: TOPPING, Mike | D12: 5 | E12: 119 | F12: 2 | G12: 7.666666667 | H12: X | I12: 9 | J12: 9
A13: 10 | B13: 2 | C13: SHAUL, Keith | D13: 7 | E13: 80 | F13: 1 | G13: 10.66666667 | H13: X | I13: 11 | J13: 10
A14: 11 | B14: 4 | C14: BETTINSON, Charles | D14: 5 | E14: 52 | F14: 1 | G14: 1.333333333 | H14: X | I14: 13 | J14: 11
A15: 12 | B15: 7 | C15: AUSTIN, John | D15: 4 | E15: 52 | F15: 1 | G15: 1.333333333 | H15: X | I15: 14 | J15: 12
A16: 30
B17: NORTH NORFOLK BASS FESTIVAL 2019 | F17: Day 1 ZONE B
A18: Zone Number | B18: Peg | C18: Name | D18: No. Fish | E18: Total Weight Points | F18: Weight | H18: Optional Pools | I18: Day 1 Points | J18: Zone Position
F19: (lbs) | G19: (ozs)
A20: 1 | B20: 29 | C20: RUSSELL, Shane | D20: 19 | E20: 761 | F20: 15 | G20: 13.66666667 | H20: X | I20: 1 | J20: 1
A21: 2 | B21: 27 | C21: AKESTER, Jack | D21: 7 | E21: 192 | F21: 4 | G21: 0 | H21: X | I21: 3 | J21: 2
A22: 3 | B22: 28 | C22: SMITH, Leon | D22: 10 | E22: 175 | F22: 3 | G22: 10.33333333 | H22: X | I22: 5 | J22: 3
A23: 4 | B23: 26 | C23: BURR, Dave | D23: 6 | E23: 164 | F23: 3 | G23: 6.666666667 | H23: X | I23: 6 | J23: 4
A24: 5 | B24: 25 | C24: DIAPER, Greg | D24: 6 | E24: 153 | F24: 3 | G24: 3 | H24: X | I24: 7 | J24: 5
A25: 6 | B25: 21 | C25: SMITH, Adele | D25: 10 | E25: 141 | F25: 2 | G25: 15 | H25: X | I25: 8 | J25: 6
A26: 7 | B26: 24 | C26: WATTS, Mike | D26: 7 | E26: 141 | F26: 2 | G26: 15 | H26: X | I26: 9 | J26: 7
A27: 8 | B27: 16 | C27: GREEN, Kevin | D27: 7 | E27: 129 | F27: 2 | G27: 11 | H27: X | I27: 10 | J27: 8
A28: 9 | B28: 23 | C28: BANHAM, Jason | D28: 5 | E28: 118 | F28: 2 | G28: 7.333333333 | H28: X | I28: 11 | J28: 9
A29: 10 | B29: 18 | C29: HADDOCK, Roy | D29: 5 | E29: 66 | F29: 1 | G29: 6 | H29: X | I29: 12 | J29: 10
A30: 11 | B30: 19 | C30: BANCROFT, Dave | D30: 3 | E30: 50 | F30: 1 | G30: 0.6666666667 | H30: X | I30: 13 | J30: 11
A31: 12 | B31: 20 | C31: LING, Richard | D31: 2 | E31: 21 | F31: 0 | G31: 7 | H31: X | I31: 14 | J31: 12
B32: NORTH NORFOLK BASS FESTIVAL 2019 | F32: Day 1 ZONE C
A33: Zone Number | B33: Peg | C33: Name | D33: No. Fish | E33: Total Weight Points | F33: Weight | H33: Optional Pools | I33: Day 1 Points | J33: Zone Position
F34: (lbs) | G34: (ozs)
A35: 1 | B35: 43 | C35: BOWELL, Ian | D35: 10 | E35: 507 | F35: 10 | G35: 9 | H35: X | I35: 1 | J35: 1
A36: 2 | B36: 31 | C36: TURNER, Cameron | D36: 16 | E36: 394 | F36: 8 | G36: 3.333333333 | H36: X | I36: 2 | J36: 2
A37: 3 | B37: 37 | C37: MEDLER, Gary | D37: 9 | E37: 353 | F37: 7 | G37: 5.666666667 | H37: X | I37: 3 | J37: 3
A38: 4 | B38: 42 | C38: TUCK, Rob | D38: 13 | E38: 337 | F38: 7 | G38: 0.3333333333 | H38: X | I38: 4 | J38: 4
A39: 5 | B39: 38 | C39: HARVEY, Mark | D39: 4 | E39: 263 | F39: 5 | G39: 7.666666667 | H39: X | I39: 5 | J39: 5
A40: 6 | B40: 44 | C40: SHAUL, Jimmy | D40: 5 | E40: 226 | F40: 4 | G40: 11.33333333 | H40: X | I40: 7 | J40: 6
A41: 7 | B41: 40 | C41: THOMAS, Tony | D41: 7 | E41: 184 | F41: 3 | G41: 13.33333333 | H41: X | I41: 8 | J41: 7
A42: 8 | B42: 34 | C42: DENHOLM, Paul | D42: 13 | E42: 176 | F42: 3 | G42: 10.66666667 | H42: X | I42: 9 | J42: 8
A43: 9 | B43: 36 | C43: STEBBINGS, Robert | D43: 7 | E43: 176 | F43: 3 | G43: 10.66666667 | H43: X | I43: 10 | J43: 9
A44: 10 | B44: 33 | C44: PRICE, Ben | D44: 7 | E44: 156 | F44: 3 | G44: 4 | H44: X | I44: 11 | J44: 10
A45: 11 | B45: 35 | C45: WOODS, Becky | D45: 8 | E45: 149 | F45: 3 | G45: 1.666666667 | H45: X | I45: 12 | J45: 11
A46: 12 | B46: 32 | C46: JACOBS, Richard | D46: 7 | E46: 129 | F46: 2 | G46: 11 | H46: X | I46: 13 | J46: 12
A47: 13 | B47: 41 | C47: HARRISON, Paul | D47: 4 | E47: 103 | F47: 2 | G47: 2.333333333 | H47: X | I47: 14 | J47: 13
A48: 14 | B48: 39 | C48: DRAYTON, Simon | D48: 6 | E48: 84 | F48: 1 | G48: 12 | H48: X | I48: 15 | J48: 14
B50: NORTH NORFOLK BASS FESTIVAL 2019 | F50: Day 1 ZONE D
A51: Zone Number | B51: Peg | C51: Name | D51: No. Fish | E51: Total Weight Points | F51: Weight | H51: Optional Pools | I51: Day 1 Points | J51: Zone Position
F52: (lbs) | G52: (ozs)
A53: 1 | B53: 60 | C53: KINGDON, Adam | D53: 12 | E53: 318 | F53: 6 | G53: 10 | H53: X | I53: 1 | J53: 1
A54: 2 | B54: 48 | C54: RANDELL, Henry | D54: 11 | E54: 305 | F54: 6 | G54: 5.666666667 | H54: X | I54: 2 | J54: 2
A55: 3 | B55: 46 | C55: SPALL, Chris | D55: 9 | E55: 227 | F55: 4 | G55: 11.66666667 | H55: X | I55: 3 | J55: 3
A56: 4 | B56: 57 | C56: BATTLE, Ian | D56: 8 | E56: 150 | F56: 3 | G56: 2 | H56: X | I56: 5 | J56: 4
A57: 5 | B57: 54 | C57: BORDIANU, Adrian | D57: 6 | E57: 132 | F57: 2 | G57: 12 | H57: X | I57: 6 | J57: 5
A58: 6 | B58: 47 | C58: NELSON, Ian | D58: 4 | E58: 105 | F58: 2 | G58: 3 | H58: X | I58: 7 | J58: 6
A59: 7 | B59: 55 | C59: BENNINGTON, Tom | D59: 4 | E59: 84 | F59: 1 | G59: 12 | H59: X | I59: 8 | J59: 7
A60: 8 | B60: 53 | C60: DAWBER, Simon | D60: 4 | E60: 81 | F60: 1 | G60: 11 | H60: X | I60: 9 | J60: 8
A61: 9 | B61: 52 | C61: SHORTHOUSE, Dave | D61: 3 | E61: 66 | F61: 1 | G61: 6 | H61: X | I61: 10 | J61: 9
A62: 10 | B62: 56 | C62: BENNINGTON, Graham | D62: 2 | E62: 44 | F62: 0 | G62: 14.66666667 | H62: X | I62: 11 | J62: 10
A63: 11 | B63: 50 | C63: McCOY, Ken | D63: 1 | E63: 12 | F63: 0 | G63: 4 | H63: X | I63: 12 | J63: 11
A64: 12 | B64: 49 | C64: LAMBERT, Ian | D64: 0 | E64: 0 | F64: 0 | G64: 0 | H64: X | I64: 15 | J64: 15
B65: NORTH NORFOLK BASS FESTIVAL 2019 | F65: Day 1 ZONE E
A66: Zone Number | B66: Peg | C66: Name | D66: No. Fish | E66: Total Weight Points | F66: Weight | H66: Optional Pools | I66: Day 1 Points | J66: Zone Position
F67: (lbs) | G67: (ozs)
A68: 1 | B68: 66 | C68: SMITH, George | D68: 16 | E68: 931 | F68: 19 | G68: 6.333333333 | H68: X | I68: 1 | J68: 1
A69: 2 | B69: 62 | C69: WRIGHT, Dave | D69: 18 | E69: 453 | F69: 9 | G69: 7 | H69: X | I69: 2 | J69: 2
A70: 3 | B70: 65 | C70: ALDOUS, David | D70: 13 | E70: 414 | F70: 8 | G70: 10 | H70: X | I70: 3 | J70: 3
A71: 4 | B71: 61 | C71: CANNELL, Chris | D71: 13 | E71: 384 | F71: 8 | G71: 0 | H71: X | I71: 4 | J71: 4
A72: 5 | B72: 68 | C72: SELF, Bevan | D72: 11 | E72: 252 | F72: 5 | G72: 4 | H72: X | I72: 5 | J72: 5
A73: 6 | B73: 70 | C73: THORPE, Doug | D73: 8 | E73: 251 | F73: 5 | G73: 3.666666667 | H73: X | I73: 6 | J73: 6
A74: 7 | B74: 67 | C74: SMITH, John | D74: 13 | E74: 237 | F74: 4 | G74: 15 | H74: X | I74: 7 | J74: 7
A75: 8 | B75: 74 | C75: WOODS, Graham | D75: 8 | E75: 235 | F75: 4 | G75: 14.33333333 | H75: X | I75: 8 | J75: 8
A76: 9 | B76: 72 | C76: TEMPLE, Billy | D76: 12 | E76: 230 | F76: 4 | G76: 12.66666667 | H76: X | I76: 9 | J76: 9
A77: 10 | B77: 63 | C77: WARD, Mark | D77: 8 | E77: 183 | F77: 3 | G77: 13 | H77: X | I77: 11 | J77: 10
A78: 11 | B78: 69 | C78: JARMAN, Wayne | D78: 11 | E78: 169 | F78: 3 | G78: 8.333333333 | H78: X | I78: 12 | J78: 11
A79: 12 | B79: 73 | C79: THORBURN, Paul | D79: 3 | E79: 118 | F79: 2 | G79: 7.333333333 | H79: X | I79: 14 | J79: 12
A80: 13 | B80: 75 | C80: WHITE, Alan | D80: 6 | E80: 84 | F80: 1 | G80: 12 | H80: X | I80: 15 | J80: 13
A81: 30
B82: NORTH NORFOLK BASS FESTIVAL 2019 | F82: Day 1 ZONE F
A83: Zone Number | B83: Peg | C83: Name | D83: No. Fish | E83: Total Weight Points | F83: Weight | H83: Optional Pools | I83: Day 1 Points | J83: Zone Position
F84: (lbs) | G84: (ozs)
A85: 1 | B85: 83 | C85: ELLIOTT, Nathan | D85: 32 | E85: 496 | F85: 10 | G85: 5.333333333 | H85: X | I85: 1 | J85: 1
A86: 2 | B86: 82 | C86: BRIGHTON, Tarrick | D86: 27 | E86: 304 | F86: 6 | G86: 5.333333333 | H86: X | I86: 2 | J86: 2
A87: 3 | B87: 86 | C87: BURT, Richard | D87: 21 | E87: 275 | F87: 5 | G87: 11.66666667 | H87: X | I87: 3 | J87: 3
A88: 4 | B88: 85 | C88: CLEMENT, Alby | D88: 12 | E88: 271 | F88: 5 | G88: 10.33333333 | H88: X | I88: 4 | J88: 4
A89: 5 | B89: 76 | C89: ADAMS, Lee | D89: 12 | E89: 261 | F89: 5 | G89: 7 | H89: X | I89: 5 | J89: 5
A90: 6 | B90: 77 | C90: BROCK, Peter | D90: 17 | E90: 226 | F90: 4 | G90: 11.33333333 | H90: X | I90: 6 | J90: 6
A91: 7 | B91: 81 | C91: DIAPER, Barry | D91: 12 | E91: 214 | F91: 4 | G91: 7.333333333 | H91: X | I91: 7 | J91: 7
A92: 8 | B92: 84 | C92: CHAMBERLAIN, Darren | D92: 16 | E92: 210 | F92: 4 | G92: 6 | H92: X | I92: 8 | J92: 8
A93: 9 | B93: 78 | C93: HURCOMBE, Mark | D93: 13 | E93: 180 | F93: 3 | G93: 12 | H93: X | I93: 9 | J93: 9
A94: 10 | B94: 90 | C94: LITTLEWOOD, Stuart | D94: 15 | E94: 157 | F94: 3 | G94: 4.333333333 | H94: X | I94: 10 | J94: 10
A95: 11 | B95: 88 | C95: GOOCH, Mark | D95: 10 | E95: 154 | F95: 3 | G95: 3.333333333 | H95: X | I95: 11 | J95: 11
A96: 12 | B96: 89 | C96: HART, Paul | D96: 8 | E96: 88 | F96: 1 | G96: 13.33333333 | H96: X | I96: 12 | J96: 12
A97: 13 | B97: 87 | C97: DOY, Alan | D97: 3 | E97: 30 | F97: 0 | G97: 10 | H97: X | I97: 13 | J97: 13
B98: NORTH NORFOLK BASS FESTIVAL 2019 | F98: Day 1 ZONE G
A99: Zone Number | B99: Peg | C99: Name | D99: No. Fish | E99: Total Weight Points | F99: Weight | H99: Optional Pools | I99: Day 1 Points | J99: Zone Position
F100: (lbs) | G100: (ozs)
A101: 1 | B101: 97 | C101: BUY, Craig | D101: 18 | E101: 366 | F101: 7 | G101: 10 | H101: X | I101: 1 | J101: 1
A102: 2 | B102: 105 | C102: HUTCHINSON (BP), Dave | D102: 15 | E102: 338 | F102: 7 | G102: 0.6666666667 | H102: X | I102: 2 | J102: 2
A103: 3 | B103: 94 | C103: ADAMS, Stephen | D103: 16 | E103: 315 | F103: 6 | G103: 9 | H103: X | I103: 3 | J103: 3
A104: 4 | B104: 99 | C104: NANGLE, Karl | D104: 18 | E104: 263 | F104: 5 | G104: 7.666666667 | H104: X | I104: 4 | J104: 4
A105: 5 | B105: 98 | C105: SHARMAN, Mark | D105: 15 | E105: 227 | F105: 4 | G105: 11.66666667 | H105: X | I105: 5 | J105: 5
A106: 6 | B106: 92 | C106: STONE, Barry | D106: 18 | E106: 186 | F106: 3 | G106: 14 | H106: X | I106: 7 | J106: 6
A107: 7 | B107: 91 | C107: GASCOIGNE, Robert | D107: 16 | E107: 186 | F107: 3 | G107: 14 | H107: X | I107: 8 | J107: 7
A108: 8 | B108: 95 | C108: SMART, Neil | D108: 16 | E108: 172 | F108: 3 | G108: 9.333333333 | H108: X | I108: 9 | J108: 8
A109: 9 | B109: 102 | C109: FRARY, Charlie | D109: 15 | E109: 154 | F109: 3 | G109: 3.333333333 | H109: X | I109: 10 | J109: 9
A110: 10 | B110: 93 | C110: ADAMS, Graham | D110: 13 | E110: 154 | F110: 3 | G110: 3.333333333 | H110: X | I110: 11 | J110: 10
A111: 11 | B111: 101 | C111: RUSH, Billy | D111: 9 | E111: 141 | F111: 2 | G111: 15 | H111: X | I111: 12 | J111: 11
A112: 12 | B112: 103 | C112: FRARY, June | D112: 12 | E112: 129 | F112: 2 | G112: 11 | H112: X | I112: 13 | J112: 12
A113: 13 | B113: 96 | C113: LAY-FLURRIE, Matt | D113: 9 | E113: 89 | F113: 1 | G113: 13.66666667 | H113: X | I113: 14 | J113: 13
A114: 14 | B114: 104 | C114: CARTER, John | D114: 6 | E114: 83 | F114: 1 | G114: 11.66666667 | H114: X | I114: 15 | J114: 14
A115: 30
B116: NORTH NORFOLK BASS FESTIVAL 2019 | F116: Day 1 ZONE H
A117: Zone Number | B117: Peg | C117: Name | D117: No. Fish | E117: Total Weight Points | F117: Weight | H117: Optional Pools | I117: Day 1 Points | J117: Zone Position
F118: (lbs) | G118: (ozs)
A119: 1 | B119: 117 | C119: PROVINS, Colin | D119: 32 | E119: 786 | F119: 16 | G119: 6 | H119: X | I119: 1 | J119: 1
A120: 2 | B120: 114 | C120: CUTLER, Neil | D120: 31 | E120: 525 | F120: 10 | G120: 15 | H120: X | I120: 2 | J120: 2
A121: 3 | B121: 119 | C121: HUGHES, Gary | D121: 20 | E121: 466 | F121: 9 | G121: 11.33333333 | H121: X | I121: 3 | J121: 3
A122: 4 | B122: 120 | C122: ELEY, Kevin | D122: 26 | E122: 373 | F122: 7 | G122: 12.33333333 | H122: X | I122: 4 | J122: 4
A123: 5 | B123: 107 | C123: DRIVER, Ed | D123: 14 | E123: 367 | F123: 7 | G123: 10.33333333 | H123: X | I123: 5 | J123: 5
A124: 6 | B124: 118 | C124: McKENZIE, Brian | D124: 21 | E124: 283 | F124: 5 | G124: 14.33333333 | H124: X | I124: 6 | J124: 6
A125: 7 | B125: 115 | C125: HIPPERSON, Richard | D125: 24 | E125: 269 | F125: 5 | G125: 9.666666667 | H125: X | I125: 7 | J125: 7
A126: 8 | B126: 111 | C126: FATTIZZO, Tony | D126: 14 | E126: 254 | F126: 5 | G126: 4.666666667 | H126: X | I126: 8 | J126: 8
A127: 9 | B127: 112 | C127: PARROTT, Ade | D127: 9 | E127: 150 | F127: 3 | G127: 2 | H127: X | I127: 9 | J127: 9
A128: 10 | B128: 116 | C128: HARVEY, Paul | D128: 8 | E128: 136 | F128: 2 | G128: 13.33333333 | H128: X | I128: 10 | J128: 10
A129: 11 | B129: 110 | C129: GROSSMAN, Martin | D129: 4 | E129: 98 | F129: 2 | G129: 0.6666666667 | H129: X | I129: 11 | J129: 11
A130: 12 | B130: 106 | C130: SMITH, Andy | D130: 9 | E130: 94 | F130: 1 | G130: 15.33333333 | H130: X | I130: 12 | J130: 12
A131: 13 | B131: 109 | C131: NICHOLSON, Steven | D131: 4 | E131: 89 | F131: 1 | G131: 13.66666667 | H131: X | I131: 13 | J131: 13
A132: 14 | B132: 108 | C132: CREASEY, Shaun | D132: 5 | E132: 42 | F132: 0 | G132: 14 | H132: X | I132: 14 | J132: 14

Sheet Day 2 Zones-Pools
B1: NORTH NORFOLK BASS FESTIVAL 2019 | F1: Day 2 ZONE A
A2: Zone Number | B2: Peg | C2: Name | D2: No. Fish | E2: Total Weight Points | F2: Weight | H2: Optional Pools | I2: Day 2 Points | J2: Zone Position
F3: (lbs) | G3: (ozs)
A4: 1 | B4: 11 | C4: GASCOIGNE, Robert | D4: 11 | E4: 351 | F4: 7 | G4: 5 | H4: X | I4: 1 | J4: 1
A5: 2 | B5: 2 | C5: WARD, Mark | D5: 12 | E5: 245 | F5: 5 | G5: 1.666666667 | H5: X | I5: 2 | J5: 2
A6: 3 | B6: 10 | C6: DRIVER, Ed | D6: 10 | E6: 174 | F6: 3 | G6: 10 | H6: X | I6: 3 | J6: 3
A7: 4 | B7: 4 | C7: WHITE, Alan | D7: 9 | E7: 121 | F7: 2 | G7: 8.333333333 | H7: X | I7: 4 | J7: 4
A8: 5 | B8: 3 | C8: ELLIOTT, Nathan | D8: 9 | E8: 109 | F8: 2 | G8: 4.333333333 | H8: X | I8: 6 | J8: 5
A9: 6 | B9: 8 | C9: THORPE, Doug | D9: 7 | E9: 92 | F9: 1 | G9: 14.66666667 | H9: X | I9: 7 | J9: 6
A10: 7 | B10: 1 | C10: McKENZIE, Brian | D10: 7 | E10: 72 | F10: 1 | G10: 8 | H10: X | I10: 8 | J10: 7
A11: 8 | B11: 9 | C11: LAY-FLURRIE, Matt | D11: 3 | E11: 41 | F11: 0 | G11: 13.66666667 | H11: X | I11: 9 | J11: 8
A12: 9 | B12: 7 | C12: ADAMS, Graham | D12: 2 | E12: 30 | F12: 0 | G12: 10 | H12: X | I12: 10 | J12: 9
A13: 10 | B13: 13 | C13: JARMAN, Wayne | D13: 4 | E13: 26 | F13: 0 | G13: 8.666666667 | H13: X | I13: 11 | J13: 10
A14: 11 | B14: 12 | C14: CARTER, John | D14: 3 | E14: 21 | F14: 0 | G14: 7 | H14: X | I14: 12 | J14: 11
A15: 12 | B15: 14 | C15: RUSH, Billy | D15: 2 | E15: 15 | F15: 0 | G15: 5 | H15: X | I15: 13 | J15: 12
A16: 30
B17: NORTH NORFOLK BASS FESTIVAL 2019 | F17: Day 2 ZONE B
A18: Zone Number | B18: Peg | C18: Name | D18: No. Fish | E18: Total Weight Points | F18: Weight | H18: Optional Pools | I18: Day 2 Points | J18: Zone Position
F19: (lbs) | G19: (ozs)
A20: 1 | B20: 20 | C20: CLEMENT, Alby | D20: 18 | E20: 473 | F20: 9 | G20: 13.66666667 | H20: X | I20: 1 | J20: 1
A21: 2 | B21: 22 | C21: FRARY, Charlie | D21: 7 | E21: 225 | F21: 4 | G21: 11 | H21: X | I21: 2 | J21: 2
A22: 3 | B22: 23 | C22: HURCOMBE, Mark | D22: 8 | E22: 196 | F22: 4 | G22: 1.333333333 | H22: X | I22: 3 | J22: 3
A23: 4 | B23: 30 | C23: HUGHES, Gary | D23: 6 | E23: 161 | F23: 3 | G23: 5.666666667 | H23: X | I23: 4 | J23: 4
A24: 5 | B24: 19 | C24: GROSSMAN, Martin | D24: 5 | E24: 134 | F24: 2 | G24: 12.66666667 | H24: X | I24: 5 | J24: 5
A25: 6 | B25: 27 | C25: HIPPERSON, Richard | D25: 8 | E25: 117 | F25: 2 | G25: 7 | H25: X | I25: 6 | J25: 6
A26: 7 | B26: 28 | C26: STONE, Barry | D26: 10 | E26: 87 | F26: 1 | G26: 13 | H26: X | I26: 7 | J26: 7
A27: 8 | B27: 29 | C27: NICHOLSON, Steven | D27: 5 | E27: 87 | F27: 1 | G27: 13 | H27: X | I27: 8 | J27: 8
A28: 9 | B28: 21 | C28: FRARY, June | D28: 2 | E28: 45 | F28: 0 | G28: 15 | H28: X | I28: 10 | J28: 9
A29: 10 | B29: 16 | C29: THORBURN, Paul | D29: 0 | E29: 0 | F29: 0 | G29: 0 | H29: X | I29: 15 | J29: 15
A30: 11 | B30: 17 | C30: BRIGHTON, Tarrick | D30: 0 | E30: 0 | F30: 0 | G30: 0 | H30: X | I30: 15 | J30: 15
A31: 12 | B31: 24 | C31: FATTIZZO, Tony | D31: 0 | E31: 0 | F31: 0 | G31: 0 | H31: X | I31: 15 | J31: 15
A32: 13 | B32: 25 | C32: PARROTT, Ade | D32: 0 | E32: 0 | F32: 0 | G32: 0 | H32: X | I32: 15 | J32: 15
A33: 14 | B33: 26 | C33: SHARMAN, Mark | D33: 0 | E33: 0 | F33: 0 | G33: 0 | H33: X | I33: 15 | J33: 15
B34: NORTH NORFOLK BASS FESTIVAL 2019 | F34: Day 2 ZONE C
A35: Zone Number | B35: Peg | C35: Name | D35: No. Fish | E35: Total Weight Points | F35: Weight | H35: Optional Pools | I35: Day 2 Points | J35: Zone Position
F36: (lbs) | G36: (ozs)
A37: 1 | B37: 36 | C37: WRIGHT, Dave | D37: 7 | E37: 213 | F37: 4 | G37: 7 | H37: X | I37: 1 | J37: 1
A38: 2 | B38: 34 | C38: ADAMS, Lee | D38: 7 | E38: 169 | F38: 3 | G38: 8.333333333 | H38: X | I38: 2 | J38: 2
A39: 3 | B39: 37 | C39: SMITH, Andy | D39: 5 | E39: 162 | F39: 3 | G39: 6 | H39: X | I39: 3 | J39: 3
A40: 4 | B40: 35 | C40: CUTLER, Neil | D40: 6 | E40: 150 | F40: 3 | G40: 2 | H40: X | I40: 4 | J40: 4
A41: 5 | B41: 38 | C41: SELF, Bevan | D41: 6 | E41: 88 | F41: 1 | G41: 13.33333333 | H41: X | I41: 6 | J41: 5
A42: 6 | B42: 40 | C42: LITTLEWOOD, Stuart | D42: 5 | E42: 82 | F42: 1 | G42: 11.33333333 | H42: X | I42: 7 | J42: 6
A43: 7 | B43: 45 | C43: TEMPLE, Billy | D43: 4 | E43: 78 | F43: 1 | G43: 10 | H43: X | I43: 8 | J43: 7
A44: 8 | B44: 39 | C44: ELEY, Kevin | D44: 4 | E44: 67 | F44: 1 | G44: 6.333333333 | H44: X | I44: 10 | J44: 8
A45: 9 | B45: 43 | C45: HARVEY, Paul | D45: 4 | E45: 56 | F45: 1 | G45: 2.666666667 | H45: X | I45: 11 | J45: 9
A46: 10 | B46: 31 | C46: HART, Paul | D46: 4 | E46: 53 | F46: 1 | G46: 1.666666667 | H46: X | I46: 12 | J46: 10
A47: 11 | B47: 32 | C47: CREASEY, Shaun | D47: 1 | E47: 8 | F47: 0 | G47: 2.666666667 | H47: X | I47: 13 | J47: 11
A48: 12 | B48: 42 | C48: ALDOUS, David | D48: 0 | E48: 0 | F48: 0 | G48: 0 | H48: X | I48: 15 | J48: 15
A49: 13 | B49: 44 | C49: BROCK, Peter | D49: 0 | E49: 0 | F49: 0 | G49: 0 | H49: X | I49: 15 | J49: 15
A50: 30
B51: NORTH NORFOLK BASS FESTIVAL 2019 | F51: Day 2 ZONE D
A52: Zone Number | B52: Peg | C52: Name | D52: No. Fish | E52: Total Weight Points | F52: Weight | H52: Optional Pools | I52: Day 2 Points | J52: Zone Position
F53: (lbs) | G53: (ozs)
A54: 1 | B54: 47 | C54: WOODS, Graham | D54: 5 | E54: 311 | F54: 6 | G54: 7.666666667 | H54: X | I54: 1 | J54: 1
A55: 2 | B55: 46 | C55: ADAMS, Stephen | D55: 12 | E55: 296 | F55: 6 | G55: 2.666666667 | H55: X | I55: 2 | J55: 2
A56: 3 | B56: 54 | C56: CANNELL, Chris | D56: 6 | E56: 216 | F56: 4 | G56: 8 | H56: X | I56: 3 | J56: 3
A57: 4 | B57: 57 | C57: BURT, Richard | D57: 7 | E57: 166 | F57: 3 | G57: 7.333333333 | H57: X | I57: 4 | J57: 4
A58: 5 | B58: 56 | C58: SMITH, George | D58: 3 | E58: 116 | F58: 2 | G58: 6.666666667 | H58: X | I58: 5 | J58: 5
A59: 6 | B59: 55 | C59: BUY, Craig | D59: 5 | E59: 114 | F59: 2 | G59: 6 | H59: X | I59: 6 | J59: 6
A60: 7 | B60: 48 | C60: CHAMBERLAIN, Darren | D60: 7 | E60: 96 | F60: 2 | G60: 0 | H60: X | I60: 7 | J60: 7
A61: 8 | B61: 59 | C61: PROVINS, Colin | D61: 8 | E61: 88 | F61: 1 | G61: 13.33333333 | H61: X | I61: 8 | J61: 8
A62: 9 | B62: 58 | C62: SMITH, John | D62: 5 | E62: 78 | F62: 1 | G62: 10 | H62: X | I62: 9 | J62: 9
A63: 10 | B63: 60 | C63: DOY, Alan | D63: 5 | E63: 71 | F63: 1 | G63: 7.666666667 | H63: X | I63: 10 | J63: 10
A64: 11 | B64: 50 | C64: HUTCHINSON (BP), Dave | D64: 4 | E64: 61 | F64: 1 | G64: 4.333333333 | H64: X | I64: 11 | J64: 11
A65: 12 | B65: 53 | C65: NANGLE, Karl | D65: 3 | E65: 56 | F65: 1 | G65: 2.666666667 | H65: X | I65: 12 | J65: 12
A66: 13 | B66: 52 | C66: DIAPER, Barry | D66: 4 | E66: 50 | F66: 1 | G66: 0.6666666667 | H66: X | I66: 13 | J66: 13
A67: 14 | B67: 49 | C67: GOOCH, Mark | D67: 0 | E67: 43 | F67: 0 | G67: 14.33333333 | H67: X | I67: 15 | J67: 15
A68: 15 | B68: 51 | C68: SMART, Neil | D68: 2 | E68: 15 | F68: 0 | G68: 5 | H68: X | I68: 15 | J68: 15
B69: NORTH NORFOLK BASS FESTIVAL 2019 | F69: Day 2 ZONE E
A70: Zone Number | B70: Peg | C70: Name | D70: No. Fish | E70: Total Weight Points | F70: Weight | H70: Optional Pools | I70: Day 2 Points | J70: Zone Position
F71: (lbs) | G71: (ozs)
A72: 1 | B72: 61 | C72: HUTSON, Garry | D72: 7 | E72: 434 | F72: 9 | G72: 0.6666666667 | H72: X | I72: 1 | J72: 1
A73: 2 | B73: 67 | C73: MEDLER, Gary | D73: 7 | E73: 252 | F73: 5 | G73: 4 | H73: X | I73: 2 | J73: 2
A74: 3 | B74: 65 | C74: HARRISON, Paul | D74: 14 | E74: 216 | F74: 4 | G74: 8 | H74: X | I74: 3 | J74: 3
A75: 4 | B75: 74 | C75: DIAPER, Greg | D75: 7 | E75: 178 | F75: 3 | G75: 11.33333333 | H75: X | I75: 4 | J75: 4
A76: 5 | B76: 72 | C76: JACOBS, Richard | D76: 8 | E76: 177 | F76: 3 | G76: 11 | H76: X | I76: 5 | J76: 5
A77: 6 | B77: 62 | C77: EAGLE, Dan | D77: 6 | E77: 153 | F77: 3 | G77: 3 | H77: X | I77: 6 | J77: 6
A78: 7 | B78: 69 | C78: RUSSELL, Shane | D78: 8 | E78: 146 | F78: 3 | G78: 0.6666666667 | H78: X | I78: 7 | J78: 7
A79: 8 | B79: 63 | C79: McCOY, Ken | D79: 8 | E79: 128 | F79: 2 | G79: 10.66666667 | H79: X | I79: 8 | J79: 8
A80: 9 | B80: 66 | C80: BORDIANU, Adrian | D80: 8 | E80: 106 | F80: 2 | G80: 3.333333333 | H80: X | I80: 9 | J80: 9
A81: 10 | B81: 68 | C81: NELSON, Ian | D81: 3 | E81: 97 | F81: 2 | G81: 0.3333333333 | H81: X | I81: 10 | J81: 10
A82: 11 | B82: 70 | C82: SMITH, Adele | D82: 6 | E82: 80 | F82: 1 | G82: 10.66666667 | H82: X | I82: 11 | J82: 11
A83: 12 | B83: 73 | C83: THOMAS, Tony | D83: 5 | E83: 70 | F83: 1 | G83: 7.333333333 | H83: X | I83: 12 | J83: 12
A84: 13 | B84: 75 | C84: SHAUL, Keith | D84: 3 | E84: 70 | F84: 1 | G84: 7.333333333 | H84: X | I84: 13 | J84: 13
A85: 14 | B85: 64 | C85: HARVEY, John | D85: 3 | E85: 22 | F85: 0 | G85: 7.333333333 | H85: X | I85: 14 | J85: 14
A86: 15 | B86: 71 | C86: LAMBERT, Ian | D86: 0 | E86: 0 | F86: 0 | G86: 0 | H86: X | I86: 15 | J86: 15
A87: 30
B88: NORTH NORFOLK BASS FESTIVAL 2019 | F88: Day 2 ZONE F
A89: Zone Number | B89: Peg | C89: Name | D89: No. Fish | E89: Total Weight Points | F89: Weight | H89: Optional Pools | I89: Day 2 Points | J89: Zone Position
F90: (lbs) | G90: (ozs)
A91: 1 | B91: 81 | C91: TUCK, Rob | D91: 23 | E91: 524 | F91: 10 | G91: 14.66666667 | H91: X | I91: 1 | J91: 1
A92: 2 | B92: 86 | C92: TURNER, Cameron | D92: 14 | E92: 280 | F92: 5 | G92: 13.33333333 | H92: X | I92: 2 | J92: 2
A93: 3 | B93: 89 | C93: SPALL, Chris | D93: 18 | E93: 251 | F93: 5 | G93: 3.666666667 | H93: X | I93: 3 | J93: 3
A94: 4 | B94: 80 | C94: STORER, Paul | D94: 14 | E94: 219 | F94: 4 | G94: 9 | H94: X | I94: 4 | J94: 4
A95: 5 | B95: 88 | C95: BOWELL, Ian | D95: 14 | E95: 183 | F95: 3 | G95: 13 | H95: X | I95: 5 | J95: 5
A96: 6 | B96: 82 | C96: BENNETT, Rick | D96: 14 | E96: 173 | F96: 3 | G96: 9.666666667 | H96: X | I96: 6 | J96: 6
A97: 7 | B97: 83 | C97: AUSTIN, John | D97: 12 | E97: 171 | F97: 3 | G97: 9 | H97: X | I97: 7 | J97: 7
A98: 8 | B98: 78 | C98: KINGDON, Adam | D98: 12 | E98: 118 | F98: 2 | G98: 7.333333333 | H98: X | I98: 8 | J98: 8
A99: 9 | B99: 76 | C99: WOODS, Becky | D99: 6 | E99: 89 | F99: 1 | G99: 13.66666667 | H99: X | I99: 9 | J99: 9
A100: 10 | B100: 90 | C100: HADDOCK, Roy | D100: 5 | E100: 70 | F100: 1 | G100: 7.333333333 | H100: X | I100: 10 | J100: 10
A101: 11 | B101: 84 | C101: BURR, Dave | D101: 6 | E101: 56 | F101: 1 | G101: 2.666666667 | H101: X | I101: 11 | J101: 11
A102: 12 | B102: 79 | C102: SMITH, Leon | D102: 3 | E102: 46 | F102: 0 | G102: 15.33333333 | H102: X | I102: 12 | J102: 12
A103: 13 | B103: 87 | C103: DENHOLM, Paul | D103: 4 | E103: 37 | F103: 0 | G103: 12.33333333 | H103: X | I103: 13 | J103: 13
A104: 14 | B104: 77 | C104: HARVEY, Mark | D104: 3 | E104: 18 | F104: 0 | G104: 6 | H104: X | I104: 14 | J104: 14
B105: NORTH NORFOLK BASS FESTIVAL 2019 | F105: Day 2 ZONE G
A106: Zone Number | B106: Peg | C106: Name | D106: No. Fish | E106: Total Weight Points | F106: Weight | H106: Optional Pools | I106: Day 2 Points | J106: Zone Position
F107: (lbs) | G107: (ozs)
A108: 1 | B108: 100 | C108: RANDELL, Henry | D108: 14 | E108: 252 | F108: 5 | G108: 4 | H108: X | I108: 1 | J108: 1
A109: 2 | B109: 93 | C109: LINDFIELD, Bill | D109: 14 | E109: 210 | F109: 4 | G109: 6 | H109: X | I109: 2 | J109: 2
A110: 3 | B110: 95 | C110: DAWBER, Simon | D110: 16 | E110: 198 | F110: 4 | G110: 2 | H110: X | I110: 3 | J110: 3
A111: 4 | B111: 92 | C111: STEBBINGS, Robert | D111: 15 | E111: 150 | F111: 3 | G111: 2 | H111: X | I111: 5 | J111: 4
A112: 5 | B112: 91 | C112: CRAWFORD, Vince | D112: 7 | E112: 111 | F112: 2 | G112: 5 | H112: X | I112: 8 | J112: 5
A113: 6 | B113: 99 | C113: PRICE, Ben | D113: 7 | E113: 82 | F113: 1 | G113: 11.33333333 | H113: X | I113: 9 | J113: 6
A114: 7 | B114: 97 | C114: TOPPING, Mike | D114: 7 | E114: 79 | F114: 1 | G114: 10.33333333 | H114: X | I114: 10 | J114: 7
A115: 8 | B115: 101 | C115: BRADSHAW, Craig | D115: 4 | E115: 66 | F115: 1 | G115: 6 | H115: X | I115: 12 | J115: 8
A116: 9 | B116: 96 | C116: BATTLE, Ian | D116: 6 | E116: 56 | F116: 1 | G116: 2.666666667 | H116: X | I116: 14 | J116: 9
A117: 10
B118: NORTH NORFOLK BASS FESTIVAL 2019 | F118: Day 2 ZONE H
A119: Zone Number | B119: Peg | C119: Name | D119: No. Fish | E119: Total Weight Points | F119: Weight | H119: Optional Pools | I119: Day 2 Points | J119: Zone Position
F120: (lbs) | G120: (ozs)
A121: 1 | B121: 109 | C121: AKESTER, Jack | D121: 21 | E121: 451 | F121: 9 | G121: 6.333333333 | H121: X | I121: 1 | J121: 1
A122: 2 | B122: 120 | C122: WATTS, Mike | D122: 30 | E122: 351 | F122: 7 | G122: 5 | H122: X | I122: 2 | J122: 2
A123: 3 | B123: 116 | C123: SHAUL, Jimmy | D123: 21 | E123: 238 | F123: 4 | G123: 15.33333333 | H123: X | I123: 4 | J123: 3
A124: 4 | B124: 112 | C124: BANHAM, Jason | D124: 18 | E124: 222 | F124: 4 | G124: 10 | H124: X | I124: 6 | J124: 4
A125: 5 | B125: 119 | C125: BETTINSON, Charles | D125: 22 | E125: 218 | F125: 4 | G125: 8.666666667 | H125: X | I125: 7 | J125: 5
A126: 6 | B126: 111 | C126: GREEN, Kevin | D126: 17 | E126: 206 | F126: 4 | G126: 4.666666667 | H126: X | I126: 8 | J126: 6
A127: 7 | B127: 107 | C127: DRAYTON, Simon | D127: 12 | E127: 157 | F127: 3 | G127: 4.333333333 | H127: X | I127: 9 | J127: 7
A128: 8 | B128: 114 | C128: BANCROFT, Dave | D128: 11 | E128: 127 | F128: 2 | G128: 10.33333333 | H128: X | I128: 10 | J128: 8
A129: 9 | B129: 108 | C129: LING, Richard | D129: 10 | E129: 113 | F129: 2 | G129: 5.666666667 | H129: X | I129: 11 | J129: 9
A130: 10 | B130: 106 | C130: SHORTHOUSE, Dave | D130: 11 | E130: 100 | F130: 2 | G130: 1.333333333 | H130: X | I130: 12 | J130: 10
A131: 11 | B131: 117 | C131: BENNINGTON, Tom | D131: 8 | E131: 100 | F131: 2 | G131: 1.333333333 | H131: X | I131: 13 | J131: 11
A132: 12 | B132: 118 | C132: BENNINGTON, Graham | D132: 5 | E132: 44 | F132: 0 | G132: 14.66666667 | H132: X | I132: 14 | J132: 12

Sheet Day 1-All
A1: BASS FESTIVAL 2019 | F1: Day 1 (Individuals)
A2: Individual No. | B2: Angler Name | C2: Angler No. | D2: Zone | E2: Peg | F2: No. Fish | G2: Fish Points | H2: Weight | J2: Day 1 Points | K2: Day 1 Position
H3: lbs | I3: oz | L3: 3
A4: 1 | B4: SMITH, George | C4: 114 | D4: E | E4: 66 | F4: 16 | G4: 931 | H4: 19 | I4: 6.333333333 | J4: 1.000001074 | K4: 1
A5: 2 | B5: PROVINS, Colin | C5: 100 | D5: H | E5: 117 | F5: 32 | G5: 786 | H5: 16 | I5: 6 | J5: 1.000001272 | K5: 2
A6: 3 | B6: RUSSELL, Shane | C6: 25 | D6: B | E6: 29 | F6: 19 | G6: 761 | H6: 15 | I6: 13.66666667 | J6: 1.000001314 | K6: 3
A7: 4 | B7: BOWELL, Ian | C7: 93 | D7: C | E7: 43 | F7: 10 | G7: 507 | H7: 10 | I7: 9 | J7: 1.000001972 | K7: 4
A8: 5 | B8: ELLIOTT, Nathan | C8: 24 | D8: F | E8: 83 | F8: 32 | G8: 496 | H8: 10 | I8: 5.333333333 | J8: 1.000002015 | K8: 5
A9: 6 | B9: LINDFIELD, Bill | C9: 86 | D9: A | E9: 1 | F9: 15 | G9: 370 | H9: 7 | I9: 11.33333333 | J9: 1.000002702 | K9: 6
A10: 7 | B10: BUY, Craig | C10: 119 | D10: G | E10: 97 | F10: 18 | G10: 366 | H10: 7 | I10: 10 | J10: 1.000002731 | K10: 7
A11: 8 | B11: KINGDON, Adam | C11: 20 | D11: D | E11: 60 | F11: 12 | G11: 318 | H11: 6 | I11: 10 | J11: 1.000003143 | K11: 8
A12: 9 | B12: CUTLER, Neil | C12: 92 | D12: H | E12: 114 | F12: 31 | G12: 525 | H12: 10 | I12: 15 | J12: 2.000001904 | K12: 9
A13: 10 | B13: WRIGHT, Dave | C13: 33 | D13: E | E13: 62 | F13: 18 | G13: 453 | H13: 9 | I13: 7 | J13: 2.000002207 | K13: 10
A14: 11 | B14: TURNER, Cameron | C14: 11 | D14: C | E14: 31 | F14: 16 | G14: 394 | H14: 8 | I14: 3.333333333 | J14: 2.000002537 | K14: 11
A15: 12 | B15: HUTCHINSON (BP), Dave | C15: 90 | D15: G | E15: 105 | F15: 15 | G15: 338 | H15: 7 | I15: 0.6666666667 | J15: 2.000002957 | K15: 12
A16: 13 | B16: RANDELL, Henry | C16: 1 | D16: D | E16: 48 | F16: 11 | G16: 305 | H16: 6 | I16: 5.666666667 | J16: 2.000003278 | K16: 13
A17: 14 | B17: BRIGHTON, Tarrick | C17: 89 | D17: F | E17: 82 | F17: 27 | G17: 304 | H17: 6 | I17: 5.333333333 | J17: 2.000003287 | K17: 14
A18: 15 | B18: HUTSON, Garry | C18: 113 | D18: A | E18: 3 | F18: 9 | G18: 269 | H18: 5 | I18: 9.666666667 | J18: 2.000003716 | K18: 15
A19: 16 | B19: AKESTER, Jack | C19: 16 | D19: B | E19: 27 | F19: 7 | G19: 192 | H19: 4 | I19: 0 | J19: 2.000005206 | K19: 16
A20: 17 | B20: HUGHES, Gary | C20: 87 | D20: H | E20: 119 | F20: 20 | G20: 466 | H20: 9 | I20: 11.33333333 | J20: 3.000002145 | K20: 17
A21: 18 | B21: ALDOUS, David | C21: 50 | D21: E | E21: 65 | F21: 13 | G21: 414 | H21: 8 | I21: 10 | J21: 3.000002415 | K21: 18
A22: 19 | B22: MEDLER, Gary | C22: 26 | D22: C | E22: 37 | F22: 9 | G22: 353 | H22: 7 | I22: 5.666666667 | J22: 3.000002832 | K22: 19
A23: 20 | B23: ADAMS, Stephen | C23: 68 | D23: G | E23: 94 | F23: 16 | G23: 315 | H23: 6 | I23: 9 | J23: 3.000003173 | K23: 20
A24: 21 | B24: BURT, Richard | C24: 19 | D24: F | E24: 86 | F24: 21 | G24: 275 | H24: 5 | I24: 11.66666667 | J24: 3.000003634 | K24: 21
A25: 22 | B25: SPALL, Chris | C25: 4 | D25: D | E25: 46 | F25: 9 | G25: 227 | H25: 4 | I25: 11.66666667 | J25: 3.000004404 | K25: 22
A26: 23 | B26: CRAWFORD, Vince | C26: 76 | D26: A | E26: 8 | F26: 12 | G26: 208 | H26: 4 | I26: 5.333333333 | J26: 3.000004805 | K26: 23
A27: 24 | B27: SMITH, Leon | C27: 70 | D27: B | E27: 28 | F27: 10 | G27: 175 | H27: 3 | I27: 10.33333333 | J27: 3.000005711 | K27: 24
A28: 25 | B28: CANNELL, Chris | C28: 43 | D28: E | E28: 61 | F28: 13 | G28: 384 | H28: 8 | I28: 0 | J28: 4.000002603 | K28: 25
A29: 26 | B29: ELEY, Kevin | C29: 82 | D29: H | E29: 120 | F29: 26 | G29: 373 | H29: 7 | I29: 12.33333333 | J29: 4.000002679 | K29: 26
A30: 27 | B30: TUCK, Rob | C30: 109 | D30: C | E30: 42 | F30: 13 | G30: 337 | H30: 7 | I30: 0.3333333333 | J30: 4.000002966 | K30: 27
A31: 28 | B31: CLEMENT, Alby | C31: 65 | D31: F | E31: 85 | F31: 12 | G31: 271 | H31: 5 | I31: 10.33333333 | J31: 4.000003688 | K31: 28
A32: 29 | B32: NANGLE, Karl | C32: 44 | D32: G | E32: 99 | F32: 18 | G32: 263 | H32: 5 | I32: 7.666666667 | J32: 4.0000038 | K32: 29
A33: 30 | B33: BRADSHAW, Craig | C33: 117 | D33: A | E33: 11 | F33: 5 | G33: 205 | H33: 4 | I33: 4.333333333 | J33: 4.000004877 | K33: 30
A34: 31 | B34: BURR, Dave | C34: 30 | D34: B | E34: 26 | F34: 6 | G34: 164 | H34: 3 | I34: 6.666666667 | J34: 4.000006095 | K34: 31
A35: 32 | B35: BATTLE, Ian | C35: 51 | D35: D | E35: 57 | F35: 8 | G35: 150 | H35: 3 | I35: 2 | J35: 4.000006663 | K35: 32
A36: 33 | B36: DRIVER, Ed | C36: 49 | D36: H | E36: 107 | F36: 14 | G36: 367 | H36: 7 | I36: 10.33333333 | J36: 5.000002724 | K36: 33
A37: 34 | B37: HARVEY, Mark | C37: 80 | D37: C | E37: 38 | F37: 4 | G37: 263 | H37: 5 | I37: 7.666666667 | J37: 5.000003802 | K37: 34
A38: 35 | B38: ADAMS, Lee | C38: 22 | D38: F | E38: 76 | F38: 12 | G38: 261 | H38: 5 | I38: 7 | J38: 5.00000383 | K38: 35
A39: 36 | B39: SELF, Bevan | C39: 8 | D39: E | E39: 68 | F39: 11 | G39: 252 | H39: 5 | I39: 4 | J39: 5.000003967 | K39: 36
A40: 37 | B40: SHARMAN, Mark | C40: 108 | D40: G | E40: 98 | F40: 15 | G40: 227 | H40: 4 | I40: 11.66666667 | J40: 5.000004402 | K40: 37
A41: 38 | B41: STORER, Paul | C41: 7 | D41: A | E41: 9 | F41: 10 | G41: 162 | H41: 3 | I41: 6 | J41: 5.000006169 | K41: 38
A42: 39 | B42: DIAPER, Greg | C42: 3 | D42: B | E42: 25 | F42: 6 | G42: 153 | H42: 3 | I42: 3 | J42: 5.000006533 | K42: 39
A43: 40 | B43: BORDIANU, Adrian | C43: 103 | D43: D | E43: 54 | F43: 6 | G43: 132 | H43: 2 | I43: 12 | J43: 5.000007572 | K43: 40
A44: 41 | B44: McKENZIE, Brian | C44: 112 | D44: H | E44: 118 | F44: 21 | G44: 283 | H44: 5 | I44: 14.33333333 | J44: 6.000003531 | K44: 41
A45: 42 | B45: THORPE, Doug | C45: 104 | D45: E | E45: 70 | F45: 8 | G45: 251 | H45: 5 | I45: 3.666666667 | J45: 6.000003983 | K45: 42
A46: 43 | B46: BROCK, Peter | C46: 42 | D46: F | E46: 77 | F46: 17 | G46: 226 | H46: 4 | I46: 11.33333333 | J46: 6.000004421 | K46: 43
A47: 44 | B47: SHAUL, Jimmy | C47: 94 | D47: C | E47: 44 | F47: 5 | G47: 226 | H47: 4 | I47: 11.33333333 | J47: 6.000004424 | K47: 44
A48: 45 | B48: STONE, Barry | C48: 79 | D48: G | E48: 92 | F48: 18 | G48: 186 | H48: 3 | I48: 14 | J48: 6.000005371 | K48: 45
A49: 46 | B49: BENNETT, Rick | C49: 41 | D49: A | E49: 15 | F49: 10 | G49: 146 | H49: 3 | I49: 0.6666666667 | J49: 6.000006845 | K49: 46
A50: 47 | B50: SMITH, Adele | C50: 62 | D50: B | E50: 21 | F50: 10 | G50: 141 | H50: 2 | I50: 15 | J50: 6.000007087 | K50: 47
A51: 48 | B51: NELSON, Ian | C51: 53 | D51: D | E51: 47 | F51: 4 | G51: 105 | H51: 2 | I51: 3 | J51: 6.00000952 | K51: 48
A52: 49 | B52: HIPPERSON, Richard | C52: 77 | D52: H | E52: 115 | F52: 24 | G52: 269 | H52: 5 | I52: 9.666666667 | J52: 7.000003714 | K52: 49
A53: 50 | B53: SMITH, John | C53: 13 | D53: E | E53: 67 | F53: 13 | G53: 237 | H53: 4 | I53: 15 | J53: 7.000004217 | K53: 50
A54: 51 | B54: DIAPER, Barry | C54: 36 | D54: F | E54: 81 | F54: 12 | G54: 214 | H54: 4 | I54: 7.333333333 | J54: 7.00000467 | K54: 51
A55: 52 | B55: GASCOIGNE, Robert | C55: 5 | D55: G | E55: 91 | F55: 16 | G55: 186 | H55: 3 | I55: 14 | J55: 7.000005372 | K55: 52
A56: 53 | B56: THOMAS, Tony | C56: 18 | D56: C | E56: 40 | F56: 7 | G56: 184 | H56: 3 | I56: 13.33333333 | J56: 7.000005433 | K56: 53
A57: 54 | B57: WATTS, Mike | C57: 46 | D57: B | E57: 24 | F57: 7 | G57: 141 | H57: 2 | I57: 15 | J57: 7.000007089 | K57: 54
A58: 55 | B58: EAGLE, Dan | C58: 91 | D58: A | E58: 10 | F58: 5 | G58: 141 | H58: 2 | I58: 15 | J58: 7.00000709 | K58: 55
A59: 56 | B59: BENNINGTON, Tom | C59: 69 | D59: D | E59: 55 | F59: 4 | G59: 84 | H59: 1 | I59: 12 | J59: 7.000011899 | K59: 56
A60: 57 | B60: FATTIZZO, Tony | C60: 60 | D60: H | E60: 111 | F60: 14 | G60: 254 | H60: 5 | I60: 4.666666667 | J60: 8.000003935 | K60: 57
A61: 58 | B61: WOODS, Graham | C61: 39 | D61: E | E61: 74 | F61: 8 | G61: 235 | H61: 4 | I61: 14.33333333 | J61: 8.000004254 | K61: 58
A62: 59 | B62: CHAMBERLAIN, Darren | C62: 21 | D62: F | E62: 84 | F62: 16 | G62: 210 | H62: 4 | I62: 6 | J62: 8.000004758 | K62: 59
A63: 60 | B63: DENHOLM, Paul | C63: 9 | D63: C | E63: 34 | F63: 13 | G63: 176 | H63: 3 | I63: 10.66666667 | J63: 8.000005678 | K63: 60
A64: 61 | B64: SMART, Neil | C64: 107 | D64: G | E64: 95 | F64: 16 | G64: 172 | H64: 3 | I64: 9.333333333 | J64: 8.000005809 | K64: 61
A65: 62 | B65: GREEN, Kevin | C65: 105 | D65: B | E65: 16 | F65: 7 | G65: 129 | H65: 2 | I65: 11 | J65: 8.000007748 | K65: 62
A66: 63 | B66: HARVEY, John | C66: 111 | D66: A | E66: 14 | F66: 6 | G66: 126 | H66: 2 | I66: 10 | J66: 8.000007933 | K66: 63
A67: 64 | B67: DAWBER, Simon | C67: 116 | D67: D | E67: 53 | F67: 4 | G67: 81 | H67: 1 | I67: 11 | J67: 8.00001234 | K67: 64
A68: 65 | B68: TEMPLE, Billy | C68: 73 | D68: E | E68: 72 | F68: 12 | G68: 230 | H68: 4 | I68: 12.66666667 | J68: 9.000004346 | K68: 65
A69: 66 | B69: HURCOMBE, Mark | C69: 58 | D69: F | E69: 78 | F69: 13 | G69: 180 | H69: 3 | I69: 12 | J69: 9.000005552 | K69: 66
A70: 67 | B70: STEBBINGS, Robert | C70: 38 | D70: C | E70: 36 | F70: 7 | G70: 176 | H70: 3 | I70: 10.66666667 | J70: 9.00000568 | K70: 67
A71: 68 | B71: FRARY, Charlie | C71: 120 | D71: G | E71: 102 | F71: 15 | G71: 154 | H71: 3 | I71: 3.333333333 | J71: 9.000006487 | K71: 68
A72: 69 | B72: PARROTT, Ade | C72: 95 | D72: H | E72: 112 | F72: 9 | G72: 150 | H72: 3 | I72: 2 | J72: 9.000006663 | K72: 69
A73: 70 | B73: TOPPING, Mike | C73: 40 | D73: A | E73: 6 | F73: 5 | G73: 119 | H73: 2 | I73: 7.666666667 | J73: 9.0000084 | K73: 70
A74: 71 | B74: BANHAM, Jason | C74: 15 | D74: B | E74: 23 | F74: 5 | G74: 118 | H74: 2 | I74: 7.333333333 | J74: 9.000008471 | K74: 71
A75: 72 | B75: SHORTHOUSE, Dave | C75: 118 | D75: D | E75: 52 | F75: 3 | G75: 66 | H75: 1 | I75: 6 | J75: 9.000015145 | K75: 72
A76: 73 | B76: WARD, Mark | C76: 59 | D76: E | E76: 63 | F76: 8 | G76: 183 | H76: 3 | I76: 13 | J76: 10.00000546 | K76: 73
A77: 74 | B77: LITTLEWOOD, Stuart | C77: 14 | D77: F | E77: 90 | F77: 15 | G77: 157 | H77: 3 | I77: 4.333333333 | J77: 10.00000636 | K77: 74
A78: 75 | B78: PRICE, Ben | C78: 34 | D78: C | E78: 33 | F78: 7 | G78: 156 | H78: 3 | I78: 4 | J78: 10.00000641 | K78: 75
A79: 76 | B79: ADAMS, Graham | C79: 12 | D79: G | E79: 93 | F79: 13 | G79: 154 | H79: 3 | I79: 3.333333333 | J79: 10.00000649 | K79: 76
A80: 77 | B80: HARVEY, Paul | C80: 75 | D80: H | E80: 116 | F80: 8 | G80: 136 | H80: 2 | I80: 13.33333333 | J80: 10.00000735 | K80: 77
A81: 78 | B81: SHAUL, Keith | C81: 98 | D81: A | E81: 2 | F81: 7 | G81: 80 | H81: 1 | I81: 10.66666667 | J81: 10.00001249 | K81: 78
A82: 79 | B82: HADDOCK, Roy | C82: 45 | D82: B | E82: 18 | F82: 5 | G82: 66 | H82: 1 | I82: 6 | J82: 10.00001514 | K82: 79
A83: 80 | B83: BENNINGTON, Graham | C83: 57 | D83: D | E83: 56 | F83: 2 | G83: 44 | H83: 0 | I83: 14.66666667 | J83: 10.00002272 | K83: 80
A84: 81 | B84: JARMAN, Wayne | C84: 47 | D84: E | E84: 69 | F84: 11 | G84: 169 | H84: 3 | I84: 8.333333333 | J84: 11.00000591 | K84: 81
A85: 82 | B85: GOOCH, Mark | C85: 56 | D85: F | E85: 88 | F85: 10 | G85: 154 | H85: 3 | I85: 3.333333333 | J85: 11.00000649 | K85: 82
A86: 83 | B86: WOODS, Becky | C86: 63 | D86: C | E86: 35 | F86: 8 | G86: 149 | H86: 3 | I86: 1.666666667 | J86: 11.00000671 | K86: 83
A87: 84 | B87: RUSH, Billy | C87: 64 | D87: G | E87: 101 | F87: 9 | G87: 141 | H87: 2 | I87: 15 | J87: 11.00000709 | K87: 84
A88: 85 | B88: GROSSMAN, Martin | C88: 67 | D88: H | E88: 110 | F88: 4 | G88: 98 | H88: 2 | I88: 0.6666666667 | J88: 11.0000102 | K88: 85
A89: 86 | B89: BETTINSON, Charles | C89: 115 | D89: A | E89: 4 | F89: 5 | G89: 52 | H89: 1 | I89: 1.333333333 | J89: 11.00001921 | K89: 86
A90: 87 | B90: BANCROFT, Dave | C90: 17 | D90: B | E90: 19 | F90: 3 | G90: 50 | H90: 1 | I90: 0.6666666667 | J90: 11.00001999 | K90: 87
A91: 88 | B91: McCOY, Ken | C91: 52 | D91: D | E91: 50 | F91: 1 | G91: 12 | H91: 0 | I91: 4 | J91: 11.00008326 | K91: 88
A92: 89 | B92: WALLIS, Craig | C92: 101 | D92: E | E92: 71 | F92: 11 | G92: 152 | H92: 3 | I92: 2.666666667 | J92: 12.00000657 | K92: 89
A93: 90 | B93: FRARY, June | C93: 32 | D93: G | E93: 103 | F93: 12 | G93: 129 | H93: 2 | I93: 11 | J93: 12.00000774 | K93: 90
A94: 91 | B94: JACOBS, Richard | C94: 106 | D94: C | E94: 32 | F94: 7 | G94: 129 | H94: 2 | I94: 11 | J94: 12.00000775 | K94: 91
A95: 92 | B95: SMITH, Andy | C95: 31 | D95: H | E95: 106 | F95: 9 | G95: 94 | H95: 1 | I95: 15.33333333 | J95: 12.00001063 | K95: 92
A96: 93 | B96: HART, Paul | C96: 72 | D96: F | E96: 89 | F96: 8 | G96: 88 | H96: 1 | I96: 13.33333333 | J96: 12.00001135 | K96: 93
A97: 94 | B97: AUSTIN, John | C97: 74 | D97: A | E97: 7 | F97: 4 | G97: 52 | H97: 1 | I97: 1.333333333 | J97: 12.00001922 | K97: 94
A98: 95 | B98: LING, Richard | C98: 81 | D98: B | E98: 20 | F98: 2 | G98: 21 | H98: 0 | I98: 7 | J98: 12.00004757 | K98: 95
A99: 96 | B99: THORBURN, Paul | C99: 55 | D99: E | E99: 73 | F99: 3 | G99: 118 | H99: 2 | I99: 7.333333333 | J99: 13.00000847 | K99: 96
A100: 97 | B100: HARRISON, Paul | C100: 96 | D100: C | E100: 41 | F100: 4 | G100: 103 | H100: 2 | I100: 2.333333333 | J100: 13.0000097 | K100: 97
A101: 98 | B101: LAY-FLURRIE, Matt | C101: 71 | D101: G | E101: 96 | F101: 9 | G101: 89 | H101: 1 | I101: 13.66666667 | J101: 13.00001122 | K101: 98
A102: 99 | B102: NICHOLSON, Steven | C102: 6 | D102: H | E102: 109 | F102: 4 | G102: 89 | H102: 1 | I102: 13.66666667 | J102: 13.00001123 | K102: 99
A103: 100 | B103: DOY, Alan | C103: 88 | D103: F | E103: 87 | F103: 3 | G103: 30 | H103: 0 | I103: 10 | J103: 13.0000333 | K103: 100
A104: 101 | B104: DRAYTON, Simon | C104: 37 | D104: C | E104: 39 | F104: 6 | G104: 84 | H104: 1 | I104: 12 | J104: 14.0000119 | K104: 101
A105: 102 | B105: WHITE, Alan | C105: 54 | D105: E | E105: 75 | F105: 6 | G105: 84 | H105: 1 | I105: 12 | J105: 14.0000119 | K105: 101
A106: 103 | B106: CARTER, John | C106: 66 | D106: G | E106: 104 | F106: 6 | G106: 83 | H106: 1 | I106: 11.66666667 | J106: 14.00001204 | K106: 103
A107: 104 | B107: CREASEY, Shaun | C107: 61 | D107: H | E107: 108 | F107: 5 | G107: 42 | H107: 0 | I107: 14 | J107: 14.00002378 | K107: 104
A108: 105 | B108: KING, Simon | C108: 78 | D108: A | E108: 13 | F108: 0 | G108: 0 | H108: 0 | I108: 0 | J108: 15 | K108: 105
A109: 106 | B109: LAMBERT, Ian | C109: 35 | D109: D | E109: 49 | F109: 0 | G109: 0 | H109: 0 | I109: 0 | J109: 15 | K109: 105

Sheet Day 2-All
A1: BASS FESTIVAL 2019 | F1: Day 2 (Individuals)
A2: Individual No. | B2: Angler Name | C2: Angler No. | D2: Zone | E2: Peg | F2: No. Fish | G2: Fish Points | H2: Weight | J2: Day 2 Points | K2: Day 2 Position
H3: lbs | I3: oz
A4: 1 | B4: TUCK, Rob | C4: 109 | D4: F | E4: 81 | F4: 23 | G4: 524 | H4: 10 | I4: 14.66666667 | J4: 1.000001908 | K4: 1
A5: 2 | B5: CLEMENT, Alby | C5: 65 | D5: B | E5: 20 | F5: 18 | G5: 473 | H5: 9 | I5: 13.66666667 | J5: 1.000002113 | K5: 2
A6: 3 | B6: AKESTER, Jack | C6: 16 | D6: H | E6: 109 | F6: 21 | G6: 451 | H6: 9 | I6: 6.333333333 | J6: 1.000002216 | K6: 3
A7: 4 | B7: HUTSON, Garry | C7: 113 | D7: E | E7: 61 | F7: 7 | G7: 434 | H7: 9 | I7: 0.6666666667 | J7: 1.000002304 | K7: 4
A8: 5 | B8: GASCOIGNE, Robert | C8: 5 | D8: A | E8: 11 | F8: 11 | G8: 351 | H8: 7 | I8: 5 | J8: 1.000002848 | K8: 5
A9: 6 | B9: WOODS, Graham | C9: 39 | D9: D | E9: 47 | F9: 5 | G9: 311 | H9: 6 | I9: 7.666666667 | J9: 1.000003215 | K9: 6
A10: 7 | B10: RANDELL, Henry | C10: 1 | D10: G | E10: 100 | F10: 14 | G10: 252 | H10: 5 | I10: 4 | J10: 1.000003966 | K10: 7
A11: 8 | B11: WRIGHT, Dave | C11: 33 | D11: C | E11: 36 | F11: 7 | G11: 213 | H11: 4 | I11: 7 | J11: 1.000004693 | K11: 8
A12: 9 | B12: WATTS, Mike | C12: 46 | D12: H | E12: 120 | F12: 30 | G12: 351 | H12: 7 | I12: 5 | J12: 2.000002847 | K12: 9
A13: 10 | B13: ADAMS, Stephen | C13: 68 | D13: D | E13: 46 | F13: 12 | G13: 296 | H13: 6 | I13: 2.666666667 | J13: 2.000003377 | K13: 10
A14: 11 | B14: TURNER, Cameron | C14: 11 | D14: F | E14: 86 | F14: 14 | G14: 280 | H14: 5 | I14: 13.33333333 | J14: 2.00000357 | K14: 11
A15: 12 | B15: MEDLER, Gary | C15: 26 | D15: E | E15: 67 | F15: 7 | G15: 252 | H15: 5 | I15: 4 | J15: 2.000003967 | K15: 12
A16: 13 | B16: WARD, Mark | C16: 59 | D16: A | E16: 2 | F16: 12 | G16: 245 | H16: 5 | I16: 1.666666667 | J16: 2.00000408 | K16: 13
A17: 14 | B17: FRARY, Charlie | C17: 120 | D17: B | E17: 22 | F17: 7 | G17: 225 | H17: 4 | I17: 11 | J17: 2.000004443 | K17: 14
A18: 15 | B18: LINDFIELD, Bill | C18: 86 | D18: G | E18: 93 | F18: 14 | G18: 210 | H18: 4 | I18: 6 | J18: 2.000004759 | K18: 15
A19: 16 | B19: ADAMS, Lee | C19: 22 | D19: C | E19: 34 | F19: 7 | G19: 169 | H19: 3 | I19: 8.333333333 | J19: 2.000005915 | K19: 16
A20: 17 | B20: SPALL, Chris | C20: 4 | D20: F | E20: 89 | F20: 18 | G20: 251 | H20: 5 | I20: 3.666666667 | J20: 3.000003981 | K20: 17
A21: 18 | B21: SHAUL, Jimmy | C21: 94 | D21: H | E21: 116 | F21: 21 | G21: 238 | H21: 4 | I21: 15.33333333 | J21: 3.000004198 | K21: 18
A22: 19 | B22: HARRISON, Paul | C22: 96 | D22: E | E22: 65 | F22: 14 | G22: 216 | H22: 4 | I22: 8 | J22: 3.000004627 | K22: 19
A23: 20 | B23: CANNELL, Chris | C23: 43 | D23: D | E23: 54 | F23: 6 | G23: 216 | H23: 4 | I23: 8 | J23: 3.000004628 | K23: 20
A24: 21 | B24: DAWBER, Simon | C24: 116 | D24: G | E24: 95 | F24: 16 | G24: 198 | H24: 4 | I24: 2 | J24: 3.000005046 | K24: 21
A25: 22 | B25: HURCOMBE, Mark | C25: 58 | D25: B | E25: 23 | F25: 8 | G25: 196 | H25: 4 | I25: 1.333333333 | J25: 3.0000051 | K25: 22
A26: 23 | B26: DRIVER, Ed | C26: 49 | D26: A | E26: 10 | F26: 10 | G26: 174 | H26: 3 | I26: 10 | J26: 3.000005744 | K26: 23
A27: 24 | B27: SMITH, Andy | C27: 31 | D27: C | E27: 37 | F27: 5 | G27: 162 | H27: 3 | I27: 6 | J27: 3.000006171 | K27: 24
A28: 25 | B28: BANHAM, Jason | C28: 15 | D28: H | E28: 112 | F28: 18 | G28: 222 | H28: 4 | I28: 10 | J28: 4.000004501 | K28: 25
A29: 26 | B29: STORER, Paul | C29: 7 | D29: F | E29: 80 | F29: 14 | G29: 219 | H29: 4 | I29: 9 | J29: 4.000004563 | K29: 26
A30: 27 | B30: DIAPER, Greg | C30: 3 | D30: E | E30: 74 | F30: 7 | G30: 178 | H30: 3 | I30: 11.33333333 | J30: 4.000005616 | K30: 27
A31: 28 | B31: BURT, Richard | C31: 19 | D31: D | E31: 57 | F31: 7 | G31: 166 | H31: 3 | I31: 7.333333333 | J31: 4.000006022 | K31: 28
A32: 29 | B32: HUGHES, Gary | C32: 87 | D32: B | E32: 30 | F32: 6 | G32: 161 | H32: 3 | I32: 5.666666667 | J32: 4.000006209 | K32: 29
A33: 30 | B33: STEBBINGS, Robert | C33: 38 | D33: G | E33: 92 | F33: 15 | G33: 150 | H33: 3 | I33: 2 | J33: 4.00000666 | K33: 30
A34: 31 | B34: CUTLER, Neil | C34: 92 | D34: C | E34: 35 | F34: 6 | G34: 150 | H34: 3 | I34: 2 | J34: 4.000006664 | K34: 31
A35: 32 | B35: WHITE, Alan | C35: 54 | D35: A | E35: 4 | F35: 9 | G35: 121 | H35: 2 | I35: 8.333333333 | J35: 4.000008258 | K35: 32
A36: 33 | B36: BETTINSON, Charles | C36: 115 | D36: H | E36: 119 | F36: 22 | G36: 218 | H36: 4 | I36: 8.666666667 | J36: 5.000004583 | K36: 33
A37: 34 | B37: BOWELL, Ian | C37: 93 | D37: F | E37: 88 | F37: 14 | G37: 183 | H37: 3 | I37: 13 | J37: 5.00000546 | K37: 34
A38: 35 | B38: JACOBS, Richard | C38: 106 | D38: E | E38: 72 | F38: 8 | G38: 177 | H38: 3 | I38: 11 | J38: 5.000005647 | K38: 35
A39: 36 | B39: GROSSMAN, Martin | C39: 67 | D39: B | E39: 19 | F39: 5 | G39: 134 | H39: 2 | I39: 12.66666667 | J39: 5.00000746 | K39: 36
A40: 37 | B40: WALLIS, Craig | C40: 101 | D40: A | E40: 15 | F40: 9 | G40: 116 | H40: 2 | I40: 6.666666667 | J40: 5.000008614 | K40: 37
A41: 38 | B41: SMITH, George | C41: 114 | D41: D | E41: 56 | F41: 3 | G41: 116 | H41: 2 | I41: 6.666666667 | J41: 5.000008618 | K41: 38
A42: 39 | B42: CRAWFORD, Vince | C42: 76 | D42: G | E42: 91 | F42: 7 | G42: 111 | H42: 2 | I42: 5 | J42: 5.000009003 | K42: 39
A43: 40 | B43: SELF, Bevan | C43: 8 | D43: C | E43: 38 | F43: 6 | G43: 88 | H43: 1 | I43: 13.33333333 | J43: 5.000011356 | K43: 40
A44: 41 | B44: GREEN, Kevin | C44: 105 | D44: H | E44: 111 | F44: 17 | G44: 206 | H44: 4 | I44: 4.666666667 | J44: 6.00000485 | K44: 41
A45: 42 | B45: BENNETT, Rick | C45: 41 | D45: F | E45: 82 | F45: 14 | G45: 173 | H45: 3 | I45: 9.666666667 | J45: 6.000005776 | K45: 42
A46: 43 | B46: EAGLE, Dan | C46: 91 | D46: E | E46: 62 | F46: 6 | G46: 153 | H46: 3 | I46: 3 | J46: 6.000006533 | K46: 43
A47: 44 | B47: HIPPERSON, Richard | C47: 77 | D47: B | E47: 27 | F47: 8 | G47: 117 | H47: 2 | I47: 7 | J47: 6.000008541 | K47: 44
A48: 45 | B48: BUY, Craig | C48: 119 | D48: D | E48: 55 | F48: 5 | G48: 114 | H48: 2 | I48: 6 | J48: 6.000008768 | K48: 45
A49: 46 | B49: ELLIOTT, Nathan | C49: 24 | D49: A | E49: 3 | F49: 9 | G49: 109 | H49: 2 | I49: 4.333333333 | J49: 6.000009167 | K49: 46
A50: 47 | B50: PRICE, Ben | C50: 34 | D50: G | E50: 99 | F50: 7 | G50: 82 | H50: 1 | I50: 11.33333333 | J50: 6.000012185 | K50: 47
A51: 48 | B51: LITTLEWOOD, Stuart | C51: 14 | D51: C | E51: 40 | F51: 5 | G51: 82 | H51: 1 | I51: 11.33333333 | J51: 6.000012188 | K51: 48
A52: 49 | B52: AUSTIN, John | C52: 74 | D52: F | E52: 83 | F52: 12 | G52: 171 | H52: 3 | I52: 9 | J52: 7.000005844 | K52: 49
A53: 50 | B53: DRAYTON, Simon | C53: 37 | D53: H | E53: 107 | F53: 12 | G53: 157 | H53: 3 | I53: 4.333333333 | J53: 7.000006365 | K53: 50
A54: 51 | B54: RUSSELL, Shane | C54: 25 | D54: E | E54: 69 | F54: 8 | G54: 146 | H54: 3 | I54: 0.6666666667 | J54: 7.000006846 | K54: 51
A55: 52 | B55: CHAMBERLAIN, Darren | C55: 21 | D55: D | E55: 48 | F55: 7 | G55: 96 | H55: 2 | I55: 0 | J55: 7.000010409 | K55: 52
A56: 53 | B56: THORPE, Doug | C56: 104 | D56: A | E56: 8 | F56: 7 | G56: 92 | H56: 1 | I56: 14.66666667 | J56: 7.000010861 | K56: 53
A57: 54 | B57: STONE, Barry | C57: 79 | D57: B | E57: 28 | F57: 10 | G57: 87 | H57: 1 | I57: 13 | J57: 7.000011481 | K57: 54
A58: 55 | B58: TOPPING, Mike | C58: 40 | D58: G | E58: 97 | F58: 7 | G58: 79 | H58: 1 | I58: 10.33333333 | J58: 7.000012647 | K58: 55
A59: 56 | B59: TEMPLE, Billy | C59: 73 | D59: C | E59: 45 | F59: 4 | G59: 78 | H59: 1 | I59: 10 | J59: 7.000012814 | K59: 56
A60: 57 | B60: McCOY, Ken | C60: 52 | D60: E | E60: 63 | F60: 8 | G60: 128 | H60: 2 | I60: 10.66666667 | J60: 8.000007808 | K60: 57
A61: 58 | B61: BANCROFT, Dave | C61: 17 | D61: H | E61: 114 | F61: 11 | G61: 127 | H61: 2 | I61: 10.33333333 | J61: 8.000007867 | K61: 58
A62: 59 | B62: KINGDON, Adam | C62: 20 | D62: F | E62: 78 | F62: 12 | G62: 118 | H62: 2 | I62: 7.333333333 | J62: 8.000008466 | K62: 59
A63: 60 | B63: PROVINS, Colin | C63: 100 | D63: D | E63: 59 | F63: 8 | G63: 88 | H63: 1 | I63: 13.33333333 | J63: 8.000011353 | K63: 60
A64: 61 | B64: NICHOLSON, Steven | C64: 6 | D64: B | E64: 29 | F64: 5 | G64: 87 | H64: 1 | I64: 13 | J64: 8.000011488 | K64: 61
A65: 62 | B65: McKENZIE, Brian | C65: 112 | D65: A | E65: 1 | F65: 7 | G65: 72 | H65: 1 | I65: 8 | J65: 8.000013875 | K65: 62
A66: 63 | B66: ELEY, Kevin | C66: 82 | D66: C | E66: 39 | F66: 4 | G66: 67 | H66: 1 | I66: 6.333333333 | J66: 8.000014916 | K66: 63
A67: 64 | B67: BRADSHAW, Craig | C67: 117 | D67: G | E67: 101 | F67: 4 | G67: 66 | H67: 1 | I67: 6 | J67: 8.000015142 | K67: 64
A68: 65 | B68: LING, Richard | C68: 81 | D68: H | E68: 108 | F68: 10 | G68: 113 | H68: 2 | I68: 5.666666667 | J68: 9.000008842 | K68: 65
A69: 66 | B69: BORDIANU, Adrian | C69: 103 | D69: E | E69: 66 | F69: 8 | G69: 106 | H69: 2 | I69: 3.333333333 | J69: 9.000009427 | K69: 66
A70: 67 | B70: WOODS, Becky | C70: 63 | D70: F | E70: 76 | F70: 6 | G70: 89 | H70: 1 | I70: 13.66666667 | J70: 9.000011228 | K70: 67
A71: 68 | B71: SMITH, John | C71: 13 | D71: D | E71: 58 | F71: 5 | G71: 78 | H71: 1 | I71: 10 | J71: 9.000012812 | K71: 68
A72: 69 | B72: KING, Simon | C72: 78 | D72: G | E72: 105 | F72: 3 | G72: 66 | H72: 1 | I72: 6 | J72: 9.000015145 | K72: 69
A73: 70 | B73: HARVEY, Paul | C73: 75 | D73: C | E73: 43 | F73: 4 | G73: 56 | H73: 1 | I73: 2.666666667 | J73: 9.000017844 | K73: 70
A74: 71 | B74: FRARY, June | C74: 32 | D74: B | E74: 21 | F74: 2 | G74: 45 | H74: 0 | I74: 15 | J74: 9.000022212 | K74: 71
A75: 72 | B75: LAY-FLURRIE, Matt | C75: 71 | D75: A | E75: 9 | F75: 3 | G75: 41 | H75: 0 | I75: 13.66666667 | J75: 9.000024372 | K75: 72
A76: 73 | B76: SHORTHOUSE, Dave | C76: 118 | D76: H | E76: 106 | F76: 11 | G76: 100 | H76: 2 | I76: 1.333333333 | J76: 10.00000999 | K76: 73
A77: 74 | B77: NELSON, Ian | C77: 53 | D77: E | E77: 68 | F77: 3 | G77: 97 | H77: 2 | I77: 0.3333333333 | J77: 10.00001031 | K77: 74
A78: 75 | B78: DOY, Alan | C78: 88 | D78: D | E78: 60 | F78: 5 | G78: 71 | H78: 1 | I78: 7.666666667 | J78: 10.00001407 | K78: 75
A79: 76 | B79: HADDOCK, Roy | C79: 45 | D79: F | E79: 90 | F79: 5 | G79: 70 | H79: 1 | I79: 7.333333333 | J79: 10.00001428 | K79: 76
A80: 77 | B80: BATTLE, Ian | C80: 51 | D80: G | E80: 96 | F80: 6 | G80: 56 | H80: 1 | I80: 2.666666667 | J80: 10.00001784 | K80: 77
A81: 78 | B81: HART, Paul | C81: 72 | D81: C | E81: 31 | F81: 4 | G81: 53 | H81: 1 | I81: 1.666666667 | J81: 10.00001885 | K81: 78
A82: 79 | B82: ADAMS, Graham | C82: 12 | D82: A | E82: 7 | F82: 2 | G82: 30 | H82: 0 | I82: 10 | J82: 10.00003331 | K82: 79
A83: 80 | B83: BENNINGTON, Tom | C83: 69 | D83: H | E83: 117 | F83: 8 | G83: 100 | H83: 2 | I83: 1.333333333 | J83: 11.00000999 | K83: 80
A84: 81 | B84: SMITH, Adele | C84: 62 | D84: E | E84: 70 | F84: 6 | G84: 80 | H84: 1 | I84: 10.66666667 | J84: 11.00001249 | K84: 81
A85: 82 | B85: HUTCHINSON (BP), Dave | C85: 90 | D85: D | E85: 50 | F85: 4 | G85: 61 | H85: 1 | I85: 4.333333333 | J85: 11.00001638 | K85: 82
A86: 83 | B86: BURR, Dave | C86: 30 | D86: F | E86: 84 | F86: 6 | G86: 56 | H86: 1 | I86: 2.666666667 | J86: 11.00001784 | K86: 83
A87: 84 | B87: JARMAN, Wayne | C87: 47 | D87: A | E87: 13 | F87: 4 | G87: 26 | H87: 0 | I87: 8.666666667 | J87: 11.0000384 | K87: 84
A88: 85 | B88: CREASEY, Shaun | C88: 61 | D88: C | E88: 32 | F88: 1 | G88: 8 | H88: 0 | I88: 2.666666667 | J88: 11.00012484 | K88: 85
A89: 86 | B89: THOMAS, Tony | C89: 18 | D89: E | E89: 73 | F89: 5 | G89: 70 | H89: 1 | I89: 7.333333333 | J89: 12.00001428 | K89: 86
A90: 87 | B90: NANGLE, Karl | C90: 44 | D90: D | E90: 53 | F90: 3 | G90: 56 | H90: 1 | I90: 2.666666667 | J90: 12.00001785 | K90: 87
A91: 88 | B91: SMITH, Leon | C91: 70 | D91: F | E91: 79 | F91: 3 | G91: 46 | H91: 0 | I91: 15.33333333 | J91: 12.00002172 | K91: 88
A92: 89 | B92: BENNINGTON, Graham | C92: 57 | D92: H | E92: 118 | F92: 5 | G92: 44 | H92: 0 | I92: 14.66666667 | J92: 12.0000227 | K92: 89
A93: 90 | B93: CARTER, John | C93: 66 | D93: A | E93: 12 | F93: 3 | G93: 21 | H93: 0 | I93: 7 | J93: 12.00004755 | K93: 90
A94: 91 | B94: SHAUL, Keith | C94: 98 | D94: E | E94: 75 | F94: 3 | G94: 70 | H94: 1 | I94: 7.333333333 | J94: 13.00001428 | K94: 91
A95: 92 | B95: DIAPER, Barry | C95: 36 | D95: D | E95: 52 | F95: 4 | G95: 50 | H95: 1 | I95: 0.6666666667 | J95: 13.00001998 | K95: 92
A96: 93 | B96: DENHOLM, Paul | C96: 9 | D96: F | E96: 87 | F96: 4 | G96: 37 | H96: 0 | I96: 12.33333333 | J96: 13.000027 | K96: 93
A97: 94 | B97: RUSH, Billy | C97: 64 | D97: A | E97: 14 | F97: 2 | G97: 15 | H97: 0 | I97: 5 | J97: 13.00006658 | K97: 94
A98: 95 | B98: HARVEY, John | C98: 111 | D98: E | E98: 64 | F98: 3 | G98: 22 | H98: 0 | I98: 7.333333333 | J98: 14.00004539 | K98: 95
A99: 96 | B99: HARVEY, Mark | C99: 80 | D99: F | E99: 77 | F99: 3 | G99: 18 | H99: 0 | I99: 6 | J99: 14.00005546 | K99: 96
A100: 97 | B100: THORBURN, Paul | C100: 55 | D100: B | E100: 16 | F100: 0 | G100: 0 | H100: 0 | I100: 0 | J100: 15 | K100: 97
A101: 98 | B101: BRIGHTON, Tarrick | C101: 89 | D101: B | E101: 17 | F101: 0 | G101: 0 | H101: 0 | I101: 0 | J101: 15 | K101: 97
A102: 99 | B102: FATTIZZO, Tony | C102: 60 | D102: B | E102: 24 | F102: 0 | G102: 0 | H102: 0 | I102: 0 | J102: 15 | K102: 97
A103: 100 | B103: PARROTT, Ade | C103: 95 | D103: B | E103: 25 | F103: 0 | G103: 0 | H103: 0 | I103: 0 | J103: 15 | K103: 97
A104: 101 | B104: SHARMAN, Mark | C104: 108 | D104: B | E104: 26 | F104: 0 | G104: 0 | H104: 0 | I104: 0 | J104: 15 | K104: 97
A105: 102 | B105: ALDOUS, David | C105: 50 | D105: C | E105: 42 | F105: 0 | G105: 0 | H105: 0 | I105: 0 | J105: 15 | K105: 97
A106: 103 | B106: BROCK, Peter | C106: 42 | D106: C | E106: 44 | F106: 0 | G106: 0 | H106: 0 | I106: 0 | J106: 15 | K106: 97
A107: 104 | B107: LAMBERT, Ian | C107: 35 | D107: E | E107: 71 | F107: 0 | G107: 0 | H107: 0 | I107: 0 | J107: 15 | K107: 97
A108: 105 | B108: GOOCH, Mark | C108: 56 | D108: D | E108: 49 | F108: 0 | G108: 43 | H108: 0 | I108: 14.33333333 | J108: 15.00002326 | K108: 105
A109: 106 | B109: SMART, Neil | C109: 107 | D109: D | E109: 51 | F109: 2 | G109: 15 | H109: 0 | I109: 5 | J109: 15.00006658 | K109: 106

Sheet Day 1-All Fish
A1: NORTH NORFOLK BASS FESTIVAL 2019 | F1: Day 1 (All Fish)
A2: Individual No. | B2: Angler Name | C2: Angler No. | D2: Zone | E2: Peg | F2: No. Fish | G2: Fish Points | H2: Weight | J2: Day 1 Position
H3: lbs | I3: oz
A4: 1 | B4: SMITH, George | C4: 114 | D4: E | E4: 66 | F4: 16 | G4: 931 | H4: 19 | I4: 6.333333333 | J4: 1
A5: 2 | B5: PROVINS, Colin | C5: 100 | D5: H | E5: 117 | F5: 32 | G5: 786 | H5: 16 | I5: 6 | J5: 2
A6: 3 | B6: RUSSELL, Shane | C6: 25 | D6: B | E6: 29 | F6: 19 | G6: 761 | H6: 15 | I6: 13.66666667 | J6: 3
A7: 4 | B7: CUTLER, Neil | C7: 92 | D7: H | E7: 114 | F7: 31 | G7: 525 | H7: 10 | I7: 15 | J7: 4
A8: 5 | B8: BOWELL, Ian | C8: 93 | D8: C | E8: 43 | F8: 10 | G8: 507 | H8: 10 | I8: 9 | J8: 5
A9: 6 | B9: ELLIOTT, Nathan | C9: 24 | D9: F | E9: 83 | F9: 32 | G9: 496 | H9: 10 | I9: 5.333333333 | J9: 6
A10: 7 | B10: HUGHES, Gary | C10: 87 | D10: H | E10: 119 | F10: 20 | G10: 466 | H10: 9 | I10: 11.33333333 | J10: 7
A11: 8 | B11: WRIGHT, Dave | C11: 33 | D11: E | E11: 62 | F11: 18 | G11: 453 | H11: 9 | I11: 7 | J11: 8
A12: 9 | B12: ALDOUS, David | C12: 50 | D12: E | E12: 65 | F12: 13 | G12: 414 | H12: 8 | I12: 10 | J12: 9
A13: 10 | B13: TURNER, Cameron | C13: 11 | D13: C | E13: 31 | F13: 16 | G13: 394 | H13: 8 | I13: 3.333333333 | J13: 10
A14: 11 | B14: CANNELL, Chris | C14: 43 | D14: E | E14: 61 | F14: 13 | G14: 384 | H14: 8 | I14: 0 | J14: 11
A15: 12 | B15: ELEY, Kevin | C15: 82 | D15: H | E15: 120 | F15: 26 | G15: 373 | H15: 7 | I15: 12.33333333 | J15: 12
A16: 13 | B16: LINDFIELD, Bill | C16: 86 | D16: A | E16: 1 | F16: 15 | G16: 370 | H16: 7 | I16: 11.33333333 | J16: 13
A17: 14 | B17: DRIVER, Ed | C17: 49 | D17: H | E17: 107 | F17: 14 | G17: 367 | H17: 7 | I17: 10.33333333 | J17: 14
A18: 15 | B18: BUY, Craig | C18: 119 | D18: G | E18: 97 | F18: 18 | G18: 366 | H18: 7 | I18: 10 | J18: 15
A19: 16 | B19: MEDLER, Gary | C19: 26 | D19: C | E19: 37 | F19: 9 | G19: 353 | H19: 7 | I19: 5.666666667 | J19: 16
A20: 17 | B20: HUTCHINSON (BP), Dave | C20: 90 | D20: G | E20: 105 | F20: 15 | G20: 338 | H20: 7 | I20: 0.6666666667 | J20: 17
A21: 18 | B21: TUCK, Rob | C21: 109 | D21: C | E21: 42 | F21: 13 | G21: 337 | H21: 7 | I21: 0.3333333333 | J21: 18
A22: 19 | B22: KINGDON, Adam | C22: 20 | D22: D | E22: 60 | F22: 12 | G22: 318 | H22: 6 | I22: 10 | J22: 19
A23: 20 | B23: ADAMS, Stephen | C23: 68 | D23: G | E23: 94 | F23: 16 | G23: 315 | H23: 6 | I23: 9 | J23: 20
A24: 21 | B24: RANDELL, Henry | C24: 1 | D24: D | E24: 48 | F24: 11 | G24: 305 | H24: 6 | I24: 5.666666667 | J24: 21
A25: 22 | B25: BRIGHTON, Tarrick | C25: 89 | D25: F | E25: 82 | F25: 27 | G25: 304 | H25: 6 | I25: 5.333333333 | J25: 22
A26: 23 | B26: McKENZIE, Brian | C26: 112 | D26: H | E26: 118 | F26: 21 | G26: 283 | H26: 5 | I26: 14.33333333 | J26: 23
A27: 24 | B27: LINDFIELD, Heather | C27: 83 | D27: B | E27: 30 | F27: 20 | G27: 278 | H27: 5 | I27: 12.66666667 | J27: 24
A28: 25 | B28: BURT, Richard | C28: 19 | D28: F | E28: 86 | F28: 21 | G28: 275 | H28: 5 | I28: 11.66666667 | J28: 25
A29: 26 | B29: CLEMENT, Alby | C29: 65 | D29: F | E29: 85 | F29: 12 | G29: 271 | H29: 5 | I29: 10.33333333 | J29: 26
A30: 27 | B30: HIPPERSON, Richard | C30: 77 | D30: H | E30: 115 | F30: 24 | G30: 269 | H30: 5 | I30: 9.666666667 | J30: 27
A31: 28 | B31: HUTSON, Garry | C31: 113 | D31: A | E31: 3 | F31: 9 | G31: 269 | H31: 5 | I31: 9.666666667 | J31: 28
A32: 29 | B32: NANGLE, Karl | C32: 44 | D32: G | E32: 99 | F32: 18 | G32: 263 | H32: 5 | I32: 7.666666667 | J32: 29
A33: 30 | B33: HARVEY, Mark | C33: 80 | D33: C | E33: 38 | F33: 4 | G33: 263 | H33: 5 | I33: 7.666666667 | J33: 30
A34: 31 | B34: ADAMS, Lee | C34: 22 | D34: F | E34: 76 | F34: 12 | G34: 261 | H34: 5 | I34: 7 | J34: 31
A35: 32 | B35: FATTIZZO, Tony | C35: 60 | D35: H | E35: 111 | F35: 14 | G35: 254 | H35: 5 | I35: 4.666666667 | J35: 32
A36: 33 | B36: LAWN, Kimberley | C36: 23 | D36: C | E36: 45 | F36: 8 | G36: 254 | H36: 5 | I36: 4.666666667 | J36: 33
A37: 34 | B37: SELF, Bevan | C37: 8 | D37: E | E37: 68 | F37: 11 | G37: 252 | H37: 5 | I37: 4 | J37: 34
A38: 35 | B38: THORPE, Doug | C38: 104 | D38: E | E38: 70 | F38: 8 | G38: 251 | H38: 5 | I38: 3.666666667 | J38: 35
A39: 36 | B39: SMITH, John | C39: 13 | D39: E | E39: 67 | F39: 13 | G39: 237 | H39: 4 | I39: 15 | J39: 36
A40: 37 | B40: WOODS, Graham | C40: 39 | D40: E | E40: 74 | F40: 8 | G40: 235 | H40: 4 | I40: 14.33333333 | J40: 37
A41: 38 | B41: TEMPLE, Billy | C41: 73 | D41: E | E41: 72 | F41: 12 | G41: 230 | H41: 4 | I41: 12.66666667 | J41: 38
A42: 39 | B42: SHARMAN, Mark | C42: 108 | D42: G | E42: 98 | F42: 15 | G42: 227 | H42: 4 | I42: 11.66666667 | J42: 39
A43: 40 | B43: SPALL, Chris | C43: 4 | D43: D | E43: 46 | F43: 9 | G43: 227 | H43: 4 | I43: 11.66666667 | J43: 40
A44: 41 | B44: BROCK, Peter | C44: 42 | D44: F | E44: 77 | F44: 17 | G44: 226 | H44: 4 | I44: 11.33333333 | J44: 41
A45: 42 | B45: SHAUL, Jimmy | C45: 94 | D45: C | E45: 44 | F45: 5 | G45: 226 | H45: 4 | I45: 11.33333333 | J45: 42
A46: 43 | B46: DIAPER, Barry | C46: 36 | D46: F | E46: 81 | F46: 12 | G46: 214 | H46: 4 | I46: 7.333333333 | J46: 43
A47: 44 | B47: CHAMBERLAIN, Darren | C47: 21 | D47: F | E47: 84 | F47: 16 | G47: 210 | H47: 4 | I47: 6 | J47: 44
A48: 45 | B48: JARMAN, Rachael | C48: 85 | D48: G | E48: 100 | F48: 19 | G48: 208 | H48: 4 | I48: 5.333333333 | J48: 45
A49: 46 | B49: CRAWFORD, Vince | C49: 76 | D49: A | E49: 8 | F49: 12 | G49: 208 | H49: 4 | I49: 5.333333333 | J49: 46
A50: 47 | B50: BRADSHAW, Craig | C50: 117 | D50: A | E50: 11 | F50: 5 | G50: 205 | H50: 4 | I50: 4.333333333 | J50: 47
A51: 48 | B51: AKESTER, Jack | C51: 16 | D51: B | E51: 27 | F51: 7 | G51: 192 | H51: 4 | I51: 0 | J51: 48
A52: 49 | B52: ALDOUS, Brayden | C52: 10 | D52: E | E52: 64 | F52: 8 | G52: 191 | H52: 3 | I52: 15.66666667 | J52: 49
A53: 50 | B53: STONE, Barry | C53: 79 | D53: G | E53: 92 | F53: 18 | G53: 186 | H53: 3 | I53: 14 | J53: 50
A54: 51 | B54: GASCOIGNE, Robert | C54: 5 | D54: G | E54: 91 | F54: 16 | G54: 186 | H54: 3 | I54: 14 | J54: 51
A55: 52 | B55: BANHAM, Mark | C55: 29 | D55: B | E55: 22 | F55: 10 | G55: 186 | H55: 3 | I55: 14 | J55: 52
A56: 53 | B56: THOMAS, Tony | C56: 18 | D56: C | E56: 40 | F56: 7 | G56: 184 | H56: 3 | I56: 13.33333333 | J56: 53
A57: 54 | B57: WARD, Mark | C57: 59 | D57: E | E57: 63 | F57: 8 | G57: 183 | H57: 3 | I57: 13 | J57: 54
A58: 55 | B58: HURCOMBE, Mark | C58: 58 | D58: F | E58: 78 | F58: 13 | G58: 180 | H58: 3 | I58: 12 | J58: 55
A59: 56 | B59: METCALFE, Wendy | C59: 84 | D59: D | E59: 59 | F59: 5 | G59: 178 | H59: 3 | I59: 11.33333333 | J59: 56
A60: 57 | B60: DENHOLM, Paul | C60: 9 | D60: C | E60: 34 | F60: 13 | G60: 176 | H60: 3 | I60: 10.66666667 | J60: 57
A61: 58 | B61: STEBBINGS, Robert | C61: 38 | D61: C | E61: 36 | F61: 7 | G61: 176 | H61: 3 | I61: 10.66666667 | J61: 58
A62: 59 | B62: SMITH, Leon | C62: 70 | D62: B | E62: 28 | F62: 10 | G62: 175 | H62: 3 | I62: 10.33333333 | J62: 59
A63: 60 | B63: SMART, Neil | C63: 107 | D63: G | E63: 95 | F63: 16 | G63: 172 | H63: 3 | I63: 9.333333333 | J63: 60
A64: 61 | B64: JARMAN, Wayne | C64: 47 | D64: E | E64: 69 | F64: 11 | G64: 169 | H64: 3 | I64: 8.333333333 | J64: 61
A65: 62 | B65: BURR, Dave | C65: 30 | D65: B | E65: 26 | F65: 6 | G65: 164 | H65: 3 | I65: 6.666666667 | J65: 62
A66: 63 | B66: STORER, Paul | C66: 7 | D66: A | E66: 9 | F66: 10 | G66: 162 | H66: 3 | I66: 6 | J66: 63
A67: 64 | B67: LITTLEWOOD, Stuart | C67: 14 | D67: F | E67: 90 | F67: 15 | G67: 157 | H67: 3 | I67: 4.333333333 | J67: 64
A68: 65 | B68: PRICE, Ben | C68: 34 | D68: C | E68: 33 | F68: 7 | G68: 156 | H68: 3 | I68: 4 | J68: 65
A69: 66 | B69: FRARY, Charlie | C69: 120 | D69: G | E69: 102 | F69: 15 | G69: 154 | H69: 3 | I69: 3.333333333 | J69: 66
A70: 67 | B70: ADAMS, Graham | C70: 12 | D70: G | E70: 93 | F70: 13 | G70: 154 | H70: 3 | I70: 3.333333333 | J70: 67
A71: 68 | B71: GOOCH, Mark | C71: 56 | D71: F | E71: 88 | F71: 10 | G71: 154 | H71: 3 | I71: 3.333333333 | J71: 68
A72: 69 | B72: DIAPER, Greg | C72: 3 | D72: B | E72: 25 | F72: 6 | G72: 153 | H72: 3 | I72: 3 | J72: 69
A73: 70 | B73: WALLIS, Craig | C73: 101 | D73: E | E73: 71 | F73: 11 | G73: 152 | H73: 3 | I73: 2.666666667 | J73: 70
A74: 71 | B74: PARROTT, Ade | C74: 95 | D74: H | E74: 112 | F74: 9 | G74: 150 | H74: 3 | I74: 2 | J74: 71
A75: 72 | B75: BATTLE, Ian | C75: 51 | D75: D | E75: 57 | F75: 8 | G75: 150 | H75: 3 | I75: 2 | J75: 72
A76: 73 | B76: WOODS, Becky | C76: 63 | D76: C | E76: 35 | F76: 8 | G76: 149 | H76: 3 | I76: 1.666666667 | J76: 73
A77: 74 | B77: BENNETT, Rick | C77: 41 | D77: A | E77: 15 | F77: 10 | G77: 146 | H77: 3 | I77: 0.6666666667 | J77: 74
A78: 75 | B78: SMITH, Adele | C78: 62 | D78: B | E78: 21 | F78: 10 | G78: 141 | H78: 2 | I78: 15 | J78: 75
A79: 76 | B79: RUSH, Billy | C79: 64 | D79: G | E79: 101 | F79: 9 | G79: 141 | H79: 2 | I79: 15 | J79: 76
A80: 77 | B80: WATTS, Mike | C80: 46 | D80: B | E80: 24 | F80: 7 | G80: 141 | H80: 2 | I80: 15 | J80: 77
A81: 78 | B81: EAGLE, Dan | C81: 91 | D81: A | E81: 10 | F81: 5 | G81: 141 | H81: 2 | I81: 15 | J81: 78
A82: 79 | B82: HARVEY, Paul | C82: 75 | D82: H | E82: 116 | F82: 8 | G82: 136 | H82: 2 | I82: 13.33333333 | J82: 79
A83: 80 | B83: BORDIANU, Adrian | C83: 103 | D83: D | E83: 54 | F83: 6 | G83: 132 | H83: 2 | I83: 12 | J83: 80
A84: 81 | B84: FRARY, June | C84: 32 | D84: G | E84: 103 | F84: 12 | G84: 129 | H84: 2 | I84: 11 | J84: 81
A85: 82 | B85: GREEN, Kevin | C85: 105 | D85: B | E85: 16 | F85: 7 | G85: 129 | H85: 2 | I85: 11 | J85: 82
A86: 83 | B86: JACOBS, Richard | C86: 106 | D86: C | E86: 32 | F86: 7 | G86: 129 | H86: 2 | I86: 11 | J86: 82
A87: 84 | B87: HARVEY, John | C87: 111 | D87: A | E87: 14 | F87: 6 | G87: 126 | H87: 2 | I87: 10 | J87: 84
A88: 85 | B88: TOPPING, Mike | C88: 40 | D88: A | E88: 6 | F88: 5 | G88: 119 | H88: 2 | I88: 7.666666667 | J88: 85
A89: 86 | B89: BANHAM, Jason | C89: 15 | D89: B | E89: 23 | F89: 5 | G89: 118 | H89: 2 | I89: 7.333333333 | J89: 86
A90: 87 | B90: THORBURN, Paul | C90: 55 | D90: E | E90: 73 | F90: 3 | G90: 118 | H90: 2 | I90: 7.333333333 | J90: 87
A91: 88 | B91: NELSON, Ian | C91: 53 | D91: D | E91: 47 | F91: 4 | G91: 105 | H91: 2 | I91: 3 | J91: 88
A92: 89 | B92: HARRISON, Paul | C92: 96 | D92: C | E92: 41 | F92: 4 | G92: 103 | H92: 2 | I92: 2.333333333 | J92: 89
A93: 90 | B93: GROSSMAN, Martin | C93: 67 | D93: H | E93: 110 | F93: 4 | G93: 98 | H93: 2 | I93: 0.6666666667 | J93: 90
A94: 91 | B94: SMITH, Andy | C94: 31 | D94: H | E94: 106 | F94: 9 | G94: 94 | H94: 1 | I94: 15.33333333 | J94: 91
A95: 92 | B95: LAY-FLURRIE, Matt | C95: 71 | D95: G | E95: 96 | F95: 9 | G95: 89 | H95: 1 | I95: 13.66666667 | J95: 92
A96: 93 | B96: BRADSHAW, Daine | C96: 27 | D96: A | E96: 12 | F96: 5 | G96: 89 | H96: 1 | I96: 13.66666667 | J96: 93
A97: 94 | B97: NICHOLSON, Steven | C97: 6 | D97: H | E97: 109 | F97: 4 | G97: 89 | H97: 1 | I97: 13.66666667 | J97: 94
A98: 95 | B98: HART, Paul | C98: 72 | D98: F | E98: 89 | F98: 8 | G98: 88 | H98: 1 | I98: 13.33333333 | J98: 95
A99: 96 | B99: DRAYTON, Simon | C99: 37 | D99: C | E99: 39 | F99: 6 | G99: 84 | H99: 1 | I99: 12 | J99: 96
A100: 97 | B100: WHITE, Alan | C100: 54 | D100: E | E100: 75 | F100: 6 | G100: 84 | H100: 1 | I100: 12 | J100: 96
A101: 98 | B101: BENNINGTON, Tom | C101: 69 | D101: D | E101: 55 | F101: 4 | G101: 84 | H101: 1 | I101: 12 | J101: 98
A102: 99 | B102: CARTER, John | C102: 66 | D102: G | E102: 104 | F102: 6 | G102: 83 | H102: 1 | I102: 11.66666667 | J102: 99
A103: 100 | B103: DAWBER, Simon | C103: 116 | D103: D | E103: 53 | F103: 4 | G103: 81 | H103: 1 | I103: 11 | J103: 100
A104: 101 | B104: SHAUL, Keith | C104: 98 | D104: A | E104: 2 | F104: 7 | G104: 80 | H104: 1 | I104: 10.66666667 | J104: 101
A105: 102 | B105: TOPPING, Jack | C105: 110 | D105: A | E105: 5 | F105: 4 | G105: 75 | H105: 1 | I105: 9 | J105: 102
A106: 103 | B106: HADDOCK, Roy | C106: 45 | D106: B | E106: 18 | F106: 5 | G106: 66 | H106: 1 | I106: 6 | J106: 103
A107: 104 | B107: SHORTHOUSE, Dave | C107: 118 | D107: D | E107: 52 | F107: 3 | G107: 66 | H107: 1 | I107: 6 | J107: 104
A108: 105 | B108: BETTINSON, Charles | C108: 115 | D108: A | E108: 4 | F108: 5 | G108: 52 | H108: 1 | I108: 1.333333333 | J108: 105
A109: 106 | B109: AUSTIN, John | C109: 74 | D109: A | E109: 7 | F109: 4 | G109: 52 | H109: 1 | I109: 1.333333333 | J109: 106
A110: 107 | B110: BANCROFT, Dave | C110: 17 | D110: B | E110: 19 | F110: 3 | G110: 50 | H110: 1 | I110: 0.6666666667 | J110: 107
A111: 108 | B111: BENNINGTON, Graham | C111: 57 | D111: D | E111: 56 | F111: 2 | G111: 44 | H111: 0 | I111: 14.66666667 | J111: 108
A112: 109 | B112: CREASEY, Shaun | C112: 61 | D112: H | E112: 108 | F112: 5 | G112: 42 | H112: 0 | I112: 14 | J112: 109
A113: 110 | B113: DOY, Alan | C113: 88 | D113: F | E113: 87 | F113: 3 | G113: 30 | H113: 0 | I113: 10 | J113: 110
A114: 111 | B114: LING, Richard | C114: 81 | D114: B | E114: 20 | F114: 2 | G114: 21 | H114: 0 | I114: 7 | J114: 111
A115: 112 | B115: McCOY, Ken | C115: 52 | D115: D | E115: 50 | F115: 1 | G115: 12 | H115: 0 | I115: 4 | J115: 112
A116: 113 | B116: BROWN, Kay | C116: 102 | D116: D | E116: 58 | F116: 1 | G116: 7 | H116: 0 | I116: 2.333333333 | J116: 113
A117: 114 | B117: KING, Simon | C117: 78 | D117: A | E117: 13 | F117: 0 | G117: 0 | H117: 0 | I117: 0 | J117: 114
A118: 116 | B118: LAMBERT, Ian | C118: 35 | D118: D | E118: 49 | F118: 0 | G118: 0 | H118: 0 | I118: 0 | J118: 114

Sheet Day 2-All Fish
A1: NORTH NORFOLK BASS FESTIVAL 2019 | F1: Day 2 (All Fish)
A2: Individual No. | B2: Angler Name | C2: Angler No. | D2: Zone | E2: Peg | F2: No. Fish | G2: Fish Points | H2: Weight | J2: Day 2 Position
H3: lbs | I3: oz
A4: 1 | B4: TUCK, Rob | C4: 109 | D4: F | E4: 81 | F4: 23 | G4: 524 | H4: 10 | I4: 14.66666667 | J4: 1
A5: 2 | B5: CLEMENT, Alby | C5: 65 | D5: B | E5: 20 | F5: 18 | G5: 473 | H5: 9 | I5: 13.66666667 | J5: 2
A6: 3 | B6: AKESTER, Jack | C6: 16 | D6: H | E6: 109 | F6: 21 | G6: 451 | H6: 9 | I6: 6.333333333 | J6: 3
A7: 4 | B7: HUTSON, Garry | C7: 113 | D7: E | E7: 61 | F7: 7 | G7: 434 | H7: 9 | I7: 0.6666666667 | J7: 4
A8: 5 | B8: WATTS, Mike | C8: 46 | D8: H | E8: 120 | F8: 30 | G8: 351 | H8: 7 | I8: 5 | J8: 5
A9: 6 | B9: GASCOIGNE, Robert | C9: 5 | D9: A | E9: 11 | F9: 11 | G9: 351 | H9: 7 | I9: 5 | J9: 6
A10: 7 | B10: WOODS, Graham | C10: 39 | D10: D | E10: 47 | F10: 5 | G10: 311 | H10: 6 | I10: 7.666666667 | J10: 7
A11: 8 | B11: ADAMS, Stephen | C11: 68 | D11: D | E11: 46 | F11: 12 | G11: 296 | H11: 6 | I11: 2.666666667 | J11: 8
A12: 9 | B12: TURNER, Cameron | C12: 11 | D12: F | E12: 86 | F12: 14 | G12: 280 | H12: 5 | I12: 13.33333333 | J12: 9
A13: 10 | B13: RANDELL, Henry | C13: 1 | D13: G | E13: 100 | F13: 14 | G13: 252 | H13: 5 | I13: 4 | J13: 10
A14: 11 | B14: BANHAM, Mark | C14: 29 | D14: H | E14: 113 | F14: 13 | G14: 252 | H14: 5 | I14: 4 | J14: 11
A15: 12 | B15: MEDLER, Gary | C15: 26 | D15: E | E15: 67 | F15: 7 | G15: 252 | H15: 5 | I15: 4 | J15: 12
A16: 13 | B16: SPALL, Chris | C16: 4 | D16: F | E16: 89 | F16: 18 | G16: 251 | H16: 5 | I16: 3.666666667 | J16: 13
A17: 14 | B17: WARD, Mark | C17: 59 | D17: A | E17: 2 | F17: 12 | G17: 245 | H17: 5 | I17: 1.666666667 | J17: 14
A18: 15 | B18: SHAUL, Jimmy | C18: 94 | D18: H | E18: 116 | F18: 21 | G18: 238 | H18: 4 | I18: 15.33333333 | J18: 15
A19: 16 | B19: FRARY, Charlie | C19: 120 | D19: B | E19: 22 | F19: 7 | G19: 225 | H19: 4 | I19: 11 | J19: 16
A20: 17 | B20: LAWN, Kimberley | C20: 23 | D20: H | E20: 115 | F20: 11 | G20: 223 | H20: 4 | I20: 10.33333333 | J20: 17
A21: 18 | B21: BANHAM, Jason | C21: 15 | D21: H | E21: 112 | F21: 18 | G21: 222 | H21: 4 | I21: 10 | J21: 18
A22: 19 | B22: STORER, Paul | C22: 7 | D22: F | E22: 80 | F22: 14 | G22: 219 | H22: 4 | I22: 9 | J22: 19
A23: 20 | B23: BETTINSON, Charles | C23: 115 | D23: H | E23: 119 | F23: 22 | G23: 218 | H23: 4 | I23: 8.666666667 | J23: 20
A24: 21 | B24: HARRISON, Paul | C24: 96 | D24: E | E24: 65 | F24: 14 | G24: 216 | H24: 4 | I24: 8 | J24: 21
A25: 22 | B25: CANNELL, Chris | C25: 43 | D25: D | E25: 54 | F25: 6 | G25: 216 | H25: 4 | I25: 8 | J25: 22
A26: 23 | B26: WRIGHT, Dave | C26: 33 | D26: C | E26: 36 | F26: 7 | G26: 213 | H26: 4 | I26: 7 | J26: 23
A27: 24 | B27: LINDFIELD, Bill | C27: 86 | D27: G | E27: 93 | F27: 14 | G27: 210 | H27: 4 | I27: 6 | J27: 24
A28: 25 | B28: GREEN, Kevin | C28: 105 | D28: H | E28: 111 | F28: 17 | G28: 206 | H28: 4 | I28: 4.666666667 | J28: 25
A29: 26 | B29: DAWBER, Simon | C29: 116 | D29: G | E29: 95 | F29: 16 | G29: 198 | H29: 4 | I29: 2 | J29: 26
A30: 27 | B30: HURCOMBE, Mark | C30: 58 | D30: B | E30: 23 | F30: 8 | G30: 196 | H30: 4 | I30: 1.333333333 | J30: 27
A31: 28 | B31: BOWELL, Ian | C31: 93 | D31: F | E31: 88 | F31: 14 | G31: 183 | H31: 3 | I31: 13 | J31: 28
A32: 29 | B32: METCALFE, Wendy | C32: 84 | D32: G | E32: 104 | F32: 9 | G32: 179 | H32: 3 | I32: 11.66666667 | J32: 29
A33: 30 | B33: DIAPER, Greg | C33: 3 | D33: E | E33: 74 | F33: 7 | G33: 178 | H33: 3 | I33: 11.33333333 | J33: 30
A34: 31 | B34: JACOBS, Richard | C34: 106 | D34: E | E34: 72 | F34: 8 | G34: 177 | H34: 3 | I34: 11 | J34: 31
A35: 32 | B35: DRIVER, Ed | C35: 49 | D35: A | E35: 10 | F35: 10 | G35: 174 | H35: 3 | I35: 10 | J35: 32
A36: 33 | B36: BENNETT, Rick | C36: 41 | D36: F | E36: 82 | F36: 14 | G36: 173 | H36: 3 | I36: 9.666666667 | J36: 33
A37: 34 | B37: AUSTIN, John | C37: 74 | D37: F | E37: 83 | F37: 12 | G37: 171 | H37: 3 | I37: 9 | J37: 34
A38: 35 | B38: ADAMS, Lee | C38: 22 | D38: C | E38: 34 | F38: 7 | G38: 169 | H38: 3 | I38: 8.333333333 | J38: 35
A39: 36 | B39: BURT, Richard | C39: 19 | D39: D | E39: 57 | F39: 7 | G39: 166 | H39: 3 | I39: 7.333333333 | J39: 36
A40: 37 | B40: SMITH, Andy | C40: 31 | D40: C | E40: 37 | F40: 5 | G40: 162 | H40: 3 | I40: 6 | J40: 37
A41: 38 | B41: HUGHES, Gary | C41: 87 | D41: B | E41: 30 | F41: 6 | G41: 161 | H41: 3 | I41: 5.666666667 | J41: 38
A42: 39 | B42: DRAYTON, Simon | C42: 37 | D42: H | E42: 107 | F42: 12 | G42: 157 | H42: 3 | I42: 4.333333333 | J42: 39
A43: 40 | B43: EAGLE, Dan | C43: 91 | D43: E | E43: 62 | F43: 6 | G43: 153 | H43: 3 | I43: 3 | J43: 40
A44: 41 | B44: STEBBINGS, Robert | C44: 38 | D44: G | E44: 92 | F44: 15 | G44: 150 | H44: 3 | I44: 2 | J44: 41
A45: 42 | B45: CUTLER, Neil | C45: 92 | D45: C | E45: 35 | F45: 6 | G45: 150 | H45: 3 | I45: 2 | J45: 42
A46: 43 | B46: LINDFIELD, Heather | C46: 83 | D46: G | E46: 94 | F46: 10 | G46: 149 | H46: 3 | I46: 1.666666667 | J46: 43
A47: 44 | B47: RUSSELL, Shane | C47: 25 | D47: E | E47: 69 | F47: 8 | G47: 146 | H47: 3 | I47: 0.6666666667 | J47: 44
A48: 45 | B48: GROSSMAN, Martin | C48: 67 | D48: B | E48: 19 | F48: 5 | G48: 134 | H48: 2 | I48: 12.66666667 | J48: 45
A49: 46 | B49: McCOY, Ken | C49: 52 | D49: E | E49: 63 | F49: 8 | G49: 128 | H49: 2 | I49: 10.66666667 | J49: 46
A50: 47 | B50: BANCROFT, Dave | C50: 17 | D50: H | E50: 114 | F50: 11 | G50: 127 | H50: 2 | I50: 10.33333333 | J50: 47
A51: 48 | B51: WHITE, Alan | C51: 54 | D51: A | E51: 4 | F51: 9 | G51: 121 | H51: 2 | I51: 8.333333333 | J51: 48
A52: 49 | B52: KINGDON, Adam | C52: 20 | D52: F | E52: 78 | F52: 12 | G52: 118 | H52: 2 | I52: 7.333333333 | J52: 49
A53: 50 | B53: BROWN, Kay | C53: 102 | D53: G | E53: 103 | F53: 9 | G53: 117 | H53: 2 | I53: 7 | J53: 50
A54: 51 | B54: HIPPERSON, Richard | C54: 77 | D54: B | E54: 27 | F54: 8 | G54: 117 | H54: 2 | I54: 7 | J54: 51
A55: 52 | B55: ALDOUS, Brayden | C55: 10 | D55: C | E55: 41 | F55: 6 | G55: 117 | H55: 2 | I55: 7 | J55: 52
A56: 53 | B56: WALLIS, Craig | C56: 101 | D56: A | E56: 15 | F56: 9 | G56: 116 | H56: 2 | I56: 6.666666667 | J56: 53
A57: 54 | B57: SMITH, George | C57: 114 | D57: D | E57: 56 | F57: 3 | G57: 116 | H57: 2 | I57: 6.666666667 | J57: 54
A58: 55 | B58: BUY, Craig | C58: 119 | D58: D | E58: 55 | F58: 5 | G58: 114 | H58: 2 | I58: 6 | J58: 55
A59: 56 | B59: LING, Richard | C59: 81 | D59: H | E59: 108 | F59: 10 | G59: 113 | H59: 2 | I59: 5.666666667 | J59: 56
A60: 57 | B60: CRAWFORD, Vince | C60: 76 | D60: G | E60: 91 | F60: 7 | G60: 111 | H60: 2 | I60: 5 | J60: 57
A61: 58 | B61: ELLIOTT, Nathan | C61: 24 | D61: A | E61: 3 | F61: 9 | G61: 109 | H61: 2 | I61: 4.333333333 | J61: 58
A62: 59 | B62: BORDIANU, Adrian | C62: 103 | D62: E | E62: 66 | F62: 8 | G62: 106 | H62: 2 | I62: 3.333333333 | J62: 59
A63: 60 | B63: SHORTHOUSE, Dave | C63: 118 | D63: H | E63: 106 | F63: 11 | G63: 100 | H63: 2 | I63: 1.333333333 | J63: 60
A64: 61 | B64: BENNINGTON, Tom | C64: 69 | D64: H | E64: 117 | F64: 8 | G64: 100 | H64: 2 | I64: 1.333333333 | J64: 61
A65: 62 | B65: NELSON, Ian | C65: 53 | D65: E | E65: 68 | F65: 3 | G65: 97 | H65: 2 | I65: 0.3333333333 | J65: 62
A66: 63 | B66: CHAMBERLAIN, Darren | C66: 21 | D66: D | E66: 48 | F66: 7 | G66: 96 | H66: 2 | I66: 0 | J66: 63
A67: 64 | B67: THORPE, Doug | C67: 104 | D67: A | E67: 8 | F67: 7 | G67: 92 | H67: 1 | I67: 14.66666667 | J67: 64
A68: 65 | B68: WOODS, Becky | C68: 63 | D68: F | E68: 76 | F68: 6 | G68: 89 | H68: 1 | I68: 13.66666667 | J68: 65
A69: 66 | B69: PROVINS, Colin | C69: 100 | D69: D | E69: 59 | F69: 8 | G69: 88 | H69: 1 | I69: 13.33333333 | J69: 66
A70: 67 | B70: SELF, Bevan | C70: 8 | D70: C | E70: 38 | F70: 6 | G70: 88 | H70: 1 | I70: 13.33333333 | J70: 67
A71: 68 | B71: STONE, Barry | C71: 79 | D71: B | E71: 28 | F71: 10 | G71: 87 | H71: 1 | I71: 13 | J71: 68
A72: 69 | B72: NICHOLSON, Steven | C72: 6 | D72: B | E72: 29 | F72: 5 | G72: 87 | H72: 1 | I72: 13 | J72: 69
A73: 70 | B73: PRICE, Ben | C73: 34 | D73: G | E73: 99 | F73: 7 | G73: 82 | H73: 1 | I73: 11.33333333 | J73: 70
A74: 71 | B74: LITTLEWOOD, Stuart | C74: 14 | D74: C | E74: 40 | F74: 5 | G74: 82 | H74: 1 | I74: 11.33333333 | J74: 71
A75: 72 | B75: SMITH, Adele | C75: 62 | D75: E | E75: 70 | F75: 6 | G75: 80 | H75: 1 | I75: 10.66666667 | J75: 72
A76: 73 | B76: TOPPING, Mike | C76: 40 | D76: G | E76: 97 | F76: 7 | G76: 79 | H76: 1 | I76: 10.33333333 | J76: 73
A77: 74 | B77: SMITH, John | C77: 13 | D77: D | E77: 58 | F77: 5 | G77: 78 | H77: 1 | I77: 10 | J77: 74
A78: 75 | B78: TEMPLE, Billy | C78: 73 | D78: C | E78: 45 | F78: 4 | G78: 78 | H78: 1 | I78: 10 | J78: 75
A79: 76 | B79: TOPPING, Jack | C79: 110 | D79: G | E79: 98 | F79: 2 | G79: 78 | H79: 1 | I79: 10 | J79: 76
A80: 77 | B80: JARMAN, Rachael | C80: 85 | D80: C | E80: 33 | F80: 6 | G80: 77 | H80: 1 | I80: 9.666666667 | J80: 77
A81: 78 | B81: McKENZIE, Brian | C81: 112 | D81: A | E81: 1 | F81: 7 | G81: 72 | H81: 1 | I81: 8 | J81: 78
A82: 79 | B82: DOY, Alan | C82: 88 | D82: D | E82: 60 | F82: 5 | G82: 71 | H82: 1 | I82: 7.666666667 | J82: 79
A83: 80 | B83: THOMAS, Tony | C83: 18 | D83: E | E83: 73 | F83: 5 | G83: 70 | H83: 1 | I83: 7.333333333 | J83: 80
A84: 81 | B84: HADDOCK, Roy | C84: 45 | D84: F | E84: 90 | F84: 5 | G84: 70 | H84: 1 | I84: 7.333333333 | J84: 80
A85: 82 | B85: SHAUL, Keith | C85: 98 | D85: E | E85: 75 | F85: 3 | G85: 70 | H85: 1 | I85: 7.333333333 | J85: 82
A86: 83 | B86: MILLS, Rodney | C86: 48 | D86: B | E86: 18 | F86: 7 | G86: 67 | H86: 1 | I86: 6.333333333 | J86: 83
A87: 84 | B87: ELEY, Kevin | C87: 82 | D87: C | E87: 39 | F87: 4 | G87: 67 | H87: 1 | I87: 6.333333333 | J87: 84
A88: 85 | B88: BRADSHAW, Craig | C88: 117 | D88: G | E88: 101 | F88: 4 | G88: 66 | H88: 1 | I88: 6 | J88: 85
A89: 86 | B89: KING, Simon | C89: 78 | D89: G | E89: 105 | F89: 3 | G89: 66 | H89: 1 | I89: 6 | J89: 86
A90: 87 | B90: HUTCHINSON (BP), Dave | C90: 90 | D90: D | E90: 50 | F90: 4 | G90: 61 | H90: 1 | I90: 4.333333333 | J90: 87
A91: 88 | B91: BURR, Dave | C91: 30 | D91: F | E91: 84 | F91: 6 | G91: 56 | H91: 1 | I91: 2.666666667 | J91: 88
A92: 89 | B92: BATTLE, Ian | C92: 51 | D92: G | E92: 96 | F92: 6 | G92: 56 | H92: 1 | I92: 2.666666667 | J92: 88
A93: 90 | B93: HARVEY, Paul | C93: 75 | D93: C | E93: 43 | F93: 4 | G93: 56 | H93: 1 | I93: 2.666666667 | J93: 90
A94: 91 | B94: NANGLE, Karl | C94: 44 | D94: D | E94: 53 | F94: 3 | G94: 56 | H94: 1 | I94: 2.666666667 | J94: 91
A95: 92 | B95: HART, Paul | C95: 72 | D95: C | E95: 31 | F95: 4 | G95: 53 | H95: 1 | I95: 1.666666667 | J95: 92
A96: 93 | B96: DIAPER, Barry | C96: 36 | D96: D | E96: 52 | F96: 4 | G96: 50 | H96: 1 | I96: 0.6666666667 | J96: 93
A97: 94 | B97: SMITH, Leon | C97: 70 | D97: F | E97: 79 | F97: 3 | G97: 46 | H97: 0 | I97: 15.33333333 | J97: 94
A98: 95 | B98: FRARY, June | C98: 32 | D98: B | E98: 21 | F98: 2 | G98: 45 | H98: 0 | I98: 15 | J98: 95
A99: 96 | B99: BENNINGTON, Graham | C99: 57 | D99: H | E99: 118 | F99: 5 | G99: 44 | H99: 0 | I99: 14.66666667 | J99: 96
A100: 97 | B100: GOOCH, Mark | C100: 56 | D100: D | E100: 49 | F100: 0 | G100: 43 | H100: 0 | I100: 14.33333333 | J100: 97
A101: 98 | B101: LAY-FLURRIE, Matt | C101: 71 | D101: A | E101: 9 | F101: 3 | G101: 41 | H101: 0 | I101: 13.66666667 | J101: 98
A102: 99 | B102: DENHOLM, Paul | C102: 9 | D102: F | E102: 87 | F102: 4 | G102: 37 | H102: 0 | I102: 12.33333333 | J102: 99
A103: 100 | B103: BRADSHAW, Daine | C103: 27 | D103: G | E103: 102 | F103: 2 | G103: 34 | H103: 0 | I103: 11.33333333 | J103: 100
A104: 101 | B104: ADAMS, Graham | C104: 12 | D104: A | E104: 7 | F104: 2 | G104: 30 | H104: 0 | I104: 10 | J104: 101
A105: 102 | B105: JARMAN, Wayne | C105: 47 | D105: A | E105: 13 | F105: 4 | G105: 26 | H105: 0 | I105: 8.666666667 | J105: 102
A106: 103 | B106: HARVEY, John | C106: 111 | D106: E | E106: 64 | F106: 3 | G106: 22 | H106: 0 | I106: 7.333333333 | J106: 103
A107: 104 | B107: CARTER, John | C107: 66 | D107: A | E107: 12 | F107: 3 | G107: 21 | H107: 0 | I107: 7 | J107: 104
A108: 105 | B108: HARVEY, Mark | C108: 80 | D108: F | E108: 77 | F108: 3 | G108: 18 | H108: 0 | I108: 6 | J108: 105
A109: 106 | B109: RUSH, Billy | C109: 64 | D109: A | E109: 14 | F109: 2 | G109: 15 | H109: 0 | I109: 5 | J109: 106
A110: 107 | B110: SMART, Neil | C110: 107 | D110: D | E110: 51 | F110: 2 | G110: 15 | H110: 0 | I110: 5 | J110: 106
A111: 108 | B111: CREASEY, Shaun | C111: 61 | D111: C | E111: 32 | F111: 1 | G111: 8 | H111: 0 | I111: 2.666666667 | J111: 108
A112: 111 | B112: THORBURN, Paul | C112: 55 | D112: B | E112: 16 | F112: 0 | G112: 0 | H112: 0 | I112: 0 | J112: 109
A113: 112 | B113: BRIGHTON, Tarrick | C113: 89 | D113: B | E113: 17 | F113: 0 | G113: 0 | H113: 0 | I113: 0 | J113: 109
A114: 113 | B114: FATTIZZO, Tony | C114: 60 | D114: B | E114: 24 | F114: 0 | G114: 0 | H114: 0 | I114: 0 | J114: 109
A115: 114 | B115: PARROTT, Ade | C115: 95 | D115: B | E115: 25 | F115: 0 | G115: 0 | H115: 0 | I115: 0 | J115: 109
A116: 115 | B116: SHARMAN, Mark | C116: 108 | D116: B | E116: 26 | F116: 0 | G116: 0 | H116: 0 | I116: 0 | J116: 109
A117: 116 | B117: ALDOUS, David | C117: 50 | D117: C | E117: 42 | F117: 0 | G117: 0 | H117: 0 | I117: 0 | J117: 109
A118: 117 | B118: BROCK, Peter | C118: 42 | D118: C | E118: 44 | F118: 0 | G118: 0 | H118: 0 | I118: 0 | J118: 109
A119: 118 | B119: LAMBERT, Ian | C119: 35 | D119: E | E119: 71 | F119: 0 | G119: 0 | H119: 0 | I119: 0 | J119: 109

Sheet Day 1-All Bass
A1: BASS FESTIVAL 2019 | F1: Day 1 (Bass)
A2: Individual No. | B2: Angler Name | C2: Angler No. | D2: Zone | E2: Peg | F2: No. Fish | G2: Fish Points | H2: Weight | J2: Day 1 Position
H3: lbs | I3: oz
A4: 1 | B4: RUSSELL, Shane | C4: 25 | D4: B | E4: 29 | F4: 13 | G4: 653 | H4: 13 | I4: 9.666666667 | J4: 1
A5: 2 | B5: SMITH, George | C5: 114 | D5: E | E5: 66 | F5: 8 | G5: 423 | H5: 8 | I5: 13 | J5: 2
A6: 3 | B6: BOWELL, Ian | C6: 93 | D6: C | E6: 43 | F6: 5 | G6: 306 | H6: 6 | I6: 6 | J6: 3
A7: 4 | B7: WRIGHT, Dave | C7: 33 | D7: E | E7: 62 | F7: 7 | G7: 297 | H7: 6 | I7: 3 | J7: 4
A8: 5 | B8: CANNELL, Chris | C8: 43 | D8: E | E8: 61 | F8: 5 | G8: 280 | H8: 5 | I8: 13.33333333 | J8: 5
A9: 6 | B9: CUTLER, Neil | C9: 92 | D9: H | E9: 114 | F9: 10 | G9: 274 | H9: 5 | I9: 11.33333333 | J9: 6
A10: 7 | B10: MEDLER, Gary | C10: 26 | D10: C | E10: 37 | F10: 4 | G10: 247 | H10: 5 | I10: 2.333333333 | J10: 7
A11: 8 | B11: ELLIOTT, Nathan | C11: 24 | D11: F | E11: 83 | F11: 3 | G11: 245 | H11: 5 | I11: 1.666666667 | J11: 8
A12: 9 | B12: HUTCHINSON (BP), Dave | C12: 90 | D12: G | E12: 105 | F12: 3 | G12: 227 | H12: 4 | I12: 11.66666667 | J12: 9
A13: 10 | B13: ALDOUS, David | C13: 50 | D13: E | E13: 65 | F13: 2 | G13: 225 | H13: 4 | I13: 11 | J13: 10
A14: 11 | B14: LINDFIELD, Bill | C14: 86 | D14: A | E14: 1 | F14: 3 | G14: 218 | H14: 4 | I14: 8.666666667 | J14: 11
A15: 12 | B15: KINGDON, Adam | C15: 20 | D15: D | E15: 60 | F15: 3 | G15: 212 | H15: 4 | I15: 6.666666667 | J15: 12
A16: 13 | B16: HARVEY, Mark | C16: 80 | D16: C | E16: 38 | F16: 1 | G16: 200 | H16: 4 | I16: 2.666666667 | J16: 13
A17: 14 | B17: TURNER, Cameron | C17: 11 | D17: C | E17: 31 | F17: 3 | G17: 199 | H17: 4 | I17: 2.333333333 | J17: 14
A18: 15 | B18: BRADSHAW, Craig | C18: 117 | D18: A | E18: 11 | F18: 3 | G18: 185 | H18: 3 | I18: 13.66666667 | J18: 15
A19: 16 | B19: TUCK, Rob | C19: 109 | D19: C | E19: 42 | F19: 7 | G19: 167 | H19: 3 | I19: 7.666666667 | J19: 16
A20: 17 | B20: HUTSON, Garry | C20: 113 | D20: A | E20: 3 | F20: 4 | G20: 165 | H20: 3 | I20: 7 | J20: 17
A21: 18 | B21: WOODS, Graham | C21: 39 | D21: E | E21: 74 | F21: 2 | G21: 159 | H21: 3 | I21: 5 | J21: 18
A22: 19 | B22: PROVINS, Colin | C22: 100 | D22: H | E22: 117 | F22: 4 | G22: 152 | H22: 3 | I22: 2.666666667 | J22: 19
A23: 20 | B23: RANDELL, Henry | C23: 1 | D23: D | E23: 48 | F23: 6 | G23: 151 | H23: 3 | I23: 2.333333333 | J23: 20
A24: 21 | B24: SHAUL, Jimmy | C24: 94 | D24: C | E24: 44 | F24: 2 | G24: 151 | H24: 3 | I24: 2.333333333 | J24: 21
A25: 22 | B25: ADAMS, Lee | C25: 22 | D25: F | E25: 76 | F25: 2 | G25: 151 | H25: 3 | I25: 2.333333333 | J25: 21
A26: 23 | B26: STEBBINGS, Robert | C26: 38 | D26: C | E26: 36 | F26: 3 | G26: 140 | H26: 2 | I26: 14.66666667 | J26: 23
A27: 24 | B27: AKESTER, Jack | C27: 16 | D27: B | E27: 27 | F27: 3 | G27: 138 | H27: 2 | I27: 14 | J27: 24
A28: 25 | B28: WARD, Mark | C28: 59 | D28: E | E28: 63 | F28: 4 | G28: 134 | H28: 2 | I28: 12.66666667 | J28: 25
A29: 26 | B29: THOMAS, Tony | C29: 18 | D29: C | E29: 40 | F29: 3 | G29: 109 | H29: 2 | I29: 4.333333333 | J29: 26
A30: 27 | B30: BUY, Craig | C30: 119 | D30: G | E30: 97 | F30: 2 | G30: 108 | H30: 2 | I30: 4 | J30: 27
A31: 28 | B31: HIPPERSON, Richard | C31: 77 | D31: H | E31: 115 | F31: 5 | G31: 105 | H31: 2 | I31: 3 | J31: 28
A32: 29 | B32: BURT, Richard | C32: 19 | D32: F | E32: 86 | F32: 4 | G32: 105 | H32: 2 | I32: 3 | J32: 29
A33: 30 | B33: CLEMENT, Alby | C33: 65 | D33: F | E33: 85 | F33: 1 | G33: 104 | H33: 2 | I33: 2.666666667 | J33: 30
A34: 31 | B34: HARRISON, Paul | C34: 96 | D34: C | E34: 41 | F34: 4 | G34: 103 | H34: 2 | I34: 2.333333333 | J34: 31
A35: 32 | B35: GREEN, Kevin | C35: 105 | D35: B | E35: 16 | F35: 3 | G35: 95 | H35: 1 | I35: 15.66666667 | J35: 32
A36: 33 | B36: DIAPER, Greg | C36: 3 | D36: B | E36: 25 | F36: 3 | G36: 95 | H36: 1 | I36: 15.66666667 | J36: 32
A37: 34 | B37: HARVEY, John | C37: 111 | D37: A | E37: 14 | F37: 2 | G37: 91 | H37: 1 | I37: 14.33333333 | J37: 34
A38: 35 | B38: BRIGHTON, Tarrick | C38: 89 | D38: F | E38: 82 | F38: 5 | G38: 90 | H38: 1 | I38: 14 | J38: 35
A39: 36 | B39: THORPE, Doug | C39: 104 | D39: E | E39: 70 | F39: 1 | G39: 86 | H39: 1 | I39: 12.66666667 | J39: 36
A40: 37 | B40: WOODS, Becky | C40: 63 | D40: C | E40: 35 | F40: 2 | G40: 83 | H40: 1 | I40: 11.66666667 | J40: 37
A41: 38 | B41: HARVEY, Paul | C41: 75 | D41: H | E41: 116 | F41: 2 | G41: 79 | H41: 1 | I41: 10.33333333 | J41: 38
A42: 39 | B42: HURCOMBE, Mark | C42: 58 | D42: F | E42: 78 | F42: 2 | G42: 77 | H42: 1 | I42: 9.666666667 | J42: 39
A43: 40 | B43: SPALL, Chris | C43: 4 | D43: D | E43: 46 | F43: 3 | G43: 76 | H43: 1 | I43: 9.333333333 | J43: 40
A44: 41 | B44: NANGLE, Karl | C44: 44 | D44: G | E44: 99 | F44: 2 | G44: 74 | H44: 1 | I44: 8.666666667 | J44: 41
A45: 42 | B45: SMITH, John | C45: 13 | D45: E | E45: 67 | F45: 2 | G45: 73 | H45: 1 | I45: 8.333333333 | J45: 42
A46: 43 | B46: BENNETT, Rick | C46: 41 | D46: A | E46: 15 | F46: 2 | G46: 71 | H46: 1 | I46: 7.666666667 | J46: 43
A47: 44 | B47: BURR, Dave | C47: 30 | D47: B | E47: 26 | F47: 1 | G47: 68 | H47: 1 | I47: 6.666666667 | J47: 44
A48: 45 | B48: WALLIS, Craig | C48: 101 | D48: E | E48: 71 | F48: 3 | G48: 66 | H48: 1 | I48: 6 | J48: 45
A49: 46 | B49: BATTLE, Ian | C49: 51 | D49: D | E49: 57 | F49: 2 | G49: 62 | H49: 1 | I49: 4.666666667 | J49: 46
A50: 47 | B50: JARMAN, Wayne | C50: 47 | D50: E | E50: 69 | F50: 2 | G50: 61 | H50: 1 | I50: 4.333333333 | J50: 47
A51: 48 | B51: SMITH, Adele | C51: 62 | D51: B | E51: 21 | F51: 1 | G51: 59 | H51: 1 | I51: 3.666666667 | J51: 48
A52: 49 | B52: DRIVER, Ed | C52: 49 | D52: H | E52: 107 | F52: 2 | G52: 57 | H52: 1 | I52: 3 | J52: 49
A53: 50 | B53: BENNINGTON, Tom | C53: 69 | D53: D | E53: 55 | F53: 2 | G53: 54 | H53: 1 | I53: 2 | J53: 50
A54: 51 | B54: PARROTT, Ade | C54: 95 | D54: H | E54: 112 | F54: 2 | G54: 53 | H54: 1 | I54: 1.666666667 | J54: 51
A55: 52 | B55: DAWBER, Simon | C55: 116 | D55: D | E55: 53 | F55: 1 | G55: 47 | H55: 0 | I55: 15.66666667 | J55: 52
A56: 53 | B56: SHARMAN, Mark | C56: 108 | D56: G | E56: 98 | F56: 1 | G56: 47 | H56: 0 | I56: 15.66666667 | J56: 52
A57: 54 | B57: CRAWFORD, Vince | C57: 76 | D57: A | E57: 8 | F57: 2 | G57: 44 | H57: 0 | I57: 14.66666667 | J57: 54
A58: 55 | B58: JACOBS, Richard | C58: 106 | D58: C | E58: 32 | F58: 2 | G58: 44 | H58: 0 | I58: 14.66666667 | J58: 54
A59: 56 | B59: GOOCH, Mark | C59: 56 | D59: F | E59: 88 | F59: 1 | G59: 43 | H59: 0 | I59: 14.33333333 | J59: 56
A60: 57 | B60: STORER, Paul | C60: 7 | D60: A | E60: 9 | F60: 2 | G60: 40 | H60: 0 | I60: 13.33333333 | J60: 57
A61: 58 | B61: BORDIANU, Adrian | C61: 103 | D61: D | E61: 54 | F61: 2 | G61: 40 | H61: 0 | I61: 13.33333333 | J61: 57
A62: 59 | B62: FRARY, Charlie | C62: 120 | D62: G | E62: 102 | F62: 1 | G62: 40 | H62: 0 | I62: 13.33333333 | J62: 59
A63: 60 | B63: FATTIZZO, Tony | C63: 60 | D63: H | E63: 111 | F63: 2 | G63: 38 | H63: 0 | I63: 12.66666667 | J63: 60
A64: 61 | B64: GROSSMAN, Martin | C64: 67 | D64: H | E64: 110 | F64: 1 | G64: 37 | H64: 0 | I64: 12.33333333 | J64: 61
A65: 62 | B65: BANHAM, Jason | C65: 15 | D65: B | E65: 23 | F65: 2 | G65: 36 | H65: 0 | I65: 12 | J65: 62
A66: 63 | B66: DRAYTON, Simon | C66: 37 | D66: C | E66: 39 | F66: 2 | G66: 36 | H66: 0 | I66: 12 | J66: 62
A67: 64 | B67: ELEY, Kevin | C67: 82 | D67: H | E67: 120 | F67: 2 | G67: 34 | H67: 0 | I67: 11.33333333 | J67: 64
A68: 65 | B68: GASCOIGNE, Robert | C68: 5 | D68: G | E68: 91 | F68: 1 | G68: 28 | H68: 0 | I68: 9.333333333 | J68: 65
A69: 66 | B69: EAGLE, Dan | C69: 91 | D69: A | E69: 10 | F69: 1 | G69: 25 | H69: 0 | I69: 8.333333333 | J69: 66
A70: 67 | B70: WHITE, Alan | C70: 54 | D70: E | E70: 75 | F70: 1 | G70: 25 | H70: 0 | I70: 8.333333333 | J70: 66
A71: 68 | B71: AUSTIN, John | C71: 74 | D71: A | E71: 7 | F71: 1 | G71: 22 | H71: 0 | I71: 7.333333333 | J71: 68
A72: 69 | B72: PRICE, Ben | C72: 34 | D72: C | E72: 33 | F72: 1 | G72: 22 | H72: 0 | I72: 7.333333333 | J72: 68
A73: 70 | B73: SMART, Neil | C73: 107 | D73: G | E73: 95 | F73: 1 | G73: 22 | H73: 0 | I73: 7.333333333 | J73: 68
A74: 71 | B74: SMITH, Leon | C74: 70 | D74: B | E74: 28 | F74: 1 | G74: 20 | H74: 0 | I74: 6.666666667 | J74: 71
A75: 72 | B75: BENNINGTON, Graham | C75: 57 | D75: D | E75: 56 | F75: 1 | G75: 20 | H75: 0 | I75: 6.666666667 | J75: 71
A76: 73 | B76: TEMPLE, Billy | C76: 73 | D76: E | E76: 72 | F76: 1 | G76: 20 | H76: 0 | I76: 6.666666667 | J76: 71
A77: 74 | B77: STONE, Barry | C77: 79 | D77: G | E77: 92 | F77: 1 | G77: 20 | H77: 0 | I77: 6.666666667 | J77: 71
A78: 75 | B78: ADAMS, Stephen | C78: 68 | D78: G | E78: 94 | F78: 1 | G78: 20 | H78: 0 | I78: 6.666666667 | J78: 71
A79: 76 | B79: FRARY, June | C79: 32 | D79: G | E79: 103 | F79: 1 | G79: 20 | H79: 0 | I79: 6.666666667 | J79: 71
A80: 77 | B80: CARTER, John | C80: 66 | D80: G | E80: 104 | F80: 1 | G80: 20 | H80: 0 | I80: 6.666666667 | J80: 71
A81: 78 | B81: McKENZIE, Brian | C81: 112 | D81: H | E81: 118 | F81: 1 | G81: 20 | H81: 0 | I81: 6.666666667 | J81: 71
A82: 79 | B82: BROCK, Peter | C82: 42 | D82: F | E82: 77 | F82: 1 | G82: 18 | H82: 0 | I82: 6 | J82: 79
A83: 80 | B83: HADDOCK, Roy | C83: 45 | D83: B | E83: 18 | F83: 1 | G83: 16 | H83: 0 | I83: 5.333333333 | J83: 80
A84: 81 | B84: SHORTHOUSE, Dave | C84: 118 | D84: D | E84: 52 | F84: 1 | G84: 16 | H84: 0 | I84: 5.333333333 | J84: 80
A85: 82 | B85: SELF, Bevan | C85: 8 | D85: E | E85: 68 | F85: 1 | G85: 16 | H85: 0 | I85: 5.333333333 | J85: 80

Sheet Day 2-All Bass
A1: BASS FESTIVAL 2019 | F1: Day 2 (Bass)
A2: Individual No. | B2: Angler Name | C2: Angler No. | D2: Zone | E2: Peg | F2: No. Fish | G2: Fish Points | H2: Weight | J2: Day 2 Position
H3: lbs | I3: oz
A4: 1 | B4: TUCK, Rob | C4: 109 | D4: F | E4: 81 | F4: 9 | G4: 354 | H4: 7 | I4: 6 | J4: 1
A5: 2 | B5: GASCOIGNE, Robert | C5: 5 | D5: A | E5: 11 | F5: 2 | G5: 214 | H5: 4 | I5: 7.333333333 | J5: 2
A6: 3 | B6: WOODS, Graham | C6: 39 | D6: D | E6: 47 | F6: 2 | G6: 213 | H6: 4 | I6: 7 | J6: 3
A7: 4 | B7: TURNER, Cameron | C7: 11 | D7: F | E7: 86 | F7: 5 | G7: 204 | H7: 4 | I7: 4 | J7: 4
A8: 5 | B8: AKESTER, Jack | C8: 16 | D8: H | E8: 109 | F8: 5 | G8: 172 | H8: 3 | I8: 9.333333333 | J8: 5
A9: 6 | B9: CANNELL, Chris | C9: 43 | D9: D | E9: 54 | F9: 1 | G9: 158 | H9: 3 | I9: 4.666666667 | J9: 6
A10: 7 | B10: DIAPER, Greg | C10: 3 | D10: E | E10: 74 | F10: 4 | G10: 151 | H10: 3 | I10: 2.333333333 | J10: 7
A11: 8 | B11: ADAMS, Stephen | C11: 68 | D11: D | E11: 46 | F11: 5 | G11: 138 | H11: 2 | I11: 14 | J11: 8
A12: 9 | B12: HUGHES, Gary | C12: 87 | D12: B | E12: 30 | F12: 1 | G12: 122 | H12: 2 | I12: 8.666666667 | J12: 9
A13: 10 | B13: JACOBS, Richard | C13: 106 | D13: E | E13: 72 | F13: 3 | G13: 121 | H13: 2 | I13: 8.333333333 | J13: 10
A14: 11 | B14: RANDELL, Henry | C14: 1 | D14: G | E14: 100 | F14: 6 | G14: 113 | H14: 2 | I14: 5.666666667 | J14: 11
A15: 12 | B15: BURT, Richard | C15: 19 | D15: D | E15: 57 | F15: 2 | G15: 106 | H15: 2 | I15: 3.333333333 | J15: 12
A16: 13 | B16: DRAYTON, Simon | C16: 37 | D16: H | E16: 107 | F16: 5 | G16: 102 | H16: 2 | I16: 2 | J16: 13
A17: 14 | B17: BANHAM, Jason | C17: 15 | D17: H | E17: 112 | F17: 2 | G17: 99 | H17: 2 | I17: 1 | J17: 14
A18: 15 | B18: SHAUL, Jimmy | C18: 94 | D18: H | E18: 116 | F18: 4 | G18: 94 | H18: 1 | I18: 15.33333333 | J18: 15
A19: 16 | B19: RUSSELL, Shane | C19: 25 | D19: E | E19: 69 | F19: 3 | G19: 93 | H19: 1 | I19: 15 | J19: 16
A20: 17 | B20: ADAMS, Lee | C20: 22 | D20: C | E20: 34 | F20: 2 | G20: 90 | H20: 1 | I20: 14 | J20: 17
A21: 18 | B21: BOWELL, Ian | C21: 93 | D21: F | E21: 88 | F21: 3 | G21: 89 | H21: 1 | I21: 13.66666667 | J21: 18
A22: 19 | B22: MEDLER, Gary | C22: 26 | D22: E | E22: 67 | F22: 1 | G22: 86 | H22: 1 | I22: 12.66666667 | J22: 19
A23: 20 | B23: SMITH, Andy | C23: 31 | D23: C | E23: 37 | F23: 1 | G23: 80 | H23: 1 | I23: 10.66666667 | J23: 20
A24: 21 | B24: BENNINGTON, Tom | C24: 69 | D24: H | E24: 117 | F24: 5 | G24: 78 | H24: 1 | I24: 10 | J24: 21
A25: 22 | B25: DAWBER, Simon | C25: 116 | D25: G | E25: 95 | F25: 4 | G25: 78 | H25: 1 | I25: 10 | J25: 22
A26: 23 | B26: EAGLE, Dan | C26: 91 | D26: E | E26: 62 | F26: 2 | G26: 75 | H26: 1 | I26: 9 | J26: 23
A27: 24 | B27: CUTLER, Neil | C27: 92 | D27: C | E27: 35 | F27: 1 | G27: 74 | H27: 1 | I27: 8.666666667 | J27: 24
A28: 25 | B28: WARD, Mark | C28: 59 | D28: A | E28: 2 | F28: 2 | G28: 61 | H28: 1 | I28: 4.333333333 | J28: 25
A29: 26 | B29: ELLIOTT, Nathan | C29: 24 | D29: A | E29: 3 | F29: 3 | G29: 60 | H29: 1 | I29: 4 | J29: 26
A30: 27 | B30: HUTSON, Garry | C30: 113 | D30: E | E30: 61 | F30: 2 | G30: 56 | H30: 1 | I30: 2.666666667 | J30: 27
A31: 28 | B31: BENNETT, Rick | C31: 41 | D31: F | E31: 82 | F31: 2 | G31: 56 | H31: 1 | I31: 2.666666667 | J31: 27
A32: 29 | B32: HURCOMBE, Mark | C32: 58 | D32: B | E32: 23 | F32: 1 | G32: 55 | H32: 1 | I32: 2.333333333 | J32: 29
A33: 30 | B33: LINDFIELD, Bill | C33: 86 | D33: G | E33: 93 | F33: 1 | G33: 55 | H33: 1 | I33: 2.333333333 | J33: 29
A34: 31 | B34: HIPPERSON, Richard | C34: 77 | D34: B | E34: 27 | F34: 1 | G34: 51 | H34: 1 | I34: 1 | J34: 31
A35: 32 | B35: GOOCH, Mark | C35: 56 | D35: D | E35: 49 | F35: 1 | G35: 43 | H35: 0 | I35: 14.33333333 | J35: 32
A36: 33 | B36: BRADSHAW, Craig | C36: 117 | D36: G | E36: 101 | F36: 2 | G36: 42 | H36: 0 | I36: 14 | J36: 33
A37: 34 | B37: McCOY, Ken | C37: 52 | D37: E | E37: 63 | F37: 2 | G37: 40 | H37: 0 | I37: 13.33333333 | J37: 34
A38: 35 | B38: GREEN, Kevin | C38: 105 | D38: H | E38: 111 | F38: 2 | G38: 40 | H38: 0 | I38: 13.33333333 | J38: 34
A39: 36 | B39: WATTS, Mike | C39: 46 | D39: H | E39: 120 | F39: 2 | G39: 40 | H39: 0 | I39: 13.33333333 | J39: 34
A40: 37 | B40: SPALL, Chris | C40: 4 | D40: F | E40: 89 | F40: 2 | G40: 38 | H40: 0 | I40: 12.66666667 | J40: 37
A41: 38 | B41: STEBBINGS, Robert | C41: 38 | D41: G | E41: 92 | F41: 2 | G41: 36 | H41: 0 | I41: 12 | J41: 38
A42: 39 | B42: WOODS, Becky | C42: 63 | D42: F | E42: 76 | F42: 1 | G42: 34 | H42: 0 | I42: 11.33333333 | J42: 39
A43: 40 | B43: LAY-FLURRIE, Matt | C43: 71 | D43: A | E43: 9 | F43: 1 | G43: 25 | H43: 0 | I43: 8.333333333 | J43: 40
A44: 41 | B44: BUY, Craig | C44: 119 | D44: D | E44: 55 | F44: 1 | G44: 25 | H44: 0 | I44: 8.333333333 | J44: 40
A45: 42 | B45: HARRISON, Paul | C45: 96 | D45: E | E45: 65 | F45: 1 | G45: 25 | H45: 0 | I45: 8.333333333 | J45: 40
A46: 43 | B46: AUSTIN, John | C46: 74 | D46: F | E46: 83 | F46: 1 | G46: 25 | H46: 0 | I46: 8.333333333 | J46: 40
A47: 44 | B47: DIAPER, Barry | C47: 36 | D47: D | E47: 52 | F47: 1 | G47: 22 | H47: 0 | I47: 7.333333333 | J47: 44
A48: 45 | B48: KINGDON, Adam | C48: 20 | D48: F | E48: 78 | F48: 1 | G48: 22 | H48: 0 | I48: 7.333333333 | J48: 44
A49: 46 | B49: SMITH, Leon | C49: 70 | D49: F | E49: 79 | F49: 1 | G49: 22 | H49: 0 | I49: 7.333333333 | J49: 44
A50: 47 | B50: LITTLEWOOD, Stuart | C50: 14 | D50: C | E50: 40 | F50: 1 | G50: 20 | H50: 0 | I50: 6.666666667 | J50: 47
A51: 48 | B51: TEMPLE, Billy | C51: 73 | D51: C | E51: 45 | F51: 1 | G51: 20 | H51: 0 | I51: 6.666666667 | J51: 47
A52: 49 | B52: CRAWFORD, Vince | C52: 76 | D52: G | E52: 91 | F52: 1 | G52: 20 | H52: 0 | I52: 6.666666667 | J52: 47
A53: 50 | B53: LING, Richard | C53: 81 | D53: H | E53: 108 | F53: 1 | G53: 20 | H53: 0 | I53: 6.666666667 | J53: 47
A54: 51 | B54: BETTINSON, Charles | C54: 115 | D54: H | E54: 119 | F54: 1 | G54: 20 | H54: 0 | I54: 6.666666667 | J54: 47
A55: 52 | B55: SELF, Bevan | C55: 8 | D55: C | E55: 38 | F55: 1 | G55: 18 | H55: 0 | I55: 6 | J55: 52
A56: 53 | B56: BORDIANU, Adrian | C56: 103 | D56: E | E56: 66 | F56: 1 | G56: 18 | H56: 0 | I56: 6 | J56: 52
A57: 54 | B57: SHAUL, Keith | C57: 98 | D57: E | E57: 75 | F57: 1 | G57: 18 | H57: 0 | I57: 6 | J57: 52
A58: 55 | B58: BANCROFT, Dave | C58: 17 | D58: H | E58: 114 | F58: 1 | G58: 18 | H58: 0 | I58: 6 | J58: 52
A59: 56 | B59: McKENZIE, Brian | C59: 112 | D59: A | E59: 1 | F59: 1 | G59: 16 | H59: 0 | I59: 5.333333333 | J59: 56
A60: 57 | B60: WALLIS, Craig | C60: 101 | D60: A | E60: 15 | F60: 1 | G60: 16 | H60: 0 | I60: 5.333333333 | J60: 56
A61: 58 | B61: HADDOCK, Roy | C61: 45 | D61: F | E61: 90 | F61: 1 | G61: 16 | H61: 0 | I61: 5.333333333 | J61: 56
A62: 59 | B62: PRICE, Ben | C62: 34 | D62: G | E62: 99 | F62: 1 | G62: 16 | H62: 0 | I62: 5.333333333 | J62: 56
A63: 60 | B63: FRARY, Charlie | C63: 120 | D63: B | E63: 22 | F63: 1 | G63: 13 | H63: 0 | I63: 4.333333333 | J63: 60

Sheet Day 1-All Flattie
A1: BASS FESTIVAL 2019 | F1: Day 1 (Flattie) | L1: Winners table extract detail
A2: Individual No. | B2: Angler Name | C2: Angler No. | D2: Zone | E2: Peg | F2: No. Fish | G2: Fish Points | H2: Weight | J2: Day 1 Position | L2: Overall Position | M2: Angler No
H3: lbs | I3: oz
A4: 1 | B4: PROVINS, Colin | C4: 100 | D4: H | E4: 117 | F4: 25 | G4: 280 | H4: 5 | I4: 13.33333333 | J4: 1 | L4: 1 | M4: 100
A5: 2 | B5: ELEY, Kevin | C5: 82 | D5: H | E5: 120 | F5: 23 | G5: 261 | H5: 5 | I5: 7 | J5: 2 | L5: 2 | M5: 82
A6: 3 | B6: ELLIOTT, Nathan | C6: 24 | D6: F | E6: 83 | F6: 29 | G6: 251 | H6: 5 | I6: 3.666666667 | J6: 3 | L6: 3 | M6: 24
A7: 4 | B7: ADAMS, Stephen | C7: 68 | D7: G | E7: 94 | F7: 14 | G7: 221 | H7: 4 | I7: 9.666666667 | J7: 4 | L7: 4 | M7: 68
A8: 5 | B8: BRIGHTON, Tarrick | C8: 89 | D8: F | E8: 82 | F8: 22 | G8: 214 | H8: 4 | I8: 7.333333333 | J8: 5 | L8: 5 | M8: 89
A9: 6 | B9: CHAMBERLAIN, Darren | C9: 21 | D9: F | E9: 84 | F9: 16 | G9: 210 | H9: 4 | I9: 6 | J9: 6 | L9: 6 | M9: 21
A10: 7 | B10: BROCK, Peter | C10: 42 | D10: F | E10: 77 | F10: 16 | G10: 208 | H10: 4 | I10: 5.333333333 | J10: 7 | L10: 7 | M10: 42
A11: 8 | B11: TURNER, Cameron | C11: 11 | D11: C | E11: 31 | F11: 13 | G11: 195 | H11: 4 | I11: 1 | J11: 8 | L11: 8 | M11: 11
A12: 9 | B12: NANGLE, Karl | C12: 44 | D12: G | E12: 99 | F12: 16 | G12: 189 | H12: 3 | I12: 15 | J12: 9 | L12: 9 | M12: 44
A13: 10 | B13: ALDOUS, David | C13: 50 | D13: E | E13: 65 | F13: 11 | G13: 189 | H13: 3 | I13: 15 | J13: 10 | L13: 10 | M13: 50
A14: 11 | B14: SHARMAN, Mark | C14: 108 | D14: G | E14: 98 | F14: 14 | G14: 180 | H14: 3 | I14: 12 | J14: 11 | L14: 11 | M14: 108
A15: 12 | B15: DENHOLM, Paul | C15: 9 | D15: C | E15: 34 | F15: 13 | G15: 176 | H15: 3 | I15: 10.66666667 | J15: 12 | L15: 12 | M15: 9
A16: 13 | B16: DRIVER, Ed | C16: 49 | D16: H | E16: 107 | F16: 11 | G16: 174 | H16: 3 | I16: 10 | J16: 13 | L16: 13 | M16: 49
A17: 14 | B17: CUTLER, Neil | C17: 92 | D17: H | E17: 114 | F17: 18 | G17: 173 | H17: 3 | I17: 9.666666667 | J17: 14 | L17: 14 | M17: 92
A18: 15 | B18: LINDFIELD, Bill | C18: 86 | D18: A | E18: 1 | F18: 12 | G18: 172 | H18: 3 | I18: 9.333333333 | J18: 15 | L18: 15 | M18: 86
A19: 16 | B19: BURT, Richard | C19: 19 | D19: F | E19: 86 | F19: 17 | G19: 170 | H19: 3 | I19: 8.666666667 | J19: 16 | L19: 16 | M19: 19
A20: 17 | B20: TUCK, Rob | C20: 109 | D20: C | E20: 42 | F20: 6 | G20: 170 | H20: 3 | I20: 8.666666667 | J20: 17 | L20: 17 | M20: 109
A21: 18 | B21: CLEMENT, Alby | C21: 65 | D21: F | E21: 85 | F21: 11 | G21: 167 | H21: 3 | I21: 7.666666667 | J21: 18 | L21: 18 | M21: 65
A22: 19 | B22: STONE, Barry | C22: 79 | D22: G | E22: 92 | F22: 17 | G22: 166 | H22: 3 | I22: 7.333333333 | J22: 19 | L22: 19 | M22: 79
A23: 20 | B23: HIPPERSON, Richard | C23: 77 | D23: H | E23: 115 | F23: 19 | G23: 164 | H23: 3 | I23: 6.666666667 | J23: 20 | L23: 20 | M23: 77
A24: 21 | B24: SMITH, John | C24: 13 | D24: E | E24: 67 | F24: 11 | G24: 164 | H24: 3 | I24: 6.666666667 | J24: 21 | L24: 21 | M24: 13
A25: 22 | B25: CRAWFORD, Vince | C25: 76 | D25: A | E25: 8 | F25: 10 | G25: 164 | H25: 3 | I25: 6.666666667 | J25: 22 | L25: 22 | M25: 76
A26: 23 | B26: GASCOIGNE, Robert | C26: 5 | D26: G | E26: 91 | F26: 15 | G26: 158 | H26: 3 | I26: 4.666666667 | J26: 23 | L26: 23 | M26: 5
A27: 24 | B27: LITTLEWOOD, Stuart | C27: 14 | D27: F | E27: 90 | F27: 15 | G27: 157 | H27: 3 | I27: 4.333333333 | J27: 24 | L27: 24 | M27: 14
A28: 25 | B28: SMITH, Leon | C28: 70 | D28: B | E28: 28 | F28: 9 | G28: 155 | H28: 3 | I28: 3.666666667 | J28: 25 | L28: 25 | M28: 70
A29: 26 | B29: ADAMS, Graham | C29: 12 | D29: G | E29: 93 | F29: 13 | G29: 154 | H29: 3 | I29: 3.333333333 | J29: 26 | L29: 26 | M29: 12
A30: 27 | B30: RANDELL, Henry | C30: 1 | D30: D | E30: 48 | F30: 5 | G30: 154 | H30: 3 | I30: 3.333333333 | J30: 27 | L30: 27 | M30: 1
A31: 28 | B31: McKENZIE, Brian | C31: 112 | D31: H | E31: 118 | F31: 17 | G31: 153 | H31: 3 | I31: 3 | J31: 28 | L31: 28 | M31: 112
A32: 29 | B32: SPALL, Chris | C32: 4 | D32: D | E32: 46 | F32: 6 | G32: 151 | H32: 3 | I32: 2.333333333 | J32: 29 | L32: 29 | M32: 4
A33: 30 | B33: WRIGHT, Dave | C33: 33 | D33: E | E33: 62 | F33: 10 | G33: 146 | H33: 3 | I33: 0.6666666667 | J33: 30 | L33: 30 | M33: 33
A34: 31 | B34: SMITH, George | C34: 114 | D34: E | E34: 66 | F34: 7 | G34: 146 | H34: 3 | I34: 0.6666666667 | J34: 31 | L34: 31 | M34: 114
A35: 32 | B35: HUGHES, Gary | C35: 87 | D35: H | E35: 119 | F35: 15 | G35: 145 | H35: 3 | I35: 0.3333333333 | J35: 32 | L35: 32 | M35: 87
A36: 33 | B36: SMART, Neil | C36: 107 | D36: G | E36: 95 | F36: 14 | G36: 143 | H36: 2 | I36: 15.66666667 | J36: 33 | L36: 33 | M36: 107
A37: 34 | B37: RUSH, Billy | C37: 64 | D37: G | E37: 101 | F37: 9 | G37: 141 | H37: 2 | I37: 15 | J37: 34 | L37: 34 | M37: 64
A38: 35 | B38: WATTS, Mike | C38: 46 | D38: B | E38: 24 | F38: 7 | G38: 141 | H38: 2 | I38: 15 | J38: 35 | L38: 35 | M38: 46
A39: 36 | B39: BUY, Craig | C39: 119 | D39: G | E39: 97 | F39: 14 | G39: 140 | H39: 2 | I39: 14.66666667 | J39: 36 | L39: 36 | M39: 119
A40: 37 | B40: TEMPLE, Billy | C40: 73 | D40: E | E40: 72 | F40: 10 | G40: 136 | H40: 2 | I40: 13.33333333 | J40: 37 | L40: 37 | M40: 73
A41: 38 | B41: STORER, Paul | C41: 7 | D41: A | E41: 9 | F41: 8 | G41: 122 | H41: 2 | I41: 8.666666667 | J41: 38 | L41: 38 | M41: 7
A42: 39 | B42: BOWELL, Ian | C42: 93 | D42: C | E42: 43 | F42: 4 | G42: 122 | H42: 2 | I42: 8.666666667 | J42: 39 | L42: 39 | M42: 93
A43: 40 | B43: DIAPER, Barry | C43: 36 | D43: F | E43: 81 | F43: 11 | G43: 120 | H43: 2 | I43: 8 | J43: 40 | L43: 40 | M43: 36
A44: 41 | B44: SELF, Bevan | C44: 8 | D44: E | E44: 68 | F44: 9 | G44: 120 | H44: 2 | I44: 8 | J44: 41 | L44: 41 | M44: 8
A45: 42 | B45: TOPPING, Mike | C45: 40 | D45: A | E45: 6 | F45: 5 | G45: 119 | H45: 2 | I45: 7.666666667 | J45: 42 | L45: 42 | M45: 40
A46: 43 | B46: THORPE, Doug | C46: 104 | D46: E | E46: 70 | F46: 6 | G46: 118 | H46: 2 | I46: 7.333333333 | J46: 43 | L46: 43 | M46: 104
A47: 44 | B47: THORBURN, Paul | C47: 55 | D47: E | E47: 73 | F47: 3 | G47: 118 | H47: 2 | I47: 7.333333333 | J47: 44 | L47: 44 | M47: 55
A48: 45 | B48: EAGLE, Dan | C48: 91 | D48: A | E48: 10 | F48: 4 | G48: 116 | H48: 2 | I48: 6.666666667 | J48: 45 | L48: 45 | M48: 91
A49: 46 | B49: FRARY, Charlie | C49: 120 | D49: G | E49: 102 | F49: 14 | G49: 114 | H49: 2 | I49: 6 | J49: 46 | L49: 46 | M49: 120
A50: 47 | B50: HUTCHINSON (BP), Dave | C50: 90 | D50: G | E50: 105 | F50: 12 | G50: 111 | H50: 2 | I50: 5 | J50: 47 | L50: 47 | M50: 90
A51: 48 | B51: GOOCH, Mark | C51: 56 | D51: F | E51: 88 | F51: 9 | G51: 111 | H51: 2 | I51: 5 | J51: 48 | L51: 48 | M51: 56
A52: 49 | B52: ADAMS, Lee | C52: 22 | D52: F | E52: 76 | F52: 10 | G52: 110 | H52: 2 | I52: 4.666666667 | J52: 49 | L52: 49 | M52: 22
A53: 50 | B53: FRARY, June | C53: 32 | D53: G | E53: 103 | F53: 11 | G53: 109 | H53: 2 | I53: 4.333333333 | J53: 50 | L53: 50 | M53: 32
A54: 51 | B54: JARMAN, Wayne | C54: 47 | D54: E | E54: 69 | F54: 9 | G54: 108 | H54: 2 | I54: 4 | J54: 51 | L54: 51 | M54: 47
A55: 52 | B55: RUSSELL, Shane | C55: 25 | D55: B | E55: 29 | F55: 6 | G55: 108 | H55: 2 | I55: 4 | J55: 52 | L55: 52 | M55: 25
A56: 53 | B56: KINGDON, Adam | C56: 20 | D56: D | E56: 60 | F56: 9 | G56: 106 | H56: 2 | I56: 3.333333333 | J56: 53 | L56: 53 | M56: 20
A57: 54 | B57: MEDLER, Gary | C57: 26 | D57: C | E57: 37 | F57: 5 | G57: 106 | H57: 2 | I57: 3.333333333 | J57: 54 | L57: 54 | M57: 26
A58: 55 | B58: NELSON, Ian | C58: 53 | D58: D | E58: 47 | F58: 4 | G58: 105 | H58: 2 | I58: 3 | J58: 55 | L58: 55 | M58: 53
A59: 56 | B59: CANNELL, Chris | C59: 43 | D59: E | E59: 61 | F59: 8 | G59: 104 | H59: 2 | I59: 2.666666667 | J59: 56 | L59: 56 | M59: 43
A60: 57 | B60: PRICE, Ben | C60: 34 | D60: C | E60: 33 | F60: 5 | G60: 104 | H60: 2 | I60: 2.666666667 | J60: 57 | L60: 57 | M60: 34
A61: 58 | B61: HURCOMBE, Mark | C61: 58 | D61: F | E61: 78 | F61: 11 | G61: 103 | H61: 2 | I61: 2.333333333 | J61: 58 | L61: 58 | M61: 58
A62: 59 | B62: PARROTT, Ade | C62: 95 | D62: H | E62: 112 | F62: 7 | G62: 97 | H62: 2 | I62: 0.3333333333 | J62: 59 | L62: 59 | M62: 95
A63: 60 | B63: FATTIZZO, Tony | C63: 60 | D63: H | E63: 111 | F63: 9 | G63: 96 | H63: 2 | I63: 0 | J63: 60 | L63: 60 | M63: 60
A64: 61 | B64: BURR, Dave | C64: 30 | D64: B | E64: 26 | F64: 5 | G64: 96 | H64: 2 | I64: 0 | J64: 61 | L64: 61 | M64: 30
A65: 62 | B65: SMITH, Andy | C65: 31 | D65: H | E65: 106 | F65: 9 | G65: 94 | H65: 1 | I65: 15.33333333 | J65: 62 | L65: 62 | M65: 31
A66: 63 | B66: HUTSON, Garry | C66: 113 | D66: A | E66: 3 | F66: 5 | G66: 92 | H66: 1 | I66: 14.66666667 | J66: 63 | L66: 63 | M66: 113
A67: 64 | B67: LAY-FLURRIE, Matt | C67: 71 | D67: G | E67: 96 | F67: 9 | G67: 89 | H67: 1 | I67: 13.66666667 | J67: 64 | L67: 64 | M67: 71
A68: 65 | B68: NICHOLSON, Steven | C68: 6 | D68: H | E68: 109 | F68: 4 | G68: 89 | H68: 1 | I68: 13.66666667 | J68: 65 | L68: 65 | M68: 6
A69: 66 | B69: HART, Paul | C69: 72 | D69: F | E69: 89 | F69: 8 | G69: 88 | H69: 1 | I69: 13.33333333 | J69: 66 | L69: 66 | M69: 72
A70: 67 | B70: BATTLE, Ian | C70: 51 | D70: D | E70: 57 | F70: 6 | G70: 88 | H70: 1 | I70: 13.33333333 | J70: 67 | L70: 67 | M70: 51
A71: 68 | B71: WALLIS, Craig | C71: 101 | D71: E | E71: 71 | F71: 8 | G71: 86 | H71: 1 | I71: 12.66666667 | J71: 68 | L71: 68 | M71: 101
A72: 69 | B72: JACOBS, Richard | C72: 106 | D72: C | E72: 32 | F72: 5 | G72: 85 | H72: 1 | I72: 12.33333333 | J72: 69 | L72: 69 | M72: 106
A73: 70 | B73: BORDIANU, Adrian | C73: 103 | D73: D | E73: 54 | F73: 3 | G73: 85 | H73: 1 | I73: 12.33333333 | J73: 70 | L73: 70 | M73: 103
A74: 71 | B74: SMITH, Adele | C74: 62 | D74: B | E74: 21 | F74: 9 | G74: 82 | H74: 1 | I74: 11.33333333 | J74: 71 | L74: 71 | M74: 62
A75: 72 | B75: BANHAM, Jason | C75: 15 | D75: B | E75: 23 | F75: 3 | G75: 82 | H75: 1 | I75: 11.33333333 | J75: 72 | L75: 72 | M75: 15
A76: 73 | B76: SHAUL, Keith | C76: 98 | D76: A | E76: 2 | F76: 7 | G76: 80 | H76: 1 | I76: 10.66666667 | J76: 73 | L76: 73 | M76: 98
A77: 74 | B77: WOODS, Graham | C77: 39 | D77: E | E77: 74 | F77: 6 | G77: 76 | H77: 1 | I77: 9.333333333 | J77: 74 | L77: 74 | M77: 39
A78: 75 | B78: THOMAS, Tony | C78: 18 | D78: C | E78: 40 | F78: 4 | G78: 75 | H78: 1 | I78: 9 | J78: 75 | L78: 75 | M78: 18
A79: 76 | B79: SHAUL, Jimmy | C79: 94 | D79: C | E79: 44 | F79: 3 | G79: 75 | H79: 1 | I79: 9 | J79: 76 | L79: 76 | M79: 94
A80: 77 | B80: BENNETT, Rick | C80: 41 | D80: A | E80: 15 | F80: 7 | G80: 69 | H80: 1 | I80: 7 | J80: 77 | L80: 77 | M80: 41
A81: 78 | B81: WOODS, Becky | C81: 63 | D81: C | E81: 35 | F81: 6 | G81: 66 | H81: 1 | I81: 6 | J81: 78 | L81: 78 | M81: 63
A82: 79 | B82: HARVEY, Mark | C82: 80 | D82: C | E82: 38 | F82: 3 | G82: 63 | H82: 1 | I82: 5 | J82: 79 | L82: 79 | M82: 80
A83: 80 | B83: WHITE, Alan | C83: 54 | D83: E | E83: 75 | F83: 5 | G83: 59 | H83: 1 | I83: 3.666666667 | J83: 80 | L83: 80 | M83: 54
A84: 81 | B84: DIAPER, Greg | C84: 3 | D84: B | E84: 25 | F84: 3 | G84: 58 | H84: 1 | I84: 3.333333333 | J84: 81 | L84: 81 | M84: 3
A85: 82 | B85: AKESTER, Jack | C85: 16 | D85: B | E85: 27 | F85: 4 | G85: 54 | H85: 1 | I85: 2 | J85: 82 | L85: 82 | M85: 16
A86: 83 | B86: BETTINSON, Charles | C86: 115 | D86: A | E86: 4 | F86: 5 | G86: 52 | H86: 1 | I86: 1.333333333 | J86: 83 | L86: 83 | M86: 115
A87: 84 | B87: HADDOCK, Roy | C87: 45 | D87: B | E87: 18 | F87: 4 | G87: 50 | H87: 1 | I87: 0.6666666667 | J87: 84 | L87: 84 | M87: 45
A88: 85 | B88: BANCROFT, Dave | C88: 17 | D88: B | E88: 19 | F88: 3 | G88: 50 | H88: 1 | I88: 0.6666666667 | J88: 85 | L88: 85 | M88: 17
A89: 86 | B89: SHORTHOUSE, Dave | C89: 118 | D89: D | E89: 52 | F89: 2 | G89: 50 | H89: 1 | I89: 0.6666666667 | J89: 86 | L89: 86 | M89: 118
A90: 87 | B90: WARD, Mark | C90: 59 | D90: E | E90: 63 | F90: 4 | G90: 49 | H90: 1 | I90: 0.3333333333 | J90: 87 | L90: 87 | M90: 59
A91: 88 | B91: DRAYTON, Simon | C91: 37 | D91: C | E91: 39 | F91: 4 | G91: 48 | H91: 1 | I91: 0 | J91: 88 | L91: 88 | M91: 37
A92: 89 | B92: HARVEY, Paul | C92: 75 | D92: H | E92: 116 | F92: 6 | G92: 47 | H92: 0 | I92: 15.66666667 | J92: 89 | L92: 89 | M92: 75
A93: 90 | B93: CARTER, John | C93: 66 | D93: G | E93: 104 | F93: 4 | G93: 47 | H93: 0 | I93: 15.66666667 | J93: 90 | L93: 90 | M93: 66
A94: 91 | B94: CREASEY, Shaun | C94: 61 | D94: H | E94: 108 | F94: 5 | G94: 42 | H94: 0 | I94: 14 | J94: 91 | L94: 91 | M94: 61
A95: 92 | B95: STEBBINGS, Robert | C95: 38 | D95: C | E95: 36 | F95: 4 | G95: 36 | H95: 0 | I95: 12 | J95: 92 | L95: 92 | M95: 38
A96: 93 | B96: HARVEY, John | C96: 111 | D96: A | E96: 14 | F96: 4 | G96: 35 | H96: 0 | I96: 11.66666667 | J96: 93 | L96: 93 | M96: 111
A97: 94 | B97: GREEN, Kevin | C97: 105 | D97: B | E97: 16 | F97: 4 | G97: 34 | H97: 0 | I97: 11.33333333 | J97: 94 | L97: 94 | M97: 105
A98: 95 | B98: DAWBER, Simon | C98: 116 | D98: D | E98: 53 | F98: 3 | G98: 34 | H98: 0 | I98: 11.33333333 | J98: 95 | L98: 95 | M98: 116
A99: 96 | B99: AUSTIN, John | C99: 74 | D99: A | E99: 7 | F99: 3 | G99: 30 | H99: 0 | I99: 10 | J99: 96 | L99: 96 | M99: 74
A100: 97 | B100: DOY, Alan | C100: 88 | D100: F | E100: 87 | F100: 3 | G100: 30 | H100: 0 | I100: 10 | J100: 96 | L100: 96 | M100: 88
A101: 98 | B101: BENNINGTON, Tom | C101: 69 | D101: D | E101: 55 | F101: 2 | G101: 30 | H101: 0 | I101: 10 | J101: 98 | L101: 98 | M101: 69
A102: 99 | B102: GROSSMAN, Martin | C102: 67 | D102: H | E102: 110 | F102: 2 | G102: 26 | H102: 0 | I102: 8.666666667 | J102: 99 | L102: 99 | M102: 67
A103: 100 | B103: BENNINGTON, Graham | C103: 57 | D103: D | E103: 56 | F103: 1 | G103: 24 | H103: 0 | I103: 8 | J103: 100 | L103: 100 | M103: 57
A104: 101 | B104: LING, Richard | C104: 81 | D104: B | E104: 20 | F104: 2 | G104: 21 | H104: 0 | I104: 7 | J104: 101 | L104: 101 | M104: 81
A105: 102 | B105: BRADSHAW, Craig | C105: 117 | D105: A | E105: 11 | F105: 2 | G105: 20 | H105: 0 | I105: 6.666666667 | J105: 102 | L105: 102 | M105: 117
A106: 103 | B106: McCOY, Ken | C106: 52 | D106: D | E106: 50 | F106: 1 | G106: 12 | H106: 0 | I106: 4 | J106: 103 | L106: 103 | M106: 52

Sheet Day 2-All Flattie
A1: BASS FESTIVAL 2018 | F1: Day 2 (Flattie)
A2: Individual No. | B2: Angler Name | C2: Angler No. | D2: Zone | E2: Peg | F2: No. Fish | G2: Fish Points | H2: Weight | J2: Day 2 Position
H3: lbs | I3: oz
A4: 1 | B4: CLEMENT, Alby | C4: 65 | D4: B | E4: 20 | F4: 18 | G4: 473 | H4: 9 | I4: 13.66666667 | J4: 1
A5: 2 | B5: WATTS, Mike | C5: 46 | D5: H | E5: 120 | F5: 24 | G5: 240 | H5: 5 | I5: 0 | J5: 2
A6: 3 | B6: SPALL, Chris | C6: 4 | D6: F | E6: 89 | F6: 16 | G6: 213 | H6: 4 | I6: 7 | J6: 3
A7: 4 | B7: WRIGHT, Dave | C7: 33 | D7: C | E7: 36 | F7: 7 | G7: 213 | H7: 4 | I7: 7 | J7: 4
A8: 5 | B8: FRARY, Charlie | C8: 120 | D8: B | E8: 22 | F8: 6 | G8: 212 | H8: 4 | I8: 6.666666667 | J8: 5
A9: 6 | B9: STORER, Paul | C9: 7 | D9: F | E9: 80 | F9: 13 | G9: 211 | H9: 4 | I9: 6.333333333 | J9: 6
A10: 7 | B10: BETTINSON, Charles | C10: 115 | D10: H | E10: 119 | F10: 21 | G10: 198 | H10: 4 | I10: 2 | J10: 7
A11: 8 | B11: HARRISON, Paul | C11: 96 | D11: E | E11: 65 | F11: 13 | G11: 191 | H11: 3 | I11: 15.66666667 | J11: 8
A12: 9 | B12: WARD, Mark | C12: 59 | D12: A | E12: 2 | F12: 10 | G12: 184 | H12: 3 | I12: 13.33333333 | J12: 9
A13: 10 | B13: DRIVER, Ed | C13: 49 | D13: A | E13: 10 | F13: 10 | G13: 174 | H13: 3 | I13: 10 | J13: 10
A14: 11 | B14: GREEN, Kevin | C14: 105 | D14: H | E14: 111 | F14: 15 | G14: 166 | H14: 3 | I14: 7.333333333 | J14: 11
A15: 12 | B15: ADAMS, Stephen | C15: 68 | D15: D | E15: 46 | F15: 7 | G15: 158 | H15: 3 | I15: 4.666666667 | J15: 12
A16: 13 | B16: LINDFIELD, Bill | C16: 86 | D16: G | E16: 93 | F16: 13 | G16: 155 | H16: 3 | I16: 3.666666667 | J16: 13
A17: 14 | B17: TUCK, Rob | C17: 109 | D17: F | E17: 81 | F17: 12 | G17: 146 | H17: 3 | I17: 0.6666666667 | J17: 14
A18: 15 | B18: AUSTIN, John | C18: 74 | D18: F | E18: 83 | F18: 11 | G18: 146 | H18: 3 | I18: 0.6666666667 | J18: 15
A19: 16 | B19: SHAUL, Jimmy | C19: 94 | D19: H | E19: 116 | F19: 17 | G19: 144 | H19: 3 | I19: 0 | J19: 16
A20: 17 | B20: AKESTER, Jack | C20: 16 | D20: H | E20: 109 | F20: 14 | G20: 144 | H20: 3 | I20: 0 | J20: 17
A21: 18 | B21: HURCOMBE, Mark | C21: 58 | D21: B | E21: 23 | F21: 7 | G21: 141 | H21: 2 | I21: 15 | J21: 18
A22: 19 | B22: RANDELL, Henry | C22: 1 | D22: G | E22: 100 | F22: 8 | G22: 139 | H22: 2 | I22: 14.33333333 | J22: 19
A23: 20 | B23: GASCOIGNE, Robert | C23: 5 | D23: A | E23: 11 | F23: 9 | G23: 137 | H23: 2 | I23: 13.66666667 | J23: 20
A24: 21 | B24: GROSSMAN, Martin | C24: 67 | D24: B | E24: 19 | F24: 5 | G24: 134 | H24: 2 | I24: 12.66666667 | J24: 21
A25: 22 | B25: DAWBER, Simon | C25: 116 | D25: G | E25: 95 | F25: 12 | G25: 128 | H25: 2 | I25: 10.66666667 | J25: 22
A26: 23 | B26: BANHAM, Jason | C26: 15 | D26: H | E26: 112 | F26: 13 | G26: 123 | H26: 2 | I26: 9 | J26: 23
A27: 24 | B27: WHITE, Alan | C27: 54 | D27: A | E27: 4 | F27: 9 | G27: 121 | H27: 2 | I27: 8.333333333 | J27: 24
A28: 25 | B28: BENNETT, Rick | C28: 41 | D28: F | E28: 82 | F28: 12 | G28: 117 | H28: 2 | I28: 7 | J28: 25
A29: 26 | B29: SMITH, George | C29: 114 | D29: D | E29: 56 | F29: 3 | G29: 116 | H29: 2 | I29: 6.666666667 | J29: 26
A30: 27 | B30: BANCROFT, Dave | C30: 17 | D30: H | E30: 114 | F30: 10 | G30: 109 | H30: 2 | I30: 4.333333333 | J30: 27
A31: 28 | B31: STEBBINGS, Robert | C31: 38 | D31: G | E31: 92 | F31: 12 | G31: 107 | H31: 2 | I31: 3.666666667 | J31: 28
A32: 29 | B32: SHORTHOUSE, Dave | C32: 118 | D32: H | E32: 106 | F32: 11 | G32: 100 | H32: 2 | I32: 1.333333333 | J32: 29
A33: 30 | B33: WALLIS, Craig | C33: 101 | D33: A | E33: 15 | F33: 8 | G33: 100 | H33: 2 | I33: 1.333333333 | J33: 30
A34: 31 | B34: WOODS, Graham | C34: 39 | D34: D | E34: 47 | F34: 3 | G34: 98 | H34: 2 | I34: 0.6666666667 | J34: 31
A35: 32 | B35: NELSON, Ian | C35: 53 | D35: E | E35: 68 | F35: 3 | G35: 97 | H35: 2 | I35: 0.3333333333 | J35: 32
A36: 33 | B36: KINGDON, Adam | C36: 20 | D36: F | E36: 78 | F36: 11 | G36: 96 | H36: 2 | I36: 0 | J36: 33
A37: 34 | B37: CHAMBERLAIN, Darren | C37: 21 | D37: D | E37: 48 | F37: 7 | G37: 96 | H37: 2 | I37: 0 | J37: 34
A38: 35 | B38: BOWELL, Ian | C38: 93 | D38: F | E38: 88 | F38: 11 | G38: 94 | H38: 1 | I38: 15.33333333 | J38: 35
A39: 36 | B39: THORPE, Doug | C39: 104 | D39: A | E39: 8 | F39: 7 | G39: 92 | H39: 1 | I39: 14.66666667 | J39: 36
A40: 37 | B40: CRAWFORD, Vince | C40: 76 | D40: G | E40: 91 | F40: 6 | G40: 91 | H40: 1 | I40: 14.33333333 | J40: 37
A41: 38 | B41: BUY, Craig | C41: 119 | D41: D | E41: 55 | F41: 4 | G41: 89 | H41: 1 | I41: 13.66666667 | J41: 38
A42: 39 | B42: LING, Richard | C42: 81 | D42: H | E42: 108 | F42: 8 | G42: 88 | H42: 1 | I42: 13.33333333 | J42: 39
A43: 40 | B43: BORDIANU, Adrian | C43: 103 | D43: E | E43: 66 | F43: 7 | G43: 88 | H43: 1 | I43: 13.33333333 | J43: 40
A44: 41 | B44: McCOY, Ken | C44: 52 | D44: E | E44: 63 | F44: 6 | G44: 88 | H44: 1 | I44: 13.33333333 | J44: 41
A45: 42 | B45: STONE, Barry | C45: 79 | D45: B | E45: 28 | F45: 10 | G45: 87 | H45: 1 | I45: 13 | J45: 42
A46: 43 | B46: NICHOLSON, Steven | C46: 6 | D46: B | E46: 29 | F46: 5 | G46: 87 | H46: 1 | I46: 13 | J46: 43
A47: 44 | B47: PROVINS, Colin | C47: 100 | D47: D | E47: 59 | F47: 7 | G47: 82 | H47: 1 | I47: 11.33333333 | J47: 44
A48: 45 | B48: SMITH, Andy | C48: 31 | D48: C | E48: 37 | F48: 4 | G48: 82 | H48: 1 | I48: 11.33333333 | J48: 45
A49: 46 | B49: SMITH, Adele | C49: 62 | D49: E | E49: 70 | F49: 6 | G49: 80 | H49: 1 | I49: 10.66666667 | J49: 46
A50: 47 | B50: TOPPING, Mike | C50: 40 | D50: G | E50: 97 | F50: 7 | G50: 79 | H50: 1 | I50: 10.33333333 | J50: 47
A51: 48 | B51: ADAMS, Lee | C51: 22 | D51: C | E51: 34 | F51: 5 | G51: 79 | H51: 1 | I51: 10.33333333 | J51: 48
A52: 49 | B52: SMITH, John | C52: 13 | D52: D | E52: 58 | F52: 5 | G52: 78 | H52: 1 | I52: 10 | J52: 49
A53: 50 | B53: EAGLE, Dan | C53: 91 | D53: E | E53: 62 | F53: 4 | G53: 78 | H53: 1 | I53: 10 | J53: 50
A54: 51 | B54: TURNER, Cameron | C54: 11 | D54: F | E54: 86 | F54: 9 | G54: 76 | H54: 1 | I54: 9.333333333 | J54: 51
A55: 52 | B55: CUTLER, Neil | C55: 92 | D55: C | E55: 35 | F55: 5 | G55: 76 | H55: 1 | I55: 9.333333333 | J55: 52
A56: 53 | B56: HUTSON, Garry | C56: 113 | D56: E | E56: 61 | F56: 4 | G56: 72 | H56: 1 | I56: 8 | J56: 53
A57: 54 | B57: DOY, Alan | C57: 88 | D57: D | E57: 60 | F57: 5 | G57: 71 | H57: 1 | I57: 7.666666667 | J57: 54
A58: 55 | B58: SELF, Bevan | C58: 8 | D58: C | E58: 38 | F58: 5 | G58: 70 | H58: 1 | I58: 7.333333333 | J58: 55
A59: 56 | B59: ELEY, Kevin | C59: 82 | D59: C | E59: 39 | F59: 4 | G59: 67 | H59: 1 | I59: 6.333333333 | J59: 56
A60: 57 | B60: HIPPERSON, Richard | C60: 77 | D60: B | E60: 27 | F60: 7 | G60: 66 | H60: 1 | I60: 6 | J60: 57
A61: 58 | B61: MEDLER, Gary | C61: 26 | D61: E | E61: 67 | F61: 5 | G61: 66 | H61: 1 | I61: 6 | J61: 58
A62: 59 | B62: KING, Simon | C62: 78 | D62: G | E62: 105 | F62: 3 | G62: 66 | H62: 1 | I62: 6 | J62: 59
A63: 60 | B63: LITTLEWOOD, Stuart | C63: 14 | D63: C | E63: 40 | F63: 4 | G63: 62 | H63: 1 | I63: 4.666666667 | J63: 60
A64: 61 | B64: THOMAS, Tony | C64: 18 | D64: E | E64: 73 | F64: 4 | G64: 62 | H64: 1 | I64: 4.666666667 | J64: 60
A65: 62 | B65: HUTCHINSON (BP), Dave | C65: 90 | D65: D | E65: 50 | F65: 4 | G65: 61 | H65: 1 | I65: 4.333333333 | J65: 62
A66: 63 | B66: BURT, Richard | C66: 19 | D66: D | E66: 57 | F66: 5 | G66: 60 | H66: 1 | I66: 4 | J66: 63
A67: 64 | B67: CANNELL, Chris | C67: 43 | D67: D | E67: 54 | F67: 5 | G67: 58 | H67: 1 | I67: 3.333333333 | J67: 64
A68: 65 | B68: TEMPLE, Billy | C68: 73 | D68: C | E68: 45 | F68: 3 | G68: 58 | H68: 1 | I68: 3.333333333 | J68: 65
A69: 66 | B69: McKENZIE, Brian | C69: 112 | D69: A | E69: 1 | F69: 6 | G69: 56 | H69: 1 | I69: 2.666666667 | J69: 66
A70: 67 | B70: BURR, Dave | C70: 30 | D70: F | E70: 84 | F70: 6 | G70: 56 | H70: 1 | I70: 2.666666667 | J70: 66
A71: 68 | B71: JACOBS, Richard | C71: 106 | D71: E | E71: 72 | F71: 5 | G71: 56 | H71: 1 | I71: 2.666666667 | J71: 68
A72: 69 | B72: HARVEY, Paul | C72: 75 | D72: C | E72: 43 | F72: 4 | G72: 56 | H72: 1 | I72: 2.666666667 | J72: 69
A73: 70 | B73: NANGLE, Karl | C73: 44 | D73: D | E73: 53 | F73: 3 | G73: 56 | H73: 1 | I73: 2.666666667 | J73: 70
A74: 71 | B74: DRAYTON, Simon | C74: 37 | D74: H | E74: 107 | F74: 7 | G74: 55 | H74: 1 | I74: 2.333333333 | J74: 71
A75: 72 | B75: WOODS, Becky | C75: 63 | D75: F | E75: 76 | F75: 5 | G75: 55 | H75: 1 | I75: 2.333333333 | J75: 72
A76: 73 | B76: PRICE, Ben | C76: 34 | D76: G | E76: 99 | F76: 5 | G76: 54 | H76: 1 | I76: 2 | J76: 73
A77: 74 | B77: HADDOCK, Roy | C77: 45 | D77: F | E77: 90 | F77: 4 | G77: 54 | H77: 1 | I77: 2 | J77: 74
A78: 75 | B78: RUSSELL, Shane | C78: 25 | D78: E | E78: 69 | F78: 5 | G78: 53 | H78: 1 | I78: 1.666666667 | J78: 75
A79: 76 | B79: HART, Paul | C79: 72 | D79: C | E79: 31 | F79: 4 | G79: 53 | H79: 1 | I79: 1.666666667 | J79: 76
A80: 77 | B80: SHAUL, Keith | C80: 98 | D80: E | E80: 75 | F80: 2 | G80: 52 | H80: 1 | I80: 1.333333333 | J80: 77
A81: 78 | B81: ELLIOTT, Nathan | C81: 24 | D81: A | E81: 3 | F81: 6 | G81: 49 | H81: 1 | I81: 0.3333333333 | J81: 78
A82: 79 | B82: FRARY, June | C82: 32 | D82: B | E82: 21 | F82: 2 | G82: 45 | H82: 0 | I82: 15 | J82: 79
A83: 80 | B83: BENNINGTON, Graham | C83: 57 | D83: H | E83: 118 | F83: 5 | G83: 44 | H83: 0 | I83: 14.66666667 | J83: 80
A84: 81 | B84: BATTLE, Ian | C84: 51 | D84: G | E84: 96 | F84: 4 | G84: 40 | H84: 0 | I84: 13.33333333 | J84: 81
A85: 82 | B85: HUGHES, Gary | C85: 87 | D85: B | E85: 30 | F85: 5 | G85: 39 | H85: 0 | I85: 13 | J85: 82
A86: 83 | B86: DENHOLM, Paul | C86: 9 | D86: F | E86: 87 | F86: 4 | G86: 37 | H86: 0 | I86: 12.33333333 | J86: 83
A87: 84 | B87: ADAMS, Graham | C87: 12 | D87: A | E87: 7 | F87: 2 | G87: 30 | H87: 0 | I87: 10 | J87: 84
A88: 85 | B88: DIAPER, Barry | C88: 36 | D88: D | E88: 52 | F88: 3 | G88: 28 | H88: 0 | I88: 9.333333333 | J88: 85
A89: 86 | B89: DIAPER, Greg | C89: 3 | D89: E | E89: 74 | F89: 3 | G89: 27 | H89: 0 | I89: 9 | J89: 86
A90: 87 | B90: JARMAN, Wayne | C90: 47 | D90: A | E90: 13 | F90: 4 | G90: 26 | H90: 0 | I90: 8.666666667 | J90: 87
A91: 88 | B91: SMITH, Leon | C91: 70 | D91: F | E91: 79 | F91: 2 | G91: 24 | H91: 0 | I91: 8 | J91: 88
A92: 89 | B92: BRADSHAW, Craig | C92: 117 | D92: G | E92: 101 | F92: 2 | G92: 24 | H92: 0 | I92: 8 | J92: 88
A93: 90 | B93: BENNINGTON, Tom | C93: 69 | D93: H | E93: 117 | F93: 3 | G93: 22 | H93: 0 | I93: 7.333333333 | J93: 90
A94: 91 | B94: CARTER, John | C94: 66 | D94: A | E94: 12 | F94: 3 | G94: 21 | H94: 0 | I94: 7 | J94: 91
A95: 92 | B95: LAY-FLURRIE, Matt | C95: 71 | D95: A | E95: 9 | F95: 2 | G95: 16 | H95: 0 | I95: 5.333333333 | J95: 92
A96: 93 | B96: RUSH, Billy | C96: 64 | D96: A | E96: 14 | F96: 2 | G96: 15 | H96: 0 | I96: 5 | J96: 93
A97: 94 | B97: SMART, Neil | C97: 107 | D97: D | E97: 51 | F97: 2 | G97: 15 | H97: 0 | I97: 5 | J97: 93
A98: 95 | B98: HARVEY, John | C98: 111 | D98: E | E98: 64 | F98: 2 | G98: 14 | H98: 0 | I98: 4.666666667 | J98: 95
A99: 96 | B99: CREASEY, Shaun | C99: 61 | D99: C | E99: 32 | F99: 1 | G99: 8 | H99: 0 | I99: 2.666666667 | J99: 96
A100: 97 | B100: HARVEY, Mark | C100: 80 | D100: F | E100: 77 | F100: 1 | G100: 6 | H100: 0 | I100: 2 | J100: 97

Sheet Day 1-Ladies
B1: UK LADIES CHAMPIONSHIPS 2019 | F1: Day 1 (Individuals)
A2: Individual No. | B2: Angler Name | C2: Angler No. | D2: Zone | E2: Peg | F2: No. Fish | G2: Fish Points | H2: Weight | J2: Day 1 Points | K2: Day 1 Position
H3: lbs | I3: oz
A4: 1 | B4: LINDFIELD, Heather | C4: 83 | D4: B | E4: 30 | F4: 20 | G4: 278 | H4: 5 | I4: 12.66666667 | J4: 1 | K4: 1
A5: 2 | B5: LAWN, Kimberley | C5: 23 | D5: C | E5: 45 | F5: 8 | G5: 254 | H5: 5 | I5: 4.666666667 | J5: 2 | K5: 2
A6: 3 | B6: JARMAN, Rachael | C6: 85 | D6: G | E6: 100 | F6: 19 | G6: 208 | H6: 4 | I6: 5.333333333 | J6: 3 | K6: 3
A7: 4 | B7: METCALFE, Wendy | C7: 84 | D7: D | E7: 59 | F7: 5 | G7: 178 | H7: 3 | I7: 11.33333333 | J7: 4 | K7: 4
A8: 5 | B8: WOODS, Becky | C8: 63 | D8: C | E8: 35 | F8: 8 | G8: 149 | H8: 3 | I8: 1.666666667 | J8: 5 | K8: 5
A9: 6 | B9: SMITH, Adele | C9: 62 | D9: B | E9: 21 | F9: 10 | G9: 141 | H9: 2 | I9: 15 | J9: 6 | K9: 6
A10: 7 | B10: FRARY, June | C10: 32 | D10: G | E10: 103 | F10: 12 | G10: 129 | H10: 2 | I10: 11 | J10: 7 | K10: 7
A11: 8 | B11: BROWN, Kay | C11: 102 | D11: D | E11: 58 | F11: 1 | G11: 7 | H11: 0 | I11: 2.333333333 | J11: 8 | K11: 8

Sheet Day 2-Ladies
B1: UK LADIES CHAMPIONSHIPS 2019 | F1: Day 2 (Individuals)
A2: Individual No. | B2: Angler Name | C2: Angler No. | D2: Zone | E2: Peg | F2: No. Fish | G2: Fish Points | H2: Weight | J2: Day 2 Points | K2: Day 2 Position
H3: lbs | I3: oz
A4: 1 | B4: LAWN, Kimberley | C4: 23 | D4: H | E4: 115 | F4: 11 | G4: 223 | H4: 4 | I4: 10.33333333 | J4: 1 | K4: 1
A5: 2 | B5: METCALFE, Wendy | C5: 84 | D5: G | E5: 104 | F5: 9 | G5: 179 | H5: 3 | I5: 11.66666667 | J5: 2 | K5: 2
A6: 3 | B6: LINDFIELD, Heather | C6: 83 | D6: G | E6: 94 | F6: 10 | G6: 149 | H6: 3 | I6: 1.666666667 | J6: 3 | K6: 3
A7: 4 | B7: BROWN, Kay | C7: 102 | D7: G | E7: 103 | F7: 9 | G7: 117 | H7: 2 | I7: 7 | J7: 4 | K7: 4
A8: 5 | B8: WOODS, Becky | C8: 63 | D8: F | E8: 76 | F8: 6 | G8: 89 | H8: 1 | I8: 13.66666667 | J8: 5 | K8: 5
A9: 6 | B9: SMITH, Adele | C9: 62 | D9: E | E9: 70 | F9: 6 | G9: 80 | H9: 1 | I9: 10.66666667 | J9: 6 | K9: 6
A10: 7 | B10: JARMAN, Rachael | C10: 85 | D10: C | E10: 33 | F10: 6 | G10: 77 | H10: 1 | I10: 9.666666667 | J10: 7 | K10: 7
A11: 8 | B11: FRARY, June | C11: 32 | D11: B | E11: 21 | F11: 2 | G11: 45 | H11: 0 | I11: 15 | J11: 8 | K11: 8

Sheet Day 1-Juniors
B1: NORTH NORFOLK JUNIORS TOURNAMENT 2019 | F1: Day 1 (Juniors)
A2: Individual No. | B2: Angler Name | C2: Angler No. | D2: Zone | E2: Peg | F2: No. Fish | G2: Fish Points | H2: Weight | J2: Day 1 Position
H3: lbs | I3: oz
A4: 1 | B4: SHAUL, Jimmy | C4: 94 | D4: C | E4: 44 | F4: 5 | G4: 226 | H4: 4 | I4: 11.33333333 | J4: 1
A5: 2 | B5: ALDOUS, Brayden | C5: 10 | D5: E | E5: 64 | F5: 8 | G5: 191 | H5: 3 | I5: 15.66666667 | J5: 2
A6: 3 | B6: BANHAM, Mark | C6: 29 | D6: B | E6: 22 | F6: 10 | G6: 186 | H6: 3 | I6: 14 | J6: 3
A7: 4 | B7: BRADSHAW, Daine | C7: 27 | D7: A | E7: 12 | F7: 5 | G7: 89 | H7: 1 | I7: 13.66666667 | J7: 4
A8: 5 | B8: TOPPING, Jack | C8: 110 | D8: A | E8: 5 | F8: 4 | G8: 75 | H8: 1 | I8: 9 | J8: 5

Sheet Day 2-Juniors
B1: NORTH NORFOLK JUNIORS TOURNAMENT 2019 | F1: Day 2 (Juniors)
A2: Individual No. | B2: Angler Name | C2: Angler No. | D2: Zone | E2: Peg | F2: No. Fish | G2: Fish Points | H2: Weight | J2: Day 2 Position
H3: lbs | I3: oz
A4: 1 | B4: BANHAM, Mark | C4: 29 | D4: H | E4: 113 | F4: 13 | G4: 252 | H4: 5 | I4: 4 | J4: 1
A5: 2 | B5: SHAUL, Jimmy | C5: 94 | D5: H | E5: 116 | F5: 21 | G5: 238 | H5: 4 | I5: 15.33333333 | J5: 2
A6: 3 | B6: ALDOUS, Brayden | C6: 10 | D6: C | E6: 41 | F6: 6 | G6: 117 | H6: 2 | I6: 7 | J6: 3
A7: 4 | B7: TOPPING, Jack | C7: 110 | D7: G | E7: 98 | F7: 2 | G7: 78 | H7: 1 | I7: 10 | J7: 4
A8: 5 | B8: BRADSHAW, Daine | C8: 27 | D8: G | E8: 102 | F8: 2 | G8: 34 | H8: 0 | I8: 11.33333333 | J8: 5

Sheet Day 1-Shannock Quads
B1: SHANNOCK QUADS 2019 | E1: Day 1 (Teams)
A2: Team Count | B2: Day 1 Position | C2: Team No. | D2: Team Name | E2: No. Fish | F2: Fish Points | G2: Weight
G3: lbs | H3: oz
A4: 1 | B4: 1 | C4: 8 | D4: ASSO ANYFISH ANYWHERE | E4: 49 | F4: 1547 | G4: 32 | H4: 3.666666667
A5: 2 | B5: 2 | C5: 2 | D5: TEAM BREAKAWAY | E5: 68 | F5: 1293 | G5: 26 | H5: 15
A6: 3 | B6: 3 | C6: 4 | D6: THE POD BASHERS | E6: 68 | F6: 1189 | G6: 24 | H6: 12.33333333
A7: 4 | B7: 4 | C7: 3 | D7: BIRDS TACKLE | E7: 37 | F7: 969 | G7: 20 | H7: 3
A8: 5 | B8: 5 | C8: 7 | D8: IPSWICH SEA ANGLERS 1 | E8: 59 | F8: 816 | G8: 17 | H8: 0
A9: 6 | B9: 6 | C9: 5 | D9: IPSWICH SEA ANGLERS 2 | E9: 29 | F9: 769 | G9: 16 | H9: 0.3333333333
A10: 7 | B10: 7 | C10: 6 | D10: HARTIES ODD BODS | E10: 36 | F10: 617 | G10: 12 | H10: 13.66666667
A11: 8 | B11: 8 | C11: 9 | D11: NORTH NORFOLK LADS | E11: 21 | F11: 454 | G11: 9 | H11: 7.333333333
A12: 9 | B12: 9 | C12: 10 | D12: THE JUNIORS | E12: 22 | F12: 452 | G12: 9 | H12: 6.666666667
A13: 10 | B13: 10 | C13: 12 | D13: STUART GUNS & TACKLE | E13: 16 | F13: 403 | G13: 8 | H13: 6.333333333
A14: 11 | B14: 11 | C14: 11 | D14: GOOCHIE'S TEAM | E14: 25 | F14: 381 | G14: 7 | H14: 15
A15: 12 | B15: 12 | C15: 1 | D15: ITALCANNA | E15: 18 | F15: 272 | G15: 5 | H15: 10.66666667

Sheet Day 2-Shannock Quads
B1: SHANNOCK QUADS 2019 | E1: Day 2 (Teams)
A2: Team Count | B2: Day 2 Position | C2: Team No. | D2: Team Name | E2: No. Fish | F2: Fish Points | G2: Weight
G3: lbs | H3: oz
A4: 1 | B4: 1 | C4: 2 | D4: TEAM BREAKAWAY | E4: 47 | F4: 1100 | G4: 22 | H4: 14.66666667
A5: 2 | B5: 2 | C5: 4 | D5: THE POD BASHERS | E5: 31 | F5: 790 | G5: 16 | H5: 7.333333333
A6: 3 | B6: 3 | C6: 8 | D6: ASSO ANYFISH ANYWHERE | E6: 25 | F6: 763 | G6: 15 | H6: 14.33333333
A7: 4 | B7: 4 | C7: 3 | D7: BIRDS TACKLE | E7: 38 | F7: 679 | G7: 14 | H7: 2.333333333
A8: 5 | B8: 5 | C8: 7 | D8: IPSWICH SEA ANGLERS 1 | E8: 30 | F8: 630 | G8: 13 | H8: 2
A9: 6 | B9: 6 | C9: 9 | D9: NORTH NORFOLK LADS | E9: 52 | F9: 627 | G9: 13 | H9: 1
A10: 7 | B10: 7 | C10: 6 | D10: HARTIES ODD BODS | E10: 29 | F10: 500 | G10: 10 | H10: 6.666666667
A11: 8 | B11: 8 | C11: 10 | D11: THE JUNIORS | E11: 21 | F11: 447 | G11: 9 | H11: 5
A12: 9 | B12: 9 | C12: 12 | D12: STUART GUNS & TACKLE | E12: 33 | F12: 401 | G12: 8 | H12: 5.666666667
A13: 10 | B13: 10 | C13: 5 | D13: IPSWICH SEA ANGLERS 2 | E13: 18 | F13: 257 | G13: 5 | H13: 5.666666667
A14: 11 | B14: 11 | C14: 1 | D14: ITALCANNA | E14: 20 | F14: 252 | G14: 5 | H14: 4
A15: 12 | B15: 12 | C15: 11 | D15: GOOCHIE'S TEAM | E15: 0 | F15: 43 | G15: 0 | H15: 14.33333333

Sheet Day 1-Heaviest Bass
B1: OVERALL 2019 | E1: Day 1 - Heaviest Bass
A2: Individual No. | B2: Angler Name | C2: Angler No. | D2: Peg | E2: Fish Points | F2: Weight | H2: Species | I2: Day 1 Position
F3: lbs | G3: oz
A4: 1 | B4: HARVEY, Mark | C4: 80 | D4: 38 | E4: 200 | F4: 4 | G4: 2.666666667 | H4: Bass | I4: 1
A5: 2 | B5: BOWELL, Ian | C5: 93 | D5: 43 | E5: 174 | F5: 3 | G5: 10 | H5: Bass | I5: 2
A6: 3 | B6: ALDOUS, David | C6: 50 | D6: 65 | E6: 174 | F6: 3 | G6: 10 | H6: Bass | I6: 2
A7: 4 | B7: LINDFIELD, Bill | C7: 86 | D7: 1 | E7: 166 | F7: 3 | G7: 7.333333333 | H7: Bass | I7: 4
A8: 5 | B8: ELLIOTT, Nathan | C8: 24 | D8: 83 | E8: 166 | F8: 3 | G8: 7.333333333 | H8: Bass | I8: 4
A9: 6 | B9: HUTCHINSON (BP), Dave | C9: 90 | D9: 105 | E9: 166 | F9: 3 | G9: 7.333333333 | H9: Bass | I9: 4
A10: 7 | B10: MEDLER, Gary | C10: 26 | D10: 37 | E10: 158 | F10: 3 | G10: 4.666666667 | H10: Bass | I10: 7
A11: 8 | B11: SHAUL, Jimmy | C11: 94 | D11: 44 | E11: 129 | F11: 2 | G11: 11 | H11: Bass | I11: 8
A12: 9 | B12: SMITH, George | C12: 114 | D12: 66 | E12: 129 | F12: 2 | G12: 11 | H12: Bass | I12: 8
A13: 10 | B13: RUSSELL, Shane | C13: 25 | D13: 29 | E13: 122 | F13: 2 | G13: 8.666666667 | H13: Bass | I13: 10
A14: 11 | B14: KINGDON, Adam | C14: 20 | D14: 60 | E14: 122 | F14: 2 | G14: 8.666666667 | H14: Bass | I14: 10
A15: 12 | B15: WOODS, Graham | C15: 39 | D15: 74 | E15: 116 | F15: 2 | G15: 6.666666667 | H15: Bass | I15: 12
A16: 13 | B16: ADAMS, Lee | C16: 22 | D16: 76 | E16: 104 | F16: 2 | G16: 2.666666667 | H16: Bass | I16: 13
A17: 14 | B17: CLEMENT, Alby | C17: 65 | D17: 85 | E17: 104 | F17: 2 | G17: 2.666666667 | H17: Bass | I17: 13
A18: 15 | B18: CANNELL, Chris | C18: 43 | D18: 61 | E18: 98 | F18: 2 | G18: 0.6666666667 | H18: Bass | I18: 15
A19: 16 | B19: BUY, Craig | C19: 119 | D19: 97 | E19: 92 | F19: 1 | G19: 14.66666667 | H19: Bass | I19: 16
A20: 17 | B20: BRADSHAW, Craig | C20: 117 | D20: 11 | E20: 86 | F20: 1 | G20: 12.66666667 | H20: Bass | I20: 17
A21: 18 | B21: METCALFE, Wendy | C21: 84 | D21: 59 | E21: 86 | F21: 1 | G21: 12.66666667 | H21: Bass | I21: 17
A22: 19 | B22: HUTSON, Garry | C22: 113 | D22: 3 | E22: 74 | F22: 1 | G22: 8.666666667 | H22: Bass | I22: 19
A23: 20 | B23: LINDFIELD, Heather | C23: 83 | D23: 30 | E23: 74 | F23: 1 | G23: 8.666666667 | H23: Bass | I23: 19
A24: 21 | B24: BURR, Dave | C24: 30 | D24: 26 | E24: 68 | F24: 1 | G24: 6.666666667 | H24: Bass | I24: 21
A25: 22 | B25: CUTLER, Neil | C25: 92 | D25: 114 | E25: 63 | F25: 1 | G25: 5 | H25: Bass | I25: 22
A26: 23 | B26: GREEN, Kevin | C26: 105 | D26: 16 | E26: 59 | F26: 1 | G26: 3.666666667 | H26: Bass | I26: 23
A27: 24 | B27: SMITH, Adele | C27: 62 | D27: 21 | E27: 59 | F27: 1 | G27: 3.666666667 | H27: Bass | I27: 23
A28: 25 | B28: DIAPER, Greg | C28: 3 | D28: 25 | E28: 59 | F28: 1 | G28: 3.666666667 | H28: Bass | I28: 23
A29: 26 | B29: AKESTER, Jack | C29: 16 | D29: 27 | E29: 59 | F29: 1 | G29: 3.666666667 | H29: Bass | I29: 23
A30: 27 | B30: STEBBINGS, Robert | C30: 38 | D30: 36 | E30: 59 | F30: 1 | G30: 3.666666667 | H30: Bass | I30: 23
A31: 28 | B31: WRIGHT, Dave | C31: 33 | D31: 62 | E31: 59 | F31: 1 | G31: 3.666666667 | H31: Bass | I31: 23
A32: 29 | B32: ALDOUS, Brayden | C32: 10 | D32: 64 | E32: 59 | F32: 1 | G32: 3.666666667 | H32: Bass | I32: 23
A33: 30 | B33: PROVINS, Colin | C33: 100 | D33: 117 | E33: 59 | F33: 1 | G33: 3.666666667 | H33: Bass | I33: 23
A34: 31 | B34: SMITH, John | C34: 13 | D34: 67 | E34: 55 | F34: 1 | G34: 2.333333333 | H34: Bass | I34: 31
A35: 32 | B35: HURCOMBE, Mark | C35: 58 | D35: 78 | E35: 55 | F35: 1 | G35: 2.333333333 | H35: Bass | I35: 31
A36: 33 | B36: HARVEY, John | C36: 111 | D36: 14 | E36: 51 | F36: 1 | G36: 1 | H36: Bass | I36: 33
A37: 34 | B37: THOMAS, Tony | C37: 18 | D37: 40 | E37: 51 | F37: 1 | G37: 1 | H37: Bass | I37: 33
A38: 35 | B38: TUCK, Rob | C38: 109 | D38: 42 | E38: 51 | F38: 1 | G38: 1 | H38: Bass | I38: 33
A39: 36 | B39: WARD, Mark | C39: 59 | D39: 63 | E39: 51 | F39: 1 | G39: 1 | H39: Bass | I39: 33
A40: 37 | B40: BURT, Richard | C40: 19 | D40: 86 | E40: 51 | F40: 1 | G40: 1 | H40: Bass | I40: 33
A41: 38 | B41: HARRISON, Paul | C41: 96 | D41: 41 | E41: 47 | F41: 0 | G41: 15.66666667 | H41: Bass | I41: 38
A42: 39 | B42: LAWN, Kimberley | C42: 23 | D42: 45 | E42: 47 | F42: 0 | G42: 15.66666667 | H42: Bass | I42: 38
A43: 40 | B43: SPALL, Chris | C43: 4 | D43: 46 | E43: 47 | F43: 0 | G43: 15.66666667 | H43: Bass | I43: 38
A44: 41 | B44: DAWBER, Simon | C44: 116 | D44: 53 | E44: 47 | F44: 0 | G44: 15.66666667 | H44: Bass | I44: 38
A45: 42 | B45: BRADSHAW, Daine | C45: 27 | D45: 12 | E45: 43 | F45: 0 | G45: 14.33333333 | H45: Bass | I45: 42
A46: 43 | B46: BENNETT, Rick | C46: 41 | D46: 15 | E46: 40 | F46: 0 | G46: 13.33333333 | H46: Bass | I46: 43
A47: 44 | B47: CRAWFORD, Vince | C47: 76 | D47: 8 | E47: 34 | F47: 0 | G47: 11.33333333 | H47: Bass | I47: 44
A48: 45 | B48: BANHAM, Mark | C48: 29 | D48: 22 | E48: 22 | F48: 0 | G48: 7.333333333 | H48: Bass | I48: 45
A49: 46 | B49: BANHAM, Jason | C49: 15 | D49: 23 | E49: 20 | F49: 0 | G49: 6.666666667 | H49: Bass | I49: 46
B51: ( PLEASE NOTE … SOME SMALLER FISH WERE NOT ENTERED AND WILL THEREFORE NOT APPEAR IN THIS REPORT )

Sheet Day 2-Heaviest Bass
B1: OVERALL 2019 | E1: Day 2 - Heaviest Bass | K1: Winners table extract detail
A2: Individual No. | B2: Angler Name | C2: Angler No. | D2: Peg | E2: Fish Points | F2: Weight | H2: Species | I2: Day 2 Position | K2: Overall Position | L2: Angler No
F3: lbs | G3: oz
A4: 1 | B4: GASCOIGNE, Robert | C4: 5 | D4: 11 | E4: 174 | F4: 3 | G4: 10 | H4: Bass | I4: 1 | K4: 1 | L4: 5
A5: 2 | B5: WOODS, Graham | C5: 39 | D5: 47 | E5: 166 | F5: 3 | G5: 7.333333333 | H5: Bass | I5: 2 | K5: 2 | L5: 39
A6: 3 | B6: CANNELL, Chris | C6: 43 | D6: 54 | E6: 158 | F6: 3 | G6: 4.666666667 | H6: Bass | I6: 3 | K6: 3 | L6: 43
A7: 4 | B7: HUGHES, Gary | C7: 87 | D7: 30 | E7: 122 | F7: 2 | G7: 8.666666667 | H7: Bass | I7: 4 | K7: 4 | L7: 87
B9: ( PLEASE NOTE … SOME SMALLER FISH WERE NOT ENTERED AND WILL THEREFORE NOT APPEAR IN THIS REPORT )

Sheet Day 1-Heaviest Flattie
B1: BASS FESTIVAL 2019 | E1: Day 1 - Heaviest Flattie
A2: Individual No. | B2: Angler Name | C2: Angler No. | D2: Peg | E2: Fish Points | F2: Weight | H2: Species | I2: Day 1 Position
F3: lbs | G3: oz
A4: 1 | B4: TOPPING, Mike | C4: 40 | D4: 6 | E4: 60 | F4: 1 | G4: 4 | H4: Flounder | I4: 1
A5: 2 | B5: BANHAM, Jason | C5: 15 | D5: 23 | E5: 60 | F5: 1 | G5: 4 | H5: Flounder | I5: 1
A6: 3 | B6: DRIVER, Ed | C6: 49 | D6: 107 | E6: 60 | F6: 1 | G6: 4 | H6: Flounder | I6: 1
A7: 4 | B7: BOWELL, Ian | C7: 93 | D7: 43 | E7: 52 | F7: 1 | G7: 1.333333333 | H7: Flounder | I7: 4
A8: 5 | B8: WATTS, Mike | C8: 46 | D8: 24 | E8: 48 | F8: 1 | G8: 0 | H8: Flounder | I8: 5
A9: 6 | B9: SMITH, George | C9: 114 | D9: 66 | E9: 48 | F9: 1 | G9: 0 | H9: Flounder | I9: 5
A10: 7 | B10: RUSH, Billy | C10: 64 | D10: 101 | E10: 48 | F10: 1 | G10: 0 | H10: Flounder | I10: 5
A11: 8 | B11: HUTSON, Garry | C11: 113 | D11: 3 | E11: 44 | F11: 0 | G11: 14.66666667 | H11: Flounder | I11: 8
A12: 9 | B12: EAGLE, Dan | C12: 91 | D12: 10 | E12: 44 | F12: 0 | G12: 14.66666667 | H12: Flounder | I12: 8
A13: 10 | B13: RUSSELL, Shane | C13: 25 | D13: 29 | E13: 44 | F13: 0 | G13: 14.66666667 | H13: Flounder | I13: 8
A14: 11 | B14: CRAWFORD, Vince | C14: 76 | D14: 8 | E14: 40 | F14: 0 | G14: 13.33333333 | H14: Flounder | I14: 11
A15: 12 | B15: BURR, Dave | C15: 30 | D15: 26 | E15: 40 | F15: 0 | G15: 13.33333333 | H15: Flounder | I15: 11
A16: 13 | B16: SMITH, John | C16: 13 | D16: 67 | E16: 40 | F16: 0 | G16: 13.33333333 | H16: Flounder | I16: 11
A17: 14 | B17: PARROTT, Ade | C17: 95 | D17: 112 | E17: 40 | F17: 0 | G17: 13.33333333 | H17: Flounder | I17: 11
A18: 15 | B18: DIAPER, Greg | C18: 3 | D18: 25 | E18: 36 | F18: 0 | G18: 12 | H18: Flounder | I18: 15
A19: 16 | B19: MEDLER, Gary | C19: 26 | D19: 37 | E19: 36 | F19: 0 | G19: 12 | H19: Flounder | I19: 15
A20: 17 | B20: SPALL, Chris | C20: 4 | D20: 46 | E20: 36 | F20: 0 | G20: 12 | H20: Flounder | I20: 15
A21: 18 | B21: ELEY, Kevin | C21: 82 | D21: 120 | E21: 32 | F21: 0 | G21: 10.66666667 | H21: Flounder | I21: 18
A22: 19 | B22: LINDFIELD, Bill | C22: 86 | D22: 1 | E22: 28 | F22: 0 | G22: 9.333333333 | H22: Flounder | I22: 19
A23: 20 | B23: SHAUL, Keith | C23: 98 | D23: 2 | E23: 24 | F23: 0 | G23: 8 | H23: Dab | I23: 20
A24: 21 | B24: AKESTER, Jack | C24: 16 | D24: 27 | E24: 24 | F24: 0 | G24: 8 | H24: Dab | I24: 20
A25: 22 | B25: CUTLER, Neil | C25: 92 | D25: 114 | E25: 24 | F25: 0 | G25: 8 | H25: Flounder | I25: 20
A26: 23 | B26: BRADSHAW, Craig | C26: 117 | D26: 11 | E26: 12 | F26: 0 | G26: 4 | H26: Dab | I26: 23
B28: ( PLEASE NOTE … SOME SMALLER FISH WERE NOT ENTERED AND WILL THEREFORE NOT APPEAR IN THIS REPORT )

Sheet Day 2-Heaviest Flattie
B1: BASS FESTIVAL 2019 | E1: Day 2 - Heaviest Flattie
A2: Individual No. | B2: Angler Name | C2: Angler No. | D2: Peg | E2: Fish Points | F2: Weight | H2: Species | I2: Day 2 Position
F3: lbs | G3: oz
A4: 1 | B4: SPALL, Chris | C4: 4 | D4: 89 | E4: 64 | F4: 1 | G4: 5.333333333 | H4: Flounder | I4: 1
A5: 2 | B5: WRIGHT, Dave | C5: 33 | D5: 36 | E5: 56 | F5: 1 | G5: 2.666666667 | H5: Flounder | I5: 2
A6: 3 | B6: GASCOIGNE, Robert | C6: 5 | D6: 11 | E6: 52 | F6: 1 | G6: 1.333333333 | H6: Flounder | I6: 3
A7: 4 | B7: SMITH, George | C7: 114 | D7: 56 | E7: 52 | F7: 1 | G7: 1.333333333 | H7: Flounder | I7: 3
A8: 5 | B8: CLEMENT, Alby | C8: 65 | D8: 20 | E8: 48 | F8: 1 | G8: 0 | H8: Flounder | I8: 5
A9: 6 | B9: BUY, Craig | C9: 119 | D9: 55 | E9: 48 | F9: 1 | G9: 0 | H9: Flounder | I9: 5
A10: 7 | B10: KING, Simon | C10: 78 | D10: 105 | E10: 48 | F10: 1 | G10: 0 | H10: Flounder | I10: 5
A11: 8 | B11: DRIVER, Ed | C11: 49 | D11: 10 | E11: 44 | F11: 0 | G11: 14.66666667 | H11: Flounder | I11: 8
A12: 9 | B12: GROSSMAN, Martin | C12: 67 | D12: 19 | E12: 44 | F12: 0 | G12: 14.66666667 | H12: Flounder | I12: 8
A13: 10 | B13: STORER, Paul | C13: 7 | D13: 80 | E13: 44 | F13: 0 | G13: 14.66666667 | H13: Flounder | I13: 8
A14: 11 | B14: FRARY, Charlie | C14: 120 | D14: 22 | E14: 40 | F14: 0 | G14: 13.33333333 | H14: Flounder | I14: 11
A15: 12 | B15: NELSON, Ian | C15: 53 | D15: 68 | E15: 40 | F15: 0 | G15: 13.33333333 | H15: Flounder | I15: 11
B17: ( PLEASE NOTE … SOME SMALLER FISH WERE NOT ENTERED AND WILL THEREFORE NOT APPEAR IN THIS REPORT )

Sheet Final Individual results (hidden)
A1: HSAC North Norfolk Bass Festival 2013 - Final Positions | K1: Individuals data extraction calculations
A2: Angler Name | B2: Angler No | C2: Total No. Fish | D2: Total No. Fish Points | E2: Day 1 Points | F2: Day 2 Points | G2: Total Points | H2: Overall Position | K2: Overall Position | L2: Angler No | M2: Total No. Fish | N2: Total No. Fish Points | O2: Day 1 Points | P2: Day 2 Points | Q2: Total Points
A4: =VLOOKUP($B4,#REF!,2,FALSE) ->  | B4: =VLOOKUP($H4,$K$4:$Q$300,2,FALSE) ->  | C4: =VLOOKUP($H4,$K$4:$Q$300,3,FALSE) ->  | D4: =VLOOKUP($H4,$K$4:$Q$300,4,FALSE) ->  | E4: =VLOOKUP($H4,$K$4:$Q$300,5,FALSE) ->  | F4: =VLOOKUP($H4,$K$4:$Q$300,6,FALSE) ->  | G4: =VLOOKUP($H4,$K$4:$Q$300,7,FALSE) ->  | H4: =IF(ISERROR(H3+1)=TRUE,1,H3+1) -> 1 | K4: =IF(Q4=NpZ*NoZ*2,NpZ*NoZ,RANK(Q4,Q$4:Q$300,1)) ->  | L4: 1 | M4: =IF(ISNA(VLOOKUP($L4,'Day 1-All Fish'!$C$3:$G$265,4,FALSE)+VLOOKUP($L4,#REF!,4,FALSE))=TRUE,"",VLOOKUP($L4,'Day 1-All Fish'!$C$3:$G$265,4,FALSE)+VLOOKUP($L4,#REF!,4,FALSE)) ->  | N4: =IF(ISNA(VLOOKUP($L4,'Day 1-All Fish'!$C$3:$G$265,5,FALSE)+VLOOKUP($L4,#REF!,5,FALSE))=TRUE,"",VLOOKUP($L4,'Day 1-All Fish'!$C$3:$G$265,5,FALSE)+VLOOKUP($L4,#REF!,5,FALSE)) ->  | O4: =IF(ISNA(VLOOKUP($L4,'Day 1-All Fish'!$C$3:$J$265,8,FALSE))=TRUE,"",VLOOKUP($L4,'Day 1-All Fish'!$C$3:$J$265,8,FALSE)) -> 21 | P4: =IF(ISNA(VLOOKUP($L4,#REF!,8,FALSE))=TRUE,"",VLOOKUP($L4,#REF!,8,FALSE)) ->  | Q4: =IF(OR(M4="",M4=0),NpZ*2,(O4+P4)-N4/100000-M4/1000000) -> 
A5: =VLOOKUP($B5,#REF!,2,FALSE) ->  | H5: =IF(ISERROR(H4+1)=TRUE,1,H4+1) -> 2 | L5: 2 | M5: =IF(ISNA(VLOOKUP($L5,'Day 1-All Fish'!$C$3:$G$265,4,FALSE)+VLOOKUP($L5,#REF!,4,FALSE))=TRUE,"",VLOOKUP($L5,'Day 1-All Fish'!$C$3:$G$265,4,FALSE)+VLOOKUP($L5,#REF!,4,FALSE)) ->  | N5: =IF(ISNA(VLOOKUP($L5,'Day 1-All Fish'!$C$3:$G$265,5,FALSE)+VLOOKUP($L5,#REF!,5,FALSE))=TRUE,"",VLOOKUP($L5,'Day 1-All Fish'!$C$3:$G$265,5,FALSE)+VLOOKUP($L5,#REF!,5,FALSE)) ->  | O5: =IF(ISNA(VLOOKUP($L5,'Day 1-All Fish'!$C$3:$J$265,8,FALSE))=TRUE,"",VLOOKUP($L5,'Day 1-All Fish'!$C$3:$J$265,8,FALSE)) ->  | P5: =IF(ISNA(VLOOKUP($L5,#REF!,8,FALSE))=TRUE,"",VLOOKUP($L5,#REF!,8,FALSE)) -> 
A6: =VLOOKUP($B6,#REF!,2,FALSE) ->  | H6: 3 | L6: 3 | M6: =IF(ISNA(VLOOKUP($L6,'Day 1-All Fish'!$C$3:$G$265,4,FALSE)+VLOOKUP($L6,#REF!,4,FALSE))=TRUE,"",VLOOKUP($L6,'Day 1-All Fish'!$C$3:$G$265,4,FALSE)+VLOOKUP($L6,#REF!,4,FALSE)) ->  | N6: =IF(ISNA(VLOOKUP($L6,'Day 1-All Fish'!$C$3:$G$265,5,FALSE)+VLOOKUP($L6,#REF!,5,FALSE))=TRUE,"",VLOOKUP($L6,'Day 1-All Fish'!$C$3:$G$265,5,FALSE)+VLOOKUP($L6,#REF!,5,FALSE)) ->  | O6: =IF(ISNA(VLOOKUP($L6,'Day 1-All Fish'!$C$3:$J$265,8,FALSE))=TRUE,"",VLOOKUP($L6,'Day 1-All Fish'!$C$3:$J$265,8,FALSE)) -> 69 | P6: =IF(ISNA(VLOOKUP($L6,#REF!,8,FALSE))=TRUE,"",VLOOKUP($L6,#REF!,8,FALSE)) -> 
A7: =VLOOKUP($B7,#REF!,2,FALSE) ->  | H7: 4 | L7: 4 | M7: =IF(ISNA(VLOOKUP($L7,'Day 1-All Fish'!$C$3:$G$265,4,FALSE)+VLOOKUP($L7,#REF!,4,FALSE))=TRUE,"",VLOOKUP($L7,'Day 1-All Fish'!$C$3:$G$265,4,FALSE)+VLOOKUP($L7,#REF!,4,FALSE)) ->  | N7: =IF(ISNA(VLOOKUP($L7,'Day 1-All Fish'!$C$3:$G$265,5,FALSE)+VLOOKUP($L7,#REF!,5,FALSE))=TRUE,"",VLOOKUP($L7,'Day 1-All Fish'!$C$3:$G$265,5,FALSE)+VLOOKUP($L7,#REF!,5,FALSE)) ->  | O7: =IF(ISNA(VLOOKUP($L7,'Day 1-All Fish'!$C$3:$J$265,8,FALSE))=TRUE,"",VLOOKUP($L7,'Day 1-All Fish'!$C$3:$J$265,8,FALSE)) -> 40 | P7: =IF(ISNA(VLOOKUP($L7,#REF!,8,FALSE))=TRUE,"",VLOOKUP($L7,#REF!,8,FALSE)) -> 
A8: =VLOOKUP($B8,#REF!,2,FALSE) ->  | H8: 5 | L8: 5 | M8: =IF(ISNA(VLOOKUP($L8,'Day 1-All Fish'!$C$3:$G$265,4,FALSE)+VLOOKUP($L8,#REF!,4,FALSE))=TRUE,"",VLOOKUP($L8,'Day 1-All Fish'!$C$3:$G$265,4,FALSE)+VLOOKUP($L8,#REF!,4,FALSE)) ->  | N8: =IF(ISNA(VLOOKUP($L8,'Day 1-All Fish'!$C$3:$G$265,5,FALSE)+VLOOKUP($L8,#REF!,5,FALSE))=TRUE,"",VLOOKUP($L8,'Day 1-All Fish'!$C$3:$G$265,5,FALSE)+VLOOKUP($L8,#REF!,5,FALSE)) ->  | O8: =IF(ISNA(VLOOKUP($L8,'Day 1-All Fish'!$C$3:$J$265,8,FALSE))=TRUE,"",VLOOKUP($L8,'Day 1-All Fish'!$C$3:$J$265,8,FALSE)) -> 51 | P8: =IF(ISNA(VLOOKUP($L8,#REF!,8,FALSE))=TRUE,"",VLOOKUP($L8,#REF!,8,FALSE)) -> 
A9: =VLOOKUP($B9,#REF!,2,FALSE) ->  | H9: 6 | L9: 6 | M9: =IF(ISNA(VLOOKUP($L9,'Day 1-All Fish'!$C$3:$G$265,4,FALSE)+VLOOKUP($L9,#REF!,4,FALSE))=TRUE,"",VLOOKUP($L9,'Day 1-All Fish'!$C$3:$G$265,4,FALSE)+VLOOKUP($L9,#REF!,4,FALSE)) ->  | N9: =IF(ISNA(VLOOKUP($L9,'Day 1-All Fish'!$C$3:$G$265,5,FALSE)+VLOOKUP($L9,#REF!,5,FALSE))=TRUE,"",VLOOKUP($L9,'Day 1-All Fish'!$C$3:$G$265,5,FALSE)+VLOOKUP($L9,#REF!,5,FALSE)) ->  | O9: =IF(ISNA(VLOOKUP($L9,'Day 1-All Fish'!$C$3:$J$265,8,FALSE))=TRUE,"",VLOOKUP($L9,'Day 1-All Fish'!$C$3:$J$265,8,FALSE)) -> 94 | P9: =IF(ISNA(VLOOKUP($L9,#REF!,8,FALSE))=TRUE,"",VLOOKUP($L9,#REF!,8,FALSE)) -> 
A10: =VLOOKUP($B10,#REF!,2,FALSE) ->  | H10: 7 | L10: 7 | M10: =IF(ISNA(VLOOKUP($L10,'Day 1-All Fish'!$C$3:$G$265,4,FALSE)+VLOOKUP($L10,#REF!,4,FALSE))=TRUE,"",VLOOKUP($L10,'Day 1-All Fish'!$C$3:$G$265,4,FALSE)+VLOOKUP($L10,#REF!,4,FALSE)) ->  | N10: =IF(ISNA(VLOOKUP($L10,'Day 1-All Fish'!$C$3:$G$265,5,FALSE)+VLOOKUP($L10,#REF!,5,FALSE))=TRUE,"",VLOOKUP($L10,'Day 1-All Fish'!$C$3:$G$265,5,FALSE)+VLOOKUP($L10,#REF!,5,FALSE)) ->  | O10: =IF(ISNA(VLOOKUP($L10,'Day 1-All Fish'!$C$3:$J$265,8,FALSE))=TRUE,"",VLOOKUP($L10,'Day 1-All Fish'!$C$3:$J$265,8,FALSE)) -> 63 | P10: =IF(ISNA(VLOOKUP($L10,#REF!,8,FALSE))=TRUE,"",VLOOKUP($L10,#REF!,8,FALSE)) -> 
A11: =VLOOKUP($B11,#REF!,2,FALSE) ->  | H11: 8 | L11: 8 | M11: =IF(ISNA(VLOOKUP($L11,'Day 1-All Fish'!$C$3:$G$265,4,FALSE)+VLOOKUP($L11,#REF!,4,FALSE))=TRUE,"",VLOOKUP($L11,'Day 1-All Fish'!$C$3:$G$265,4,FALSE)+VLOOKUP($L11,#REF!,4,FALSE)) ->  | N11: =IF(ISNA(VLOOKUP($L11,'Day 1-All Fish'!$C$3:$G$265,5,FALSE)+VLOOKUP($L11,#REF!,5,FALSE))=TRUE,"",VLOOKUP($L11,'Day 1-All Fish'!$C$3:$G$265,5,FALSE)+VLOOKUP($L11,#REF!,5,FALSE)) ->  | O11: =IF(ISNA(VLOOKUP($L11,'Day 1-All Fish'!$C$3:$J$265,8,FALSE))=TRUE,"",VLOOKUP($L11,'Day 1-All Fish'!$C$3:$J$265,8,FALSE)) -> 34 | P11: =IF(ISNA(VLOOKUP($L11,#REF!,8,FALSE))=TRUE,"",VLOOKUP($L11,#REF!,8,FALSE)) -> 
A12: =VLOOKUP($B12,#REF!,2,FALSE) ->  | H12: 9 | L12: 9 | M12: =IF(ISNA(VLOOKUP($L12,'Day 1-All Fish'!$C$3:$G$265,4,FALSE)+VLOOKUP($L12,#REF!,4,FALSE))=TRUE,"",VLOOKUP($L12,'Day 1-All Fish'!$C$3:$G$265,4,FALSE)+VLOOKUP($L12,#REF!,4,FALSE)) ->  | N12: =IF(ISNA(VLOOKUP($L12,'Day 1-All Fish'!$C$3:$G$265,5,FALSE)+VLOOKUP($L12,#REF!,5,FALSE))=TRUE,"",VLOOKUP($L12,'Day 1-All Fish'!$C$3:$G$265,5,FALSE)+VLOOKUP($L12,#REF!,5,FALSE)) ->  | O12: =IF(ISNA(VLOOKUP($L12,'Day 1-All Fish'!$C$3:$J$265,8,FALSE))=TRUE,"",VLOOKUP($L12,'Day 1-All Fish'!$C$3:$J$265,8,FALSE)) -> 57 | P12: =IF(ISNA(VLOOKUP($L12,#REF!,8,FALSE))=TRUE,"",VLOOKUP($L12,#REF!,8,FALSE)) -> 
A13: =VLOOKUP($B13,#REF!,2,FALSE) ->  | H13: 10 | L13: 10 | M13: =IF(ISNA(VLOOKUP($L13,'Day 1-All Fish'!$C$3:$G$265,4,FALSE)+VLOOKUP($L13,#REF!,4,FALSE))=TRUE,"",VLOOKUP($L13,'Day 1-All Fish'!$C$3:$G$265,4,FALSE)+VLOOKUP($L13,#REF!,4,FALSE)) ->  | N13: =IF(ISNA(VLOOKUP($L13,'Day 1-All Fish'!$C$3:$G$265,5,FALSE)+VLOOKUP($L13,#REF!,5,FALSE))=TRUE,"",VLOOKUP($L13,'Day 1-All Fish'!$C$3:$G$265,5,FALSE)+VLOOKUP($L13,#REF!,5,FALSE)) ->  | O13: =IF(ISNA(VLOOKUP($L13,'Day 1-All Fish'!$C$3:$J$265,8,FALSE))=TRUE,"",VLOOKUP($L13,'Day 1-All Fish'!$C$3:$J$265,8,FALSE)) -> 49 | P13: =IF(ISNA(VLOOKUP($L13,#REF!,8,FALSE))=TRUE,"",VLOOKUP($L13,#REF!,8,FALSE)) -> 
A14: =VLOOKUP($B14,#REF!,2,FALSE) ->  | H14: 11 | L14: 11 | M14: =IF(ISNA(VLOOKUP($L14,'Day 1-All Fish'!$C$3:$G$265,4,FALSE)+VLOOKUP($L14,#REF!,4,FALSE))=TRUE,"",VLOOKUP($L14,'Day 1-All Fish'!$C$3:$G$265,4,FALSE)+VLOOKUP($L14,#REF!,4,FALSE)) ->  | N14: =IF(ISNA(VLOOKUP($L14,'Day 1-All Fish'!$C$3:$G$265,5,FALSE)+VLOOKUP($L14,#REF!,5,FALSE))=TRUE,"",VLOOKUP($L14,'Day 1-All Fish'!$C$3:$G$265,5,FALSE)+VLOOKUP($L14,#REF!,5,FALSE)) ->  | O14: =IF(ISNA(VLOOKUP($L14,'Day 1-All Fish'!$C$3:$J$265,8,FALSE))=TRUE,"",VLOOKUP($L14,'Day 1-All Fish'!$C$3:$J$265,8,FALSE)) -> 10 | P14: =IF(ISNA(VLOOKUP($L14,#REF!,8,FALSE))=TRUE,"",VLOOKUP($L14,#REF!,8,FALSE)) -> 
A15: =VLOOKUP($B15,#REF!,2,FALSE) ->  | H15: 12 | L15: 12 | M15: =IF(ISNA(VLOOKUP($L15,'Day 1-All Fish'!$C$3:$G$265,4,FALSE)+VLOOKUP($L15,#REF!,4,FALSE))=TRUE,"",VLOOKUP($L15,'Day 1-All Fish'!$C$3:$G$265,4,FALSE)+VLOOKUP($L15,#REF!,4,FALSE)) ->  | N15: =IF(ISNA(VLOOKUP($L15,'Day 1-All Fish'!$C$3:$G$265,5,FALSE)+VLOOKUP($L15,#REF!,5,FALSE))=TRUE,"",VLOOKUP($L15,'Day 1-All Fish'!$C$3:$G$265,5,FALSE)+VLOOKUP($L15,#REF!,5,FALSE)) ->  | O15: =IF(ISNA(VLOOKUP($L15,'Day 1-All Fish'!$C$3:$J$265,8,FALSE))=TRUE,"",VLOOKUP($L15,'Day 1-All Fish'!$C$3:$J$265,8,FALSE)) -> 67 | P15: =IF(ISNA(VLOOKUP($L15,#REF!,8,FALSE))=TRUE,"",VLOOKUP($L15,#REF!,8,FALSE)) -> 
A16: =VLOOKUP($B16,#REF!,2,FALSE) ->  | H16: 13 | L16: 13 | M16: =IF(ISNA(VLOOKUP($L16,'Day 1-All Fish'!$C$3:$G$265,4,FALSE)+VLOOKUP($L16,#REF!,4,FALSE))=TRUE,"",VLOOKUP($L16,'Day 1-All Fish'!$C$3:$G$265,4,FALSE)+VLOOKUP($L16,#REF!,4,FALSE)) ->  | N16: =IF(ISNA(VLOOKUP($L16,'Day 1-All Fish'!$C$3:$G$265,5,FALSE)+VLOOKUP($L16,#REF!,5,FALSE))=TRUE,"",VLOOKUP($L16,'Day 1-All Fish'!$C$3:$G$265,5,FALSE)+VLOOKUP($L16,#REF!,5,FALSE)) ->  | O16: =IF(ISNA(VLOOKUP($L16,'Day 1-All Fish'!$C$3:$J$265,8,FALSE))=TRUE,"",VLOOKUP($L16,'Day 1-All Fish'!$C$3:$J$265,8,FALSE)) -> 36 | P16: =IF(ISNA(VLOOKUP($L16,#REF!,8,FALSE))=TRUE,"",VLOOKUP($L16,#REF!,8,FALSE)) -> 
A17: =VLOOKUP($B17,#REF!,2,FALSE) ->  | H17: 14 | L17: 14 | M17: =IF(ISNA(VLOOKUP($L17,'Day 1-All Fish'!$C$3:$G$265,4,FALSE)+VLOOKUP($L17,#REF!,4,FALSE))=TRUE,"",VLOOKUP($L17,'Day 1-All Fish'!$C$3:$G$265,4,FALSE)+VLOOKUP($L17,#REF!,4,FALSE)) ->  | N17: =IF(ISNA(VLOOKUP($L17,'Day 1-All Fish'!$C$3:$G$265,5,FALSE)+VLOOKUP($L17,#REF!,5,FALSE))=TRUE,"",VLOOKUP($L17,'Day 1-All Fish'!$C$3:$G$265,5,FALSE)+VLOOKUP($L17,#REF!,5,FALSE)) ->  | O17: =IF(ISNA(VLOOKUP($L17,'Day 1-All Fish'!$C$3:$J$265,8,FALSE))=TRUE,"",VLOOKUP($L17,'Day 1-All Fish'!$C$3:$J$265,8,FALSE)) -> 64 | P17: =IF(ISNA(VLOOKUP($L17,#REF!,8,FALSE))=TRUE,"",VLOOKUP($L17,#REF!,8,FALSE)) -> 
A18: =VLOOKUP($B18,#REF!,2,FALSE) ->  | H18: 15 | L18: 15 | M18: =IF(ISNA(VLOOKUP($L18,'Day 1-All Fish'!$C$3:$G$265,4,FALSE)+VLOOKUP($L18,#REF!,4,FALSE))=TRUE,"",VLOOKUP($L18,'Day 1-All Fish'!$C$3:$G$265,4,FALSE)+VLOOKUP($L18,#REF!,4,FALSE)) ->  | N18: =IF(ISNA(VLOOKUP($L18,'Day 1-All Fish'!$C$3:$G$265,5,FALSE)+VLOOKUP($L18,#REF!,5,FALSE))=TRUE,"",VLOOKUP($L18,'Day 1-All Fish'!$C$3:$G$265,5,FALSE)+VLOOKUP($L18,#REF!,5,FALSE)) ->  | O18: =IF(ISNA(VLOOKUP($L18,'Day 1-All Fish'!$C$3:$J$265,8,FALSE))=TRUE,"",VLOOKUP($L18,'Day 1-All Fish'!$C$3:$J$265,8,FALSE)) -> 86 | P18: =IF(ISNA(VLOOKUP($L18,#REF!,8,FALSE))=TRUE,"",VLOOKUP($L18,#REF!,8,FALSE)) -> 
A19: =VLOOKUP($B19,#REF!,2,FALSE) ->  | H19: 16 | L19: 16 | M19: =IF(ISNA(VLOOKUP($L19,'Day 1-All Fish'!$C$3:$G$265,4,FALSE)+VLOOKUP($L19,#REF!,4,FALSE))=TRUE,"",VLOOKUP($L19,'Day 1-All Fish'!$C$3:$G$265,4,FALSE)+VLOOKUP($L19,#REF!,4,FALSE)) ->  | N19: =IF(ISNA(VLOOKUP($L19,'Day 1-All Fish'!$C$3:$G$265,5,FALSE)+VLOOKUP($L19,#REF!,5,FALSE))=TRUE,"",VLOOKUP($L19,'Day 1-All Fish'!$C$3:$G$265,5,FALSE)+VLOOKUP($L19,#REF!,5,FALSE)) ->  | O19: =IF(ISNA(VLOOKUP($L19,'Day 1-All Fish'!$C$3:$J$265,8,FALSE))=TRUE,"",VLOOKUP($L19,'Day 1-All Fish'!$C$3:$J$265,8,FALSE)) -> 48 | P19: =IF(ISNA(VLOOKUP($L19,#REF!,8,FALSE))=TRUE,"",VLOOKUP($L19,#REF!,8,FALSE)) -> 
A20: =VLOOKUP($B20,#REF!,2,FALSE) ->  | H20: 17 | L20: 17 | M20: =IF(ISNA(VLOOKUP($L20,'Day 1-All Fish'!$C$3:$G$265,4,FALSE)+VLOOKUP($L20,#REF!,4,FALSE))=TRUE,"",VLOOKUP($L20,'Day 1-All Fish'!$C$3:$G$265,4,FALSE)+VLOOKUP($L20,#REF!,4,FALSE)) ->  | N20: =IF(ISNA(VLOOKUP($L20,'Day 1-All Fish'!$C$3:$G$265,5,FALSE)+VLOOKUP($L20,#REF!,5,FALSE))=TRUE,"",VLOOKUP($L20,'Day 1-All Fish'!$C$3:$G$265,5,FALSE)+VLOOKUP($L20,#REF!,5,FALSE)) ->  | O20: =IF(ISNA(VLOOKUP($L20,'Day 1-All Fish'!$C$3:$J$265,8,FALSE))=TRUE,"",VLOOKUP($L20,'Day 1-All Fish'!$C$3:$J$265,8,FALSE)) -> 107 | P20: =IF(ISNA(VLOOKUP($L20,#REF!,8,FALSE))=TRUE,"",VLOOKUP($L20,#REF!,8,FALSE)) -> 
A21: =VLOOKUP($B21,#REF!,2,FALSE) ->  | H21: 18 | L21: 18 | M21: =IF(ISNA(VLOOKUP($L21,'Day 1-All Fish'!$C$3:$G$265,4,FALSE)+VLOOKUP($L21,#REF!,4,FALSE))=TRUE,"",VLOOKUP($L21,'Day 1-All Fish'!$C$3:$G$265,4,FALSE)+VLOOKUP($L21,#REF!,4,FALSE)) ->  | N21: =IF(ISNA(VLOOKUP($L21,'Day 1-All Fish'!$C$3:$G$265,5,FALSE)+VLOOKUP($L21,#REF!,5,FALSE))=TRUE,"",VLOOKUP($L21,'Day 1-All Fish'!$C$3:$G$265,5,FALSE)+VLOOKUP($L21,#REF!,5,FALSE)) ->  | O21: =IF(ISNA(VLOOKUP($L21,'Day 1-All Fish'!$C$3:$J$265,8,FALSE))=TRUE,"",VLOOKUP($L21,'Day 1-All Fish'!$C$3:$J$265,8,FALSE)) -> 53 | P21: =IF(ISNA(VLOOKUP($L21,#REF!,8,FALSE))=TRUE,"",VLOOKUP($L21,#REF!,8,FALSE)) -> 
A22: =VLOOKUP($B22,#REF!,2,FALSE) ->  | H22: 19 | L22: 19 | M22: =IF(ISNA(VLOOKUP($L22,'Day 1-All Fish'!$C$3:$G$265,4,FALSE)+VLOOKUP($L22,#REF!,4,FALSE))=TRUE,"",VLOOKUP($L22,'Day 1-All Fish'!$C$3:$G$265,4,FALSE)+VLOOKUP($L22,#REF!,4,FALSE)) ->  | N22: =IF(ISNA(VLOOKUP($L22,'Day 1-All Fish'!$C$3:$G$265,5,FALSE)+VLOOKUP($L22,#REF!,5,FALSE))=TRUE,"",VLOOKUP($L22,'Day 1-All Fish'!$C$3:$G$265,5,FALSE)+VLOOKUP($L22,#REF!,5,FALSE)) ->  | O22: =IF(ISNA(VLOOKUP($L22,'Day 1-All Fish'!$C$3:$J$265,8,FALSE))=TRUE,"",VLOOKUP($L22,'Day 1-All Fish'!$C$3:$J$265,8,FALSE)) -> 25 | P22: =IF(ISNA(VLOOKUP($L22,#REF!,8,FALSE))=TRUE,"",VLOOKUP($L22,#REF!,8,FALSE)) -> 
A23: =VLOOKUP($B23,#REF!,2,FALSE) ->  | H23: 20 | L23: 20 | M23: =IF(ISNA(VLOOKUP($L23,'Day 1-All Fish'!$C$3:$G$265,4,FALSE)+VLOOKUP($L23,#REF!,4,FALSE))=TRUE,"",VLOOKUP($L23,'Day 1-All Fish'!$C$3:$G$265,4,FALSE)+VLOOKUP($L23,#REF!,4,FALSE)) ->  | N23: =IF(ISNA(VLOOKUP($L23,'Day 1-All Fish'!$C$3:$G$265,5,FALSE)+VLOOKUP($L23,#REF!,5,FALSE))=TRUE,"",VLOOKUP($L23,'Day 1-All Fish'!$C$3:$G$265,5,FALSE)+VLOOKUP($L23,#REF!,5,FALSE)) ->  | O23: =IF(ISNA(VLOOKUP($L23,'Day 1-All Fish'!$C$3:$J$265,8,FALSE))=TRUE,"",VLOOKUP($L23,'Day 1-All Fish'!$C$3:$J$265,8,FALSE)) -> 19 | P23: =IF(ISNA(VLOOKUP($L23,#REF!,8,FALSE))=TRUE,"",VLOOKUP($L23,#REF!,8,FALSE)) -> 
A24: =VLOOKUP($B24,#REF!,2,FALSE) ->  | H24: 21 | L24: 21 | M24: =IF(ISNA(VLOOKUP($L24,'Day 1-All Fish'!$C$3:$G$265,4,FALSE)+VLOOKUP($L24,#REF!,4,FALSE))=TRUE,"",VLOOKUP($L24,'Day 1-All Fish'!$C$3:$G$265,4,FALSE)+VLOOKUP($L24,#REF!,4,FALSE)) ->  | N24: =IF(ISNA(VLOOKUP($L24,'Day 1-All Fish'!$C$3:$G$265,5,FALSE)+VLOOKUP($L24,#REF!,5,FALSE))=TRUE,"",VLOOKUP($L24,'Day 1-All Fish'!$C$3:$G$265,5,FALSE)+VLOOKUP($L24,#REF!,5,FALSE)) ->  | O24: =IF(ISNA(VLOOKUP($L24,'Day 1-All Fish'!$C$3:$J$265,8,FALSE))=TRUE,"",VLOOKUP($L24,'Day 1-All Fish'!$C$3:$J$265,8,FALSE)) -> 44 | P24: =IF(ISNA(VLOOKUP($L24,#REF!,8,FALSE))=TRUE,"",VLOOKUP($L24,#REF!,8,FALSE)) -> 
A25: =VLOOKUP($B25,#REF!,2,FALSE) ->  | H25: 22 | L25: 22 | M25: =IF(ISNA(VLOOKUP($L25,'Day 1-All Fish'!$C$3:$G$265,4,FALSE)+VLOOKUP($L25,#REF!,4,FALSE))=TRUE,"",VLOOKUP($L25,'Day 1-All Fish'!$C$3:$G$265,4,FALSE)+VLOOKUP($L25,#REF!,4,FALSE)) ->  | N25: =IF(ISNA(VLOOKUP($L25,'Day 1-All Fish'!$C$3:$G$265,5,FALSE)+VLOOKUP($L25,#REF!,5,FALSE))=TRUE,"",VLOOKUP($L25,'Day 1-All Fish'!$C$3:$G$265,5,FALSE)+VLOOKUP($L25,#REF!,5,FALSE)) ->  | O25: =IF(ISNA(VLOOKUP($L25,'Day 1-All Fish'!$C$3:$J$265,8,FALSE))=TRUE,"",VLOOKUP($L25,'Day 1-All Fish'!$C$3:$J$265,8,FALSE)) -> 31 | P25: =IF(ISNA(VLOOKUP($L25,#REF!,8,FALSE))=TRUE,"",VLOOKUP($L25,#REF!,8,FALSE)) -> 
A26: =VLOOKUP($B26,#REF!,2,FALSE) ->  | H26: 23 | L26: 23 | M26: =IF(ISNA(VLOOKUP($L26,'Day 1-All Fish'!$C$3:$G$265,4,FALSE)+VLOOKUP($L26,#REF!,4,FALSE))=TRUE,"",VLOOKUP($L26,'Day 1-All Fish'!$C$3:$G$265,4,FALSE)+VLOOKUP($L26,#REF!,4,FALSE)) ->  | N26: =IF(ISNA(VLOOKUP($L26,'Day 1-All Fish'!$C$3:$G$265,5,FALSE)+VLOOKUP($L26,#REF!,5,FALSE))=TRUE,"",VLOOKUP($L26,'Day 1-All Fish'!$C$3:$G$265,5,FALSE)+VLOOKUP($L26,#REF!,5,FALSE)) ->  | O26: =IF(ISNA(VLOOKUP($L26,'Day 1-All Fish'!$C$3:$J$265,8,FALSE))=TRUE,"",VLOOKUP($L26,'Day 1-All Fish'!$C$3:$J$265,8,FALSE)) -> 33 | P26: =IF(ISNA(VLOOKUP($L26,#REF!,8,FALSE))=TRUE,"",VLOOKUP($L26,#REF!,8,FALSE)) -> 
A27: =VLOOKUP($B27,#REF!,2,FALSE) ->  | H27: 24 | L27: 24 | M27: =IF(ISNA(VLOOKUP($L27,'Day 1-All Fish'!$C$3:$G$265,4,FALSE)+VLOOKUP($L27,#REF!,4,FALSE))=TRUE,"",VLOOKUP($L27,'Day 1-All Fish'!$C$3:$G$265,4,FALSE)+VLOOKUP($L27,#REF!,4,FALSE)) ->  | N27: =IF(ISNA(VLOOKUP($L27,'Day 1-All Fish'!$C$3:$G$265,5,FALSE)+VLOOKUP($L27,#REF!,5,FALSE))=TRUE,"",VLOOKUP($L27,'Day 1-All Fish'!$C$3:$G$265,5,FALSE)+VLOOKUP($L27,#REF!,5,FALSE)) ->  | O27: =IF(ISNA(VLOOKUP($L27,'Day 1-All Fish'!$C$3:$J$265,8,FALSE))=TRUE,"",VLOOKUP($L27,'Day 1-All Fish'!$C$3:$J$265,8,FALSE)) -> 6 | P27: =IF(ISNA(VLOOKUP($L27,#REF!,8,FALSE))=TRUE,"",VLOOKUP($L27,#REF!,8,FALSE)) -> 
A28: =VLOOKUP($B28,#REF!,2,FALSE) ->  | H28: 25 | L28: 25 | M28: =IF(ISNA(VLOOKUP($L28,'Day 1-All Fish'!$C$3:$G$265,4,FALSE)+VLOOKUP($L28,#REF!,4,FALSE))=TRUE,"",VLOOKUP($L28,'Day 1-All Fish'!$C$3:$G$265,4,FALSE)+VLOOKUP($L28,#REF!,4,FALSE)) ->  | N28: =IF(ISNA(VLOOKUP($L28,'Day 1-All Fish'!$C$3:$G$265,5,FALSE)+VLOOKUP($L28,#REF!,5,FALSE))=TRUE,"",VLOOKUP($L28,'Day 1-All Fish'!$C$3:$G$265,5,FALSE)+VLOOKUP($L28,#REF!,5,FALSE)) ->  | O28: =IF(ISNA(VLOOKUP($L28,'Day 1-All Fish'!$C$3:$J$265,8,FALSE))=TRUE,"",VLOOKUP($L28,'Day 1-All Fish'!$C$3:$J$265,8,FALSE)) -> 3 | P28: =IF(ISNA(VLOOKUP($L28,#REF!,8,FALSE))=TRUE,"",VLOOKUP($L28,#REF!,8,FALSE)) -> 
